Workbook

Sheet fnd budget
W1: =VLOOKUP(orderCHA,charterinfo_a,4) -> 409
W2: =VLOOKUP(orderCHA,charterinfo_a,5) -> 201
W3: =VLOOKUP(orderCHA,charterinfo_a,6) -> 72
A5: F Y 1 9 F O U N D A T I O N B U D G E T
A6: =VLOOKUP(orderCHA,charterinfo_a,2) -> 409 - ALMA DEL MAR Charter School - DARTMOUTH pupils
C7: Items | D7: ---------------------------- Base Foundation Components -------------------------------------- | Q7: --- Incremental Costs Above The Base ---
C8: Adj by | D8: (1) | E8: (2) | F8: (3) | G8: (4) | H8: (5) | I8: (6) | J8: (7) | L8: (8) | M8: (9) | N8: (10) | O8: (11) | P8: (12) | Q8: (13) | R8: (13) | S8: (15) | T8: (16) | U8: (17)
C9: Wage | D9: Pre- | E9: -- Kindergarten -- | G9: Elem- | H9: Jr High/ | I9: High | J9: Voca- | L9: Sped In-school | M9: Sped Out | N9: ------------------------------------------- ELL -------------------------------------------------------- | U9: Low
C10: Fctr = w | D10: School | E10: K Half | F10: K Full | G10: entary | H10: Middle | I10: School | J10: tional* | L10: (3.75% of total) | M10: of District* | N10: PK | O10: K Half | P10: K Full | Q10: Elem | R10: JR High | S10: SR High | T10: Voke* | U10: Income | W10: TOTAL**
A12: F O U N D A T I O N E N R O L L M E N T | D12: =VLOOKUP(VLOOKUP(orderCHA,charterinfo_a,3), rate_chafnd,3) -> 0 | E12: =VLOOKUP(VLOOKUP(orderCHA,charterinfo_a,3),rate_chafnd,4) -> 0 | F12: =VLOOKUP(VLOOKUP(orderCHA,charterinfo_a,3),rate_chafnd,5) -> 0 | G12: =VLOOKUP(VLOOKUP(orderCHA,charterinfo_a,3),rate_chafnd,6) -> 2 | H12: =VLOOKUP(VLOOKUP(orderCHA,charterinfo_a,3),rate_chafnd,7) -> 0 | I12: =VLOOKUP(VLOOKUP(orderCHA,charterinfo_a,3),rate_chafnd,8) -> 0 | J12: =VLOOKUP(VLOOKUP(orderCHA,charterinfo_a,3),rate_chafnd,11) -> 0 | L12: =VLOOKUP(VLOOKUP(orderCHA,charterinfo_a,3),rate_chafnd,9) -> 0.075 | M12: =VLOOKUP(VLOOKUP(orderCHA,charterinfo_a,3),rate_chafnd,10) -> 0 | N12: =VLOOKUP(VLOOKUP(orderCHA,charterinfo_a,3),rate_chafnd,12) -> 0 | O12: =VLOOKUP(VLOOKUP(orderCHA,charterinfo_a,3),rate_chafnd,13) -> 0 | P12: =VLOOKUP(VLOOKUP(orderCHA,charterinfo_a,3),rate_chafnd,14) -> 0 | Q12: =VLOOKUP(VLOOKUP(orderCHA,charterinfo_a,3),rate_chafnd,15) -> 0 | R12: =VLOOKUP(VLOOKUP(orderCHA,charterinfo_a,3),rate_chafnd,16) -> 0 | S12: =VLOOKUP(VLOOKUP(orderCHA,charterinfo_a,3),rate_chafnd,17) -> 0 | T12: =VLOOKUP(VLOOKUP(orderCHA,charterinfo_a,3),rate_chafnd,18) -> 0 | U12: =VLOOKUP(VLOOKUP(orderCHA,charterinfo_a,3),rate_chafnd,19) -> 1 | W12: =VLOOKUP(VLOOKUP(orderCHA,charterinfo_a,3),rate_chafnd,20) -> 2
A14: 1 | B14: Administration | C14: w | D14: ='fnd base rates'!$C48*$D$28*D$12 -> 0 | E14: ='fnd base rates'!$C49*$D$28*E$12 -> 0 | F14: ='fnd base rates'!$C50*$D$28*F$12 -> 0 | G14: ='fnd base rates'!$C51*$D$28*G$12 -> 755.52 | H14: ='fnd base rates'!$C52*$D$28*H$12 -> 0 | I14: ='fnd base rates'!$C53*$D$28*I$12 -> 0 | J14: ='fnd base rates'!$C63*$D$28*J$12 -> 0 | L14: ='fnd base rates'!$C54*$D$28*L$12 -> 195.54075 | M14: ='fnd base rates'!$C55*$D$28*M$12 -> 0 | N14: ='fnd base rates'!$C56*$D$28*N$12 -> 0 | O14: ='fnd base rates'!$C57*$D$28*O$12 -> 0 | P14: ='fnd base rates'!$C58*$D$28*P$12 -> 0 | Q14: ='fnd base rates'!$C59*$D$28*Q$12 -> 0 | R14: ='fnd base rates'!$C60*$D$28*R$12 -> 0 | S14: ='fnd base rates'!$C61*$D$28*S$12 -> 0 | T14: ='fnd base rates'!$C62*$D$28*T$12 -> 0 | U14: =VLOOKUP((VLOOKUP(VLOOKUP(orderCHA,charterinfo_a,3),rate_chafnd,22)+16),rate_basefnd,3)*$D$28*U$12 -> 0 | W14: =SUM(D14:U14) -> 951.06075
A15: 2 | B15: Instructional Leadership | C15: w | D15: ='fnd base rates'!$D48*$D$28*D$12 -> 0 | E15: ='fnd base rates'!$D49*$D$28*E$12 -> 0 | F15: ='fnd base rates'!$D50*$D$28*F$12 -> 0 | G15: ='fnd base rates'!$D51*$D$28*G$12 -> 1364.54 | H15: ='fnd base rates'!$D52*$D$28*H$12 -> 0 | I15: ='fnd base rates'!$D53*$D$28*I$12 -> 0 | J15: ='fnd base rates'!$D63*$D$28*J$12 -> 0 | L15: ='fnd base rates'!$D54*$D$28*L$12 -> 0 | M15: ='fnd base rates'!$D55*$D$28*M$12 -> 0 | N15: ='fnd base rates'!$D56*$D$28*N$12 -> 0 | O15: ='fnd base rates'!$D57*$D$28*O$12 -> 0 | P15: ='fnd base rates'!$D58*$D$28*P$12 -> 0 | Q15: ='fnd base rates'!$D59*$D$28*Q$12 -> 0 | R15: ='fnd base rates'!$D60*$D$28*R$12 -> 0 | S15: ='fnd base rates'!$D61*$D$28*S$12 -> 0 | T15: ='fnd base rates'!$D62*$D$28*T$12 -> 0 | U15: =VLOOKUP((VLOOKUP(VLOOKUP(orderCHA,charterinfo_a,3),rate_chafnd,22)+16),rate_basefnd,4)*$D$28*U$12 -> 0 | W15: 1364.54
A16: 3 | B16: Classroom and Specialist Teachers | C16: w | D16: ='fnd base rates'!$E48*$D$28*D$12 -> 0 | E16: ='fnd base rates'!$E49*$D$28*E$12 -> 0 | F16: ='fnd base rates'!$E50*$D$28*F$12 -> 0 | G16: ='fnd base rates'!$E51*$D$28*G$12 -> 6256.8 | H16: ='fnd base rates'!$E52*$D$28*H$12 -> 0 | I16: ='fnd base rates'!$E53*$D$28*I$12 -> 0 | J16: ='fnd base rates'!$E63*$D$28*J$12 -> 0 | L16: ='fnd base rates'!$E54*$D$28*L$12 -> 645.23475 | M16: ='fnd base rates'!$E55*$D$28*M$12 -> 0 | N16: ='fnd base rates'!$E56*$D$28*N$12 -> 0 | O16: ='fnd base rates'!$E57*$D$28*O$12 -> 0 | P16: ='fnd base rates'!$E58*$D$28*P$12 -> 0 | Q16: ='fnd base rates'!$E59*$D$28*Q$12 -> 0 | R16: ='fnd base rates'!$E60*$D$28*R$12 -> 0 | S16: ='fnd base rates'!$E61*$D$28*S$12 -> 0 | T16: ='fnd base rates'!$E62*$D$28*T$12 -> 0 | U16: =VLOOKUP((VLOOKUP(VLOOKUP(orderCHA,charterinfo_a,3),rate_chafnd,22)+16),rate_basefnd,5)*$D$28*U$12 -> 3104.0646 | W16: 10006.09935
A17: 4 | B17: Other Teaching Services | C17: w | D17: ='fnd base rates'!$F48*$D$28*D$12 -> 0 | E17: ='fnd base rates'!$F49*$D$28*E$12 -> 0 | F17: ='fnd base rates'!$F50*$D$28*F$12 -> 0 | G17: ='fnd base rates'!$F51*$D$28*G$12 -> 1604.76 | H17: ='fnd base rates'!$F52*$D$28*H$12 -> 0 | I17: ='fnd base rates'!$F53*$D$28*I$12 -> 0 | J17: ='fnd base rates'!$F63*$D$28*J$12 -> 0 | L17: ='fnd base rates'!$F54*$D$28*L$12 -> 602.44725 | M17: ='fnd base rates'!$F55*$D$28*M$12 -> 0 | N17: ='fnd base rates'!$F56*$D$28*N$12 -> 0 | O17: ='fnd base rates'!$F57*$D$28*O$12 -> 0 | P17: ='fnd base rates'!$F58*$D$28*P$12 -> 0 | Q17: ='fnd base rates'!$F59*$D$28*Q$12 -> 0 | R17: ='fnd base rates'!$F60*$D$28*R$12 -> 0 | S17: ='fnd base rates'!$F61*$D$28*S$12 -> 0 | T17: ='fnd base rates'!$F62*$D$28*T$12 -> 0 | U17: =VLOOKUP((VLOOKUP(VLOOKUP(orderCHA,charterinfo_a,3),rate_chafnd,22)+16),rate_basefnd,6)*$D$28*U$12 -> 0 | W17: 2207.20725
A18: 5 | B18: Professional Development | C18: w | D18: ='fnd base rates'!$G48*$D$28*D$12 -> 0 | E18: ='fnd base rates'!$G49*$D$28*E$12 -> 0 | F18: ='fnd base rates'!$G50*$D$28*F$12 -> 0 | G18: ='fnd base rates'!$G51*$D$28*G$12 -> 247.6 | H18: ='fnd base rates'!$G52*$D$28*H$12 -> 0 | I18: ='fnd base rates'!$G53*$D$28*I$12 -> 0 | J18: ='fnd base rates'!$G63*$D$28*J$12 -> 0 | L18: ='fnd base rates'!$G54*$D$28*L$12 -> 31.12575 | M18: ='fnd base rates'!$G55*$D$28*M$12 -> 0 | N18: ='fnd base rates'!$G56*$D$28*N$12 -> 0 | O18: ='fnd base rates'!$G57*$D$28*O$12 -> 0 | P18: ='fnd base rates'!$G58*$D$28*P$12 -> 0 | Q18: ='fnd base rates'!$G59*$D$28*Q$12 -> 0 | R18: ='fnd base rates'!$G60*$D$28*R$12 -> 0 | S18: ='fnd base rates'!$G61*$D$28*S$12 -> 0 | T18: ='fnd base rates'!$G62*$D$28*T$12 -> 0 | U18: =VLOOKUP((VLOOKUP(VLOOKUP(orderCHA,charterinfo_a,3),rate_chafnd,22)+16),rate_basefnd,7)*$D$28*U$12 -> 79.5914 | W18: 358.31715
A19: 6 | B19: Instructional Equipment & Tech | D19: ='fnd base rates'!$H48*D$12 -> 0 | E19: ='fnd base rates'!$H49*E$12 -> 0 | F19: ='fnd base rates'!$H50*F$12 -> 0 | G19: ='fnd base rates'!$H51*G$12 -> 905.6 | H19: ='fnd base rates'!$H52*H$12 -> 0 | I19: ='fnd base rates'!$H53*I$12 -> 0 | J19: ='fnd base rates'!$H63*J$12 -> 0 | L19: ='fnd base rates'!$H54*L$12 -> 27.168 | M19: ='fnd base rates'!$H55*M$12 -> 0 | N19: ='fnd base rates'!$H56*N$12 -> 0 | O19: ='fnd base rates'!$H57*O$12 -> 0 | P19: ='fnd base rates'!$H58*P$12 -> 0 | Q19: ='fnd base rates'!$H59*Q$12 -> 0 | R19: ='fnd base rates'!$H60*R$12 -> 0 | S19: ='fnd base rates'!$H61*S$12 -> 0 | T19: ='fnd base rates'!$H62*T$12 -> 0 | U19: =VLOOKUP((VLOOKUP(VLOOKUP(orderCHA,charterinfo_a,3),rate_chafnd,22)+16),rate_basefnd,8)*U$12 -> 0 | W19: 932.768
A20: 7 | B20: Guidance and Pschological | C20: w | D20: ='fnd base rates'!$I48*$D$28*D$12 -> 0 | E20: ='fnd base rates'!$I49*$D$28*E$12 -> 0 | F20: ='fnd base rates'!$I50*$D$28*F$12 -> 0 | G20: ='fnd base rates'!$I51*$D$28*G$12 -> 455.3 | H20: ='fnd base rates'!$I52*$D$28*H$12 -> 0 | I20: ='fnd base rates'!$I53*$D$28*I$12 -> 0 | J20: ='fnd base rates'!$I63*$D$28*J$12 -> 0 | L20: ='fnd base rates'!$I54*$D$28*L$12 -> 0 | M20: ='fnd base rates'!$I55*$D$28*M$12 -> 0 | N20: ='fnd base rates'!$I56*$D$28*N$12 -> 0 | O20: ='fnd base rates'!$I57*$D$28*O$12 -> 0 | P20: ='fnd base rates'!$I58*$D$28*P$12 -> 0 | Q20: ='fnd base rates'!$I59*$D$28*Q$12 -> 0 | R20: ='fnd base rates'!$I60*$D$28*R$12 -> 0 | S20: ='fnd base rates'!$I61*$D$28*S$12 -> 0 | T20: ='fnd base rates'!$I62*$D$28*T$12 -> 0 | U20: =VLOOKUP((VLOOKUP(VLOOKUP(orderCHA,charterinfo_a,3),rate_chafnd,22)+16),rate_basefnd,9)*$D$28*U$12 -> 0 | W20: 455.3
A21: 8 | B21: Pupil Services | C21: w | D21: ='fnd base rates'!$J48*$D$28*D$12 -> 0 | E21: ='fnd base rates'!$J49*$D$28*E$12 -> 0 | F21: ='fnd base rates'!$J50*$D$28*F$12 -> 0 | G21: ='fnd base rates'!$J51*$D$28*G$12 -> 271.68 | H21: ='fnd base rates'!$J52*$D$28*H$12 -> 0 | I21: ='fnd base rates'!$J53*$D$28*I$12 -> 0 | J21: ='fnd base rates'!$J63*$D$28*J$12 -> 0 | L21: ='fnd base rates'!$J54*$D$28*L$12 -> 0 | M21: ='fnd base rates'!$J55*$D$28*M$12 -> 0 | N21: ='fnd base rates'!$J56*$D$28*N$12 -> 0 | O21: ='fnd base rates'!$J57*$D$28*O$12 -> 0 | P21: ='fnd base rates'!$J58*$D$28*P$12 -> 0 | Q21: ='fnd base rates'!$J59*$D$28*Q$12 -> 0 | R21: ='fnd base rates'!$J60*$D$28*R$12 -> 0 | S21: ='fnd base rates'!$J61*$D$28*S$12 -> 0 | T21: ='fnd base rates'!$J62*$D$28*T$12 -> 0 | U21: =VLOOKUP((VLOOKUP(VLOOKUP(orderCHA,charterinfo_a,3),rate_chafnd,22)+16),rate_basefnd,10)*$D$28*U$12 -> 0 | W21: 271.68
A22: 9 | B22: Operations and Maintenance | C22: w | D22: ='fnd base rates'!$K48*$D$28*D$12 -> 0 | E22: ='fnd base rates'!$K49*$D$28*E$12 -> 0 | F22: ='fnd base rates'!$K50*$D$28*F$12 -> 0 | G22: ='fnd base rates'!$K51*$D$28*G$12 -> 1737.44 | H22: ='fnd base rates'!$K52*$D$28*H$12 -> 0 | I22: ='fnd base rates'!$K53*$D$28*I$12 -> 0 | J22: ='fnd base rates'!$K63*$D$28*J$12 -> 0 | L22: ='fnd base rates'!$K54*$D$28*L$12 -> 218.4285 | M22: ='fnd base rates'!$K55*$D$28*M$12 -> 0 | N22: ='fnd base rates'!$K56*$D$28*N$12 -> 0 | O22: ='fnd base rates'!$K57*$D$28*O$12 -> 0 | P22: ='fnd base rates'!$K58*$D$28*P$12 -> 0 | Q22: ='fnd base rates'!$K59*$D$28*Q$12 -> 0 | R22: ='fnd base rates'!$K60*$D$28*R$12 -> 0 | S22: ='fnd base rates'!$K61*$D$28*S$12 -> 0 | T22: ='fnd base rates'!$K62*$D$28*T$12 -> 0 | U22: =VLOOKUP((VLOOKUP(VLOOKUP(orderCHA,charterinfo_a,3),rate_chafnd,22)+16),rate_basefnd,11)*$D$28*U$12 -> 477.5484 | W22: 2433.4169
A23: 10 | B23: Employee Benefits & Fixed Charges | D23: ='fnd base rates'!$L48*D$12 -> 0 | E23: ='fnd base rates'!$L49*E$12 -> 0 | F23: ='fnd base rates'!$L50*F$12 -> 0 | G23: ='fnd base rates'!$L51*G$12 -> 1926.8 | H23: ='fnd base rates'!$L52*H$12 -> 0 | I23: ='fnd base rates'!$L53*I$12 -> 0 | J23: ='fnd base rates'!$L63*J$12 -> 0 | L23: ='fnd base rates'!$L54*L$12 -> 252.88725 | M23: ='fnd base rates'!$L55*M$12 -> 0 | N23: ='fnd base rates'!$L56*N$12 -> 0 | O23: ='fnd base rates'!$L57*O$12 -> 0 | P23: ='fnd base rates'!$L58*P$12 -> 0 | Q23: ='fnd base rates'!$L59*Q$12 -> 0 | R23: ='fnd base rates'!$L60*R$12 -> 0 | S23: ='fnd base rates'!$L61*S$12 -> 0 | T23: ='fnd base rates'!$L62*T$12 -> 0 | U23: =VLOOKUP((VLOOKUP(VLOOKUP(orderCHA,charterinfo_a,3),rate_chafnd,22)+16),rate_basefnd,12)*U$12 -> 318.3656 | W23: 2498.05285
A24: 11 | B24: Special Ed Tuition | D24: ='fnd base rates'!$M48*D$12 -> 0 | E24: ='fnd base rates'!$M49*E$12 -> 0 | F24: ='fnd base rates'!$M50*F$12 -> 0 | G24: ='fnd base rates'!$M51*G$12 -> 0 | H24: ='fnd base rates'!$M52*H$12 -> 0 | I24: ='fnd base rates'!$M53*I$12 -> 0 | J24: ='fnd base rates'!$M63*J$12 -> 0 | L24: ='fnd base rates'!$M54*L$12 -> 0 | M24: ='fnd base rates'!$M55*M$12 -> 0 | N24: ='fnd base rates'!$M56*N$12 -> 0 | O24: ='fnd base rates'!$M57*O$12 -> 0 | P24: ='fnd base rates'!$M58*P$12 -> 0 | Q24: ='fnd base rates'!$M59*Q$12 -> 0 | R24: ='fnd base rates'!$M60*R$12 -> 0 | S24: ='fnd base rates'!$M61*S$12 -> 0 | T24: ='fnd base rates'!$M62*T$12 -> 0 | U24: =VLOOKUP((VLOOKUP(VLOOKUP(orderCHA,charterinfo_a,3),rate_chafnd,22)+16),rate_basefnd,13)*U$12 -> 0 | W24: 0
A26: 12 | B26: Total | D26: =SUM(D14:D24) -> 0 | E26: 0 | F26: 0 | G26: 15526.04 | H26: =SUM(H14:H24) -> 0 | I26: 0 | J26: 0 | K26: 0 | L26: 1972.83225 | M26: 0 | N26: 0 | O26: 0 | P26: 0 | Q26: 0 | R26: 0 | S26: 0 | T26: 0 | U26: 3979.57 | V26: 0 | W26: =SUM(W14:W24) -> 21478.44225
A28: 13 | B28: Wage Adjustment Factor | D28: =VLOOKUP(orderCHA,charterinfo_a,8) -> 1 | U28: F O U N D A T I O N T U I T I O N R A T E | W28: =IF(W12=0,0,ROUND(W26/W12,0)) -> 10739
A29: 14 | B29: Low Income Decile | D29: =VLOOKUP(orderCHA,charterinfo_a,9) -> 10
A30: * | B30: Charter schools do not send pupils to out of district special education or Ch 74 vocational programs; these categories are omitted from the calculation.
A32: ** | B32: Total foundation enrollment does not include columns 8 through 17, because these columns represent increments above the base. The pupils are already counted in columns 1 to 7.
B33: Regular and english language learner enrollment are sourced from the October 2017 SIMS.
B34: Total foundation enrollment assigns pupils in pre-kindergarten and half-time kindergarten an enrollment count of .5.
B35: Special education in-district headcount is an assumed percentage, representing 3.75 percent of K to 12 non-vocational enrollment.
B36: Economically disadvantaged headcounts are the number of pupils in columns 1 through 7 who are directly certified as eligible for the Supplemental Nutrition
B37: Assistance Program (SNAP); the Transitional Assistance for Families with Dependent Children (TAFDC); and MassHealth (Medicaid).
B38: Each component of the foundation budget represents the enrollment on line 1 multiplied by the appropriate state-wide foundation allotment.
B39: The wage adjustment factor is applied to underlying rates in all functions except instructional equipment, benefits and special education tuition.

Sheet fnd base rates (hidden)
A2: FY18 Base Rates
H3: Instruction- | I3: Guid- | K3: Opera- | L3: Employee | N3: Total
E4: Classroom | F4: Other | G4: Profess- | H4: al Materials, | I4: ance & | K4: tions & | L4: Benefits | N4: Opera-
C5: Admini- | D5: Instructional | E5: & Specialist | F5: Teaching | G5: ional Dev- | H5: Equipment & | I5: Psycho- | J5: Pupil | K5: Maint- | L5: & Fixed | M5: Sped | N5: ting Exp-
A6: Foundation Subsets | C6: stration | D6: Leadership | E6: Teachers | F6: Services | G6: elopment | H6: Technology | I6: logical | J6: Services | K6: enance | L6: Charges | M6: Tuition | N6: enditures
A8: 1 | B8: Pre-School | C8: 184.03 | D8: 332.37 | E8: 1523.99 | F8: 390.86 | G8: 60.27 | H8: 220.58 | I8: 110.88 | J8: 44.1 | K8: 423.2 | L8: 432.2397472 | N8: 3722.519747
A9: 2 | B9: Kindergarten-Half | C9: 184.03 | D9: 332.37 | E9: 1523.99 | F9: 390.86 | G9: 60.27 | H9: 220.58 | I9: 110.88 | J9: 44.1 | K9: 423.2 | L9: 432.2397472 | N9: 3722.519747
A10: 3 | B10: Kindergarten-Full | C10: 368.04 | D10: 664.72 | E10: 3047.97 | F10: 781.74 | G10: 120.6 | H10: 441.15 | I10: 221.79 | J10: 88.24 | K10: 846.38 | L10: 864.4539944 | N10: 7445.083994
A11: 4 | B11: Elementary | C11: 368.04 | D11: 664.72 | E11: 3047.93 | F11: 781.74 | G11: 120.62 | H11: 441.15 | I11: 221.79 | J11: 132.35 | K11: 846.38 | L11: 864.4964944 | N11: 7489.216494
A12: 5 | B12: Junior/Middle | C12: 368.04 | D12: 664.72 | E12: 2682.2 | F12: 562.73 | G12: 130.76 | H12: 441.15 | I12: 295.23 | J12: 216.18 | K12: 917.59 | L12: 854.684793 | N12: 7133.284793
A13: 6 | B13: High School | C13: 368.04 | D13: 664.72 | E13: 3944.39 | F13: 468.48 | G13: 126.78 | H13: 705.85 | I13: 370.08 | J13: 498.5 | K13: 889.7 | L13: 795.9230689 | N13: 8832.463069
A14: 7 | B14: Special Ed-In School | C14: 2540.15 | E14: 8381.85 | F14: 7826.02 | G14: 404.34 | H14: 352.92 | K14: 2837.47 | L14: 3288.932544 | N14: 25631.68254
A15: 8 | B15: Special Ed-Tuitioned Out | C15: 2540.15 | F15: 38.81 | M15: 24117.38 | N15: 26696.34
A16: 9 | B16: Limited English PK | C16: 184.04 | D16: 332.37 | E16: 2295.18 | F16: 312.54 | G16: 81.65 | H16: 220.58 | I16: 147.6 | J16: 66.17 | K16: 572.93 | L16: 520.0488377 | N16: 4733.108838
A17: 10 | B17: Limited English K Half Time | C17: 184.04 | D17: 332.37 | E17: 2295.18 | F17: 312.54 | G17: 81.65 | H17: 220.58 | I17: 147.6 | J17: 66.17 | K17: 572.93 | L17: 520.0488377 | N17: 4733.108838
A18: 11 | B18: Limited English Full Time | C18: 368.04 | D18: 664.72 | E18: 4590.33 | F18: 625.08 | G18: 163.26 | H18: 441.15 | I18: 295.23 | J18: 132.35 | K18: 1145.81 | L18: 1025.798366 | N18: 9451.768366
A19: 12 | B19: Vocational | C19: 368.04 | D19: 664.72 | E19: 6705.5 | F19: 468.48 | G19: 209.61 | H19: 1235.22 | I19: 370.08 | J19: 498.5 | K19: 1665.1 | L19: 1231.583344 | N19: 13416.83334
A20: 13 | B20: Low Income 1 | E20: 2986.71 | G20: 65.73 | K20: 461.27 | L20: 303.18 | N20: 3816.89
A21: 14 | B21: Low Income 2 | E21: 3018.36 | G21: 66.43 | K21: 466.17 | L21: 306.39 | N21: 3857.35
A22: 15 | B22: Low Income 3 | E22: 3050 | G22: 67.13 | K22: 471.05 | L22: 309.6 | N22: 3897.78
A23: 16 | B23: Low Income 4 | E23: 3081.65 | G23: 67.82 | K23: 475.94 | L23: 312.81 | N23: 3938.22
A24: 17 | B24: Low Income 5 | E24: 3113.3 | G24: 68.52 | K24: 480.83 | L24: 316.03 | N24: 3978.68
A25: 18 | B25: Low Income 6 | E25: 3144.95 | G25: 69.21 | K25: 485.71 | L25: 319.24 | N25: 4019.11
A26: 19 | B26: Low Income 7 | E26: 3176.59 | G26: 69.91 | K26: 490.61 | L26: 322.45 | N26: 4059.56
A27: 20 | B27: Low Income 8 | E27: 3208.24 | G27: 70.61 | K27: 495.49 | L27: 325.67 | N27: 4100.01
A28: 21 | B28: Low Income 9 | E28: 3239.89 | G28: 71.3 | K28: 500.38 | L28: 328.88 | N28: 4140.45
A29: 22 | B29: Low Income 10 | E29: 3271.54 | G29: 72 | K29: 505.27 | L29: 332.1 | N29: 4180.91
B31: Low Income as a % of the whole | E31: =ROUND((E21/$N21),2) -> 0.78 | G31: =ROUND((G29/$N29),2) -> 0.02 | K31: =ROUND((K29/$N29),2) -> 0.12 | L31: =ROUND((L29/$N29),2) -> 0.08 | N31: =SUM(C31:M31) -> 1
B37: Inflation Adjustment
B38: FY18 inflation index | C38: 1
B39: FY19 inflation | C39: 0.0264 | L39: Rates shaded in orange are values, not changed by formula.
B40: FY19 adjustment | C40: =C38+C39 -> 1.0264 | L40: Rates shaded ochre are modified in their own special way
A42: FY19 Foundation Budget Rates
H43: Instruction- | I43: Guid- | K43: Opera- | L43: Employee | N43: Total
E44: Classroom | F44: Other | G44: Profess- | H44: al Materials, | I44: ance & | K44: tions & | L44: Benefits | N44: Opera- | P44: Inflation | R44: low inc
C45: Admini- | D45: Instructional | E45: & Specialist | F45: Teaching | G45: ional Dev- | H45: Equipment & | I45: Psycho- | J45: Pupil | K45: Maint- | L45: & Fixed | M45: Sped | N45: ting Exp- | R45: reduction
A46: Adjusted Foundation Budget | C46: stration | D46: Leadership | E46: Teachers | F46: Services | G46: elopment | H46: Technology | I46: logical | J46: Services | K46: enance | L46: Charges | M46: Tuition | N46: enditures
C47: 3 | D47: 4 | E47: 5 | F47: 6 | G47: 7 | H47: 8 | I47: 9 | J47: 10 | K47: 11 | L47: 12 | M47: 13 | N47: 14
A48: 1 | B48: Pre-School | C48: =IF(C8>0,ROUND(C8*inflat,2),0) -> 188.89 | D48: 341.14 | E48: 1564.22 | F48: 401.18 | G48: =IF(G8>0,ROUND(G8*inflat,2),0) -> 61.86 | H48: 226.4 | I48: 113.81 | J48: 45.26 | K48: 434.37 | L48: 481.69 | N48: =SUM(C48:M48) -> 3858.82 | P48: =C39 -> 0.0264 | R48: 300
A49: 2 | B49: Kindergarten-Half | C49: 188.89 | D49: 341.14 | E49: 1564.22 | F49: 401.18 | G49: 61.86 | H49: 226.4 | I49: 113.81 | J49: 45.26 | K49: 434.37 | L49: 481.69 | N49: =SUM(C49:M49) -> 3858.82 | R49: 0.0269014826
A50: 3 | B50: Kindergarten-Full | C50: 377.76 | D50: 682.27 | E50: 3128.44 | F50: 802.38 | G50: 123.78 | H50: 452.8 | I50: 227.65 | J50: 90.57 | K50: 868.72 | L50: 963.36 | N50: 7717.73
A51: 4 | B51: Elementary | C51: 377.76 | D51: 682.27 | E51: 3128.4 | F51: 802.38 | G51: 123.8 | H51: 452.8 | I51: 227.65 | J51: 135.84 | K51: 868.72 | L51: 963.4 | N51: 7763.02
A52: 5 | B52: Junior/Middle | C52: 377.76 | D52: 682.27 | E52: 2753.01 | F52: 577.59 | G52: 134.21 | H52: 452.8 | I52: 303.02 | J52: 221.89 | K52: 941.81 | L52: 979.63 | N52: 7423.99
A53: 6 | B53: High School | C53: =IF(C13>0,ROUND(C13*inflat,2),0) -> 377.76 | D53: 682.27 | E53: 4048.52 | F53: 480.85 | G53: 130.13 | H53: 724.48 | I53: 379.85 | J53: 511.66 | K53: 913.19 | L53: 892.16 | N53: 9140.87
A54: 7 | B54: Special Ed-In School | C54: =IF(C14>0,ROUND(C14*inflat,2),0) -> 2607.21 | E54: 8603.13 | F54: 8032.63 | G54: 415.01 | H54: 362.24 | K54: 2912.38 | L54: 3371.83 | N54: 26304.43
A55: 8 | B55: Special Ed-Tuitioned Out | C55: =IF(C15>0,ROUND(C15*inflat,2),0) -> 2607.21 | F55: =IF(F15>0,ROUND(F15*inflat,2),0) -> 39.83 | M55: =IF(M15>0,ROUND(M15*inflat,2),0) -> 24754.08 | N55: 27401.12
A56: 9 | B56: Limited English PK | C56: 44.69 | D56: 78.21 | E56: 536.31 | F56: 78.21 | G56: 22.35 | H56: 55.87 | I56: 33.52 | J56: 11.17 | K56: 134.08 | L56: 122.91 | N56: 1117.32
A57: 10 | B57: Limited English K Half Time | C57: 44.69 | D57: 78.21 | E57: 536.31 | F57: 78.21 | G57: 22.35 | H57: 55.87 | I57: 33.52 | J57: 11.17 | K57: 134.08 | L57: 122.91 | N57: 1117.32
A58: 11 | B58: Limited English K Full | C58: 89.04 | D58: 155.82 | E58: 1090.73 | F58: 155.82 | G58: 44.52 | H58: 111.3 | I58: 66.78 | J58: 22.26 | K58: 267.12 | L58: 244.86 | N58: 2248.25
A59: 12 | B59: Limited English Elem | C59: 88.41 | D59: 154.71 | E59: 1082.96 | F59: 154.71 | G59: 44.2 | H59: 110.51 | I59: 66.3 | J59: 22.1 | K59: 265.22 | L59: 243.11 | N59: 2232.23
A60: 13 | B60: Limited English Junior/Middle | C60: 93.24 | D60: 163.17 | E60: 1142.22 | F60: 163.17 | G60: 46.62 | H60: 116.55 | I60: 69.93 | J60: 23.31 | K60: 279.73 | L60: 256.42 | N60: 2354.36
A61: 14 | B61: Limited English High School | C61: 69.11 | D61: 120.94 | E61: 846.55 | F61: 120.94 | G61: 34.55 | H61: 86.38 | I61: 51.83 | J61: 17.28 | K61: 207.32 | L61: 190.04 | N61: 1744.94
A62: 15 | B62: Limited English Vocational | C62: 60.61 | D62: 106.06 | E62: 742.45 | F62: 106.06 | G62: 30.3 | H62: 75.76 | I62: 45.46 | J62: 15.15 | K62: 181.82 | L62: 166.67 | N62: 1530.34
A63: 16 | B63: Vocational | C63: =IF(C19>0,ROUND(C19*inflat,2),0) -> 377.76 | D63: 682.27 | E63: 6882.53 | F63: 480.85 | G63: 215.14 | H63: 1267.83 | I63: 379.85 | J63: 511.66 | K63: 1709.06 | L63: 1330.21 | N63: 13837.16
A64: 17 | B64: Low Income 1 | E64: =ROUND((E20/$N20),2)*$N64 -> 2823.2646 | G64: =ROUND((G20/$N20),2)*$N64 -> 72.3914 | K64: =ROUND((K20/$N20),2)*$N64 -> 434.3484 | L64: 289.5656 | N64: =(N20*R49+N20)-lowinchg -> 3619.57
A65: 18 | B65: Low Income 2 | E65: 2854.4646 | G65: 73.1914 | K65: 439.1484 | L65: 292.7656 | N65: =N64+40 -> 3659.57
A66: 19 | B66: Low Income 3 | E66: 2885.6646 | G66: 73.9914 | K66: 443.9484 | L66: 295.9656 | N66: =N65+40 -> 3699.57
A67: 20 | B67: Low Income 4 | E67: 2916.8646 | G67: 74.7914 | K67: 448.7484 | L67: 299.1656 | N67: 3739.57
A68: 21 | B68: Low Income 5 | E68: 2948.0646 | G68: 75.5914 | K68: 453.5484 | L68: 302.3656 | N68: 3779.57
A69: 22 | B69: Low Income 6 | E69: 2979.2646 | G69: 76.3914 | K69: 458.3484 | L69: 305.5656 | N69: 3819.57
A70: 23 | B70: Low Income 7 | E70: 3010.4646 | G70: 77.1914 | K70: 463.1484 | L70: 308.7656 | N70: 3859.57
A71: 24 | B71: Low Income 8 | E71: 3041.6646 | G71: 77.9914 | K71: 467.9484 | L71: 311.9656 | N71: 3899.57
A72: 25 | B72: Low Income 9 | E72: 3072.8646 | G72: 78.7914 | K72: 472.7484 | L72: 315.1656 | N72: 3939.57
A73: 26 | B73: Low Income 10 | E73: 3104.0646 | G73: 79.5914 | K73: 477.5484 | L73: 318.3656 | N73: 3979.57

Sheet pre fnd budg (hidden)
A1: a | B1: 1 | C1: 2 | D1: 3 | E1: 4 | F1: 5 | G1: 6 | H1: 7 | I1: 8 | J1: 9 | K1: 10 | L1: 11 | M1: 12 | N1: 13 | O1: 14 | P1: 15 | Q1: 16 | R1: 17 | S1: 18 | T1: 19 | U1: 20 | V1: 21 | W1: 22 | X1: 23 | Y1: 24 | Z1: 25 | AA1: 26 | AB1: 27 | AC1: 28 | AD1: 29 | AE1: 30 | AF1: 31 | AG1: 32 | AH1: 33 | AI1: 34 | AJ1: 35 | AK1: 36 | AL1: 37 | AM1: 38 | AN1: 39 | AO1: 40 | AP1: 41 | AQ1: 42 | AR1: 43 | AS1: 44 | AT1: 45 | AU1: 46 | AV1: 47 | AW1: 48
B3: Insert chalocsend & school name from the FND ENRO sheet | Y3: w | Z3: w | AA3: w | AB3: w | AC3: w | AD3: nw | AE3: w | AF3: w | AG3: w | AH3: nw | AI3: nw
W4: NEW!
V5: WAF | AD5: Instruction- | AE5: Guid- | AG5: Opera- | AH5: Employee
J6: Assumed | K6: Assumed | U6: Total | V6: Adjusted | W6: Low | AA6: Classroom | AB6: Other | AC6: Profess- | AD6: al Materials, | AE6: ance & | AG6: tions & | AH6: Benefits | AJ6: Found- | AP6: wage
H7: Junior | I7: High | J7: Special Ed | K7: Special Ed | M7: ELL | N7: ELL | O7: ELL | P7: ELL | Q7: ELL | R7: ELL | S7: ELL | T7: Low | U7: Found | V7: for Low | W7: Income | Y7: Admini- | Z7: Instructional | AA7: & Specialist | AB7: Teaching | AC7: s | AD7: Equipment & | AE7: Psycho- | AF7: Pupil | AG7: Maint- | AH7: & Fixed | AI7: Sped | AJ7: ation | AM7: Cha | AN7: Loc | AO7: Sending | AP7: fct check
A8: chalea | B8: chalocsend | C8: Charter | D8: PK | E8: KP | F8: KF | G8: Elem | H8: Middle | I8: School | J8: In School | K8: Tuitioned | L8: Voke | M8: PK | N8: KP | O8: KF | P8: Elem | Q8: Jr | R8: Sr | S8: Voke | T8: Income | U8: Enro | V8: Income | W8: Decile | Y8: stration | Z8: Leadership | AA8: Teachers | AB8: Services | AC8: elopment | AD8: Technology | AE8: logical | AF8: Services | AG8: enance | AH8: Charges | AI8: Tuition | AJ8: Budget | AL8: chalocsend | AM8: LEA | AN8: LEA | AO8: LEA | AP8: 1=good | AQ8: enro | AR8: fnd budget | AS8: rate
AV9: x
A10: =IF($B10<499999999,MID($B10,1,3),MID($B10,1,4)) -> 409 | B10: 409201072 | C10: ALMA DEL MAR | D10: ='fnd enro'!D10 -> 0 | E10: ='fnd enro'!E10 -> 0 | F10: ='fnd enro'!F10 -> 0 | G10: ='fnd enro'!G10 -> 2 | H10: ='fnd enro'!H10 -> 0 | I10: ='fnd enro'!I10 -> 0 | J10: ='fnd enro'!J10 -> 0.075 | K10: ='fnd enro'!K10 -> 0 | L10: ='fnd enro'!L10 -> 0 | M10: ='fnd enro'!M10 -> 0 | N10: ='fnd enro'!N10 -> 0 | O10: ='fnd enro'!O10 -> 0 | P10: ='fnd enro'!P10 -> 0 | Q10: ='fnd enro'!Q10 -> 0 | R10: ='fnd enro'!R10 -> 0 | S10: ='fnd enro'!S10 -> 0 | T10: ='fnd enro'!T10 -> 1 | U10: ='fnd enro'!W10 -> 2 | V10: =VLOOKUP(B10,charterinfo_b,6) -> 1 | W10: ='fnd enro'!V10 -> 10 | Y10: =(($D10*'fnd base rates'!C$48) +($E10*'fnd base rates'!C$49) +($F10*'fnd base rates'!C$50) +($G10*'fnd base rates'!C$51) +($H10*'fnd base rates'!C$52) +($I10*'fnd base rates'!C$53) +($J10*'fnd base rates'!C$54) +($K10*'fnd base rates'!C$55) +($M10*'fnd base rates'!C$56) +($N10*'fnd base rates'!C$57) +($O10*'fnd base rates'!C$58) +($P10*'fnd base rates'!C$59) +($Q10*'fnd base rates'!C$60) +($R10*'fnd base rates'!C$61) +($S10*'fnd base rates'!C$62) +($L10*'fnd base rates'!C$63) +($T10*VLOOKUP($W10+16,rate_basefnd,3))) *$V10 -> 951.06075 | Z10: =(($D10*'fnd base rates'!D$48) +($E10*'fnd base rates'!D$49) +($F10*'fnd base rates'!D$50) +($G10*'fnd base rates'!D$51) +($H10*'fnd base rates'!D$52) +($I10*'fnd base rates'!D$53) +($J10*'fnd base rates'!D$54) +($K10*'fnd base rates'!D$55) +($M10*'fnd base rates'!D$56) +($N10*'fnd base rates'!D$57) +($O10*'fnd base rates'!D$58) +($P10*'fnd base rates'!D$59) +($Q10*'fnd base rates'!D$60) +($R10*'fnd base rates'!D$61) +($S10*'fnd base rates'!D$62) +($L10*'fnd base rates'!D$63) +($T10*VLOOKUP($W10+16,rate_basefnd,4))) *$V10 -> 1364.54 | AA10: =(($D10*'fnd base rates'!E$48) +($E10*'fnd base rates'!E$49) +($F10*'fnd base rates'!E$50) +($G10*'fnd base rates'!E$51) +($H10*'fnd base rates'!E$52) +($I10*'fnd base rates'!E$53) +($J10*'fnd base rates'!E$54) +($K10*'fnd base rates'!E$55) +($M10*'fnd base rates'!E$56) +($N10*'fnd base rates'!E$57) +($O10*'fnd base rates'!E$58) +($P10*'fnd base rates'!E$59) +($Q10*'fnd base rates'!E$60) +($R10*'fnd base rates'!E$61) +($S10*'fnd base rates'!E$62) +($L10*'fnd base rates'!E$63) +($T10*VLOOKUP($W10+16,rate_basefnd,5))) *$V10 -> 10006.09935 | AB10: =(($D10*'fnd base rates'!F$48) +($E10*'fnd base rates'!F$49) +($F10*'fnd base rates'!F$50) +($G10*'fnd base rates'!F$51) +($H10*'fnd base rates'!F$52) +($I10*'fnd base rates'!F$53) +($J10*'fnd base rates'!F$54) +($K10*'fnd base rates'!F$55) +($M10*'fnd base rates'!F$56) +($N10*'fnd base rates'!F$57) +($O10*'fnd base rates'!F$58) +($P10*'fnd base rates'!F$59) +($Q10*'fnd base rates'!F$60) +($R10*'fnd base rates'!F$61) +($S10*'fnd base rates'!F$62) +($L10*'fnd base rates'!F$63) +($T10*VLOOKUP($W10+16,rate_basefnd,6))) *$V10 -> 2207.20725 | AC10: =(($D10*'fnd base rates'!G$48) +($E10*'fnd base rates'!G$49) +($F10*'fnd base rates'!G$50) +($G10*'fnd base rates'!G$51) +($H10*'fnd base rates'!G$52) +($I10*'fnd base rates'!G$53) +($J10*'fnd base rates'!G$54) +($K10*'fnd base rates'!G$55) +($M10*'fnd base rates'!G$56) +($N10*'fnd base rates'!G$57) +($O10*'fnd base rates'!G$58) +($P10*'fnd base rates'!G$59) +($Q10*'fnd base rates'!G$60) +($R10*'fnd base rates'!G$61) +($S10*'fnd base rates'!G$62) +($L10*'fnd base rates'!G$63) +($T10*VLOOKUP($W10+16,rate_basefnd,7))) *$V10 -> 358.31715 | AD10: =(($D10*'fnd base rates'!H$48) +($E10*'fnd base rates'!H$49) +($F10*'fnd base rates'!H$50) +($G10*'fnd base rates'!H$51) +($H10*'fnd base rates'!H$52) +($I10*'fnd base rates'!H$53) +($J10*'fnd base rates'!H$54) +($K10*'fnd base rates'!H$55) +($M10*'fnd base rates'!H$56) +($N10*'fnd base rates'!H$57) +($O10*'fnd base rates'!H$58) +($P10*'fnd base rates'!H$59) +($Q10*'fnd base rates'!H$60) +($R10*'fnd base rates'!H$61) +($S10*'fnd base rates'!H$62) +($L10*'fnd base rates'!H$63) +($T10*VLOOKUP($W10+16,rate_basefnd,8))) -> 932.768 | AE10: =(($D10*'fnd base rates'!I$48) +($E10*'fnd base rates'!I$49) +($F10*'fnd base rates'!I$50) +($G10*'fnd base rates'!I$51) +($H10*'fnd base rates'!I$52) +($I10*'fnd base rates'!I$53) +($J10*'fnd base rates'!I$54) +($K10*'fnd base rates'!I$55) +($M10*'fnd base rates'!I$56) +($N10*'fnd base rates'!I$57) +($O10*'fnd base rates'!I$58) +($P10*'fnd base rates'!I$59) +($Q10*'fnd base rates'!I$60) +($R10*'fnd base rates'!I$61) +($S10*'fnd base rates'!I$62) +($L10*'fnd base rates'!I$63) +($T10*VLOOKUP($W10+16,rate_basefnd,9))) *$V10 -> 455.3 | AF10: =(($D10*'fnd base rates'!J$48) +($E10*'fnd base rates'!J$49) +($F10*'fnd base rates'!J$50) +($G10*'fnd base rates'!J$51) +($H10*'fnd base rates'!J$52) +($I10*'fnd base rates'!J$53) +($J10*'fnd base rates'!J$54) +($K10*'fnd base rates'!J$55) +($M10*'fnd base rates'!J$56) +($N10*'fnd base rates'!J$57) +($O10*'fnd base rates'!J$58) +($P10*'fnd base rates'!J$59) +($Q10*'fnd base rates'!J$60) +($R10*'fnd base rates'!J$61) +($S10*'fnd base rates'!J$62) +($L10*'fnd base rates'!J$63) +($T10*VLOOKUP($W10+16,rate_basefnd,10))) *$V10 -> 271.68 | AG10: =(($D10*'fnd base rates'!K$48) +($E10*'fnd base rates'!K$49) +($F10*'fnd base rates'!K$50) +($G10*'fnd base rates'!K$51) +($H10*'fnd base rates'!K$52) +($I10*'fnd base rates'!K$53) +($J10*'fnd base rates'!K$54) +($K10*'fnd base rates'!K$55) +($M10*'fnd base rates'!K$56) +($N10*'fnd base rates'!K$57) +($O10*'fnd base rates'!K$58) +($P10*'fnd base rates'!K$59) +($Q10*'fnd base rates'!K$60) +($R10*'fnd base rates'!K$61) +($S10*'fnd base rates'!K$62) +($L10*'fnd base rates'!K$63) +($T10*VLOOKUP($W10+16,rate_basefnd,11))) *$V10 -> 2433.4169 | AH10: =(($D10*'fnd base rates'!L$48) +($E10*'fnd base rates'!L$49) +($F10*'fnd base rates'!L$50) +($G10*'fnd base rates'!L$51) +($H10*'fnd base rates'!L$52) +($I10*'fnd base rates'!L$53) +($J10*'fnd base rates'!L$54) +($K10*'fnd base rates'!L$55) +($M10*'fnd base rates'!L$56) +($N10*'fnd base rates'!L$57) +($O10*'fnd base rates'!L$58) +($P10*'fnd base rates'!L$59) +($Q10*'fnd base rates'!L$60) +($R10*'fnd base rates'!L$61) +($S10*'fnd base rates'!L$62) +($L10*'fnd base rates'!L$63) +($T10*VLOOKUP($W10+16,rate_basefnd,12))) -> 2498.05285 | AI10: =(($D10*'fnd base rates'!M$48) +($E10*'fnd base rates'!M$49) +($F10*'fnd base rates'!M$50) +($G10*'fnd base rates'!M$51) +($H10*'fnd base rates'!M$52) +($I10*'fnd base rates'!M$53) +($J10*'fnd base rates'!M$54) +($K10*'fnd base rates'!M$55) +($M10*'fnd base rates'!M$56) +($N10*'fnd base rates'!M$57) +($O10*'fnd base rates'!M$58) +($P10*'fnd base rates'!M$59) +($Q10*'fnd base rates'!M$60) +($R10*'fnd base rates'!M$61) +($S10*'fnd base rates'!M$62) +($L10*'fnd base rates'!M$63) +($T10*VLOOKUP($W10+16,rate_basefnd,13))) -> 0 | AJ10: =SUM(Y10:AI10) -> 21478.44225 | AL10: =B10 -> 409201072 | AM10: =IF($B10<499999999,MID($B10,1,3),MID($B10,1,4)) -> 409 | AN10: =IF($B10<499999999,MID($B10,4,3),MID($B10,5,3)) -> 201 | AO10: =IF($B10<499999999,MID($B10,7,3),MID($B10,8,3)) -> 072 | AP10: =IF(VLOOKUP(VALUE(IF(AL10<499999999,MID(AL10,4,3),MID(AL10,5,3))),distinfo,4)=V10,1,0) -> 1 | AQ10: =enro -> 2 | AR10: =AJ10 -> 21478.44225 | AS10: =IF(OR(AJ10=0,AQ10=0),0,ROUND(AR10/AQ10,0)) -> 10739
A11: =IF($B11<499999999,MID($B11,1,3),MID($B11,1,4)) -> 409 | B11: 409201094 | C11: ALMA DEL MAR | D11: ='fnd enro'!D11 -> 0 | E11: ='fnd enro'!E11 -> 0 | F11: ='fnd enro'!F11 -> 0 | G11: ='fnd enro'!G11 -> 1 | H11: ='fnd enro'!H11 -> 0 | I11: ='fnd enro'!I11 -> 0 | J11: ='fnd enro'!J11 -> 0.0375 | K11: ='fnd enro'!K11 -> 0 | L11: ='fnd enro'!L11 -> 0 | M11: ='fnd enro'!M11 -> 0 | N11: ='fnd enro'!N11 -> 0 | O11: ='fnd enro'!O11 -> 0 | P11: ='fnd enro'!P11 -> 0 | Q11: ='fnd enro'!Q11 -> 0 | R11: ='fnd enro'!R11 -> 0 | S11: ='fnd enro'!S11 -> 0 | T11: ='fnd enro'!T11 -> 1 | U11: ='fnd enro'!W11 -> 1 | V11: 1 | W11: ='fnd enro'!V11 -> 10 | Y11: =(($D11*'fnd base rates'!C$48) +($E11*'fnd base rates'!C$49) +($F11*'fnd base rates'!C$50) +($G11*'fnd base rates'!C$51) +($H11*'fnd base rates'!C$52) +($I11*'fnd base rates'!C$53) +($J11*'fnd base rates'!C$54) +($K11*'fnd base rates'!C$55) +($M11*'fnd base rates'!C$56) +($N11*'fnd base rates'!C$57) +($O11*'fnd base rates'!C$58) +($P11*'fnd base rates'!C$59) +($Q11*'fnd base rates'!C$60) +($R11*'fnd base rates'!C$61) +($S11*'fnd base rates'!C$62) +($L11*'fnd base rates'!C$63) +($T11*VLOOKUP($W11+16,rate_basefnd,3))) *$V11 -> 475.530375 | Z11: =(($D11*'fnd base rates'!D$48) +($E11*'fnd base rates'!D$49) +($F11*'fnd base rates'!D$50) +($G11*'fnd base rates'!D$51) +($H11*'fnd base rates'!D$52) +($I11*'fnd base rates'!D$53) +($J11*'fnd base rates'!D$54) +($K11*'fnd base rates'!D$55) +($M11*'fnd base rates'!D$56) +($N11*'fnd base rates'!D$57) +($O11*'fnd base rates'!D$58) +($P11*'fnd base rates'!D$59) +($Q11*'fnd base rates'!D$60) +($R11*'fnd base rates'!D$61) +($S11*'fnd base rates'!D$62) +($L11*'fnd base rates'!D$63) +($T11*VLOOKUP($W11+16,rate_basefnd,4))) *$V11 -> 682.27 | AA11: =(($D11*'fnd base rates'!E$48) +($E11*'fnd base rates'!E$49) +($F11*'fnd base rates'!E$50) +($G11*'fnd base rates'!E$51) +($H11*'fnd base rates'!E$52) +($I11*'fnd base rates'!E$53) +($J11*'fnd base rates'!E$54) +($K11*'fnd base rates'!E$55) +($M11*'fnd base rates'!E$56) +($N11*'fnd base rates'!E$57) +($O11*'fnd base rates'!E$58) +($P11*'fnd base rates'!E$59) +($Q11*'fnd base rates'!E$60) +($R11*'fnd base rates'!E$61) +($S11*'fnd base rates'!E$62) +($L11*'fnd base rates'!E$63) +($T11*VLOOKUP($W11+16,rate_basefnd,5))) *$V11 -> 6555.081975 | AB11: =(($D11*'fnd base rates'!F$48) +($E11*'fnd base rates'!F$49) +($F11*'fnd base rates'!F$50) +($G11*'fnd base rates'!F$51) +($H11*'fnd base rates'!F$52) +($I11*'fnd base rates'!F$53) +($J11*'fnd base rates'!F$54) +($K11*'fnd base rates'!F$55) +($M11*'fnd base rates'!F$56) +($N11*'fnd base rates'!F$57) +($O11*'fnd base rates'!F$58) +($P11*'fnd base rates'!F$59) +($Q11*'fnd base rates'!F$60) +($R11*'fnd base rates'!F$61) +($S11*'fnd base rates'!F$62) +($L11*'fnd base rates'!F$63) +($T11*VLOOKUP($W11+16,rate_basefnd,6))) *$V11 -> 1103.603625 | AC11: =(($D11*'fnd base rates'!G$48) +($E11*'fnd base rates'!G$49) +($F11*'fnd base rates'!G$50) +($G11*'fnd base rates'!G$51) +($H11*'fnd base rates'!G$52) +($I11*'fnd base rates'!G$53) +($J11*'fnd base rates'!G$54) +($K11*'fnd base rates'!G$55) +($M11*'fnd base rates'!G$56) +($N11*'fnd base rates'!G$57) +($O11*'fnd base rates'!G$58) +($P11*'fnd base rates'!G$59) +($Q11*'fnd base rates'!G$60) +($R11*'fnd base rates'!G$61) +($S11*'fnd base rates'!G$62) +($L11*'fnd base rates'!G$63) +($T11*VLOOKUP($W11+16,rate_basefnd,7))) *$V11 -> 218.954275 | AD11: =(($D11*'fnd base rates'!H$48) +($E11*'fnd base rates'!H$49) +($F11*'fnd base rates'!H$50) +($G11*'fnd base rates'!H$51) +($H11*'fnd base rates'!H$52) +($I11*'fnd base rates'!H$53) +($J11*'fnd base rates'!H$54) +($K11*'fnd base rates'!H$55) +($M11*'fnd base rates'!H$56) +($N11*'fnd base rates'!H$57) +($O11*'fnd base rates'!H$58) +($P11*'fnd base rates'!H$59) +($Q11*'fnd base rates'!H$60) +($R11*'fnd base rates'!H$61) +($S11*'fnd base rates'!H$62) +($L11*'fnd base rates'!H$63) +($T11*VLOOKUP($W11+16,rate_basefnd,8))) -> 466.384 | AE11: =(($D11*'fnd base rates'!I$48) +($E11*'fnd base rates'!I$49) +($F11*'fnd base rates'!I$50) +($G11*'fnd base rates'!I$51) +($H11*'fnd base rates'!I$52) +($I11*'fnd base rates'!I$53) +($J11*'fnd base rates'!I$54) +($K11*'fnd base rates'!I$55) +($M11*'fnd base rates'!I$56) +($N11*'fnd base rates'!I$57) +($O11*'fnd base rates'!I$58) +($P11*'fnd base rates'!I$59) +($Q11*'fnd base rates'!I$60) +($R11*'fnd base rates'!I$61) +($S11*'fnd base rates'!I$62) +($L11*'fnd base rates'!I$63) +($T11*VLOOKUP($W11+16,rate_basefnd,9))) *$V11 -> 227.65 | AF11: =(($D11*'fnd base rates'!J$48) +($E11*'fnd base rates'!J$49) +($F11*'fnd base rates'!J$50) +($G11*'fnd base rates'!J$51) +($H11*'fnd base rates'!J$52) +($I11*'fnd base rates'!J$53) +($J11*'fnd base rates'!J$54) +($K11*'fnd base rates'!J$55) +($M11*'fnd base rates'!J$56) +($N11*'fnd base rates'!J$57) +($O11*'fnd base rates'!J$58) +($P11*'fnd base rates'!J$59) +($Q11*'fnd base rates'!J$60) +($R11*'fnd base rates'!J$61) +($S11*'fnd base rates'!J$62) +($L11*'fnd base rates'!J$63) +($T11*VLOOKUP($W11+16,rate_basefnd,10))) *$V11 -> 135.84 | AG11: =(($D11*'fnd base rates'!K$48) +($E11*'fnd base rates'!K$49) +($F11*'fnd base rates'!K$50) +($G11*'fnd base rates'!K$51) +($H11*'fnd base rates'!K$52) +($I11*'fnd base rates'!K$53) +($J11*'fnd base rates'!K$54) +($K11*'fnd base rates'!K$55) +($M11*'fnd base rates'!K$56) +($N11*'fnd base rates'!K$57) +($O11*'fnd base rates'!K$58) +($P11*'fnd base rates'!K$59) +($Q11*'fnd base rates'!K$60) +($R11*'fnd base rates'!K$61) +($S11*'fnd base rates'!K$62) +($L11*'fnd base rates'!K$63) +($T11*VLOOKUP($W11+16,rate_basefnd,11))) *$V11 -> 1455.48265 | AH11: =(($D11*'fnd base rates'!L$48) +($E11*'fnd base rates'!L$49) +($F11*'fnd base rates'!L$50) +($G11*'fnd base rates'!L$51) +($H11*'fnd base rates'!L$52) +($I11*'fnd base rates'!L$53) +($J11*'fnd base rates'!L$54) +($K11*'fnd base rates'!L$55) +($M11*'fnd base rates'!L$56) +($N11*'fnd base rates'!L$57) +($O11*'fnd base rates'!L$58) +($P11*'fnd base rates'!L$59) +($Q11*'fnd base rates'!L$60) +($R11*'fnd base rates'!L$61) +($S11*'fnd base rates'!L$62) +($L11*'fnd base rates'!L$63) +($T11*VLOOKUP($W11+16,rate_basefnd,12))) -> 1408.209225 | AI11: =(($D11*'fnd base rates'!M$48) +($E11*'fnd base rates'!M$49) +($F11*'fnd base rates'!M$50) +($G11*'fnd base rates'!M$51) +($H11*'fnd base rates'!M$52) +($I11*'fnd base rates'!M$53) +($J11*'fnd base rates'!M$54) +($K11*'fnd base rates'!M$55) +($M11*'fnd base rates'!M$56) +($N11*'fnd base rates'!M$57) +($O11*'fnd base rates'!M$58) +($P11*'fnd base rates'!M$59) +($Q11*'fnd base rates'!M$60) +($R11*'fnd base rates'!M$61) +($S11*'fnd base rates'!M$62) +($L11*'fnd base rates'!M$63) +($T11*VLOOKUP($W11+16,rate_basefnd,13))) -> 0 | AJ11: =SUM(Y11:AI11) -> 12729.00612 | AL11: 409201094 | AM11: =IF($B11<499999999,MID($B11,1,3),MID($B11,1,4)) -> 409 | AN11: =IF($B11<499999999,MID($B11,4,3),MID($B11,5,3)) -> 201 | AO11: =IF($B11<499999999,MID($B11,7,3),MID($B11,8,3)) -> 094 | AP11: 1 | AQ11: 1 | AR11: =AJ11 -> 12729.00612 | AS11: =IF(OR(AJ11=0,AQ11=0),0,ROUND(AR11/AQ11,0)) -> 12729
A12: 409 | B12: 409201201 | C12: ALMA DEL MAR | D12: ='fnd enro'!D12 -> 0 | E12: ='fnd enro'!E12 -> 0 | F12: ='fnd enro'!F12 -> 50 | G12: ='fnd enro'!G12 -> 230 | H12: ='fnd enro'!H12 -> 128 | I12: ='fnd enro'!I12 -> 0 | J12: ='fnd enro'!J12 -> 15.3 | K12: ='fnd enro'!K12 -> 0 | L12: ='fnd enro'!L12 -> 0 | M12: ='fnd enro'!M12 -> 0 | N12: ='fnd enro'!N12 -> 0 | O12: ='fnd enro'!O12 -> 27 | P12: ='fnd enro'!P12 -> 60 | Q12: ='fnd enro'!Q12 -> 4 | R12: ='fnd enro'!R12 -> 0 | S12: ='fnd enro'!S12 -> 0 | T12: ='fnd enro'!T12 -> 262 | U12: ='fnd enro'!W12 -> 408 | V12: 1 | W12: ='fnd enro'!V12 -> 10 | Y12: =(($D12*'fnd base rates'!C$48) +($E12*'fnd base rates'!C$49) +($F12*'fnd base rates'!C$50) +($G12*'fnd base rates'!C$51) +($H12*'fnd base rates'!C$52) +($I12*'fnd base rates'!C$53) +($J12*'fnd base rates'!C$54) +($K12*'fnd base rates'!C$55) +($M12*'fnd base rates'!C$56) +($N12*'fnd base rates'!C$57) +($O12*'fnd base rates'!C$58) +($P12*'fnd base rates'!C$59) +($Q12*'fnd base rates'!C$60) +($R12*'fnd base rates'!C$61) +($S12*'fnd base rates'!C$62) +($L12*'fnd base rates'!C$63) +($T12*VLOOKUP($W12+16,rate_basefnd,3))) *$V12 -> 202098.033 | Z12: =(($D12*'fnd base rates'!D$48) +($E12*'fnd base rates'!D$49) +($F12*'fnd base rates'!D$50) +($G12*'fnd base rates'!D$51) +($H12*'fnd base rates'!D$52) +($I12*'fnd base rates'!D$53) +($J12*'fnd base rates'!D$54) +($K12*'fnd base rates'!D$55) +($M12*'fnd base rates'!D$56) +($N12*'fnd base rates'!D$57) +($O12*'fnd base rates'!D$58) +($P12*'fnd base rates'!D$59) +($Q12*'fnd base rates'!D$60) +($R12*'fnd base rates'!D$61) +($S12*'fnd base rates'!D$62) +($L12*'fnd base rates'!D$63) +($T12*VLOOKUP($W12+16,rate_basefnd,4))) *$V12 -> 292508.58 | AA12: =(($D12*'fnd base rates'!E$48) +($E12*'fnd base rates'!E$49) +($F12*'fnd base rates'!E$50) +($G12*'fnd base rates'!E$51) +($H12*'fnd base rates'!E$52) +($I12*'fnd base rates'!E$53) +($J12*'fnd base rates'!E$54) +($K12*'fnd base rates'!E$55) +($M12*'fnd base rates'!E$56) +($N12*'fnd base rates'!E$57) +($O12*'fnd base rates'!E$58) +($P12*'fnd base rates'!E$59) +($Q12*'fnd base rates'!E$60) +($R12*'fnd base rates'!E$61) +($S12*'fnd base rates'!E$62) +($L12*'fnd base rates'!E$63) +($T12*VLOOKUP($W12+16,rate_basefnd,5))) *$V12 -> 2272228.284 | AB12: =(($D12*'fnd base rates'!F$48) +($E12*'fnd base rates'!F$49) +($F12*'fnd base rates'!F$50) +($G12*'fnd base rates'!F$51) +($H12*'fnd base rates'!F$52) +($I12*'fnd base rates'!F$53) +($J12*'fnd base rates'!F$54) +($K12*'fnd base rates'!F$55) +($M12*'fnd base rates'!F$56) +($N12*'fnd base rates'!F$57) +($O12*'fnd base rates'!F$58) +($P12*'fnd base rates'!F$59) +($Q12*'fnd base rates'!F$60) +($R12*'fnd base rates'!F$61) +($S12*'fnd base rates'!F$62) +($L12*'fnd base rates'!F$63) +($T12*VLOOKUP($W12+16,rate_basefnd,6))) *$V12 -> 435639.579 | AC12: =(($D12*'fnd base rates'!G$48) +($E12*'fnd base rates'!G$49) +($F12*'fnd base rates'!G$50) +($G12*'fnd base rates'!G$51) +($H12*'fnd base rates'!G$52) +($I12*'fnd base rates'!G$53) +($J12*'fnd base rates'!G$54) +($K12*'fnd base rates'!G$55) +($M12*'fnd base rates'!G$56) +($N12*'fnd base rates'!G$57) +($O12*'fnd base rates'!G$58) +($P12*'fnd base rates'!G$59) +($Q12*'fnd base rates'!G$60) +($R12*'fnd base rates'!G$61) +($S12*'fnd base rates'!G$62) +($L12*'fnd base rates'!G$63) +($T12*VLOOKUP($W12+16,rate_basefnd,7))) *$V12 -> 83084.9998 | AD12: =(($D12*'fnd base rates'!H$48) +($E12*'fnd base rates'!H$49) +($F12*'fnd base rates'!H$50) +($G12*'fnd base rates'!H$51) +($H12*'fnd base rates'!H$52) +($I12*'fnd base rates'!H$53) +($J12*'fnd base rates'!H$54) +($K12*'fnd base rates'!H$55) +($M12*'fnd base rates'!H$56) +($N12*'fnd base rates'!H$57) +($O12*'fnd base rates'!H$58) +($P12*'fnd base rates'!H$59) +($Q12*'fnd base rates'!H$60) +($R12*'fnd base rates'!H$61) +($S12*'fnd base rates'!H$62) +($L12*'fnd base rates'!H$63) +($T12*VLOOKUP($W12+16,rate_basefnd,8))) -> 200386.572 | AE12: =(($D12*'fnd base rates'!I$48) +($E12*'fnd base rates'!I$49) +($F12*'fnd base rates'!I$50) +($G12*'fnd base rates'!I$51) +($H12*'fnd base rates'!I$52) +($I12*'fnd base rates'!I$53) +($J12*'fnd base rates'!I$54) +($K12*'fnd base rates'!I$55) +($M12*'fnd base rates'!I$56) +($N12*'fnd base rates'!I$57) +($O12*'fnd base rates'!I$58) +($P12*'fnd base rates'!I$59) +($Q12*'fnd base rates'!I$60) +($R12*'fnd base rates'!I$61) +($S12*'fnd base rates'!I$62) +($L12*'fnd base rates'!I$63) +($T12*VLOOKUP($W12+16,rate_basefnd,9))) *$V12 -> 108589.34 | AF12: =(($D12*'fnd base rates'!J$48) +($E12*'fnd base rates'!J$49) +($F12*'fnd base rates'!J$50) +($G12*'fnd base rates'!J$51) +($H12*'fnd base rates'!J$52) +($I12*'fnd base rates'!J$53) +($J12*'fnd base rates'!J$54) +($K12*'fnd base rates'!J$55) +($M12*'fnd base rates'!J$56) +($N12*'fnd base rates'!J$57) +($O12*'fnd base rates'!J$58) +($P12*'fnd base rates'!J$59) +($Q12*'fnd base rates'!J$60) +($R12*'fnd base rates'!J$61) +($S12*'fnd base rates'!J$62) +($L12*'fnd base rates'!J$63) +($T12*VLOOKUP($W12+16,rate_basefnd,10))) *$V12 -> 66193.88 | AG12: =(($D12*'fnd base rates'!K$48) +($E12*'fnd base rates'!K$49) +($F12*'fnd base rates'!K$50) +($G12*'fnd base rates'!K$51) +($H12*'fnd base rates'!K$52) +($I12*'fnd base rates'!K$53) +($J12*'fnd base rates'!K$54) +($K12*'fnd base rates'!K$55) +($M12*'fnd base rates'!K$56) +($N12*'fnd base rates'!K$57) +($O12*'fnd base rates'!K$58) +($P12*'fnd base rates'!K$59) +($Q12*'fnd base rates'!K$60) +($R12*'fnd base rates'!K$61) +($S12*'fnd base rates'!K$62) +($L12*'fnd base rates'!K$63) +($T12*VLOOKUP($W12+16,rate_basefnd,11))) *$V12 -> 557714.7348 | AH12: =(($D12*'fnd base rates'!L$48) +($E12*'fnd base rates'!L$49) +($F12*'fnd base rates'!L$50) +($G12*'fnd base rates'!L$51) +($H12*'fnd base rates'!L$52) +($I12*'fnd base rates'!L$53) +($J12*'fnd base rates'!L$54) +($K12*'fnd base rates'!L$55) +($M12*'fnd base rates'!L$56) +($N12*'fnd base rates'!L$57) +($O12*'fnd base rates'!L$58) +($P12*'fnd base rates'!L$59) +($Q12*'fnd base rates'!L$60) +($R12*'fnd base rates'!L$61) +($S12*'fnd base rates'!L$62) +($L12*'fnd base rates'!L$63) +($T12*VLOOKUP($W12+16,rate_basefnd,12))) -> 552366.9262 | AI12: =(($D12*'fnd base rates'!M$48) +($E12*'fnd base rates'!M$49) +($F12*'fnd base rates'!M$50) +($G12*'fnd base rates'!M$51) +($H12*'fnd base rates'!M$52) +($I12*'fnd base rates'!M$53) +($J12*'fnd base rates'!M$54) +($K12*'fnd base rates'!M$55) +($M12*'fnd base rates'!M$56) +($N12*'fnd base rates'!M$57) +($O12*'fnd base rates'!M$58) +($P12*'fnd base rates'!M$59) +($Q12*'fnd base rates'!M$60) +($R12*'fnd base rates'!M$61) +($S12*'fnd base rates'!M$62) +($L12*'fnd base rates'!M$63) +($T12*VLOOKUP($W12+16,rate_basefnd,13))) -> 0 | AJ12: 4770810.929 | AL12: 409201201 | AM12: 409 | AN12: 201 | AO12: 201 | AP12: 1 | AQ12: 408 | AR12: 4770810.929 | AS12: 11693
A13: 409 | B13: 409201331 | C13: ALMA DEL MAR | D13: ='fnd enro'!D13 -> 0 | E13: ='fnd enro'!E13 -> 0 | F13: ='fnd enro'!F13 -> 0 | G13: ='fnd enro'!G13 -> 1 | H13: ='fnd enro'!H13 -> 1 | I13: ='fnd enro'!I13 -> 0 | J13: ='fnd enro'!J13 -> 0.075 | K13: ='fnd enro'!K13 -> 0 | L13: ='fnd enro'!L13 -> 0 | M13: ='fnd enro'!M13 -> 0 | N13: ='fnd enro'!N13 -> 0 | O13: ='fnd enro'!O13 -> 0 | P13: ='fnd enro'!P13 -> 0 | Q13: ='fnd enro'!Q13 -> 0 | R13: ='fnd enro'!R13 -> 0 | S13: ='fnd enro'!S13 -> 0 | T13: ='fnd enro'!T13 -> 0 | U13: ='fnd enro'!W13 -> 2 | V13: 1 | W13: ='fnd enro'!V13 -> 1 | Y13: =(($D13*'fnd base rates'!C$48) +($E13*'fnd base rates'!C$49) +($F13*'fnd base rates'!C$50) +($G13*'fnd base rates'!C$51) +($H13*'fnd base rates'!C$52) +($I13*'fnd base rates'!C$53) +($J13*'fnd base rates'!C$54) +($K13*'fnd base rates'!C$55) +($M13*'fnd base rates'!C$56) +($N13*'fnd base rates'!C$57) +($O13*'fnd base rates'!C$58) +($P13*'fnd base rates'!C$59) +($Q13*'fnd base rates'!C$60) +($R13*'fnd base rates'!C$61) +($S13*'fnd base rates'!C$62) +($L13*'fnd base rates'!C$63) +($T13*VLOOKUP($W13+16,rate_basefnd,3))) *$V13 -> 951.06075 | Z13: =(($D13*'fnd base rates'!D$48) +($E13*'fnd base rates'!D$49) +($F13*'fnd base rates'!D$50) +($G13*'fnd base rates'!D$51) +($H13*'fnd base rates'!D$52) +($I13*'fnd base rates'!D$53) +($J13*'fnd base rates'!D$54) +($K13*'fnd base rates'!D$55) +($M13*'fnd base rates'!D$56) +($N13*'fnd base rates'!D$57) +($O13*'fnd base rates'!D$58) +($P13*'fnd base rates'!D$59) +($Q13*'fnd base rates'!D$60) +($R13*'fnd base rates'!D$61) +($S13*'fnd base rates'!D$62) +($L13*'fnd base rates'!D$63) +($T13*VLOOKUP($W13+16,rate_basefnd,4))) *$V13 -> 1364.54 | AA13: =(($D13*'fnd base rates'!E$48) +($E13*'fnd base rates'!E$49) +($F13*'fnd base rates'!E$50) +($G13*'fnd base rates'!E$51) +($H13*'fnd base rates'!E$52) +($I13*'fnd base rates'!E$53) +($J13*'fnd base rates'!E$54) +($K13*'fnd base rates'!E$55) +($M13*'fnd base rates'!E$56) +($N13*'fnd base rates'!E$57) +($O13*'fnd base rates'!E$58) +($P13*'fnd base rates'!E$59) +($Q13*'fnd base rates'!E$60) +($R13*'fnd base rates'!E$61) +($S13*'fnd base rates'!E$62) +($L13*'fnd base rates'!E$63) +($T13*VLOOKUP($W13+16,rate_basefnd,5))) *$V13 -> 6526.64475 | AB13: =(($D13*'fnd base rates'!F$48) +($E13*'fnd base rates'!F$49) +($F13*'fnd base rates'!F$50) +($G13*'fnd base rates'!F$51) +($H13*'fnd base rates'!F$52) +($I13*'fnd base rates'!F$53) +($J13*'fnd base rates'!F$54) +($K13*'fnd base rates'!F$55) +($M13*'fnd base rates'!F$56) +($N13*'fnd base rates'!F$57) +($O13*'fnd base rates'!F$58) +($P13*'fnd base rates'!F$59) +($Q13*'fnd base rates'!F$60) +($R13*'fnd base rates'!F$61) +($S13*'fnd base rates'!F$62) +($L13*'fnd base rates'!F$63) +($T13*VLOOKUP($W13+16,rate_basefnd,6))) *$V13 -> 1982.41725 | AC13: =(($D13*'fnd base rates'!G$48) +($E13*'fnd base rates'!G$49) +($F13*'fnd base rates'!G$50) +($G13*'fnd base rates'!G$51) +($H13*'fnd base rates'!G$52) +($I13*'fnd base rates'!G$53) +($J13*'fnd base rates'!G$54) +($K13*'fnd base rates'!G$55) +($M13*'fnd base rates'!G$56) +($N13*'fnd base rates'!G$57) +($O13*'fnd base rates'!G$58) +($P13*'fnd base rates'!G$59) +($Q13*'fnd base rates'!G$60) +($R13*'fnd base rates'!G$61) +($S13*'fnd base rates'!G$62) +($L13*'fnd base rates'!G$63) +($T13*VLOOKUP($W13+16,rate_basefnd,7))) *$V13 -> 289.13575 | AD13: =(($D13*'fnd base rates'!H$48) +($E13*'fnd base rates'!H$49) +($F13*'fnd base rates'!H$50) +($G13*'fnd base rates'!H$51) +($H13*'fnd base rates'!H$52) +($I13*'fnd base rates'!H$53) +($J13*'fnd base rates'!H$54) +($K13*'fnd base rates'!H$55) +($M13*'fnd base rates'!H$56) +($N13*'fnd base rates'!H$57) +($O13*'fnd base rates'!H$58) +($P13*'fnd base rates'!H$59) +($Q13*'fnd base rates'!H$60) +($R13*'fnd base rates'!H$61) +($S13*'fnd base rates'!H$62) +($L13*'fnd base rates'!H$63) +($T13*VLOOKUP($W13+16,rate_basefnd,8))) -> 932.768 | AE13: =(($D13*'fnd base rates'!I$48) +($E13*'fnd base rates'!I$49) +($F13*'fnd base rates'!I$50) +($G13*'fnd base rates'!I$51) +($H13*'fnd base rates'!I$52) +($I13*'fnd base rates'!I$53) +($J13*'fnd base rates'!I$54) +($K13*'fnd base rates'!I$55) +($M13*'fnd base rates'!I$56) +($N13*'fnd base rates'!I$57) +($O13*'fnd base rates'!I$58) +($P13*'fnd base rates'!I$59) +($Q13*'fnd base rates'!I$60) +($R13*'fnd base rates'!I$61) +($S13*'fnd base rates'!I$62) +($L13*'fnd base rates'!I$63) +($T13*VLOOKUP($W13+16,rate_basefnd,9))) *$V13 -> 530.67 | AF13: =(($D13*'fnd base rates'!J$48) +($E13*'fnd base rates'!J$49) +($F13*'fnd base rates'!J$50) +($G13*'fnd base rates'!J$51) +($H13*'fnd base rates'!J$52) +($I13*'fnd base rates'!J$53) +($J13*'fnd base rates'!J$54) +($K13*'fnd base rates'!J$55) +($M13*'fnd base rates'!J$56) +($N13*'fnd base rates'!J$57) +($O13*'fnd base rates'!J$58) +($P13*'fnd base rates'!J$59) +($Q13*'fnd base rates'!J$60) +($R13*'fnd base rates'!J$61) +($S13*'fnd base rates'!J$62) +($L13*'fnd base rates'!J$63) +($T13*VLOOKUP($W13+16,rate_basefnd,10))) *$V13 -> 357.73 | AG13: =(($D13*'fnd base rates'!K$48) +($E13*'fnd base rates'!K$49) +($F13*'fnd base rates'!K$50) +($G13*'fnd base rates'!K$51) +($H13*'fnd base rates'!K$52) +($I13*'fnd base rates'!K$53) +($J13*'fnd base rates'!K$54) +($K13*'fnd base rates'!K$55) +($M13*'fnd base rates'!K$56) +($N13*'fnd base rates'!K$57) +($O13*'fnd base rates'!K$58) +($P13*'fnd base rates'!K$59) +($Q13*'fnd base rates'!K$60) +($R13*'fnd base rates'!K$61) +($S13*'fnd base rates'!K$62) +($L13*'fnd base rates'!K$63) +($T13*VLOOKUP($W13+16,rate_basefnd,11))) *$V13 -> 2028.9585 | AH13: =(($D13*'fnd base rates'!L$48) +($E13*'fnd base rates'!L$49) +($F13*'fnd base rates'!L$50) +($G13*'fnd base rates'!L$51) +($H13*'fnd base rates'!L$52) +($I13*'fnd base rates'!L$53) +($J13*'fnd base rates'!L$54) +($K13*'fnd base rates'!L$55) +($M13*'fnd base rates'!L$56) +($N13*'fnd base rates'!L$57) +($O13*'fnd base rates'!L$58) +($P13*'fnd base rates'!L$59) +($Q13*'fnd base rates'!L$60) +($R13*'fnd base rates'!L$61) +($S13*'fnd base rates'!L$62) +($L13*'fnd base rates'!L$63) +($T13*VLOOKUP($W13+16,rate_basefnd,12))) -> 2195.91725 | AI13: =(($D13*'fnd base rates'!M$48) +($E13*'fnd base rates'!M$49) +($F13*'fnd base rates'!M$50) +($G13*'fnd base rates'!M$51) +($H13*'fnd base rates'!M$52) +($I13*'fnd base rates'!M$53) +($J13*'fnd base rates'!M$54) +($K13*'fnd base rates'!M$55) +($M13*'fnd base rates'!M$56) +($N13*'fnd base rates'!M$57) +($O13*'fnd base rates'!M$58) +($P13*'fnd base rates'!M$59) +($Q13*'fnd base rates'!M$60) +($R13*'fnd base rates'!M$61) +($S13*'fnd base rates'!M$62) +($L13*'fnd base rates'!M$63) +($T13*VLOOKUP($W13+16,rate_basefnd,13))) -> 0 | AJ13: 17159.84225 | AL13: 409201331 | AM13: 409 | AN13: 201 | AO13: 331 | AP13: 1 | AQ13: 2 | AR13: 17159.84225 | AS13: 8580
A14: 410 | B14: 410035035 | C14: EXCEL ACADEMY | D14: ='fnd enro'!D14 -> 0 | E14: ='fnd enro'!E14 -> 0 | F14: ='fnd enro'!F14 -> 0 | G14: ='fnd enro'!G14 -> 84 | H14: ='fnd enro'!H14 -> 202 | I14: ='fnd enro'!I14 -> 206 | J14: ='fnd enro'!J14 -> 18.45 | K14: ='fnd enro'!K14 -> 0 | L14: ='fnd enro'!L14 -> 0 | M14: ='fnd enro'!M14 -> 0 | N14: ='fnd enro'!N14 -> 0 | O14: ='fnd enro'!O14 -> 0 | P14: ='fnd enro'!P14 -> 23 | Q14: ='fnd enro'!Q14 -> 36 | R14: ='fnd enro'!R14 -> 28 | S14: ='fnd enro'!S14 -> 0 | T14: ='fnd enro'!T14 -> 269 | U14: ='fnd enro'!W14 -> 492 | V14: 1.078 | W14: ='fnd enro'!V14 -> 10 | Y14: =(($D14*'fnd base rates'!C$48) +($E14*'fnd base rates'!C$49) +($F14*'fnd base rates'!C$50) +($G14*'fnd base rates'!C$51) +($H14*'fnd base rates'!C$52) +($I14*'fnd base rates'!C$53) +($J14*'fnd base rates'!C$54) +($K14*'fnd base rates'!C$55) +($M14*'fnd base rates'!C$56) +($N14*'fnd base rates'!C$57) +($O14*'fnd base rates'!C$58) +($P14*'fnd base rates'!C$59) +($Q14*'fnd base rates'!C$60) +($R14*'fnd base rates'!C$61) +($S14*'fnd base rates'!C$62) +($L14*'fnd base rates'!C$63) +($T14*VLOOKUP($W14+16,rate_basefnd,3))) *$V14 -> 260106.4099 | Z14: =(($D14*'fnd base rates'!D$48) +($E14*'fnd base rates'!D$49) +($F14*'fnd base rates'!D$50) +($G14*'fnd base rates'!D$51) +($H14*'fnd base rates'!D$52) +($I14*'fnd base rates'!D$53) +($J14*'fnd base rates'!D$54) +($K14*'fnd base rates'!D$55) +($M14*'fnd base rates'!D$56) +($N14*'fnd base rates'!D$57) +($O14*'fnd base rates'!D$58) +($P14*'fnd base rates'!D$59) +($Q14*'fnd base rates'!D$60) +($R14*'fnd base rates'!D$61) +($S14*'fnd base rates'!D$62) +($L14*'fnd base rates'!D$63) +($T14*VLOOKUP($W14+16,rate_basefnd,4))) *$V14 -> 375678.2676 | AA14: =(($D14*'fnd base rates'!E$48) +($E14*'fnd base rates'!E$49) +($F14*'fnd base rates'!E$50) +($G14*'fnd base rates'!E$51) +($H14*'fnd base rates'!E$52) +($I14*'fnd base rates'!E$53) +($J14*'fnd base rates'!E$54) +($K14*'fnd base rates'!E$55) +($M14*'fnd base rates'!E$56) +($N14*'fnd base rates'!E$57) +($O14*'fnd base rates'!E$58) +($P14*'fnd base rates'!E$59) +($Q14*'fnd base rates'!E$60) +($R14*'fnd base rates'!E$61) +($S14*'fnd base rates'!E$62) +($L14*'fnd base rates'!E$63) +($T14*VLOOKUP($W14+16,rate_basefnd,5))) *$V14 -> 2949775.885 | AB14: =(($D14*'fnd base rates'!F$48) +($E14*'fnd base rates'!F$49) +($F14*'fnd base rates'!F$50) +($G14*'fnd base rates'!F$51) +($H14*'fnd base rates'!F$52) +($I14*'fnd base rates'!F$53) +($J14*'fnd base rates'!F$54) +($K14*'fnd base rates'!F$55) +($M14*'fnd base rates'!F$56) +($N14*'fnd base rates'!F$57) +($O14*'fnd base rates'!F$58) +($P14*'fnd base rates'!F$59) +($Q14*'fnd base rates'!F$60) +($R14*'fnd base rates'!F$61) +($S14*'fnd base rates'!F$62) +($L14*'fnd base rates'!F$63) +($T14*VLOOKUP($W14+16,rate_basefnd,6))) *$V14 -> 478792.615 | AC14: =(($D14*'fnd base rates'!G$48) +($E14*'fnd base rates'!G$49) +($F14*'fnd base rates'!G$50) +($G14*'fnd base rates'!G$51) +($H14*'fnd base rates'!G$52) +($I14*'fnd base rates'!G$53) +($J14*'fnd base rates'!G$54) +($K14*'fnd base rates'!G$55) +($M14*'fnd base rates'!G$56) +($N14*'fnd base rates'!G$57) +($O14*'fnd base rates'!G$58) +($P14*'fnd base rates'!G$59) +($Q14*'fnd base rates'!G$60) +($R14*'fnd base rates'!G$61) +($S14*'fnd base rates'!G$62) +($L14*'fnd base rates'!G$63) +($T14*VLOOKUP($W14+16,rate_basefnd,7))) *$V14 -> 104615.3089 | AD14: =(($D14*'fnd base rates'!H$48) +($E14*'fnd base rates'!H$49) +($F14*'fnd base rates'!H$50) +($G14*'fnd base rates'!H$51) +($H14*'fnd base rates'!H$52) +($I14*'fnd base rates'!H$53) +($J14*'fnd base rates'!H$54) +($K14*'fnd base rates'!H$55) +($M14*'fnd base rates'!H$56) +($N14*'fnd base rates'!H$57) +($O14*'fnd base rates'!H$58) +($P14*'fnd base rates'!H$59) +($Q14*'fnd base rates'!H$60) +($R14*'fnd base rates'!H$61) +($S14*'fnd base rates'!H$62) +($L14*'fnd base rates'!H$63) +($T14*VLOOKUP($W14+16,rate_basefnd,8))) -> 294583.178 | AE14: =(($D14*'fnd base rates'!I$48) +($E14*'fnd base rates'!I$49) +($F14*'fnd base rates'!I$50) +($G14*'fnd base rates'!I$51) +($H14*'fnd base rates'!I$52) +($I14*'fnd base rates'!I$53) +($J14*'fnd base rates'!I$54) +($K14*'fnd base rates'!I$55) +($M14*'fnd base rates'!I$56) +($N14*'fnd base rates'!I$57) +($O14*'fnd base rates'!I$58) +($P14*'fnd base rates'!I$59) +($Q14*'fnd base rates'!I$60) +($R14*'fnd base rates'!I$61) +($S14*'fnd base rates'!I$62) +($L14*'fnd base rates'!I$63) +($T14*VLOOKUP($W14+16,rate_basefnd,9))) *$V14 -> 176873.2381 | AF14: =(($D14*'fnd base rates'!J$48) +($E14*'fnd base rates'!J$49) +($F14*'fnd base rates'!J$50) +($G14*'fnd base rates'!J$51) +($H14*'fnd base rates'!J$52) +($I14*'fnd base rates'!J$53) +($J14*'fnd base rates'!J$54) +($K14*'fnd base rates'!J$55) +($M14*'fnd base rates'!J$56) +($N14*'fnd base rates'!J$57) +($O14*'fnd base rates'!J$58) +($P14*'fnd base rates'!J$59) +($Q14*'fnd base rates'!J$60) +($R14*'fnd base rates'!J$61) +($S14*'fnd base rates'!J$62) +($L14*'fnd base rates'!J$63) +($T14*VLOOKUP($W14+16,rate_basefnd,10))) *$V14 -> 176215.9168 | AG14: =(($D14*'fnd base rates'!K$48) +($E14*'fnd base rates'!K$49) +($F14*'fnd base rates'!K$50) +($G14*'fnd base rates'!K$51) +($H14*'fnd base rates'!K$52) +($I14*'fnd base rates'!K$53) +($J14*'fnd base rates'!K$54) +($K14*'fnd base rates'!K$55) +($M14*'fnd base rates'!K$56) +($N14*'fnd base rates'!K$57) +($O14*'fnd base rates'!K$58) +($P14*'fnd base rates'!K$59) +($Q14*'fnd base rates'!K$60) +($R14*'fnd base rates'!K$61) +($S14*'fnd base rates'!K$62) +($L14*'fnd base rates'!K$63) +($T14*VLOOKUP($W14+16,rate_basefnd,11))) *$V14 -> 706633.8193 | AH14: =(($D14*'fnd base rates'!L$48) +($E14*'fnd base rates'!L$49) +($F14*'fnd base rates'!L$50) +($G14*'fnd base rates'!L$51) +($H14*'fnd base rates'!L$52) +($I14*'fnd base rates'!L$53) +($J14*'fnd base rates'!L$54) +($K14*'fnd base rates'!L$55) +($M14*'fnd base rates'!L$56) +($N14*'fnd base rates'!L$57) +($O14*'fnd base rates'!L$58) +($P14*'fnd base rates'!L$59) +($Q14*'fnd base rates'!L$60) +($R14*'fnd base rates'!L$61) +($S14*'fnd base rates'!L$62) +($L14*'fnd base rates'!L$63) +($T14*VLOOKUP($W14+16,rate_basefnd,12))) -> 630590.1999 | AI14: =(($D14*'fnd base rates'!M$48) +($E14*'fnd base rates'!M$49) +($F14*'fnd base rates'!M$50) +($G14*'fnd base rates'!M$51) +($H14*'fnd base rates'!M$52) +($I14*'fnd base rates'!M$53) +($J14*'fnd base rates'!M$54) +($K14*'fnd base rates'!M$55) +($M14*'fnd base rates'!M$56) +($N14*'fnd base rates'!M$57) +($O14*'fnd base rates'!M$58) +($P14*'fnd base rates'!M$59) +($Q14*'fnd base rates'!M$60) +($R14*'fnd base rates'!M$61) +($S14*'fnd base rates'!M$62) +($L14*'fnd base rates'!M$63) +($T14*VLOOKUP($W14+16,rate_basefnd,13))) -> 0 | AJ14: 6153864.838 | AL14: 410035035 | AM14: 410 | AN14: 035 | AO14: 035 | AP14: 1 | AQ14: 492 | AR14: 6153864.838 | AS14: 12508
A15: 410 | B15: 410035057 | C15: EXCEL ACADEMY | D15: ='fnd enro'!D15 -> 0 | E15: ='fnd enro'!E15 -> 0 | F15: ='fnd enro'!F15 -> 0 | G15: ='fnd enro'!G15 -> 26 | H15: ='fnd enro'!H15 -> 122 | I15: ='fnd enro'!I15 -> 200 | J15: ='fnd enro'!J15 -> 13.05 | K15: ='fnd enro'!K15 -> 0 | L15: ='fnd enro'!L15 -> 0 | M15: ='fnd enro'!M15 -> 0 | N15: ='fnd enro'!N15 -> 0 | O15: ='fnd enro'!O15 -> 0 | P15: ='fnd enro'!P15 -> 8 | Q15: ='fnd enro'!Q15 -> 17 | R15: ='fnd enro'!R15 -> 10 | S15: ='fnd enro'!S15 -> 0 | T15: ='fnd enro'!T15 -> 199 | U15: ='fnd enro'!W15 -> 348 | V15: 1.078 | W15: ='fnd enro'!V15 -> 10 | Y15: =(($D15*'fnd base rates'!C$48) +($E15*'fnd base rates'!C$49) +($F15*'fnd base rates'!C$50) +($G15*'fnd base rates'!C$51) +($H15*'fnd base rates'!C$52) +($I15*'fnd base rates'!C$53) +($J15*'fnd base rates'!C$54) +($K15*'fnd base rates'!C$55) +($M15*'fnd base rates'!C$56) +($N15*'fnd base rates'!C$57) +($O15*'fnd base rates'!C$58) +($P15*'fnd base rates'!C$59) +($Q15*'fnd base rates'!C$60) +($R15*'fnd base rates'!C$61) +($S15*'fnd base rates'!C$62) +($L15*'fnd base rates'!C$63) +($T15*VLOOKUP($W15+16,rate_basefnd,3))) *$V15 -> 181608.5369 | Z15: =(($D15*'fnd base rates'!D$48) +($E15*'fnd base rates'!D$49) +($F15*'fnd base rates'!D$50) +($G15*'fnd base rates'!D$51) +($H15*'fnd base rates'!D$52) +($I15*'fnd base rates'!D$53) +($J15*'fnd base rates'!D$54) +($K15*'fnd base rates'!D$55) +($M15*'fnd base rates'!D$56) +($N15*'fnd base rates'!D$57) +($O15*'fnd base rates'!D$58) +($P15*'fnd base rates'!D$59) +($Q15*'fnd base rates'!D$60) +($R15*'fnd base rates'!D$61) +($S15*'fnd base rates'!D$62) +($L15*'fnd base rates'!D$63) +($T15*VLOOKUP($W15+16,rate_basefnd,4))) *$V15 -> 261577.7025 | AA15: =(($D15*'fnd base rates'!E$48) +($E15*'fnd base rates'!E$49) +($F15*'fnd base rates'!E$50) +($G15*'fnd base rates'!E$51) +($H15*'fnd base rates'!E$52) +($I15*'fnd base rates'!E$53) +($J15*'fnd base rates'!E$54) +($K15*'fnd base rates'!E$55) +($M15*'fnd base rates'!E$56) +($N15*'fnd base rates'!E$57) +($O15*'fnd base rates'!E$58) +($P15*'fnd base rates'!E$59) +($Q15*'fnd base rates'!E$60) +($R15*'fnd base rates'!E$61) +($S15*'fnd base rates'!E$62) +($L15*'fnd base rates'!E$63) +($T15*VLOOKUP($W15+16,rate_basefnd,5))) *$V15 -> 2148924.269 | AB15: =(($D15*'fnd base rates'!F$48) +($E15*'fnd base rates'!F$49) +($F15*'fnd base rates'!F$50) +($G15*'fnd base rates'!F$51) +($H15*'fnd base rates'!F$52) +($I15*'fnd base rates'!F$53) +($J15*'fnd base rates'!F$54) +($K15*'fnd base rates'!F$55) +($M15*'fnd base rates'!F$56) +($N15*'fnd base rates'!F$57) +($O15*'fnd base rates'!F$58) +($P15*'fnd base rates'!F$59) +($Q15*'fnd base rates'!F$60) +($R15*'fnd base rates'!F$61) +($S15*'fnd base rates'!F$62) +($L15*'fnd base rates'!F$63) +($T15*VLOOKUP($W15+16,rate_basefnd,6))) *$V15 -> 320753.1343 | AC15: =(($D15*'fnd base rates'!G$48) +($E15*'fnd base rates'!G$49) +($F15*'fnd base rates'!G$50) +($G15*'fnd base rates'!G$51) +($H15*'fnd base rates'!G$52) +($I15*'fnd base rates'!G$53) +($J15*'fnd base rates'!G$54) +($K15*'fnd base rates'!G$55) +($M15*'fnd base rates'!G$56) +($N15*'fnd base rates'!G$57) +($O15*'fnd base rates'!G$58) +($P15*'fnd base rates'!G$59) +($Q15*'fnd base rates'!G$60) +($R15*'fnd base rates'!G$61) +($S15*'fnd base rates'!G$62) +($L15*'fnd base rates'!G$63) +($T15*VLOOKUP($W15+16,rate_basefnd,7))) *$V15 -> 73697.07017 | AD15: =(($D15*'fnd base rates'!H$48) +($E15*'fnd base rates'!H$49) +($F15*'fnd base rates'!H$50) +($G15*'fnd base rates'!H$51) +($H15*'fnd base rates'!H$52) +($I15*'fnd base rates'!H$53) +($J15*'fnd base rates'!H$54) +($K15*'fnd base rates'!H$55) +($M15*'fnd base rates'!H$56) +($N15*'fnd base rates'!H$57) +($O15*'fnd base rates'!H$58) +($P15*'fnd base rates'!H$59) +($Q15*'fnd base rates'!H$60) +($R15*'fnd base rates'!H$61) +($S15*'fnd base rates'!H$62) +($L15*'fnd base rates'!H$63) +($T15*VLOOKUP($W15+16,rate_basefnd,8))) -> 220366.862 | AE15: =(($D15*'fnd base rates'!I$48) +($E15*'fnd base rates'!I$49) +($F15*'fnd base rates'!I$50) +($G15*'fnd base rates'!I$51) +($H15*'fnd base rates'!I$52) +($I15*'fnd base rates'!I$53) +($J15*'fnd base rates'!I$54) +($K15*'fnd base rates'!I$55) +($M15*'fnd base rates'!I$56) +($N15*'fnd base rates'!I$57) +($O15*'fnd base rates'!I$58) +($P15*'fnd base rates'!I$59) +($Q15*'fnd base rates'!I$60) +($R15*'fnd base rates'!I$61) +($S15*'fnd base rates'!I$62) +($L15*'fnd base rates'!I$63) +($T15*VLOOKUP($W15+16,rate_basefnd,9))) *$V15 -> 130540.2483 | AF15: =(($D15*'fnd base rates'!J$48) +($E15*'fnd base rates'!J$49) +($F15*'fnd base rates'!J$50) +($G15*'fnd base rates'!J$51) +($H15*'fnd base rates'!J$52) +($I15*'fnd base rates'!J$53) +($J15*'fnd base rates'!J$54) +($K15*'fnd base rates'!J$55) +($M15*'fnd base rates'!J$56) +($N15*'fnd base rates'!J$57) +($O15*'fnd base rates'!J$58) +($P15*'fnd base rates'!J$59) +($Q15*'fnd base rates'!J$60) +($R15*'fnd base rates'!J$61) +($S15*'fnd base rates'!J$62) +($L15*'fnd base rates'!J$63) +($T15*VLOOKUP($W15+16,rate_basefnd,10))) *$V15 -> 144107.3526 | AG15: =(($D15*'fnd base rates'!K$48) +($E15*'fnd base rates'!K$49) +($F15*'fnd base rates'!K$50) +($G15*'fnd base rates'!K$51) +($H15*'fnd base rates'!K$52) +($I15*'fnd base rates'!K$53) +($J15*'fnd base rates'!K$54) +($K15*'fnd base rates'!K$55) +($M15*'fnd base rates'!K$56) +($N15*'fnd base rates'!K$57) +($O15*'fnd base rates'!K$58) +($P15*'fnd base rates'!K$59) +($Q15*'fnd base rates'!K$60) +($R15*'fnd base rates'!K$61) +($S15*'fnd base rates'!K$62) +($L15*'fnd base rates'!K$63) +($T15*VLOOKUP($W15+16,rate_basefnd,11))) *$V15 -> 498159.5394 | AH15: =(($D15*'fnd base rates'!L$48) +($E15*'fnd base rates'!L$49) +($F15*'fnd base rates'!L$50) +($G15*'fnd base rates'!L$51) +($H15*'fnd base rates'!L$52) +($I15*'fnd base rates'!L$53) +($J15*'fnd base rates'!L$54) +($K15*'fnd base rates'!L$55) +($M15*'fnd base rates'!L$56) +($N15*'fnd base rates'!L$57) +($O15*'fnd base rates'!L$58) +($P15*'fnd base rates'!L$59) +($Q15*'fnd base rates'!L$60) +($R15*'fnd base rates'!L$61) +($S15*'fnd base rates'!L$62) +($L15*'fnd base rates'!L$63) +($T15*VLOOKUP($W15+16,rate_basefnd,12))) -> 438556.8159 | AI15: =(($D15*'fnd base rates'!M$48) +($E15*'fnd base rates'!M$49) +($F15*'fnd base rates'!M$50) +($G15*'fnd base rates'!M$51) +($H15*'fnd base rates'!M$52) +($I15*'fnd base rates'!M$53) +($J15*'fnd base rates'!M$54) +($K15*'fnd base rates'!M$55) +($M15*'fnd base rates'!M$56) +($N15*'fnd base rates'!M$57) +($O15*'fnd base rates'!M$58) +($P15*'fnd base rates'!M$59) +($Q15*'fnd base rates'!M$60) +($R15*'fnd base rates'!M$61) +($S15*'fnd base rates'!M$62) +($L15*'fnd base rates'!M$63) +($T15*VLOOKUP($W15+16,rate_basefnd,13))) -> 0 | AJ15: 4418291.531 | AL15: 410035057 | AM15: 410 | AN15: 035 | AO15: 057 | AP15: 1 | AQ15: 348 | AR15: 4418291.531 | AS15: 12696
A16: 410 | B16: 410035071 | C16: EXCEL ACADEMY | D16: ='fnd enro'!D16 -> 0 | E16: ='fnd enro'!E16 -> 0 | F16: ='fnd enro'!F16 -> 0 | G16: ='fnd enro'!G16 -> 0 | H16: ='fnd enro'!H16 -> 1 | I16: ='fnd enro'!I16 -> 0 | J16: ='fnd enro'!J16 -> 0.0375 | K16: ='fnd enro'!K16 -> 0 | L16: ='fnd enro'!L16 -> 0 | M16: ='fnd enro'!M16 -> 0 | N16: ='fnd enro'!N16 -> 0 | O16: ='fnd enro'!O16 -> 0 | P16: ='fnd enro'!P16 -> 0 | Q16: ='fnd enro'!Q16 -> 0 | R16: ='fnd enro'!R16 -> 0 | S16: ='fnd enro'!S16 -> 0 | T16: ='fnd enro'!T16 -> 1 | U16: ='fnd enro'!W16 -> 1 | V16: 1.078 | W16: ='fnd enro'!V16 -> 10 | Y16: =(($D16*'fnd base rates'!C$48) +($E16*'fnd base rates'!C$49) +($F16*'fnd base rates'!C$50) +($G16*'fnd base rates'!C$51) +($H16*'fnd base rates'!C$52) +($I16*'fnd base rates'!C$53) +($J16*'fnd base rates'!C$54) +($K16*'fnd base rates'!C$55) +($M16*'fnd base rates'!C$56) +($N16*'fnd base rates'!C$57) +($O16*'fnd base rates'!C$58) +($P16*'fnd base rates'!C$59) +($Q16*'fnd base rates'!C$60) +($R16*'fnd base rates'!C$61) +($S16*'fnd base rates'!C$62) +($L16*'fnd base rates'!C$63) +($T16*VLOOKUP($W16+16,rate_basefnd,3))) *$V16 -> 512.6217443 | Z16: =(($D16*'fnd base rates'!D$48) +($E16*'fnd base rates'!D$49) +($F16*'fnd base rates'!D$50) +($G16*'fnd base rates'!D$51) +($H16*'fnd base rates'!D$52) +($I16*'fnd base rates'!D$53) +($J16*'fnd base rates'!D$54) +($K16*'fnd base rates'!D$55) +($M16*'fnd base rates'!D$56) +($N16*'fnd base rates'!D$57) +($O16*'fnd base rates'!D$58) +($P16*'fnd base rates'!D$59) +($Q16*'fnd base rates'!D$60) +($R16*'fnd base rates'!D$61) +($S16*'fnd base rates'!D$62) +($L16*'fnd base rates'!D$63) +($T16*VLOOKUP($W16+16,rate_basefnd,4))) *$V16 -> 735.48706 | AA16: =(($D16*'fnd base rates'!E$48) +($E16*'fnd base rates'!E$49) +($F16*'fnd base rates'!E$50) +($G16*'fnd base rates'!E$51) +($H16*'fnd base rates'!E$52) +($I16*'fnd base rates'!E$53) +($J16*'fnd base rates'!E$54) +($K16*'fnd base rates'!E$55) +($M16*'fnd base rates'!E$56) +($N16*'fnd base rates'!E$57) +($O16*'fnd base rates'!E$58) +($P16*'fnd base rates'!E$59) +($Q16*'fnd base rates'!E$60) +($R16*'fnd base rates'!E$61) +($S16*'fnd base rates'!E$62) +($L16*'fnd base rates'!E$63) +($T16*VLOOKUP($W16+16,rate_basefnd,5))) *$V16 -> 6661.707949 | AB16: =(($D16*'fnd base rates'!F$48) +($E16*'fnd base rates'!F$49) +($F16*'fnd base rates'!F$50) +($G16*'fnd base rates'!F$51) +($H16*'fnd base rates'!F$52) +($I16*'fnd base rates'!F$53) +($J16*'fnd base rates'!F$54) +($K16*'fnd base rates'!F$55) +($M16*'fnd base rates'!F$56) +($N16*'fnd base rates'!F$57) +($O16*'fnd base rates'!F$58) +($P16*'fnd base rates'!F$59) +($Q16*'fnd base rates'!F$60) +($R16*'fnd base rates'!F$61) +($S16*'fnd base rates'!F$62) +($L16*'fnd base rates'!F$63) +($T16*VLOOKUP($W16+16,rate_basefnd,6))) *$V16 -> 947.3610878 | AC16: =(($D16*'fnd base rates'!G$48) +($E16*'fnd base rates'!G$49) +($F16*'fnd base rates'!G$50) +($G16*'fnd base rates'!G$51) +($H16*'fnd base rates'!G$52) +($I16*'fnd base rates'!G$53) +($J16*'fnd base rates'!G$54) +($K16*'fnd base rates'!G$55) +($M16*'fnd base rates'!G$56) +($N16*'fnd base rates'!G$57) +($O16*'fnd base rates'!G$58) +($P16*'fnd base rates'!G$59) +($Q16*'fnd base rates'!G$60) +($R16*'fnd base rates'!G$61) +($S16*'fnd base rates'!G$62) +($L16*'fnd base rates'!G$63) +($T16*VLOOKUP($W16+16,rate_basefnd,7))) *$V16 -> 247.2546884 | AD16: =(($D16*'fnd base rates'!H$48) +($E16*'fnd base rates'!H$49) +($F16*'fnd base rates'!H$50) +($G16*'fnd base rates'!H$51) +($H16*'fnd base rates'!H$52) +($I16*'fnd base rates'!H$53) +($J16*'fnd base rates'!H$54) +($K16*'fnd base rates'!H$55) +($M16*'fnd base rates'!H$56) +($N16*'fnd base rates'!H$57) +($O16*'fnd base rates'!H$58) +($P16*'fnd base rates'!H$59) +($Q16*'fnd base rates'!H$60) +($R16*'fnd base rates'!H$61) +($S16*'fnd base rates'!H$62) +($L16*'fnd base rates'!H$63) +($T16*VLOOKUP($W16+16,rate_basefnd,8))) -> 466.384 | AE16: =(($D16*'fnd base rates'!I$48) +($E16*'fnd base rates'!I$49) +($F16*'fnd base rates'!I$50) +($G16*'fnd base rates'!I$51) +($H16*'fnd base rates'!I$52) +($I16*'fnd base rates'!I$53) +($J16*'fnd base rates'!I$54) +($K16*'fnd base rates'!I$55) +($M16*'fnd base rates'!I$56) +($N16*'fnd base rates'!I$57) +($O16*'fnd base rates'!I$58) +($P16*'fnd base rates'!I$59) +($Q16*'fnd base rates'!I$60) +($R16*'fnd base rates'!I$61) +($S16*'fnd base rates'!I$62) +($L16*'fnd base rates'!I$63) +($T16*VLOOKUP($W16+16,rate_basefnd,9))) *$V16 -> 326.65556 | AF16: =(($D16*'fnd base rates'!J$48) +($E16*'fnd base rates'!J$49) +($F16*'fnd base rates'!J$50) +($G16*'fnd base rates'!J$51) +($H16*'fnd base rates'!J$52) +($I16*'fnd base rates'!J$53) +($J16*'fnd base rates'!J$54) +($K16*'fnd base rates'!J$55) +($M16*'fnd base rates'!J$56) +($N16*'fnd base rates'!J$57) +($O16*'fnd base rates'!J$58) +($P16*'fnd base rates'!J$59) +($Q16*'fnd base rates'!J$60) +($R16*'fnd base rates'!J$61) +($S16*'fnd base rates'!J$62) +($L16*'fnd base rates'!J$63) +($T16*VLOOKUP($W16+16,rate_basefnd,10))) *$V16 -> 239.19742 | AG16: =(($D16*'fnd base rates'!K$48) +($E16*'fnd base rates'!K$49) +($F16*'fnd base rates'!K$50) +($G16*'fnd base rates'!K$51) +($H16*'fnd base rates'!K$52) +($I16*'fnd base rates'!K$53) +($J16*'fnd base rates'!K$54) +($K16*'fnd base rates'!K$55) +($M16*'fnd base rates'!K$56) +($N16*'fnd base rates'!K$57) +($O16*'fnd base rates'!K$58) +($P16*'fnd base rates'!K$59) +($Q16*'fnd base rates'!K$60) +($R16*'fnd base rates'!K$61) +($S16*'fnd base rates'!K$62) +($L16*'fnd base rates'!K$63) +($T16*VLOOKUP($W16+16,rate_basefnd,11))) *$V16 -> 1647.801317 | AH16: =(($D16*'fnd base rates'!L$48) +($E16*'fnd base rates'!L$49) +($F16*'fnd base rates'!L$50) +($G16*'fnd base rates'!L$51) +($H16*'fnd base rates'!L$52) +($I16*'fnd base rates'!L$53) +($J16*'fnd base rates'!L$54) +($K16*'fnd base rates'!L$55) +($M16*'fnd base rates'!L$56) +($N16*'fnd base rates'!L$57) +($O16*'fnd base rates'!L$58) +($P16*'fnd base rates'!L$59) +($Q16*'fnd base rates'!L$60) +($R16*'fnd base rates'!L$61) +($S16*'fnd base rates'!L$62) +($L16*'fnd base rates'!L$63) +($T16*VLOOKUP($W16+16,rate_basefnd,12))) -> 1424.439225 | AI16: =(($D16*'fnd base rates'!M$48) +($E16*'fnd base rates'!M$49) +($F16*'fnd base rates'!M$50) +($G16*'fnd base rates'!M$51) +($H16*'fnd base rates'!M$52) +($I16*'fnd base rates'!M$53) +($J16*'fnd base rates'!M$54) +($K16*'fnd base rates'!M$55) +($M16*'fnd base rates'!M$56) +($N16*'fnd base rates'!M$57) +($O16*'fnd base rates'!M$58) +($P16*'fnd base rates'!M$59) +($Q16*'fnd base rates'!M$60) +($R16*'fnd base rates'!M$61) +($S16*'fnd base rates'!M$62) +($L16*'fnd base rates'!M$63) +($T16*VLOOKUP($W16+16,rate_basefnd,13))) -> 0 | AJ16: 13208.91005 | AL16: 410035071 | AM16: 410 | AN16: 035 | AO16: 071 | AP16: 1 | AQ16: 1 | AR16: 13208.91005 | AS16: 13209
A17: 410 | B17: 410035093 | C17: EXCEL ACADEMY | D17: ='fnd enro'!D17 -> 0 | E17: ='fnd enro'!E17 -> 0 | F17: ='fnd enro'!F17 -> 0 | G17: ='fnd enro'!G17 -> 1 | H17: ='fnd enro'!H17 -> 2 | I17: ='fnd enro'!I17 -> 6 | J17: ='fnd enro'!J17 -> 0.3375 | K17: ='fnd enro'!K17 -> 0 | L17: ='fnd enro'!L17 -> 0 | M17: ='fnd enro'!M17 -> 0 | N17: ='fnd enro'!N17 -> 0 | O17: ='fnd enro'!O17 -> 0 | P17: ='fnd enro'!P17 -> 0 | Q17: ='fnd enro'!Q17 -> 0 | R17: ='fnd enro'!R17 -> 0 | S17: ='fnd enro'!S17 -> 0 | T17: ='fnd enro'!T17 -> 3 | U17: ='fnd enro'!W17 -> 9 | V17: 1.078 | W17: ='fnd enro'!V17 -> 7 | Y17: =(($D17*'fnd base rates'!C$48) +($E17*'fnd base rates'!C$49) +($F17*'fnd base rates'!C$50) +($G17*'fnd base rates'!C$51) +($H17*'fnd base rates'!C$52) +($I17*'fnd base rates'!C$53) +($J17*'fnd base rates'!C$54) +($K17*'fnd base rates'!C$55) +($M17*'fnd base rates'!C$56) +($N17*'fnd base rates'!C$57) +($O17*'fnd base rates'!C$58) +($P17*'fnd base rates'!C$59) +($Q17*'fnd base rates'!C$60) +($R17*'fnd base rates'!C$61) +($S17*'fnd base rates'!C$62) +($L17*'fnd base rates'!C$63) +($T17*VLOOKUP($W17+16,rate_basefnd,3))) *$V17 -> 4613.595698 | Z17: =(($D17*'fnd base rates'!D$48) +($E17*'fnd base rates'!D$49) +($F17*'fnd base rates'!D$50) +($G17*'fnd base rates'!D$51) +($H17*'fnd base rates'!D$52) +($I17*'fnd base rates'!D$53) +($J17*'fnd base rates'!D$54) +($K17*'fnd base rates'!D$55) +($M17*'fnd base rates'!D$56) +($N17*'fnd base rates'!D$57) +($O17*'fnd base rates'!D$58) +($P17*'fnd base rates'!D$59) +($Q17*'fnd base rates'!D$60) +($R17*'fnd base rates'!D$61) +($S17*'fnd base rates'!D$62) +($L17*'fnd base rates'!D$63) +($T17*VLOOKUP($W17+16,rate_basefnd,4))) *$V17 -> 6619.38354 | AA17: =(($D17*'fnd base rates'!E$48) +($E17*'fnd base rates'!E$49) +($F17*'fnd base rates'!E$50) +($G17*'fnd base rates'!E$51) +($H17*'fnd base rates'!E$52) +($I17*'fnd base rates'!E$53) +($J17*'fnd base rates'!E$54) +($K17*'fnd base rates'!E$55) +($M17*'fnd base rates'!E$56) +($N17*'fnd base rates'!E$57) +($O17*'fnd base rates'!E$58) +($P17*'fnd base rates'!E$59) +($Q17*'fnd base rates'!E$60) +($R17*'fnd base rates'!E$61) +($S17*'fnd base rates'!E$62) +($L17*'fnd base rates'!E$63) +($T17*VLOOKUP($W17+16,rate_basefnd,5))) *$V17 -> 48359.60841 | AB17: =(($D17*'fnd base rates'!F$48) +($E17*'fnd base rates'!F$49) +($F17*'fnd base rates'!F$50) +($G17*'fnd base rates'!F$51) +($H17*'fnd base rates'!F$52) +($I17*'fnd base rates'!F$53) +($J17*'fnd base rates'!F$54) +($K17*'fnd base rates'!F$55) +($M17*'fnd base rates'!F$56) +($N17*'fnd base rates'!F$57) +($O17*'fnd base rates'!F$58) +($P17*'fnd base rates'!F$59) +($Q17*'fnd base rates'!F$60) +($R17*'fnd base rates'!F$61) +($S17*'fnd base rates'!F$62) +($L17*'fnd base rates'!F$63) +($T17*VLOOKUP($W17+16,rate_basefnd,6))) *$V17 -> 8142.85909 | AC17: =(($D17*'fnd base rates'!G$48) +($E17*'fnd base rates'!G$49) +($F17*'fnd base rates'!G$50) +($G17*'fnd base rates'!G$51) +($H17*'fnd base rates'!G$52) +($I17*'fnd base rates'!G$53) +($J17*'fnd base rates'!G$54) +($K17*'fnd base rates'!G$55) +($M17*'fnd base rates'!G$56) +($N17*'fnd base rates'!G$57) +($O17*'fnd base rates'!G$58) +($P17*'fnd base rates'!G$59) +($Q17*'fnd base rates'!G$60) +($R17*'fnd base rates'!G$61) +($S17*'fnd base rates'!G$62) +($L17*'fnd base rates'!G$63) +($T17*VLOOKUP($W17+16,rate_basefnd,7))) *$V17 -> 1665.122001 | AD17: =(($D17*'fnd base rates'!H$48) +($E17*'fnd base rates'!H$49) +($F17*'fnd base rates'!H$50) +($G17*'fnd base rates'!H$51) +($H17*'fnd base rates'!H$52) +($I17*'fnd base rates'!H$53) +($J17*'fnd base rates'!H$54) +($K17*'fnd base rates'!H$55) +($M17*'fnd base rates'!H$56) +($N17*'fnd base rates'!H$57) +($O17*'fnd base rates'!H$58) +($P17*'fnd base rates'!H$59) +($Q17*'fnd base rates'!H$60) +($R17*'fnd base rates'!H$61) +($S17*'fnd base rates'!H$62) +($L17*'fnd base rates'!H$63) +($T17*VLOOKUP($W17+16,rate_basefnd,8))) -> 5827.536 | AE17: =(($D17*'fnd base rates'!I$48) +($E17*'fnd base rates'!I$49) +($F17*'fnd base rates'!I$50) +($G17*'fnd base rates'!I$51) +($H17*'fnd base rates'!I$52) +($I17*'fnd base rates'!I$53) +($J17*'fnd base rates'!I$54) +($K17*'fnd base rates'!I$55) +($M17*'fnd base rates'!I$56) +($N17*'fnd base rates'!I$57) +($O17*'fnd base rates'!I$58) +($P17*'fnd base rates'!I$59) +($Q17*'fnd base rates'!I$60) +($R17*'fnd base rates'!I$61) +($S17*'fnd base rates'!I$62) +($L17*'fnd base rates'!I$63) +($T17*VLOOKUP($W17+16,rate_basefnd,9))) *$V17 -> 3355.58762 | AF17: =(($D17*'fnd base rates'!J$48) +($E17*'fnd base rates'!J$49) +($F17*'fnd base rates'!J$50) +($G17*'fnd base rates'!J$51) +($H17*'fnd base rates'!J$52) +($I17*'fnd base rates'!J$53) +($J17*'fnd base rates'!J$54) +($K17*'fnd base rates'!J$55) +($M17*'fnd base rates'!J$56) +($N17*'fnd base rates'!J$57) +($O17*'fnd base rates'!J$58) +($P17*'fnd base rates'!J$59) +($Q17*'fnd base rates'!J$60) +($R17*'fnd base rates'!J$61) +($S17*'fnd base rates'!J$62) +($L17*'fnd base rates'!J$63) +($T17*VLOOKUP($W17+16,rate_basefnd,10))) *$V17 -> 3934.24724 | AG17: =(($D17*'fnd base rates'!K$48) +($E17*'fnd base rates'!K$49) +($F17*'fnd base rates'!K$50) +($G17*'fnd base rates'!K$51) +($H17*'fnd base rates'!K$52) +($I17*'fnd base rates'!K$53) +($J17*'fnd base rates'!K$54) +($K17*'fnd base rates'!K$55) +($M17*'fnd base rates'!K$56) +($N17*'fnd base rates'!K$57) +($O17*'fnd base rates'!K$58) +($P17*'fnd base rates'!K$59) +($Q17*'fnd base rates'!K$60) +($R17*'fnd base rates'!K$61) +($S17*'fnd base rates'!K$62) +($L17*'fnd base rates'!K$63) +($T17*VLOOKUP($W17+16,rate_basefnd,11))) *$V17 -> 11430.95402 | AH17: =(($D17*'fnd base rates'!L$48) +($E17*'fnd base rates'!L$49) +($F17*'fnd base rates'!L$50) +($G17*'fnd base rates'!L$51) +($H17*'fnd base rates'!L$52) +($I17*'fnd base rates'!L$53) +($J17*'fnd base rates'!L$54) +($K17*'fnd base rates'!L$55) +($M17*'fnd base rates'!L$56) +($N17*'fnd base rates'!L$57) +($O17*'fnd base rates'!L$58) +($P17*'fnd base rates'!L$59) +($Q17*'fnd base rates'!L$60) +($R17*'fnd base rates'!L$61) +($S17*'fnd base rates'!L$62) +($L17*'fnd base rates'!L$63) +($T17*VLOOKUP($W17+16,rate_basefnd,12))) -> 10339.90942 | AI17: =(($D17*'fnd base rates'!M$48) +($E17*'fnd base rates'!M$49) +($F17*'fnd base rates'!M$50) +($G17*'fnd base rates'!M$51) +($H17*'fnd base rates'!M$52) +($I17*'fnd base rates'!M$53) +($J17*'fnd base rates'!M$54) +($K17*'fnd base rates'!M$55) +($M17*'fnd base rates'!M$56) +($N17*'fnd base rates'!M$57) +($O17*'fnd base rates'!M$58) +($P17*'fnd base rates'!M$59) +($Q17*'fnd base rates'!M$60) +($R17*'fnd base rates'!M$61) +($S17*'fnd base rates'!M$62) +($L17*'fnd base rates'!M$63) +($T17*VLOOKUP($W17+16,rate_basefnd,13))) -> 0 | AJ17: 104288.803 | AL17: 410035093 | AM17: 410 | AN17: 035 | AO17: 093 | AP17: 1 | AQ17: 9 | AR17: 104288.803 | AS17: 11588
A18: 410 | B18: 410035155 | C18: EXCEL ACADEMY | D18: ='fnd enro'!D18 -> 0 | E18: ='fnd enro'!E18 -> 0 | F18: ='fnd enro'!F18 -> 0 | G18: ='fnd enro'!G18 -> 0 | H18: ='fnd enro'!H18 -> 0 | I18: ='fnd enro'!I18 -> 1 | J18: ='fnd enro'!J18 -> 0.0375 | K18: ='fnd enro'!K18 -> 0 | L18: ='fnd enro'!L18 -> 0 | M18: ='fnd enro'!M18 -> 0 | N18: ='fnd enro'!N18 -> 0 | O18: ='fnd enro'!O18 -> 0 | P18: ='fnd enro'!P18 -> 0 | Q18: ='fnd enro'!Q18 -> 0 | R18: ='fnd enro'!R18 -> 0 | S18: ='fnd enro'!S18 -> 0 | T18: ='fnd enro'!T18 -> 0 | U18: ='fnd enro'!W18 -> 1 | V18: 1.078 | W18: ='fnd enro'!V18 -> 1 | Y18: =(($D18*'fnd base rates'!C$48) +($E18*'fnd base rates'!C$49) +($F18*'fnd base rates'!C$50) +($G18*'fnd base rates'!C$51) +($H18*'fnd base rates'!C$52) +($I18*'fnd base rates'!C$53) +($J18*'fnd base rates'!C$54) +($K18*'fnd base rates'!C$55) +($M18*'fnd base rates'!C$56) +($N18*'fnd base rates'!C$57) +($O18*'fnd base rates'!C$58) +($P18*'fnd base rates'!C$59) +($Q18*'fnd base rates'!C$60) +($R18*'fnd base rates'!C$61) +($S18*'fnd base rates'!C$62) +($L18*'fnd base rates'!C$63) +($T18*VLOOKUP($W18+16,rate_basefnd,3))) *$V18 -> 512.6217443 | Z18: =(($D18*'fnd base rates'!D$48) +($E18*'fnd base rates'!D$49) +($F18*'fnd base rates'!D$50) +($G18*'fnd base rates'!D$51) +($H18*'fnd base rates'!D$52) +($I18*'fnd base rates'!D$53) +($J18*'fnd base rates'!D$54) +($K18*'fnd base rates'!D$55) +($M18*'fnd base rates'!D$56) +($N18*'fnd base rates'!D$57) +($O18*'fnd base rates'!D$58) +($P18*'fnd base rates'!D$59) +($Q18*'fnd base rates'!D$60) +($R18*'fnd base rates'!D$61) +($S18*'fnd base rates'!D$62) +($L18*'fnd base rates'!D$63) +($T18*VLOOKUP($W18+16,rate_basefnd,4))) *$V18 -> 735.48706 | AA18: =(($D18*'fnd base rates'!E$48) +($E18*'fnd base rates'!E$49) +($F18*'fnd base rates'!E$50) +($G18*'fnd base rates'!E$51) +($H18*'fnd base rates'!E$52) +($I18*'fnd base rates'!E$53) +($J18*'fnd base rates'!E$54) +($K18*'fnd base rates'!E$55) +($M18*'fnd base rates'!E$56) +($N18*'fnd base rates'!E$57) +($O18*'fnd base rates'!E$58) +($P18*'fnd base rates'!E$59) +($Q18*'fnd base rates'!E$60) +($R18*'fnd base rates'!E$61) +($S18*'fnd base rates'!E$62) +($L18*'fnd base rates'!E$63) +($T18*VLOOKUP($W18+16,rate_basefnd,5))) *$V18 -> 4712.08609 | AB18: =(($D18*'fnd base rates'!F$48) +($E18*'fnd base rates'!F$49) +($F18*'fnd base rates'!F$50) +($G18*'fnd base rates'!F$51) +($H18*'fnd base rates'!F$52) +($I18*'fnd base rates'!F$53) +($J18*'fnd base rates'!F$54) +($K18*'fnd base rates'!F$55) +($M18*'fnd base rates'!F$56) +($N18*'fnd base rates'!F$57) +($O18*'fnd base rates'!F$58) +($P18*'fnd base rates'!F$59) +($Q18*'fnd base rates'!F$60) +($R18*'fnd base rates'!F$61) +($S18*'fnd base rates'!F$62) +($L18*'fnd base rates'!F$63) +($T18*VLOOKUP($W18+16,rate_basefnd,6))) *$V18 -> 843.0753678 | AC18: =(($D18*'fnd base rates'!G$48) +($E18*'fnd base rates'!G$49) +($F18*'fnd base rates'!G$50) +($G18*'fnd base rates'!G$51) +($H18*'fnd base rates'!G$52) +($I18*'fnd base rates'!G$53) +($J18*'fnd base rates'!G$54) +($K18*'fnd base rates'!G$55) +($M18*'fnd base rates'!G$56) +($N18*'fnd base rates'!G$57) +($O18*'fnd base rates'!G$58) +($P18*'fnd base rates'!G$59) +($Q18*'fnd base rates'!G$60) +($R18*'fnd base rates'!G$61) +($S18*'fnd base rates'!G$62) +($L18*'fnd base rates'!G$63) +($T18*VLOOKUP($W18+16,rate_basefnd,7))) *$V18 -> 157.0569192 | AD18: =(($D18*'fnd base rates'!H$48) +($E18*'fnd base rates'!H$49) +($F18*'fnd base rates'!H$50) +($G18*'fnd base rates'!H$51) +($H18*'fnd base rates'!H$52) +($I18*'fnd base rates'!H$53) +($J18*'fnd base rates'!H$54) +($K18*'fnd base rates'!H$55) +($M18*'fnd base rates'!H$56) +($N18*'fnd base rates'!H$57) +($O18*'fnd base rates'!H$58) +($P18*'fnd base rates'!H$59) +($Q18*'fnd base rates'!H$60) +($R18*'fnd base rates'!H$61) +($S18*'fnd base rates'!H$62) +($L18*'fnd base rates'!H$63) +($T18*VLOOKUP($W18+16,rate_basefnd,8))) -> 738.064 | AE18: =(($D18*'fnd base rates'!I$48) +($E18*'fnd base rates'!I$49) +($F18*'fnd base rates'!I$50) +($G18*'fnd base rates'!I$51) +($H18*'fnd base rates'!I$52) +($I18*'fnd base rates'!I$53) +($J18*'fnd base rates'!I$54) +($K18*'fnd base rates'!I$55) +($M18*'fnd base rates'!I$56) +($N18*'fnd base rates'!I$57) +($O18*'fnd base rates'!I$58) +($P18*'fnd base rates'!I$59) +($Q18*'fnd base rates'!I$60) +($R18*'fnd base rates'!I$61) +($S18*'fnd base rates'!I$62) +($L18*'fnd base rates'!I$63) +($T18*VLOOKUP($W18+16,rate_basefnd,9))) *$V18 -> 409.4783 | AF18: =(($D18*'fnd base rates'!J$48) +($E18*'fnd base rates'!J$49) +($F18*'fnd base rates'!J$50) +($G18*'fnd base rates'!J$51) +($H18*'fnd base rates'!J$52) +($I18*'fnd base rates'!J$53) +($J18*'fnd base rates'!J$54) +($K18*'fnd base rates'!J$55) +($M18*'fnd base rates'!J$56) +($N18*'fnd base rates'!J$57) +($O18*'fnd base rates'!J$58) +($P18*'fnd base rates'!J$59) +($Q18*'fnd base rates'!J$60) +($R18*'fnd base rates'!J$61) +($S18*'fnd base rates'!J$62) +($L18*'fnd base rates'!J$63) +($T18*VLOOKUP($W18+16,rate_basefnd,10))) *$V18 -> 551.56948 | AG18: =(($D18*'fnd base rates'!K$48) +($E18*'fnd base rates'!K$49) +($F18*'fnd base rates'!K$50) +($G18*'fnd base rates'!K$51) +($H18*'fnd base rates'!K$52) +($I18*'fnd base rates'!K$53) +($J18*'fnd base rates'!K$54) +($K18*'fnd base rates'!K$55) +($M18*'fnd base rates'!K$56) +($N18*'fnd base rates'!K$57) +($O18*'fnd base rates'!K$58) +($P18*'fnd base rates'!K$59) +($Q18*'fnd base rates'!K$60) +($R18*'fnd base rates'!K$61) +($S18*'fnd base rates'!K$62) +($L18*'fnd base rates'!K$63) +($T18*VLOOKUP($W18+16,rate_basefnd,11))) *$V18 -> 1102.151782 | AH18: =(($D18*'fnd base rates'!L$48) +($E18*'fnd base rates'!L$49) +($F18*'fnd base rates'!L$50) +($G18*'fnd base rates'!L$51) +($H18*'fnd base rates'!L$52) +($I18*'fnd base rates'!L$53) +($J18*'fnd base rates'!L$54) +($K18*'fnd base rates'!L$55) +($M18*'fnd base rates'!L$56) +($N18*'fnd base rates'!L$57) +($O18*'fnd base rates'!L$58) +($P18*'fnd base rates'!L$59) +($Q18*'fnd base rates'!L$60) +($R18*'fnd base rates'!L$61) +($S18*'fnd base rates'!L$62) +($L18*'fnd base rates'!L$63) +($T18*VLOOKUP($W18+16,rate_basefnd,12))) -> 1018.603625 | AI18: =(($D18*'fnd base rates'!M$48) +($E18*'fnd base rates'!M$49) +($F18*'fnd base rates'!M$50) +($G18*'fnd base rates'!M$51) +($H18*'fnd base rates'!M$52) +($I18*'fnd base rates'!M$53) +($J18*'fnd base rates'!M$54) +($K18*'fnd base rates'!M$55) +($M18*'fnd base rates'!M$56) +($N18*'fnd base rates'!M$57) +($O18*'fnd base rates'!M$58) +($P18*'fnd base rates'!M$59) +($Q18*'fnd base rates'!M$60) +($R18*'fnd base rates'!M$61) +($S18*'fnd base rates'!M$62) +($L18*'fnd base rates'!M$63) +($T18*VLOOKUP($W18+16,rate_basefnd,13))) -> 0 | AJ18: 10780.19437 | AL18: 410035155 | AM18: 410 | AN18: 035 | AO18: 155 | AP18: 1 | AQ18: 1 | AR18: 10780.19437 | AS18: 10780
A19: 410 | B19: 410035163 | C19: EXCEL ACADEMY | D19: ='fnd enro'!D19 -> 0 | E19: ='fnd enro'!E19 -> 0 | F19: ='fnd enro'!F19 -> 0 | G19: ='fnd enro'!G19 -> 2 | H19: ='fnd enro'!H19 -> 5 | I19: ='fnd enro'!I19 -> 6 | J19: ='fnd enro'!J19 -> 0.4875 | K19: ='fnd enro'!K19 -> 0 | L19: ='fnd enro'!L19 -> 0 | M19: ='fnd enro'!M19 -> 0 | N19: ='fnd enro'!N19 -> 0 | O19: ='fnd enro'!O19 -> 0 | P19: ='fnd enro'!P19 -> 0 | Q19: ='fnd enro'!Q19 -> 0 | R19: ='fnd enro'!R19 -> 0 | S19: ='fnd enro'!S19 -> 0 | T19: ='fnd enro'!T19 -> 3 | U19: ='fnd enro'!W19 -> 13 | V19: 1.078 | W19: ='fnd enro'!V19 -> 5 | Y19: =(($D19*'fnd base rates'!C$48) +($E19*'fnd base rates'!C$49) +($F19*'fnd base rates'!C$50) +($G19*'fnd base rates'!C$51) +($H19*'fnd base rates'!C$52) +($I19*'fnd base rates'!C$53) +($J19*'fnd base rates'!C$54) +($K19*'fnd base rates'!C$55) +($M19*'fnd base rates'!C$56) +($N19*'fnd base rates'!C$57) +($O19*'fnd base rates'!C$58) +($P19*'fnd base rates'!C$59) +($Q19*'fnd base rates'!C$60) +($R19*'fnd base rates'!C$61) +($S19*'fnd base rates'!C$62) +($L19*'fnd base rates'!C$63) +($T19*VLOOKUP($W19+16,rate_basefnd,3))) *$V19 -> 6664.082675 | Z19: =(($D19*'fnd base rates'!D$48) +($E19*'fnd base rates'!D$49) +($F19*'fnd base rates'!D$50) +($G19*'fnd base rates'!D$51) +($H19*'fnd base rates'!D$52) +($I19*'fnd base rates'!D$53) +($J19*'fnd base rates'!D$54) +($K19*'fnd base rates'!D$55) +($M19*'fnd base rates'!D$56) +($N19*'fnd base rates'!D$57) +($O19*'fnd base rates'!D$58) +($P19*'fnd base rates'!D$59) +($Q19*'fnd base rates'!D$60) +($R19*'fnd base rates'!D$61) +($S19*'fnd base rates'!D$62) +($L19*'fnd base rates'!D$63) +($T19*VLOOKUP($W19+16,rate_basefnd,4))) *$V19 -> 9561.33178 | AA19: =(($D19*'fnd base rates'!E$48) +($E19*'fnd base rates'!E$49) +($F19*'fnd base rates'!E$50) +($G19*'fnd base rates'!E$51) +($H19*'fnd base rates'!E$52) +($I19*'fnd base rates'!E$53) +($J19*'fnd base rates'!E$54) +($K19*'fnd base rates'!E$55) +($M19*'fnd base rates'!E$56) +($N19*'fnd base rates'!E$57) +($O19*'fnd base rates'!E$58) +($P19*'fnd base rates'!E$59) +($Q19*'fnd base rates'!E$60) +($R19*'fnd base rates'!E$61) +($S19*'fnd base rates'!E$62) +($L19*'fnd base rates'!E$63) +($T19*VLOOKUP($W19+16,rate_basefnd,5))) *$V19 -> 61824.58247 | AB19: =(($D19*'fnd base rates'!F$48) +($E19*'fnd base rates'!F$49) +($F19*'fnd base rates'!F$50) +($G19*'fnd base rates'!F$51) +($H19*'fnd base rates'!F$52) +($I19*'fnd base rates'!F$53) +($J19*'fnd base rates'!F$54) +($K19*'fnd base rates'!F$55) +($M19*'fnd base rates'!F$56) +($N19*'fnd base rates'!F$57) +($O19*'fnd base rates'!F$58) +($P19*'fnd base rates'!F$59) +($Q19*'fnd base rates'!F$60) +($R19*'fnd base rates'!F$61) +($S19*'fnd base rates'!F$62) +($L19*'fnd base rates'!F$63) +($T19*VLOOKUP($W19+16,rate_basefnd,6))) *$V19 -> 12174.62706 | AC19: =(($D19*'fnd base rates'!G$48) +($E19*'fnd base rates'!G$49) +($F19*'fnd base rates'!G$50) +($G19*'fnd base rates'!G$51) +($H19*'fnd base rates'!G$52) +($I19*'fnd base rates'!G$53) +($J19*'fnd base rates'!G$54) +($K19*'fnd base rates'!G$55) +($M19*'fnd base rates'!G$56) +($N19*'fnd base rates'!G$57) +($O19*'fnd base rates'!G$58) +($P19*'fnd base rates'!G$59) +($Q19*'fnd base rates'!G$60) +($R19*'fnd base rates'!G$61) +($S19*'fnd base rates'!G$62) +($L19*'fnd base rates'!G$63) +($T19*VLOOKUP($W19+16,rate_basefnd,7))) *$V19 -> 2294.546258 | AD19: =(($D19*'fnd base rates'!H$48) +($E19*'fnd base rates'!H$49) +($F19*'fnd base rates'!H$50) +($G19*'fnd base rates'!H$51) +($H19*'fnd base rates'!H$52) +($I19*'fnd base rates'!H$53) +($J19*'fnd base rates'!H$54) +($K19*'fnd base rates'!H$55) +($M19*'fnd base rates'!H$56) +($N19*'fnd base rates'!H$57) +($O19*'fnd base rates'!H$58) +($P19*'fnd base rates'!H$59) +($Q19*'fnd base rates'!H$60) +($R19*'fnd base rates'!H$61) +($S19*'fnd base rates'!H$62) +($L19*'fnd base rates'!H$63) +($T19*VLOOKUP($W19+16,rate_basefnd,8))) -> 7693.072 | AE19: =(($D19*'fnd base rates'!I$48) +($E19*'fnd base rates'!I$49) +($F19*'fnd base rates'!I$50) +($G19*'fnd base rates'!I$51) +($H19*'fnd base rates'!I$52) +($I19*'fnd base rates'!I$53) +($J19*'fnd base rates'!I$54) +($K19*'fnd base rates'!I$55) +($M19*'fnd base rates'!I$56) +($N19*'fnd base rates'!I$57) +($O19*'fnd base rates'!I$58) +($P19*'fnd base rates'!I$59) +($Q19*'fnd base rates'!I$60) +($R19*'fnd base rates'!I$61) +($S19*'fnd base rates'!I$62) +($L19*'fnd base rates'!I$63) +($T19*VLOOKUP($W19+16,rate_basefnd,9))) *$V19 -> 4580.961 | AF19: =(($D19*'fnd base rates'!J$48) +($E19*'fnd base rates'!J$49) +($F19*'fnd base rates'!J$50) +($G19*'fnd base rates'!J$51) +($H19*'fnd base rates'!J$52) +($I19*'fnd base rates'!J$53) +($J19*'fnd base rates'!J$54) +($K19*'fnd base rates'!J$55) +($M19*'fnd base rates'!J$56) +($N19*'fnd base rates'!J$57) +($O19*'fnd base rates'!J$58) +($P19*'fnd base rates'!J$59) +($Q19*'fnd base rates'!J$60) +($R19*'fnd base rates'!J$61) +($S19*'fnd base rates'!J$62) +($L19*'fnd base rates'!J$63) +($T19*VLOOKUP($W19+16,rate_basefnd,10))) *$V19 -> 4798.27502 | AG19: =(($D19*'fnd base rates'!K$48) +($E19*'fnd base rates'!K$49) +($F19*'fnd base rates'!K$50) +($G19*'fnd base rates'!K$51) +($H19*'fnd base rates'!K$52) +($I19*'fnd base rates'!K$53) +($J19*'fnd base rates'!K$54) +($K19*'fnd base rates'!K$55) +($M19*'fnd base rates'!K$56) +($N19*'fnd base rates'!K$57) +($O19*'fnd base rates'!K$58) +($P19*'fnd base rates'!K$59) +($Q19*'fnd base rates'!K$60) +($R19*'fnd base rates'!K$61) +($S19*'fnd base rates'!K$62) +($L19*'fnd base rates'!K$63) +($T19*VLOOKUP($W19+16,rate_basefnd,11))) *$V19 -> 15853.13317 | AH19: =(($D19*'fnd base rates'!L$48) +($E19*'fnd base rates'!L$49) +($F19*'fnd base rates'!L$50) +($G19*'fnd base rates'!L$51) +($H19*'fnd base rates'!L$52) +($I19*'fnd base rates'!L$53) +($J19*'fnd base rates'!L$54) +($K19*'fnd base rates'!L$55) +($M19*'fnd base rates'!L$56) +($N19*'fnd base rates'!L$57) +($O19*'fnd base rates'!L$58) +($P19*'fnd base rates'!L$59) +($Q19*'fnd base rates'!L$60) +($R19*'fnd base rates'!L$61) +($S19*'fnd base rates'!L$62) +($L19*'fnd base rates'!L$63) +($T19*VLOOKUP($W19+16,rate_basefnd,12))) -> 14728.77392 | AI19: =(($D19*'fnd base rates'!M$48) +($E19*'fnd base rates'!M$49) +($F19*'fnd base rates'!M$50) +($G19*'fnd base rates'!M$51) +($H19*'fnd base rates'!M$52) +($I19*'fnd base rates'!M$53) +($J19*'fnd base rates'!M$54) +($K19*'fnd base rates'!M$55) +($M19*'fnd base rates'!M$56) +($N19*'fnd base rates'!M$57) +($O19*'fnd base rates'!M$58) +($P19*'fnd base rates'!M$59) +($Q19*'fnd base rates'!M$60) +($R19*'fnd base rates'!M$61) +($S19*'fnd base rates'!M$62) +($L19*'fnd base rates'!M$63) +($T19*VLOOKUP($W19+16,rate_basefnd,13))) -> 0 | AJ19: 140173.3854 | AL19: 410035163 | AM19: 410 | AN19: 035 | AO19: 163 | AP19: 1 | AQ19: 13 | AR19: 140173.3854 | AS19: 10783
A20: 410 | B20: 410035165 | C20: EXCEL ACADEMY | D20: ='fnd enro'!D20 -> 0 | E20: ='fnd enro'!E20 -> 0 | F20: ='fnd enro'!F20 -> 0 | G20: ='fnd enro'!G20 -> 0 | H20: ='fnd enro'!H20 -> 1 | I20: ='fnd enro'!I20 -> 2 | J20: ='fnd enro'!J20 -> 0.1125 | K20: ='fnd enro'!K20 -> 0 | L20: ='fnd enro'!L20 -> 0 | M20: ='fnd enro'!M20 -> 0 | N20: ='fnd enro'!N20 -> 0 | O20: ='fnd enro'!O20 -> 0 | P20: ='fnd enro'!P20 -> 0 | Q20: ='fnd enro'!Q20 -> 0 | R20: ='fnd enro'!R20 -> 0 | S20: ='fnd enro'!S20 -> 0 | T20: ='fnd enro'!T20 -> 0 | U20: ='fnd enro'!W20 -> 3 | V20: 1.078 | W20: ='fnd enro'!V20 -> 1 | Y20: =(($D20*'fnd base rates'!C$48) +($E20*'fnd base rates'!C$49) +($F20*'fnd base rates'!C$50) +($G20*'fnd base rates'!C$51) +($H20*'fnd base rates'!C$52) +($I20*'fnd base rates'!C$53) +($J20*'fnd base rates'!C$54) +($K20*'fnd base rates'!C$55) +($M20*'fnd base rates'!C$56) +($N20*'fnd base rates'!C$57) +($O20*'fnd base rates'!C$58) +($P20*'fnd base rates'!C$59) +($Q20*'fnd base rates'!C$60) +($R20*'fnd base rates'!C$61) +($S20*'fnd base rates'!C$62) +($L20*'fnd base rates'!C$63) +($T20*VLOOKUP($W20+16,rate_basefnd,3))) *$V20 -> 1537.865233 | Z20: =(($D20*'fnd base rates'!D$48) +($E20*'fnd base rates'!D$49) +($F20*'fnd base rates'!D$50) +($G20*'fnd base rates'!D$51) +($H20*'fnd base rates'!D$52) +($I20*'fnd base rates'!D$53) +($J20*'fnd base rates'!D$54) +($K20*'fnd base rates'!D$55) +($M20*'fnd base rates'!D$56) +($N20*'fnd base rates'!D$57) +($O20*'fnd base rates'!D$58) +($P20*'fnd base rates'!D$59) +($Q20*'fnd base rates'!D$60) +($R20*'fnd base rates'!D$61) +($S20*'fnd base rates'!D$62) +($L20*'fnd base rates'!D$63) +($T20*VLOOKUP($W20+16,rate_basefnd,4))) *$V20 -> 2206.46118 | AA20: =(($D20*'fnd base rates'!E$48) +($E20*'fnd base rates'!E$49) +($F20*'fnd base rates'!E$50) +($G20*'fnd base rates'!E$51) +($H20*'fnd base rates'!E$52) +($I20*'fnd base rates'!E$53) +($J20*'fnd base rates'!E$54) +($K20*'fnd base rates'!E$55) +($M20*'fnd base rates'!E$56) +($N20*'fnd base rates'!E$57) +($O20*'fnd base rates'!E$58) +($P20*'fnd base rates'!E$59) +($Q20*'fnd base rates'!E$60) +($R20*'fnd base rates'!E$61) +($S20*'fnd base rates'!E$62) +($L20*'fnd base rates'!E$63) +($T20*VLOOKUP($W20+16,rate_basefnd,5))) *$V20 -> 12739.69849 | AB20: =(($D20*'fnd base rates'!F$48) +($E20*'fnd base rates'!F$49) +($F20*'fnd base rates'!F$50) +($G20*'fnd base rates'!F$51) +($H20*'fnd base rates'!F$52) +($I20*'fnd base rates'!F$53) +($J20*'fnd base rates'!F$54) +($K20*'fnd base rates'!F$55) +($M20*'fnd base rates'!F$56) +($N20*'fnd base rates'!F$57) +($O20*'fnd base rates'!F$58) +($P20*'fnd base rates'!F$59) +($Q20*'fnd base rates'!F$60) +($R20*'fnd base rates'!F$61) +($S20*'fnd base rates'!F$62) +($L20*'fnd base rates'!F$63) +($T20*VLOOKUP($W20+16,rate_basefnd,6))) *$V20 -> 2633.511823 | AC20: =(($D20*'fnd base rates'!G$48) +($E20*'fnd base rates'!G$49) +($F20*'fnd base rates'!G$50) +($G20*'fnd base rates'!G$51) +($H20*'fnd base rates'!G$52) +($I20*'fnd base rates'!G$53) +($J20*'fnd base rates'!G$54) +($K20*'fnd base rates'!G$55) +($M20*'fnd base rates'!G$56) +($N20*'fnd base rates'!G$57) +($O20*'fnd base rates'!G$58) +($P20*'fnd base rates'!G$59) +($Q20*'fnd base rates'!G$60) +($R20*'fnd base rates'!G$61) +($S20*'fnd base rates'!G$62) +($L20*'fnd base rates'!G$63) +($T20*VLOOKUP($W20+16,rate_basefnd,7))) *$V20 -> 475.5689978 | AD20: =(($D20*'fnd base rates'!H$48) +($E20*'fnd base rates'!H$49) +($F20*'fnd base rates'!H$50) +($G20*'fnd base rates'!H$51) +($H20*'fnd base rates'!H$52) +($I20*'fnd base rates'!H$53) +($J20*'fnd base rates'!H$54) +($K20*'fnd base rates'!H$55) +($M20*'fnd base rates'!H$56) +($N20*'fnd base rates'!H$57) +($O20*'fnd base rates'!H$58) +($P20*'fnd base rates'!H$59) +($Q20*'fnd base rates'!H$60) +($R20*'fnd base rates'!H$61) +($S20*'fnd base rates'!H$62) +($L20*'fnd base rates'!H$63) +($T20*VLOOKUP($W20+16,rate_basefnd,8))) -> 1942.512 | AE20: =(($D20*'fnd base rates'!I$48) +($E20*'fnd base rates'!I$49) +($F20*'fnd base rates'!I$50) +($G20*'fnd base rates'!I$51) +($H20*'fnd base rates'!I$52) +($I20*'fnd base rates'!I$53) +($J20*'fnd base rates'!I$54) +($K20*'fnd base rates'!I$55) +($M20*'fnd base rates'!I$56) +($N20*'fnd base rates'!I$57) +($O20*'fnd base rates'!I$58) +($P20*'fnd base rates'!I$59) +($Q20*'fnd base rates'!I$60) +($R20*'fnd base rates'!I$61) +($S20*'fnd base rates'!I$62) +($L20*'fnd base rates'!I$63) +($T20*VLOOKUP($W20+16,rate_basefnd,9))) *$V20 -> 1145.61216 | AF20: =(($D20*'fnd base rates'!J$48) +($E20*'fnd base rates'!J$49) +($F20*'fnd base rates'!J$50) +($G20*'fnd base rates'!J$51) +($H20*'fnd base rates'!J$52) +($I20*'fnd base rates'!J$53) +($J20*'fnd base rates'!J$54) +($K20*'fnd base rates'!J$55) +($M20*'fnd base rates'!J$56) +($N20*'fnd base rates'!J$57) +($O20*'fnd base rates'!J$58) +($P20*'fnd base rates'!J$59) +($Q20*'fnd base rates'!J$60) +($R20*'fnd base rates'!J$61) +($S20*'fnd base rates'!J$62) +($L20*'fnd base rates'!J$63) +($T20*VLOOKUP($W20+16,rate_basefnd,10))) *$V20 -> 1342.33638 | AG20: =(($D20*'fnd base rates'!K$48) +($E20*'fnd base rates'!K$49) +($F20*'fnd base rates'!K$50) +($G20*'fnd base rates'!K$51) +($H20*'fnd base rates'!K$52) +($I20*'fnd base rates'!K$53) +($J20*'fnd base rates'!K$54) +($K20*'fnd base rates'!K$55) +($M20*'fnd base rates'!K$56) +($N20*'fnd base rates'!K$57) +($O20*'fnd base rates'!K$58) +($P20*'fnd base rates'!K$59) +($Q20*'fnd base rates'!K$60) +($R20*'fnd base rates'!K$61) +($S20*'fnd base rates'!K$62) +($L20*'fnd base rates'!K$63) +($T20*VLOOKUP($W20+16,rate_basefnd,11))) *$V20 -> 3337.307705 | AH20: =(($D20*'fnd base rates'!L$48) +($E20*'fnd base rates'!L$49) +($F20*'fnd base rates'!L$50) +($G20*'fnd base rates'!L$51) +($H20*'fnd base rates'!L$52) +($I20*'fnd base rates'!L$53) +($J20*'fnd base rates'!L$54) +($K20*'fnd base rates'!L$55) +($M20*'fnd base rates'!L$56) +($N20*'fnd base rates'!L$57) +($O20*'fnd base rates'!L$58) +($P20*'fnd base rates'!L$59) +($Q20*'fnd base rates'!L$60) +($R20*'fnd base rates'!L$61) +($S20*'fnd base rates'!L$62) +($L20*'fnd base rates'!L$63) +($T20*VLOOKUP($W20+16,rate_basefnd,12))) -> 3143.280875 | AI20: =(($D20*'fnd base rates'!M$48) +($E20*'fnd base rates'!M$49) +($F20*'fnd base rates'!M$50) +($G20*'fnd base rates'!M$51) +($H20*'fnd base rates'!M$52) +($I20*'fnd base rates'!M$53) +($J20*'fnd base rates'!M$54) +($K20*'fnd base rates'!M$55) +($M20*'fnd base rates'!M$56) +($N20*'fnd base rates'!M$57) +($O20*'fnd base rates'!M$58) +($P20*'fnd base rates'!M$59) +($Q20*'fnd base rates'!M$60) +($R20*'fnd base rates'!M$61) +($S20*'fnd base rates'!M$62) +($L20*'fnd base rates'!M$63) +($T20*VLOOKUP($W20+16,rate_basefnd,13))) -> 0 | AJ20: 30504.15484 | AL20: 410035165 | AM20: 410 | AN20: 035 | AO20: 165 | AP20: 1 | AQ20: 3 | AR20: 30504.15484 | AS20: 10168
A21: 410 | B21: 410035176 | C21: EXCEL ACADEMY | D21: ='fnd enro'!D21 -> 0 | E21: ='fnd enro'!E21 -> 0 | F21: ='fnd enro'!F21 -> 0 | G21: ='fnd enro'!G21 -> 0 | H21: ='fnd enro'!H21 -> 0 | I21: ='fnd enro'!I21 -> 1 | J21: ='fnd enro'!J21 -> 0.0375 | K21: ='fnd enro'!K21 -> 0 | L21: ='fnd enro'!L21 -> 0 | M21: ='fnd enro'!M21 -> 0 | N21: ='fnd enro'!N21 -> 0 | O21: ='fnd enro'!O21 -> 0 | P21: ='fnd enro'!P21 -> 0 | Q21: ='fnd enro'!Q21 -> 0 | R21: ='fnd enro'!R21 -> 0 | S21: ='fnd enro'!S21 -> 0 | T21: ='fnd enro'!T21 -> 1 | U21: ='fnd enro'!W21 -> 1 | V21: 1.078 | W21: ='fnd enro'!V21 -> 10 | Y21: =(($D21*'fnd base rates'!C$48) +($E21*'fnd base rates'!C$49) +($F21*'fnd base rates'!C$50) +($G21*'fnd base rates'!C$51) +($H21*'fnd base rates'!C$52) +($I21*'fnd base rates'!C$53) +($J21*'fnd base rates'!C$54) +($K21*'fnd base rates'!C$55) +($M21*'fnd base rates'!C$56) +($N21*'fnd base rates'!C$57) +($O21*'fnd base rates'!C$58) +($P21*'fnd base rates'!C$59) +($Q21*'fnd base rates'!C$60) +($R21*'fnd base rates'!C$61) +($S21*'fnd base rates'!C$62) +($L21*'fnd base rates'!C$63) +($T21*VLOOKUP($W21+16,rate_basefnd,3))) *$V21 -> 512.6217443 | Z21: =(($D21*'fnd base rates'!D$48) +($E21*'fnd base rates'!D$49) +($F21*'fnd base rates'!D$50) +($G21*'fnd base rates'!D$51) +($H21*'fnd base rates'!D$52) +($I21*'fnd base rates'!D$53) +($J21*'fnd base rates'!D$54) +($K21*'fnd base rates'!D$55) +($M21*'fnd base rates'!D$56) +($N21*'fnd base rates'!D$57) +($O21*'fnd base rates'!D$58) +($P21*'fnd base rates'!D$59) +($Q21*'fnd base rates'!D$60) +($R21*'fnd base rates'!D$61) +($S21*'fnd base rates'!D$62) +($L21*'fnd base rates'!D$63) +($T21*VLOOKUP($W21+16,rate_basefnd,4))) *$V21 -> 735.48706 | AA21: =(($D21*'fnd base rates'!E$48) +($E21*'fnd base rates'!E$49) +($F21*'fnd base rates'!E$50) +($G21*'fnd base rates'!E$51) +($H21*'fnd base rates'!E$52) +($I21*'fnd base rates'!E$53) +($J21*'fnd base rates'!E$54) +($K21*'fnd base rates'!E$55) +($M21*'fnd base rates'!E$56) +($N21*'fnd base rates'!E$57) +($O21*'fnd base rates'!E$58) +($P21*'fnd base rates'!E$59) +($Q21*'fnd base rates'!E$60) +($R21*'fnd base rates'!E$61) +($S21*'fnd base rates'!E$62) +($L21*'fnd base rates'!E$63) +($T21*VLOOKUP($W21+16,rate_basefnd,5))) *$V21 -> 8058.267729 | AB21: =(($D21*'fnd base rates'!F$48) +($E21*'fnd base rates'!F$49) +($F21*'fnd base rates'!F$50) +($G21*'fnd base rates'!F$51) +($H21*'fnd base rates'!F$52) +($I21*'fnd base rates'!F$53) +($J21*'fnd base rates'!F$54) +($K21*'fnd base rates'!F$55) +($M21*'fnd base rates'!F$56) +($N21*'fnd base rates'!F$57) +($O21*'fnd base rates'!F$58) +($P21*'fnd base rates'!F$59) +($Q21*'fnd base rates'!F$60) +($R21*'fnd base rates'!F$61) +($S21*'fnd base rates'!F$62) +($L21*'fnd base rates'!F$63) +($T21*VLOOKUP($W21+16,rate_basefnd,6))) *$V21 -> 843.0753678 | AC21: =(($D21*'fnd base rates'!G$48) +($E21*'fnd base rates'!G$49) +($F21*'fnd base rates'!G$50) +($G21*'fnd base rates'!G$51) +($H21*'fnd base rates'!G$52) +($I21*'fnd base rates'!G$53) +($J21*'fnd base rates'!G$54) +($K21*'fnd base rates'!G$55) +($M21*'fnd base rates'!G$56) +($N21*'fnd base rates'!G$57) +($O21*'fnd base rates'!G$58) +($P21*'fnd base rates'!G$59) +($Q21*'fnd base rates'!G$60) +($R21*'fnd base rates'!G$61) +($S21*'fnd base rates'!G$62) +($L21*'fnd base rates'!G$63) +($T21*VLOOKUP($W21+16,rate_basefnd,7))) *$V21 -> 242.8564484 | AD21: =(($D21*'fnd base rates'!H$48) +($E21*'fnd base rates'!H$49) +($F21*'fnd base rates'!H$50) +($G21*'fnd base rates'!H$51) +($H21*'fnd base rates'!H$52) +($I21*'fnd base rates'!H$53) +($J21*'fnd base rates'!H$54) +($K21*'fnd base rates'!H$55) +($M21*'fnd base rates'!H$56) +($N21*'fnd base rates'!H$57) +($O21*'fnd base rates'!H$58) +($P21*'fnd base rates'!H$59) +($Q21*'fnd base rates'!H$60) +($R21*'fnd base rates'!H$61) +($S21*'fnd base rates'!H$62) +($L21*'fnd base rates'!H$63) +($T21*VLOOKUP($W21+16,rate_basefnd,8))) -> 738.064 | AE21: =(($D21*'fnd base rates'!I$48) +($E21*'fnd base rates'!I$49) +($F21*'fnd base rates'!I$50) +($G21*'fnd base rates'!I$51) +($H21*'fnd base rates'!I$52) +($I21*'fnd base rates'!I$53) +($J21*'fnd base rates'!I$54) +($K21*'fnd base rates'!I$55) +($M21*'fnd base rates'!I$56) +($N21*'fnd base rates'!I$57) +($O21*'fnd base rates'!I$58) +($P21*'fnd base rates'!I$59) +($Q21*'fnd base rates'!I$60) +($R21*'fnd base rates'!I$61) +($S21*'fnd base rates'!I$62) +($L21*'fnd base rates'!I$63) +($T21*VLOOKUP($W21+16,rate_basefnd,9))) *$V21 -> 409.4783 | AF21: =(($D21*'fnd base rates'!J$48) +($E21*'fnd base rates'!J$49) +($F21*'fnd base rates'!J$50) +($G21*'fnd base rates'!J$51) +($H21*'fnd base rates'!J$52) +($I21*'fnd base rates'!J$53) +($J21*'fnd base rates'!J$54) +($K21*'fnd base rates'!J$55) +($M21*'fnd base rates'!J$56) +($N21*'fnd base rates'!J$57) +($O21*'fnd base rates'!J$58) +($P21*'fnd base rates'!J$59) +($Q21*'fnd base rates'!J$60) +($R21*'fnd base rates'!J$61) +($S21*'fnd base rates'!J$62) +($L21*'fnd base rates'!J$63) +($T21*VLOOKUP($W21+16,rate_basefnd,10))) *$V21 -> 551.56948 | AG21: =(($D21*'fnd base rates'!K$48) +($E21*'fnd base rates'!K$49) +($F21*'fnd base rates'!K$50) +($G21*'fnd base rates'!K$51) +($H21*'fnd base rates'!K$52) +($I21*'fnd base rates'!K$53) +($J21*'fnd base rates'!K$54) +($K21*'fnd base rates'!K$55) +($M21*'fnd base rates'!K$56) +($N21*'fnd base rates'!K$57) +($O21*'fnd base rates'!K$58) +($P21*'fnd base rates'!K$59) +($Q21*'fnd base rates'!K$60) +($R21*'fnd base rates'!K$61) +($S21*'fnd base rates'!K$62) +($L21*'fnd base rates'!K$63) +($T21*VLOOKUP($W21+16,rate_basefnd,11))) *$V21 -> 1616.948957 | AH21: =(($D21*'fnd base rates'!L$48) +($E21*'fnd base rates'!L$49) +($F21*'fnd base rates'!L$50) +($G21*'fnd base rates'!L$51) +($H21*'fnd base rates'!L$52) +($I21*'fnd base rates'!L$53) +($J21*'fnd base rates'!L$54) +($K21*'fnd base rates'!L$55) +($M21*'fnd base rates'!L$56) +($N21*'fnd base rates'!L$57) +($O21*'fnd base rates'!L$58) +($P21*'fnd base rates'!L$59) +($Q21*'fnd base rates'!L$60) +($R21*'fnd base rates'!L$61) +($S21*'fnd base rates'!L$62) +($L21*'fnd base rates'!L$63) +($T21*VLOOKUP($W21+16,rate_basefnd,12))) -> 1336.969225 | AI21: =(($D21*'fnd base rates'!M$48) +($E21*'fnd base rates'!M$49) +($F21*'fnd base rates'!M$50) +($G21*'fnd base rates'!M$51) +($H21*'fnd base rates'!M$52) +($I21*'fnd base rates'!M$53) +($J21*'fnd base rates'!M$54) +($K21*'fnd base rates'!M$55) +($M21*'fnd base rates'!M$56) +($N21*'fnd base rates'!M$57) +($O21*'fnd base rates'!M$58) +($P21*'fnd base rates'!M$59) +($Q21*'fnd base rates'!M$60) +($R21*'fnd base rates'!M$61) +($S21*'fnd base rates'!M$62) +($L21*'fnd base rates'!M$63) +($T21*VLOOKUP($W21+16,rate_basefnd,13))) -> 0 | AJ21: 15045.33831 | AL21: 410035176 | AM21: 410 | AN21: 035 | AO21: 176 | AP21: 1 | AQ21: 1 | AR21: 15045.33831 | AS21: 15045
A22: 410 | B22: 410035248 | C22: EXCEL ACADEMY | D22: ='fnd enro'!D22 -> 0 | E22: ='fnd enro'!E22 -> 0 | F22: ='fnd enro'!F22 -> 0 | G22: ='fnd enro'!G22 -> 0 | H22: ='fnd enro'!H22 -> 7 | I22: ='fnd enro'!I22 -> 13 | J22: ='fnd enro'!J22 -> 0.75 | K22: ='fnd enro'!K22 -> 0 | L22: ='fnd enro'!L22 -> 0 | M22: ='fnd enro'!M22 -> 0 | N22: ='fnd enro'!N22 -> 0 | O22: ='fnd enro'!O22 -> 0 | P22: ='fnd enro'!P22 -> 0 | Q22: ='fnd enro'!Q22 -> 2 | R22: ='fnd enro'!R22 -> 0 | S22: ='fnd enro'!S22 -> 0 | T22: ='fnd enro'!T22 -> 5 | U22: ='fnd enro'!W22 -> 20 | V22: 1.078 | W22: ='fnd enro'!V22 -> 5 | Y22: =(($D22*'fnd base rates'!C$48) +($E22*'fnd base rates'!C$49) +($F22*'fnd base rates'!C$50) +($G22*'fnd base rates'!C$51) +($H22*'fnd base rates'!C$52) +($I22*'fnd base rates'!C$53) +($J22*'fnd base rates'!C$54) +($K22*'fnd base rates'!C$55) +($M22*'fnd base rates'!C$56) +($N22*'fnd base rates'!C$57) +($O22*'fnd base rates'!C$58) +($P22*'fnd base rates'!C$59) +($Q22*'fnd base rates'!C$60) +($R22*'fnd base rates'!C$61) +($S22*'fnd base rates'!C$62) +($L22*'fnd base rates'!C$63) +($T22*VLOOKUP($W22+16,rate_basefnd,3))) *$V22 -> 10453.46033 | Z22: =(($D22*'fnd base rates'!D$48) +($E22*'fnd base rates'!D$49) +($F22*'fnd base rates'!D$50) +($G22*'fnd base rates'!D$51) +($H22*'fnd base rates'!D$52) +($I22*'fnd base rates'!D$53) +($J22*'fnd base rates'!D$54) +($K22*'fnd base rates'!D$55) +($M22*'fnd base rates'!D$56) +($N22*'fnd base rates'!D$57) +($O22*'fnd base rates'!D$58) +($P22*'fnd base rates'!D$59) +($Q22*'fnd base rates'!D$60) +($R22*'fnd base rates'!D$61) +($S22*'fnd base rates'!D$62) +($L22*'fnd base rates'!D$63) +($T22*VLOOKUP($W22+16,rate_basefnd,4))) *$V22 -> 15061.53572 | AA22: =(($D22*'fnd base rates'!E$48) +($E22*'fnd base rates'!E$49) +($F22*'fnd base rates'!E$50) +($G22*'fnd base rates'!E$51) +($H22*'fnd base rates'!E$52) +($I22*'fnd base rates'!E$53) +($J22*'fnd base rates'!E$54) +($K22*'fnd base rates'!E$55) +($M22*'fnd base rates'!E$56) +($N22*'fnd base rates'!E$57) +($O22*'fnd base rates'!E$58) +($P22*'fnd base rates'!E$59) +($Q22*'fnd base rates'!E$60) +($R22*'fnd base rates'!E$61) +($S22*'fnd base rates'!E$62) +($L22*'fnd base rates'!E$63) +($T22*VLOOKUP($W22+16,rate_basefnd,5))) *$V22 -> 102818.4979 | AB22: =(($D22*'fnd base rates'!F$48) +($E22*'fnd base rates'!F$49) +($F22*'fnd base rates'!F$50) +($G22*'fnd base rates'!F$51) +($H22*'fnd base rates'!F$52) +($I22*'fnd base rates'!F$53) +($J22*'fnd base rates'!F$54) +($K22*'fnd base rates'!F$55) +($M22*'fnd base rates'!F$56) +($N22*'fnd base rates'!F$57) +($O22*'fnd base rates'!F$58) +($P22*'fnd base rates'!F$59) +($Q22*'fnd base rates'!F$60) +($R22*'fnd base rates'!F$61) +($S22*'fnd base rates'!F$62) +($L22*'fnd base rates'!F$63) +($T22*VLOOKUP($W22+16,rate_basefnd,6))) *$V22 -> 17943.30192 | AC22: =(($D22*'fnd base rates'!G$48) +($E22*'fnd base rates'!G$49) +($F22*'fnd base rates'!G$50) +($G22*'fnd base rates'!G$51) +($H22*'fnd base rates'!G$52) +($I22*'fnd base rates'!G$53) +($J22*'fnd base rates'!G$54) +($K22*'fnd base rates'!G$55) +($M22*'fnd base rates'!G$56) +($N22*'fnd base rates'!G$57) +($O22*'fnd base rates'!G$58) +($P22*'fnd base rates'!G$59) +($Q22*'fnd base rates'!G$60) +($R22*'fnd base rates'!G$61) +($S22*'fnd base rates'!G$62) +($L22*'fnd base rates'!G$63) +($T22*VLOOKUP($W22+16,rate_basefnd,7))) *$V22 -> 3679.876431 | AD22: =(($D22*'fnd base rates'!H$48) +($E22*'fnd base rates'!H$49) +($F22*'fnd base rates'!H$50) +($G22*'fnd base rates'!H$51) +($H22*'fnd base rates'!H$52) +($I22*'fnd base rates'!H$53) +($J22*'fnd base rates'!H$54) +($K22*'fnd base rates'!H$55) +($M22*'fnd base rates'!H$56) +($N22*'fnd base rates'!H$57) +($O22*'fnd base rates'!H$58) +($P22*'fnd base rates'!H$59) +($Q22*'fnd base rates'!H$60) +($R22*'fnd base rates'!H$61) +($S22*'fnd base rates'!H$62) +($L22*'fnd base rates'!H$63) +($T22*VLOOKUP($W22+16,rate_basefnd,8))) -> 13092.62 | AE22: =(($D22*'fnd base rates'!I$48) +($E22*'fnd base rates'!I$49) +($F22*'fnd base rates'!I$50) +($G22*'fnd base rates'!I$51) +($H22*'fnd base rates'!I$52) +($I22*'fnd base rates'!I$53) +($J22*'fnd base rates'!I$54) +($K22*'fnd base rates'!I$55) +($M22*'fnd base rates'!I$56) +($N22*'fnd base rates'!I$57) +($O22*'fnd base rates'!I$58) +($P22*'fnd base rates'!I$59) +($Q22*'fnd base rates'!I$60) +($R22*'fnd base rates'!I$61) +($S22*'fnd base rates'!I$62) +($L22*'fnd base rates'!I$63) +($T22*VLOOKUP($W22+16,rate_basefnd,9))) *$V22 -> 7760.5759 | AF22: =(($D22*'fnd base rates'!J$48) +($E22*'fnd base rates'!J$49) +($F22*'fnd base rates'!J$50) +($G22*'fnd base rates'!J$51) +($H22*'fnd base rates'!J$52) +($I22*'fnd base rates'!J$53) +($J22*'fnd base rates'!J$54) +($K22*'fnd base rates'!J$55) +($M22*'fnd base rates'!J$56) +($N22*'fnd base rates'!J$57) +($O22*'fnd base rates'!J$58) +($P22*'fnd base rates'!J$59) +($Q22*'fnd base rates'!J$60) +($R22*'fnd base rates'!J$61) +($S22*'fnd base rates'!J$62) +($L22*'fnd base rates'!J$63) +($T22*VLOOKUP($W22+16,rate_basefnd,10))) *$V22 -> 8895.04154 | AG22: =(($D22*'fnd base rates'!K$48) +($E22*'fnd base rates'!K$49) +($F22*'fnd base rates'!K$50) +($G22*'fnd base rates'!K$51) +($H22*'fnd base rates'!K$52) +($I22*'fnd base rates'!K$53) +($J22*'fnd base rates'!K$54) +($K22*'fnd base rates'!K$55) +($M22*'fnd base rates'!K$56) +($N22*'fnd base rates'!K$57) +($O22*'fnd base rates'!K$58) +($P22*'fnd base rates'!K$59) +($Q22*'fnd base rates'!K$60) +($R22*'fnd base rates'!K$61) +($S22*'fnd base rates'!K$62) +($L22*'fnd base rates'!K$63) +($T22*VLOOKUP($W22+16,rate_basefnd,11))) *$V22 -> 25306.72591 | AH22: =(($D22*'fnd base rates'!L$48) +($E22*'fnd base rates'!L$49) +($F22*'fnd base rates'!L$50) +($G22*'fnd base rates'!L$51) +($H22*'fnd base rates'!L$52) +($I22*'fnd base rates'!L$53) +($J22*'fnd base rates'!L$54) +($K22*'fnd base rates'!L$55) +($M22*'fnd base rates'!L$56) +($N22*'fnd base rates'!L$57) +($O22*'fnd base rates'!L$58) +($P22*'fnd base rates'!L$59) +($Q22*'fnd base rates'!L$60) +($R22*'fnd base rates'!L$61) +($S22*'fnd base rates'!L$62) +($L22*'fnd base rates'!L$63) +($T22*VLOOKUP($W22+16,rate_basefnd,12))) -> 23009.0305 | AI22: =(($D22*'fnd base rates'!M$48) +($E22*'fnd base rates'!M$49) +($F22*'fnd base rates'!M$50) +($G22*'fnd base rates'!M$51) +($H22*'fnd base rates'!M$52) +($I22*'fnd base rates'!M$53) +($J22*'fnd base rates'!M$54) +($K22*'fnd base rates'!M$55) +($M22*'fnd base rates'!M$56) +($N22*'fnd base rates'!M$57) +($O22*'fnd base rates'!M$58) +($P22*'fnd base rates'!M$59) +($Q22*'fnd base rates'!M$60) +($R22*'fnd base rates'!M$61) +($S22*'fnd base rates'!M$62) +($L22*'fnd base rates'!M$63) +($T22*VLOOKUP($W22+16,rate_basefnd,13))) -> 0 | AJ22: 228020.6661 | AL22: 410035248 | AM22: 410 | AN22: 035 | AO22: 248 | AP22: 1 | AQ22: 20 | AR22: 228020.6661 | AS22: 11401
A23: 410 | B23: 410035262 | C23: EXCEL ACADEMY | D23: ='fnd enro'!D23 -> 0 | E23: ='fnd enro'!E23 -> 0 | F23: ='fnd enro'!F23 -> 0 | G23: ='fnd enro'!G23 -> 0 | H23: ='fnd enro'!H23 -> 1 | I23: ='fnd enro'!I23 -> 2 | J23: ='fnd enro'!J23 -> 0.1125 | K23: ='fnd enro'!K23 -> 0 | L23: ='fnd enro'!L23 -> 0 | M23: ='fnd enro'!M23 -> 0 | N23: ='fnd enro'!N23 -> 0 | O23: ='fnd enro'!O23 -> 0 | P23: ='fnd enro'!P23 -> 0 | Q23: ='fnd enro'!Q23 -> 0 | R23: ='fnd enro'!R23 -> 0 | S23: ='fnd enro'!S23 -> 0 | T23: ='fnd enro'!T23 -> 1 | U23: ='fnd enro'!W23 -> 3 | V23: 1.078 | W23: ='fnd enro'!V23 -> 7 | Y23: =(($D23*'fnd base rates'!C$48) +($E23*'fnd base rates'!C$49) +($F23*'fnd base rates'!C$50) +($G23*'fnd base rates'!C$51) +($H23*'fnd base rates'!C$52) +($I23*'fnd base rates'!C$53) +($J23*'fnd base rates'!C$54) +($K23*'fnd base rates'!C$55) +($M23*'fnd base rates'!C$56) +($N23*'fnd base rates'!C$57) +($O23*'fnd base rates'!C$58) +($P23*'fnd base rates'!C$59) +($Q23*'fnd base rates'!C$60) +($R23*'fnd base rates'!C$61) +($S23*'fnd base rates'!C$62) +($L23*'fnd base rates'!C$63) +($T23*VLOOKUP($W23+16,rate_basefnd,3))) *$V23 -> 1537.865233 | Z23: =(($D23*'fnd base rates'!D$48) +($E23*'fnd base rates'!D$49) +($F23*'fnd base rates'!D$50) +($G23*'fnd base rates'!D$51) +($H23*'fnd base rates'!D$52) +($I23*'fnd base rates'!D$53) +($J23*'fnd base rates'!D$54) +($K23*'fnd base rates'!D$55) +($M23*'fnd base rates'!D$56) +($N23*'fnd base rates'!D$57) +($O23*'fnd base rates'!D$58) +($P23*'fnd base rates'!D$59) +($Q23*'fnd base rates'!D$60) +($R23*'fnd base rates'!D$61) +($S23*'fnd base rates'!D$62) +($L23*'fnd base rates'!D$63) +($T23*VLOOKUP($W23+16,rate_basefnd,4))) *$V23 -> 2206.46118 | AA23: =(($D23*'fnd base rates'!E$48) +($E23*'fnd base rates'!E$49) +($F23*'fnd base rates'!E$50) +($G23*'fnd base rates'!E$51) +($H23*'fnd base rates'!E$52) +($I23*'fnd base rates'!E$53) +($J23*'fnd base rates'!E$54) +($K23*'fnd base rates'!E$55) +($M23*'fnd base rates'!E$56) +($N23*'fnd base rates'!E$57) +($O23*'fnd base rates'!E$58) +($P23*'fnd base rates'!E$59) +($Q23*'fnd base rates'!E$60) +($R23*'fnd base rates'!E$61) +($S23*'fnd base rates'!E$62) +($L23*'fnd base rates'!E$63) +($T23*VLOOKUP($W23+16,rate_basefnd,5))) *$V23 -> 15984.97933 | AB23: =(($D23*'fnd base rates'!F$48) +($E23*'fnd base rates'!F$49) +($F23*'fnd base rates'!F$50) +($G23*'fnd base rates'!F$51) +($H23*'fnd base rates'!F$52) +($I23*'fnd base rates'!F$53) +($J23*'fnd base rates'!F$54) +($K23*'fnd base rates'!F$55) +($M23*'fnd base rates'!F$56) +($N23*'fnd base rates'!F$57) +($O23*'fnd base rates'!F$58) +($P23*'fnd base rates'!F$59) +($Q23*'fnd base rates'!F$60) +($R23*'fnd base rates'!F$61) +($S23*'fnd base rates'!F$62) +($L23*'fnd base rates'!F$63) +($T23*VLOOKUP($W23+16,rate_basefnd,6))) *$V23 -> 2633.511823 | AC23: =(($D23*'fnd base rates'!G$48) +($E23*'fnd base rates'!G$49) +($F23*'fnd base rates'!G$50) +($G23*'fnd base rates'!G$51) +($H23*'fnd base rates'!G$52) +($I23*'fnd base rates'!G$53) +($J23*'fnd base rates'!G$54) +($K23*'fnd base rates'!G$55) +($M23*'fnd base rates'!G$56) +($N23*'fnd base rates'!G$57) +($O23*'fnd base rates'!G$58) +($P23*'fnd base rates'!G$59) +($Q23*'fnd base rates'!G$60) +($R23*'fnd base rates'!G$61) +($S23*'fnd base rates'!G$62) +($L23*'fnd base rates'!G$63) +($T23*VLOOKUP($W23+16,rate_basefnd,7))) *$V23 -> 558.7813269 | AD23: =(($D23*'fnd base rates'!H$48) +($E23*'fnd base rates'!H$49) +($F23*'fnd base rates'!H$50) +($G23*'fnd base rates'!H$51) +($H23*'fnd base rates'!H$52) +($I23*'fnd base rates'!H$53) +($J23*'fnd base rates'!H$54) +($K23*'fnd base rates'!H$55) +($M23*'fnd base rates'!H$56) +($N23*'fnd base rates'!H$57) +($O23*'fnd base rates'!H$58) +($P23*'fnd base rates'!H$59) +($Q23*'fnd base rates'!H$60) +($R23*'fnd base rates'!H$61) +($S23*'fnd base rates'!H$62) +($L23*'fnd base rates'!H$63) +($T23*VLOOKUP($W23+16,rate_basefnd,8))) -> 1942.512 | AE23: =(($D23*'fnd base rates'!I$48) +($E23*'fnd base rates'!I$49) +($F23*'fnd base rates'!I$50) +($G23*'fnd base rates'!I$51) +($H23*'fnd base rates'!I$52) +($I23*'fnd base rates'!I$53) +($J23*'fnd base rates'!I$54) +($K23*'fnd base rates'!I$55) +($M23*'fnd base rates'!I$56) +($N23*'fnd base rates'!I$57) +($O23*'fnd base rates'!I$58) +($P23*'fnd base rates'!I$59) +($Q23*'fnd base rates'!I$60) +($R23*'fnd base rates'!I$61) +($S23*'fnd base rates'!I$62) +($L23*'fnd base rates'!I$63) +($T23*VLOOKUP($W23+16,rate_basefnd,9))) *$V23 -> 1145.61216 | AF23: =(($D23*'fnd base rates'!J$48) +($E23*'fnd base rates'!J$49) +($F23*'fnd base rates'!J$50) +($G23*'fnd base rates'!J$51) +($H23*'fnd base rates'!J$52) +($I23*'fnd base rates'!J$53) +($J23*'fnd base rates'!J$54) +($K23*'fnd base rates'!J$55) +($M23*'fnd base rates'!J$56) +($N23*'fnd base rates'!J$57) +($O23*'fnd base rates'!J$58) +($P23*'fnd base rates'!J$59) +($Q23*'fnd base rates'!J$60) +($R23*'fnd base rates'!J$61) +($S23*'fnd base rates'!J$62) +($L23*'fnd base rates'!J$63) +($T23*VLOOKUP($W23+16,rate_basefnd,10))) *$V23 -> 1342.33638 | AG23: =(($D23*'fnd base rates'!K$48) +($E23*'fnd base rates'!K$49) +($F23*'fnd base rates'!K$50) +($G23*'fnd base rates'!K$51) +($H23*'fnd base rates'!K$52) +($I23*'fnd base rates'!K$53) +($J23*'fnd base rates'!K$54) +($K23*'fnd base rates'!K$55) +($M23*'fnd base rates'!K$56) +($N23*'fnd base rates'!K$57) +($O23*'fnd base rates'!K$58) +($P23*'fnd base rates'!K$59) +($Q23*'fnd base rates'!K$60) +($R23*'fnd base rates'!K$61) +($S23*'fnd base rates'!K$62) +($L23*'fnd base rates'!K$63) +($T23*VLOOKUP($W23+16,rate_basefnd,11))) *$V23 -> 3836.58168 | AH23: =(($D23*'fnd base rates'!L$48) +($E23*'fnd base rates'!L$49) +($F23*'fnd base rates'!L$50) +($G23*'fnd base rates'!L$51) +($H23*'fnd base rates'!L$52) +($I23*'fnd base rates'!L$53) +($J23*'fnd base rates'!L$54) +($K23*'fnd base rates'!L$55) +($M23*'fnd base rates'!L$56) +($N23*'fnd base rates'!L$57) +($O23*'fnd base rates'!L$58) +($P23*'fnd base rates'!L$59) +($Q23*'fnd base rates'!L$60) +($R23*'fnd base rates'!L$61) +($S23*'fnd base rates'!L$62) +($L23*'fnd base rates'!L$63) +($T23*VLOOKUP($W23+16,rate_basefnd,12))) -> 3452.046475 | AI23: =(($D23*'fnd base rates'!M$48) +($E23*'fnd base rates'!M$49) +($F23*'fnd base rates'!M$50) +($G23*'fnd base rates'!M$51) +($H23*'fnd base rates'!M$52) +($I23*'fnd base rates'!M$53) +($J23*'fnd base rates'!M$54) +($K23*'fnd base rates'!M$55) +($M23*'fnd base rates'!M$56) +($N23*'fnd base rates'!M$57) +($O23*'fnd base rates'!M$58) +($P23*'fnd base rates'!M$59) +($Q23*'fnd base rates'!M$60) +($R23*'fnd base rates'!M$61) +($S23*'fnd base rates'!M$62) +($L23*'fnd base rates'!M$63) +($T23*VLOOKUP($W23+16,rate_basefnd,13))) -> 0 | AJ23: 34640.68759 | AL23: 410035262 | AM23: 410 | AN23: 035 | AO23: 262 | AP23: 1 | AQ23: 3 | AR23: 34640.68759 | AS23: 11547
A24: 410 | B24: 410035308 | C24: EXCEL ACADEMY | D24: ='fnd enro'!D24 -> 0 | E24: ='fnd enro'!E24 -> 0 | F24: ='fnd enro'!F24 -> 0 | G24: ='fnd enro'!G24 -> 0 | H24: ='fnd enro'!H24 -> 0 | I24: ='fnd enro'!I24 -> 1 | J24: ='fnd enro'!J24 -> 0.0375 | K24: ='fnd enro'!K24 -> 0 | L24: ='fnd enro'!L24 -> 0 | M24: ='fnd enro'!M24 -> 0 | N24: ='fnd enro'!N24 -> 0 | O24: ='fnd enro'!O24 -> 0 | P24: ='fnd enro'!P24 -> 0 | Q24: ='fnd enro'!Q24 -> 0 | R24: ='fnd enro'!R24 -> 0 | S24: ='fnd enro'!S24 -> 0 | T24: ='fnd enro'!T24 -> 1 | U24: ='fnd enro'!W24 -> 1 | V24: 1.078 | W24: ='fnd enro'!V24 -> 10 | Y24: =(($D24*'fnd base rates'!C$48) +($E24*'fnd base rates'!C$49) +($F24*'fnd base rates'!C$50) +($G24*'fnd base rates'!C$51) +($H24*'fnd base rates'!C$52) +($I24*'fnd base rates'!C$53) +($J24*'fnd base rates'!C$54) +($K24*'fnd base rates'!C$55) +($M24*'fnd base rates'!C$56) +($N24*'fnd base rates'!C$57) +($O24*'fnd base rates'!C$58) +($P24*'fnd base rates'!C$59) +($Q24*'fnd base rates'!C$60) +($R24*'fnd base rates'!C$61) +($S24*'fnd base rates'!C$62) +($L24*'fnd base rates'!C$63) +($T24*VLOOKUP($W24+16,rate_basefnd,3))) *$V24 -> 512.6217443 | Z24: =(($D24*'fnd base rates'!D$48) +($E24*'fnd base rates'!D$49) +($F24*'fnd base rates'!D$50) +($G24*'fnd base rates'!D$51) +($H24*'fnd base rates'!D$52) +($I24*'fnd base rates'!D$53) +($J24*'fnd base rates'!D$54) +($K24*'fnd base rates'!D$55) +($M24*'fnd base rates'!D$56) +($N24*'fnd base rates'!D$57) +($O24*'fnd base rates'!D$58) +($P24*'fnd base rates'!D$59) +($Q24*'fnd base rates'!D$60) +($R24*'fnd base rates'!D$61) +($S24*'fnd base rates'!D$62) +($L24*'fnd base rates'!D$63) +($T24*VLOOKUP($W24+16,rate_basefnd,4))) *$V24 -> 735.48706 | AA24: =(($D24*'fnd base rates'!E$48) +($E24*'fnd base rates'!E$49) +($F24*'fnd base rates'!E$50) +($G24*'fnd base rates'!E$51) +($H24*'fnd base rates'!E$52) +($I24*'fnd base rates'!E$53) +($J24*'fnd base rates'!E$54) +($K24*'fnd base rates'!E$55) +($M24*'fnd base rates'!E$56) +($N24*'fnd base rates'!E$57) +($O24*'fnd base rates'!E$58) +($P24*'fnd base rates'!E$59) +($Q24*'fnd base rates'!E$60) +($R24*'fnd base rates'!E$61) +($S24*'fnd base rates'!E$62) +($L24*'fnd base rates'!E$63) +($T24*VLOOKUP($W24+16,rate_basefnd,5))) *$V24 -> 8058.267729 | AB24: =(($D24*'fnd base rates'!F$48) +($E24*'fnd base rates'!F$49) +($F24*'fnd base rates'!F$50) +($G24*'fnd base rates'!F$51) +($H24*'fnd base rates'!F$52) +($I24*'fnd base rates'!F$53) +($J24*'fnd base rates'!F$54) +($K24*'fnd base rates'!F$55) +($M24*'fnd base rates'!F$56) +($N24*'fnd base rates'!F$57) +($O24*'fnd base rates'!F$58) +($P24*'fnd base rates'!F$59) +($Q24*'fnd base rates'!F$60) +($R24*'fnd base rates'!F$61) +($S24*'fnd base rates'!F$62) +($L24*'fnd base rates'!F$63) +($T24*VLOOKUP($W24+16,rate_basefnd,6))) *$V24 -> 843.0753678 | AC24: =(($D24*'fnd base rates'!G$48) +($E24*'fnd base rates'!G$49) +($F24*'fnd base rates'!G$50) +($G24*'fnd base rates'!G$51) +($H24*'fnd base rates'!G$52) +($I24*'fnd base rates'!G$53) +($J24*'fnd base rates'!G$54) +($K24*'fnd base rates'!G$55) +($M24*'fnd base rates'!G$56) +($N24*'fnd base rates'!G$57) +($O24*'fnd base rates'!G$58) +($P24*'fnd base rates'!G$59) +($Q24*'fnd base rates'!G$60) +($R24*'fnd base rates'!G$61) +($S24*'fnd base rates'!G$62) +($L24*'fnd base rates'!G$63) +($T24*VLOOKUP($W24+16,rate_basefnd,7))) *$V24 -> 242.8564484 | AD24: =(($D24*'fnd base rates'!H$48) +($E24*'fnd base rates'!H$49) +($F24*'fnd base rates'!H$50) +($G24*'fnd base rates'!H$51) +($H24*'fnd base rates'!H$52) +($I24*'fnd base rates'!H$53) +($J24*'fnd base rates'!H$54) +($K24*'fnd base rates'!H$55) +($M24*'fnd base rates'!H$56) +($N24*'fnd base rates'!H$57) +($O24*'fnd base rates'!H$58) +($P24*'fnd base rates'!H$59) +($Q24*'fnd base rates'!H$60) +($R24*'fnd base rates'!H$61) +($S24*'fnd base rates'!H$62) +($L24*'fnd base rates'!H$63) +($T24*VLOOKUP($W24+16,rate_basefnd,8))) -> 738.064 | AE24: =(($D24*'fnd base rates'!I$48) +($E24*'fnd base rates'!I$49) +($F24*'fnd base rates'!I$50) +($G24*'fnd base rates'!I$51) +($H24*'fnd base rates'!I$52) +($I24*'fnd base rates'!I$53) +($J24*'fnd base rates'!I$54) +($K24*'fnd base rates'!I$55) +($M24*'fnd base rates'!I$56) +($N24*'fnd base rates'!I$57) +($O24*'fnd base rates'!I$58) +($P24*'fnd base rates'!I$59) +($Q24*'fnd base rates'!I$60) +($R24*'fnd base rates'!I$61) +($S24*'fnd base rates'!I$62) +($L24*'fnd base rates'!I$63) +($T24*VLOOKUP($W24+16,rate_basefnd,9))) *$V24 -> 409.4783 | AF24: =(($D24*'fnd base rates'!J$48) +($E24*'fnd base rates'!J$49) +($F24*'fnd base rates'!J$50) +($G24*'fnd base rates'!J$51) +($H24*'fnd base rates'!J$52) +($I24*'fnd base rates'!J$53) +($J24*'fnd base rates'!J$54) +($K24*'fnd base rates'!J$55) +($M24*'fnd base rates'!J$56) +($N24*'fnd base rates'!J$57) +($O24*'fnd base rates'!J$58) +($P24*'fnd base rates'!J$59) +($Q24*'fnd base rates'!J$60) +($R24*'fnd base rates'!J$61) +($S24*'fnd base rates'!J$62) +($L24*'fnd base rates'!J$63) +($T24*VLOOKUP($W24+16,rate_basefnd,10))) *$V24 -> 551.56948 | AG24: =(($D24*'fnd base rates'!K$48) +($E24*'fnd base rates'!K$49) +($F24*'fnd base rates'!K$50) +($G24*'fnd base rates'!K$51) +($H24*'fnd base rates'!K$52) +($I24*'fnd base rates'!K$53) +($J24*'fnd base rates'!K$54) +($K24*'fnd base rates'!K$55) +($M24*'fnd base rates'!K$56) +($N24*'fnd base rates'!K$57) +($O24*'fnd base rates'!K$58) +($P24*'fnd base rates'!K$59) +($Q24*'fnd base rates'!K$60) +($R24*'fnd base rates'!K$61) +($S24*'fnd base rates'!K$62) +($L24*'fnd base rates'!K$63) +($T24*VLOOKUP($W24+16,rate_basefnd,11))) *$V24 -> 1616.948957 | AH24: =(($D24*'fnd base rates'!L$48) +($E24*'fnd base rates'!L$49) +($F24*'fnd base rates'!L$50) +($G24*'fnd base rates'!L$51) +($H24*'fnd base rates'!L$52) +($I24*'fnd base rates'!L$53) +($J24*'fnd base rates'!L$54) +($K24*'fnd base rates'!L$55) +($M24*'fnd base rates'!L$56) +($N24*'fnd base rates'!L$57) +($O24*'fnd base rates'!L$58) +($P24*'fnd base rates'!L$59) +($Q24*'fnd base rates'!L$60) +($R24*'fnd base rates'!L$61) +($S24*'fnd base rates'!L$62) +($L24*'fnd base rates'!L$63) +($T24*VLOOKUP($W24+16,rate_basefnd,12))) -> 1336.969225 | AI24: =(($D24*'fnd base rates'!M$48) +($E24*'fnd base rates'!M$49) +($F24*'fnd base rates'!M$50) +($G24*'fnd base rates'!M$51) +($H24*'fnd base rates'!M$52) +($I24*'fnd base rates'!M$53) +($J24*'fnd base rates'!M$54) +($K24*'fnd base rates'!M$55) +($M24*'fnd base rates'!M$56) +($N24*'fnd base rates'!M$57) +($O24*'fnd base rates'!M$58) +($P24*'fnd base rates'!M$59) +($Q24*'fnd base rates'!M$60) +($R24*'fnd base rates'!M$61) +($S24*'fnd base rates'!M$62) +($L24*'fnd base rates'!M$63) +($T24*VLOOKUP($W24+16,rate_basefnd,13))) -> 0 | AJ24: 15045.33831 | AL24: 410035308 | AM24: 410 | AN24: 035 | AO24: 308 | AP24: 1 | AQ24: 1 | AR24: 15045.33831 | AS24: 15045
A25: 410 | B25: 410035346 | C25: EXCEL ACADEMY | D25: ='fnd enro'!D25 -> 0 | E25: ='fnd enro'!E25 -> 0 | F25: ='fnd enro'!F25 -> 0 | G25: ='fnd enro'!G25 -> 0 | H25: ='fnd enro'!H25 -> 4 | I25: ='fnd enro'!I25 -> 5 | J25: ='fnd enro'!J25 -> 0.3375 | K25: ='fnd enro'!K25 -> 0 | L25: ='fnd enro'!L25 -> 0 | M25: ='fnd enro'!M25 -> 0 | N25: ='fnd enro'!N25 -> 0 | O25: ='fnd enro'!O25 -> 0 | P25: ='fnd enro'!P25 -> 0 | Q25: ='fnd enro'!Q25 -> 0 | R25: ='fnd enro'!R25 -> 0 | S25: ='fnd enro'!S25 -> 0 | T25: ='fnd enro'!T25 -> 4 | U25: ='fnd enro'!W25 -> 9 | V25: 1.078 | W25: ='fnd enro'!V25 -> 9 | Y25: =(($D25*'fnd base rates'!C$48) +($E25*'fnd base rates'!C$49) +($F25*'fnd base rates'!C$50) +($G25*'fnd base rates'!C$51) +($H25*'fnd base rates'!C$52) +($I25*'fnd base rates'!C$53) +($J25*'fnd base rates'!C$54) +($K25*'fnd base rates'!C$55) +($M25*'fnd base rates'!C$56) +($N25*'fnd base rates'!C$57) +($O25*'fnd base rates'!C$58) +($P25*'fnd base rates'!C$59) +($Q25*'fnd base rates'!C$60) +($R25*'fnd base rates'!C$61) +($S25*'fnd base rates'!C$62) +($L25*'fnd base rates'!C$63) +($T25*VLOOKUP($W25+16,rate_basefnd,3))) *$V25 -> 4613.595698 | Z25: =(($D25*'fnd base rates'!D$48) +($E25*'fnd base rates'!D$49) +($F25*'fnd base rates'!D$50) +($G25*'fnd base rates'!D$51) +($H25*'fnd base rates'!D$52) +($I25*'fnd base rates'!D$53) +($J25*'fnd base rates'!D$54) +($K25*'fnd base rates'!D$55) +($M25*'fnd base rates'!D$56) +($N25*'fnd base rates'!D$57) +($O25*'fnd base rates'!D$58) +($P25*'fnd base rates'!D$59) +($Q25*'fnd base rates'!D$60) +($R25*'fnd base rates'!D$61) +($S25*'fnd base rates'!D$62) +($L25*'fnd base rates'!D$63) +($T25*VLOOKUP($W25+16,rate_basefnd,4))) *$V25 -> 6619.38354 | AA25: =(($D25*'fnd base rates'!E$48) +($E25*'fnd base rates'!E$49) +($F25*'fnd base rates'!E$50) +($G25*'fnd base rates'!E$51) +($H25*'fnd base rates'!E$52) +($I25*'fnd base rates'!E$53) +($J25*'fnd base rates'!E$54) +($K25*'fnd base rates'!E$55) +($M25*'fnd base rates'!E$56) +($N25*'fnd base rates'!E$57) +($O25*'fnd base rates'!E$58) +($P25*'fnd base rates'!E$59) +($Q25*'fnd base rates'!E$60) +($R25*'fnd base rates'!E$61) +($S25*'fnd base rates'!E$62) +($L25*'fnd base rates'!E$63) +($T25*VLOOKUP($W25+16,rate_basefnd,5))) *$V25 -> 50072.72785 | AB25: =(($D25*'fnd base rates'!F$48) +($E25*'fnd base rates'!F$49) +($F25*'fnd base rates'!F$50) +($G25*'fnd base rates'!F$51) +($H25*'fnd base rates'!F$52) +($I25*'fnd base rates'!F$53) +($J25*'fnd base rates'!F$54) +($K25*'fnd base rates'!F$55) +($M25*'fnd base rates'!F$56) +($N25*'fnd base rates'!F$57) +($O25*'fnd base rates'!F$58) +($P25*'fnd base rates'!F$59) +($Q25*'fnd base rates'!F$60) +($R25*'fnd base rates'!F$61) +($S25*'fnd base rates'!F$62) +($L25*'fnd base rates'!F$63) +($T25*VLOOKUP($W25+16,rate_basefnd,6))) *$V25 -> 8004.82119 | AC25: =(($D25*'fnd base rates'!G$48) +($E25*'fnd base rates'!G$49) +($F25*'fnd base rates'!G$50) +($G25*'fnd base rates'!G$51) +($H25*'fnd base rates'!G$52) +($I25*'fnd base rates'!G$53) +($J25*'fnd base rates'!G$54) +($K25*'fnd base rates'!G$55) +($M25*'fnd base rates'!G$56) +($N25*'fnd base rates'!G$57) +($O25*'fnd base rates'!G$58) +($P25*'fnd base rates'!G$59) +($Q25*'fnd base rates'!G$60) +($R25*'fnd base rates'!G$61) +($S25*'fnd base rates'!G$62) +($L25*'fnd base rates'!G$63) +($T25*VLOOKUP($W25+16,rate_basefnd,7))) *$V25 -> 1770.85375 | AD25: =(($D25*'fnd base rates'!H$48) +($E25*'fnd base rates'!H$49) +($F25*'fnd base rates'!H$50) +($G25*'fnd base rates'!H$51) +($H25*'fnd base rates'!H$52) +($I25*'fnd base rates'!H$53) +($J25*'fnd base rates'!H$54) +($K25*'fnd base rates'!H$55) +($M25*'fnd base rates'!H$56) +($N25*'fnd base rates'!H$57) +($O25*'fnd base rates'!H$58) +($P25*'fnd base rates'!H$59) +($Q25*'fnd base rates'!H$60) +($R25*'fnd base rates'!H$61) +($S25*'fnd base rates'!H$62) +($L25*'fnd base rates'!H$63) +($T25*VLOOKUP($W25+16,rate_basefnd,8))) -> 5555.856 | AE25: =(($D25*'fnd base rates'!I$48) +($E25*'fnd base rates'!I$49) +($F25*'fnd base rates'!I$50) +($G25*'fnd base rates'!I$51) +($H25*'fnd base rates'!I$52) +($I25*'fnd base rates'!I$53) +($J25*'fnd base rates'!I$54) +($K25*'fnd base rates'!I$55) +($M25*'fnd base rates'!I$56) +($N25*'fnd base rates'!I$57) +($O25*'fnd base rates'!I$58) +($P25*'fnd base rates'!I$59) +($Q25*'fnd base rates'!I$60) +($R25*'fnd base rates'!I$61) +($S25*'fnd base rates'!I$62) +($L25*'fnd base rates'!I$63) +($T25*VLOOKUP($W25+16,rate_basefnd,9))) *$V25 -> 3354.01374 | AF25: =(($D25*'fnd base rates'!J$48) +($E25*'fnd base rates'!J$49) +($F25*'fnd base rates'!J$50) +($G25*'fnd base rates'!J$51) +($H25*'fnd base rates'!J$52) +($I25*'fnd base rates'!J$53) +($J25*'fnd base rates'!J$54) +($K25*'fnd base rates'!J$55) +($M25*'fnd base rates'!J$56) +($N25*'fnd base rates'!J$57) +($O25*'fnd base rates'!J$58) +($P25*'fnd base rates'!J$59) +($Q25*'fnd base rates'!J$60) +($R25*'fnd base rates'!J$61) +($S25*'fnd base rates'!J$62) +($L25*'fnd base rates'!J$63) +($T25*VLOOKUP($W25+16,rate_basefnd,10))) *$V25 -> 3714.63708 | AG25: =(($D25*'fnd base rates'!K$48) +($E25*'fnd base rates'!K$49) +($F25*'fnd base rates'!K$50) +($G25*'fnd base rates'!K$51) +($H25*'fnd base rates'!K$52) +($I25*'fnd base rates'!K$53) +($J25*'fnd base rates'!K$54) +($K25*'fnd base rates'!K$55) +($M25*'fnd base rates'!K$56) +($N25*'fnd base rates'!K$57) +($O25*'fnd base rates'!K$58) +($P25*'fnd base rates'!K$59) +($Q25*'fnd base rates'!K$60) +($R25*'fnd base rates'!K$61) +($S25*'fnd base rates'!K$62) +($L25*'fnd base rates'!K$63) +($T25*VLOOKUP($W25+16,rate_basefnd,11))) *$V25 -> 12081.26657 | AH25: =(($D25*'fnd base rates'!L$48) +($E25*'fnd base rates'!L$49) +($F25*'fnd base rates'!L$50) +($G25*'fnd base rates'!L$51) +($H25*'fnd base rates'!L$52) +($I25*'fnd base rates'!L$53) +($J25*'fnd base rates'!L$54) +($K25*'fnd base rates'!L$55) +($M25*'fnd base rates'!L$56) +($N25*'fnd base rates'!L$57) +($O25*'fnd base rates'!L$58) +($P25*'fnd base rates'!L$59) +($Q25*'fnd base rates'!L$60) +($R25*'fnd base rates'!L$61) +($S25*'fnd base rates'!L$62) +($L25*'fnd base rates'!L$63) +($T25*VLOOKUP($W25+16,rate_basefnd,12))) -> 10777.97502 | AI25: =(($D25*'fnd base rates'!M$48) +($E25*'fnd base rates'!M$49) +($F25*'fnd base rates'!M$50) +($G25*'fnd base rates'!M$51) +($H25*'fnd base rates'!M$52) +($I25*'fnd base rates'!M$53) +($J25*'fnd base rates'!M$54) +($K25*'fnd base rates'!M$55) +($M25*'fnd base rates'!M$56) +($N25*'fnd base rates'!M$57) +($O25*'fnd base rates'!M$58) +($P25*'fnd base rates'!M$59) +($Q25*'fnd base rates'!M$60) +($R25*'fnd base rates'!M$61) +($S25*'fnd base rates'!M$62) +($L25*'fnd base rates'!M$63) +($T25*VLOOKUP($W25+16,rate_basefnd,13))) -> 0 | AJ25: 106565.1304 | AL25: 410035346 | AM25: 410 | AN25: 035 | AO25: 346 | AP25: 1 | AQ25: 9 | AR25: 106565.1304 | AS25: 11841
A26: 410 | B26: 410057035 | C26: EXCEL ACADEMY | D26: ='fnd enro'!D26 -> 0 | E26: ='fnd enro'!E26 -> 0 | F26: ='fnd enro'!F26 -> 0 | G26: ='fnd enro'!G26 -> 0 | H26: ='fnd enro'!H26 -> 10 | I26: ='fnd enro'!I26 -> 0 | J26: ='fnd enro'!J26 -> 0.375 | K26: ='fnd enro'!K26 -> 0 | L26: ='fnd enro'!L26 -> 0 | M26: ='fnd enro'!M26 -> 0 | N26: ='fnd enro'!N26 -> 0 | O26: ='fnd enro'!O26 -> 0 | P26: ='fnd enro'!P26 -> 0 | Q26: ='fnd enro'!Q26 -> 4 | R26: ='fnd enro'!R26 -> 0 | S26: ='fnd enro'!S26 -> 0 | T26: ='fnd enro'!T26 -> 8 | U26: ='fnd enro'!W26 -> 10 | V26: 1.034 | W26: ='fnd enro'!V26 -> 10 | Y26: =(($D26*'fnd base rates'!C$48) +($E26*'fnd base rates'!C$49) +($F26*'fnd base rates'!C$50) +($G26*'fnd base rates'!C$51) +($H26*'fnd base rates'!C$52) +($I26*'fnd base rates'!C$53) +($J26*'fnd base rates'!C$54) +($K26*'fnd base rates'!C$55) +($M26*'fnd base rates'!C$56) +($N26*'fnd base rates'!C$57) +($O26*'fnd base rates'!C$58) +($P26*'fnd base rates'!C$59) +($Q26*'fnd base rates'!C$60) +($R26*'fnd base rates'!C$61) +($S26*'fnd base rates'!C$62) +($L26*'fnd base rates'!C$63) +($T26*VLOOKUP($W26+16,rate_basefnd,3))) *$V26 -> 5302.624717 | Z26: =(($D26*'fnd base rates'!D$48) +($E26*'fnd base rates'!D$49) +($F26*'fnd base rates'!D$50) +($G26*'fnd base rates'!D$51) +($H26*'fnd base rates'!D$52) +($I26*'fnd base rates'!D$53) +($J26*'fnd base rates'!D$54) +($K26*'fnd base rates'!D$55) +($M26*'fnd base rates'!D$56) +($N26*'fnd base rates'!D$57) +($O26*'fnd base rates'!D$58) +($P26*'fnd base rates'!D$59) +($Q26*'fnd base rates'!D$60) +($R26*'fnd base rates'!D$61) +($S26*'fnd base rates'!D$62) +($L26*'fnd base rates'!D$63) +($T26*VLOOKUP($W26+16,rate_basefnd,4))) *$V26 -> 7729.54292 | AA26: =(($D26*'fnd base rates'!E$48) +($E26*'fnd base rates'!E$49) +($F26*'fnd base rates'!E$50) +($G26*'fnd base rates'!E$51) +($H26*'fnd base rates'!E$52) +($I26*'fnd base rates'!E$53) +($J26*'fnd base rates'!E$54) +($K26*'fnd base rates'!E$55) +($M26*'fnd base rates'!E$56) +($N26*'fnd base rates'!E$57) +($O26*'fnd base rates'!E$58) +($P26*'fnd base rates'!E$59) +($Q26*'fnd base rates'!E$60) +($R26*'fnd base rates'!E$61) +($S26*'fnd base rates'!E$62) +($L26*'fnd base rates'!E$63) +($T26*VLOOKUP($W26+16,rate_basefnd,5))) *$V26 -> 62203.03135 | AB26: =(($D26*'fnd base rates'!F$48) +($E26*'fnd base rates'!F$49) +($F26*'fnd base rates'!F$50) +($G26*'fnd base rates'!F$51) +($H26*'fnd base rates'!F$52) +($I26*'fnd base rates'!F$53) +($J26*'fnd base rates'!F$54) +($K26*'fnd base rates'!F$55) +($M26*'fnd base rates'!F$56) +($N26*'fnd base rates'!F$57) +($O26*'fnd base rates'!F$58) +($P26*'fnd base rates'!F$59) +($Q26*'fnd base rates'!F$60) +($R26*'fnd base rates'!F$61) +($S26*'fnd base rates'!F$62) +($L26*'fnd base rates'!F$63) +($T26*VLOOKUP($W26+16,rate_basefnd,6))) *$V26 -> 9761.804003 | AC26: =(($D26*'fnd base rates'!G$48) +($E26*'fnd base rates'!G$49) +($F26*'fnd base rates'!G$50) +($G26*'fnd base rates'!G$51) +($H26*'fnd base rates'!G$52) +($I26*'fnd base rates'!G$53) +($J26*'fnd base rates'!G$54) +($K26*'fnd base rates'!G$55) +($M26*'fnd base rates'!G$56) +($N26*'fnd base rates'!G$57) +($O26*'fnd base rates'!G$58) +($P26*'fnd base rates'!G$59) +($Q26*'fnd base rates'!G$60) +($R26*'fnd base rates'!G$61) +($S26*'fnd base rates'!G$62) +($L26*'fnd base rates'!G$63) +($T26*VLOOKUP($W26+16,rate_basefnd,7))) *$V26 -> 2399.851908 | AD26: =(($D26*'fnd base rates'!H$48) +($E26*'fnd base rates'!H$49) +($F26*'fnd base rates'!H$50) +($G26*'fnd base rates'!H$51) +($H26*'fnd base rates'!H$52) +($I26*'fnd base rates'!H$53) +($J26*'fnd base rates'!H$54) +($K26*'fnd base rates'!H$55) +($M26*'fnd base rates'!H$56) +($N26*'fnd base rates'!H$57) +($O26*'fnd base rates'!H$58) +($P26*'fnd base rates'!H$59) +($Q26*'fnd base rates'!H$60) +($R26*'fnd base rates'!H$61) +($S26*'fnd base rates'!H$62) +($L26*'fnd base rates'!H$63) +($T26*VLOOKUP($W26+16,rate_basefnd,8))) -> 5130.04 | AE26: =(($D26*'fnd base rates'!I$48) +($E26*'fnd base rates'!I$49) +($F26*'fnd base rates'!I$50) +($G26*'fnd base rates'!I$51) +($H26*'fnd base rates'!I$52) +($I26*'fnd base rates'!I$53) +($J26*'fnd base rates'!I$54) +($K26*'fnd base rates'!I$55) +($M26*'fnd base rates'!I$56) +($N26*'fnd base rates'!I$57) +($O26*'fnd base rates'!I$58) +($P26*'fnd base rates'!I$59) +($Q26*'fnd base rates'!I$60) +($R26*'fnd base rates'!I$61) +($S26*'fnd base rates'!I$62) +($L26*'fnd base rates'!I$63) +($T26*VLOOKUP($W26+16,rate_basefnd,9))) *$V26 -> 3422.45728 | AF26: =(($D26*'fnd base rates'!J$48) +($E26*'fnd base rates'!J$49) +($F26*'fnd base rates'!J$50) +($G26*'fnd base rates'!J$51) +($H26*'fnd base rates'!J$52) +($I26*'fnd base rates'!J$53) +($J26*'fnd base rates'!J$54) +($K26*'fnd base rates'!J$55) +($M26*'fnd base rates'!J$56) +($N26*'fnd base rates'!J$57) +($O26*'fnd base rates'!J$58) +($P26*'fnd base rates'!J$59) +($Q26*'fnd base rates'!J$60) +($R26*'fnd base rates'!J$61) +($S26*'fnd base rates'!J$62) +($L26*'fnd base rates'!J$63) +($T26*VLOOKUP($W26+16,rate_basefnd,10))) *$V26 -> 2390.75276 | AG26: =(($D26*'fnd base rates'!K$48) +($E26*'fnd base rates'!K$49) +($F26*'fnd base rates'!K$50) +($G26*'fnd base rates'!K$51) +($H26*'fnd base rates'!K$52) +($I26*'fnd base rates'!K$53) +($J26*'fnd base rates'!K$54) +($K26*'fnd base rates'!K$55) +($M26*'fnd base rates'!K$56) +($N26*'fnd base rates'!K$57) +($O26*'fnd base rates'!K$58) +($P26*'fnd base rates'!K$59) +($Q26*'fnd base rates'!K$60) +($R26*'fnd base rates'!K$61) +($S26*'fnd base rates'!K$62) +($L26*'fnd base rates'!K$63) +($T26*VLOOKUP($W26+16,rate_basefnd,11))) *$V26 -> 15974.83439 | AH26: =(($D26*'fnd base rates'!L$48) +($E26*'fnd base rates'!L$49) +($F26*'fnd base rates'!L$50) +($G26*'fnd base rates'!L$51) +($H26*'fnd base rates'!L$52) +($I26*'fnd base rates'!L$53) +($J26*'fnd base rates'!L$54) +($K26*'fnd base rates'!L$55) +($M26*'fnd base rates'!L$56) +($N26*'fnd base rates'!L$57) +($O26*'fnd base rates'!L$58) +($P26*'fnd base rates'!L$59) +($Q26*'fnd base rates'!L$60) +($R26*'fnd base rates'!L$61) +($S26*'fnd base rates'!L$62) +($L26*'fnd base rates'!L$63) +($T26*VLOOKUP($W26+16,rate_basefnd,12))) -> 14633.34105 | AI26: =(($D26*'fnd base rates'!M$48) +($E26*'fnd base rates'!M$49) +($F26*'fnd base rates'!M$50) +($G26*'fnd base rates'!M$51) +($H26*'fnd base rates'!M$52) +($I26*'fnd base rates'!M$53) +($J26*'fnd base rates'!M$54) +($K26*'fnd base rates'!M$55) +($M26*'fnd base rates'!M$56) +($N26*'fnd base rates'!M$57) +($O26*'fnd base rates'!M$58) +($P26*'fnd base rates'!M$59) +($Q26*'fnd base rates'!M$60) +($R26*'fnd base rates'!M$61) +($S26*'fnd base rates'!M$62) +($L26*'fnd base rates'!M$63) +($T26*VLOOKUP($W26+16,rate_basefnd,13))) -> 0 | AJ26: 128948.2804 | AL26: 410057035 | AM26: 410 | AN26: 057 | AO26: 035 | AP26: 1 | AQ26: 10 | AR26: 128948.2804 | AS26: 12895
A27: 410 | B27: 410057057 | C27: EXCEL ACADEMY | D27: ='fnd enro'!D27 -> 0 | E27: ='fnd enro'!E27 -> 0 | F27: ='fnd enro'!F27 -> 0 | G27: ='fnd enro'!G27 -> 52 | H27: ='fnd enro'!H27 -> 145 | I27: ='fnd enro'!I27 -> 0 | J27: ='fnd enro'!J27 -> 7.3875 | K27: ='fnd enro'!K27 -> 0 | L27: ='fnd enro'!L27 -> 0 | M27: ='fnd enro'!M27 -> 0 | N27: ='fnd enro'!N27 -> 0 | O27: ='fnd enro'!O27 -> 0 | P27: ='fnd enro'!P27 -> 20 | Q27: ='fnd enro'!Q27 -> 14 | R27: ='fnd enro'!R27 -> 0 | S27: ='fnd enro'!S27 -> 0 | T27: ='fnd enro'!T27 -> 116 | U27: ='fnd enro'!W27 -> 197 | V27: 1.034 | W27: ='fnd enro'!V27 -> 10 | Y27: =(($D27*'fnd base rates'!C$48) +($E27*'fnd base rates'!C$49) +($F27*'fnd base rates'!C$50) +($G27*'fnd base rates'!C$51) +($H27*'fnd base rates'!C$52) +($I27*'fnd base rates'!C$53) +($J27*'fnd base rates'!C$54) +($K27*'fnd base rates'!C$55) +($M27*'fnd base rates'!C$56) +($N27*'fnd base rates'!C$57) +($O27*'fnd base rates'!C$58) +($P27*'fnd base rates'!C$59) +($Q27*'fnd base rates'!C$60) +($R27*'fnd base rates'!C$61) +($S27*'fnd base rates'!C$62) +($L27*'fnd base rates'!C$63) +($T27*VLOOKUP($W27+16,rate_basefnd,3))) *$V27 -> 100042.6474 | Z27: =(($D27*'fnd base rates'!D$48) +($E27*'fnd base rates'!D$49) +($F27*'fnd base rates'!D$50) +($G27*'fnd base rates'!D$51) +($H27*'fnd base rates'!D$52) +($I27*'fnd base rates'!D$53) +($J27*'fnd base rates'!D$54) +($K27*'fnd base rates'!D$55) +($M27*'fnd base rates'!D$56) +($N27*'fnd base rates'!D$57) +($O27*'fnd base rates'!D$58) +($P27*'fnd base rates'!D$59) +($Q27*'fnd base rates'!D$60) +($R27*'fnd base rates'!D$61) +($S27*'fnd base rates'!D$62) +($L27*'fnd base rates'!D$63) +($T27*VLOOKUP($W27+16,rate_basefnd,4))) *$V27 -> 144538.4862 | AA27: =(($D27*'fnd base rates'!E$48) +($E27*'fnd base rates'!E$49) +($F27*'fnd base rates'!E$50) +($G27*'fnd base rates'!E$51) +($H27*'fnd base rates'!E$52) +($I27*'fnd base rates'!E$53) +($J27*'fnd base rates'!E$54) +($K27*'fnd base rates'!E$55) +($M27*'fnd base rates'!E$56) +($N27*'fnd base rates'!E$57) +($O27*'fnd base rates'!E$58) +($P27*'fnd base rates'!E$59) +($Q27*'fnd base rates'!E$60) +($R27*'fnd base rates'!E$61) +($S27*'fnd base rates'!E$62) +($L27*'fnd base rates'!E$63) +($T27*VLOOKUP($W27+16,rate_basefnd,5))) *$V27 -> 1057927.428 | AB27: =(($D27*'fnd base rates'!F$48) +($E27*'fnd base rates'!F$49) +($F27*'fnd base rates'!F$50) +($G27*'fnd base rates'!F$51) +($H27*'fnd base rates'!F$52) +($I27*'fnd base rates'!F$53) +($J27*'fnd base rates'!F$54) +($K27*'fnd base rates'!F$55) +($M27*'fnd base rates'!F$56) +($N27*'fnd base rates'!F$57) +($O27*'fnd base rates'!F$58) +($P27*'fnd base rates'!F$59) +($Q27*'fnd base rates'!F$60) +($R27*'fnd base rates'!F$61) +($S27*'fnd base rates'!F$62) +($L27*'fnd base rates'!F$63) +($T27*VLOOKUP($W27+16,rate_basefnd,6))) *$V27 -> 196660.5382 | AC27: =(($D27*'fnd base rates'!G$48) +($E27*'fnd base rates'!G$49) +($F27*'fnd base rates'!G$50) +($G27*'fnd base rates'!G$51) +($H27*'fnd base rates'!G$52) +($I27*'fnd base rates'!G$53) +($J27*'fnd base rates'!G$54) +($K27*'fnd base rates'!G$55) +($M27*'fnd base rates'!G$56) +($N27*'fnd base rates'!G$57) +($O27*'fnd base rates'!G$58) +($P27*'fnd base rates'!G$59) +($Q27*'fnd base rates'!G$60) +($R27*'fnd base rates'!G$61) +($S27*'fnd base rates'!G$62) +($L27*'fnd base rates'!G$63) +($T27*VLOOKUP($W27+16,rate_basefnd,7))) *$V27 -> 41084.14821 | AD27: =(($D27*'fnd base rates'!H$48) +($E27*'fnd base rates'!H$49) +($F27*'fnd base rates'!H$50) +($G27*'fnd base rates'!H$51) +($H27*'fnd base rates'!H$52) +($I27*'fnd base rates'!H$53) +($J27*'fnd base rates'!H$54) +($K27*'fnd base rates'!H$55) +($M27*'fnd base rates'!H$56) +($N27*'fnd base rates'!H$57) +($O27*'fnd base rates'!H$58) +($P27*'fnd base rates'!H$59) +($Q27*'fnd base rates'!H$60) +($R27*'fnd base rates'!H$61) +($S27*'fnd base rates'!H$62) +($L27*'fnd base rates'!H$63) +($T27*VLOOKUP($W27+16,rate_basefnd,8))) -> 95719.548 | AE27: =(($D27*'fnd base rates'!I$48) +($E27*'fnd base rates'!I$49) +($F27*'fnd base rates'!I$50) +($G27*'fnd base rates'!I$51) +($H27*'fnd base rates'!I$52) +($I27*'fnd base rates'!I$53) +($J27*'fnd base rates'!I$54) +($K27*'fnd base rates'!I$55) +($M27*'fnd base rates'!I$56) +($N27*'fnd base rates'!I$57) +($O27*'fnd base rates'!I$58) +($P27*'fnd base rates'!I$59) +($Q27*'fnd base rates'!I$60) +($R27*'fnd base rates'!I$61) +($S27*'fnd base rates'!I$62) +($L27*'fnd base rates'!I$63) +($T27*VLOOKUP($W27+16,rate_basefnd,9))) *$V27 -> 60055.46448 | AF27: =(($D27*'fnd base rates'!J$48) +($E27*'fnd base rates'!J$49) +($F27*'fnd base rates'!J$50) +($G27*'fnd base rates'!J$51) +($H27*'fnd base rates'!J$52) +($I27*'fnd base rates'!J$53) +($J27*'fnd base rates'!J$54) +($K27*'fnd base rates'!J$55) +($M27*'fnd base rates'!J$56) +($N27*'fnd base rates'!J$57) +($O27*'fnd base rates'!J$58) +($P27*'fnd base rates'!J$59) +($Q27*'fnd base rates'!J$60) +($R27*'fnd base rates'!J$61) +($S27*'fnd base rates'!J$62) +($L27*'fnd base rates'!J$63) +($T27*VLOOKUP($W27+16,rate_basefnd,10))) *$V27 -> 41366.27638 | AG27: =(($D27*'fnd base rates'!K$48) +($E27*'fnd base rates'!K$49) +($F27*'fnd base rates'!K$50) +($G27*'fnd base rates'!K$51) +($H27*'fnd base rates'!K$52) +($I27*'fnd base rates'!K$53) +($J27*'fnd base rates'!K$54) +($K27*'fnd base rates'!K$55) +($M27*'fnd base rates'!K$56) +($N27*'fnd base rates'!K$57) +($O27*'fnd base rates'!K$58) +($P27*'fnd base rates'!K$59) +($Q27*'fnd base rates'!K$60) +($R27*'fnd base rates'!K$61) +($S27*'fnd base rates'!K$62) +($L27*'fnd base rates'!K$63) +($T27*VLOOKUP($W27+16,rate_basefnd,11))) *$V27 -> 276974.8209 | AH27: =(($D27*'fnd base rates'!L$48) +($E27*'fnd base rates'!L$49) +($F27*'fnd base rates'!L$50) +($G27*'fnd base rates'!L$51) +($H27*'fnd base rates'!L$52) +($I27*'fnd base rates'!L$53) +($J27*'fnd base rates'!L$54) +($K27*'fnd base rates'!L$55) +($M27*'fnd base rates'!L$56) +($N27*'fnd base rates'!L$57) +($O27*'fnd base rates'!L$58) +($P27*'fnd base rates'!L$59) +($Q27*'fnd base rates'!L$60) +($R27*'fnd base rates'!L$61) +($S27*'fnd base rates'!L$62) +($L27*'fnd base rates'!L$63) +($T27*VLOOKUP($W27+16,rate_basefnd,12))) -> 262435.0337 | AI27: =(($D27*'fnd base rates'!M$48) +($E27*'fnd base rates'!M$49) +($F27*'fnd base rates'!M$50) +($G27*'fnd base rates'!M$51) +($H27*'fnd base rates'!M$52) +($I27*'fnd base rates'!M$53) +($J27*'fnd base rates'!M$54) +($K27*'fnd base rates'!M$55) +($M27*'fnd base rates'!M$56) +($N27*'fnd base rates'!M$57) +($O27*'fnd base rates'!M$58) +($P27*'fnd base rates'!M$59) +($Q27*'fnd base rates'!M$60) +($R27*'fnd base rates'!M$61) +($S27*'fnd base rates'!M$62) +($L27*'fnd base rates'!M$63) +($T27*VLOOKUP($W27+16,rate_basefnd,13))) -> 0 | AJ27: 2276804.392 | AL27: 410057057 | AM27: 410 | AN27: 057 | AO27: 057 | AP27: 1 | AQ27: 197 | AR27: 2276804.392 | AS27: 11557
A28: 410 | B28: 410057093 | C28: EXCEL ACADEMY | D28: ='fnd enro'!D28 -> 0 | E28: ='fnd enro'!E28 -> 0 | F28: ='fnd enro'!F28 -> 0 | G28: ='fnd enro'!G28 -> 2 | H28: ='fnd enro'!H28 -> 3 | I28: ='fnd enro'!I28 -> 0 | J28: ='fnd enro'!J28 -> 0.1875 | K28: ='fnd enro'!K28 -> 0 | L28: ='fnd enro'!L28 -> 0 | M28: ='fnd enro'!M28 -> 0 | N28: ='fnd enro'!N28 -> 0 | O28: ='fnd enro'!O28 -> 0 | P28: ='fnd enro'!P28 -> 0 | Q28: ='fnd enro'!Q28 -> 1 | R28: ='fnd enro'!R28 -> 0 | S28: ='fnd enro'!S28 -> 0 | T28: ='fnd enro'!T28 -> 5 | U28: ='fnd enro'!W28 -> 5 | V28: 1.034 | W28: ='fnd enro'!V28 -> 10 | Y28: =(($D28*'fnd base rates'!C$48) +($E28*'fnd base rates'!C$49) +($F28*'fnd base rates'!C$50) +($G28*'fnd base rates'!C$51) +($H28*'fnd base rates'!C$52) +($I28*'fnd base rates'!C$53) +($J28*'fnd base rates'!C$54) +($K28*'fnd base rates'!C$55) +($M28*'fnd base rates'!C$56) +($N28*'fnd base rates'!C$57) +($O28*'fnd base rates'!C$58) +($P28*'fnd base rates'!C$59) +($Q28*'fnd base rates'!C$60) +($R28*'fnd base rates'!C$61) +($S28*'fnd base rates'!C$62) +($L28*'fnd base rates'!C$63) +($T28*VLOOKUP($W28+16,rate_basefnd,3))) *$V28 -> 2554.902199 | Z28: =(($D28*'fnd base rates'!D$48) +($E28*'fnd base rates'!D$49) +($F28*'fnd base rates'!D$50) +($G28*'fnd base rates'!D$51) +($H28*'fnd base rates'!D$52) +($I28*'fnd base rates'!D$53) +($J28*'fnd base rates'!D$54) +($K28*'fnd base rates'!D$55) +($M28*'fnd base rates'!D$56) +($N28*'fnd base rates'!D$57) +($O28*'fnd base rates'!D$58) +($P28*'fnd base rates'!D$59) +($Q28*'fnd base rates'!D$60) +($R28*'fnd base rates'!D$61) +($S28*'fnd base rates'!D$62) +($L28*'fnd base rates'!D$63) +($T28*VLOOKUP($W28+16,rate_basefnd,4))) *$V28 -> 3696.05368 | AA28: =(($D28*'fnd base rates'!E$48) +($E28*'fnd base rates'!E$49) +($F28*'fnd base rates'!E$50) +($G28*'fnd base rates'!E$51) +($H28*'fnd base rates'!E$52) +($I28*'fnd base rates'!E$53) +($J28*'fnd base rates'!E$54) +($K28*'fnd base rates'!E$55) +($M28*'fnd base rates'!E$56) +($N28*'fnd base rates'!E$57) +($O28*'fnd base rates'!E$58) +($P28*'fnd base rates'!E$59) +($Q28*'fnd base rates'!E$60) +($R28*'fnd base rates'!E$61) +($S28*'fnd base rates'!E$62) +($L28*'fnd base rates'!E$63) +($T28*VLOOKUP($W28+16,rate_basefnd,5))) *$V28 -> 33906.36951 | AB28: =(($D28*'fnd base rates'!F$48) +($E28*'fnd base rates'!F$49) +($F28*'fnd base rates'!F$50) +($G28*'fnd base rates'!F$51) +($H28*'fnd base rates'!F$52) +($I28*'fnd base rates'!F$53) +($J28*'fnd base rates'!F$54) +($K28*'fnd base rates'!F$55) +($M28*'fnd base rates'!F$56) +($N28*'fnd base rates'!F$57) +($O28*'fnd base rates'!F$58) +($P28*'fnd base rates'!F$59) +($Q28*'fnd base rates'!F$60) +($R28*'fnd base rates'!F$61) +($S28*'fnd base rates'!F$62) +($L28*'fnd base rates'!F$63) +($T28*VLOOKUP($W28+16,rate_basefnd,6))) *$V28 -> 5177.049941 | AC28: =(($D28*'fnd base rates'!G$48) +($E28*'fnd base rates'!G$49) +($F28*'fnd base rates'!G$50) +($G28*'fnd base rates'!G$51) +($H28*'fnd base rates'!G$52) +($I28*'fnd base rates'!G$53) +($J28*'fnd base rates'!G$54) +($K28*'fnd base rates'!G$55) +($M28*'fnd base rates'!G$56) +($N28*'fnd base rates'!G$57) +($O28*'fnd base rates'!G$58) +($P28*'fnd base rates'!G$59) +($Q28*'fnd base rates'!G$60) +($R28*'fnd base rates'!G$61) +($S28*'fnd base rates'!G$62) +($L28*'fnd base rates'!G$63) +($T28*VLOOKUP($W28+16,rate_basefnd,7))) *$V28 -> 1212.490502 | AD28: =(($D28*'fnd base rates'!H$48) +($E28*'fnd base rates'!H$49) +($F28*'fnd base rates'!H$50) +($G28*'fnd base rates'!H$51) +($H28*'fnd base rates'!H$52) +($I28*'fnd base rates'!H$53) +($J28*'fnd base rates'!H$54) +($K28*'fnd base rates'!H$55) +($M28*'fnd base rates'!H$56) +($N28*'fnd base rates'!H$57) +($O28*'fnd base rates'!H$58) +($P28*'fnd base rates'!H$59) +($Q28*'fnd base rates'!H$60) +($R28*'fnd base rates'!H$61) +($S28*'fnd base rates'!H$62) +($L28*'fnd base rates'!H$63) +($T28*VLOOKUP($W28+16,rate_basefnd,8))) -> 2448.47 | AE28: =(($D28*'fnd base rates'!I$48) +($E28*'fnd base rates'!I$49) +($F28*'fnd base rates'!I$50) +($G28*'fnd base rates'!I$51) +($H28*'fnd base rates'!I$52) +($I28*'fnd base rates'!I$53) +($J28*'fnd base rates'!I$54) +($K28*'fnd base rates'!I$55) +($M28*'fnd base rates'!I$56) +($N28*'fnd base rates'!I$57) +($O28*'fnd base rates'!I$58) +($P28*'fnd base rates'!I$59) +($Q28*'fnd base rates'!I$60) +($R28*'fnd base rates'!I$61) +($S28*'fnd base rates'!I$62) +($L28*'fnd base rates'!I$63) +($T28*VLOOKUP($W28+16,rate_basefnd,9))) *$V28 -> 1483.05586 | AF28: =(($D28*'fnd base rates'!J$48) +($E28*'fnd base rates'!J$49) +($F28*'fnd base rates'!J$50) +($G28*'fnd base rates'!J$51) +($H28*'fnd base rates'!J$52) +($I28*'fnd base rates'!J$53) +($J28*'fnd base rates'!J$54) +($K28*'fnd base rates'!J$55) +($M28*'fnd base rates'!J$56) +($N28*'fnd base rates'!J$57) +($O28*'fnd base rates'!J$58) +($P28*'fnd base rates'!J$59) +($Q28*'fnd base rates'!J$60) +($R28*'fnd base rates'!J$61) +($S28*'fnd base rates'!J$62) +($L28*'fnd base rates'!J$63) +($T28*VLOOKUP($W28+16,rate_basefnd,10))) *$V28 -> 993.32244 | AG28: =(($D28*'fnd base rates'!K$48) +($E28*'fnd base rates'!K$49) +($F28*'fnd base rates'!K$50) +($G28*'fnd base rates'!K$51) +($H28*'fnd base rates'!K$52) +($I28*'fnd base rates'!K$53) +($J28*'fnd base rates'!K$54) +($K28*'fnd base rates'!K$55) +($M28*'fnd base rates'!K$56) +($N28*'fnd base rates'!K$57) +($O28*'fnd base rates'!K$58) +($P28*'fnd base rates'!K$59) +($Q28*'fnd base rates'!K$60) +($R28*'fnd base rates'!K$61) +($S28*'fnd base rates'!K$62) +($L28*'fnd base rates'!K$63) +($T28*VLOOKUP($W28+16,rate_basefnd,11))) *$V28 -> 8040.8113 | AH28: =(($D28*'fnd base rates'!L$48) +($E28*'fnd base rates'!L$49) +($F28*'fnd base rates'!L$50) +($G28*'fnd base rates'!L$51) +($H28*'fnd base rates'!L$52) +($I28*'fnd base rates'!L$53) +($J28*'fnd base rates'!L$54) +($K28*'fnd base rates'!L$55) +($M28*'fnd base rates'!L$56) +($N28*'fnd base rates'!L$57) +($O28*'fnd base rates'!L$58) +($P28*'fnd base rates'!L$59) +($Q28*'fnd base rates'!L$60) +($R28*'fnd base rates'!L$61) +($S28*'fnd base rates'!L$62) +($L28*'fnd base rates'!L$63) +($T28*VLOOKUP($W28+16,rate_basefnd,12))) -> 7346.156125 | AI28: =(($D28*'fnd base rates'!M$48) +($E28*'fnd base rates'!M$49) +($F28*'fnd base rates'!M$50) +($G28*'fnd base rates'!M$51) +($H28*'fnd base rates'!M$52) +($I28*'fnd base rates'!M$53) +($J28*'fnd base rates'!M$54) +($K28*'fnd base rates'!M$55) +($M28*'fnd base rates'!M$56) +($N28*'fnd base rates'!M$57) +($O28*'fnd base rates'!M$58) +($P28*'fnd base rates'!M$59) +($Q28*'fnd base rates'!M$60) +($R28*'fnd base rates'!M$61) +($S28*'fnd base rates'!M$62) +($L28*'fnd base rates'!M$63) +($T28*VLOOKUP($W28+16,rate_basefnd,13))) -> 0 | AJ28: 66858.68156 | AL28: 410057093 | AM28: 410 | AN28: 057 | AO28: 093 | AP28: 1 | AQ28: 5 | AR28: 66858.68156 | AS28: 13372
A29: 410 | B29: 410057163 | C29: EXCEL ACADEMY | D29: ='fnd enro'!D29 -> 0 | E29: ='fnd enro'!E29 -> 0 | F29: ='fnd enro'!F29 -> 0 | G29: ='fnd enro'!G29 -> 0 | H29: ='fnd enro'!H29 -> 2 | I29: ='fnd enro'!I29 -> 0 | J29: ='fnd enro'!J29 -> 0.075 | K29: ='fnd enro'!K29 -> 0 | L29: ='fnd enro'!L29 -> 0 | M29: ='fnd enro'!M29 -> 0 | N29: ='fnd enro'!N29 -> 0 | O29: ='fnd enro'!O29 -> 0 | P29: ='fnd enro'!P29 -> 0 | Q29: ='fnd enro'!Q29 -> 0 | R29: ='fnd enro'!R29 -> 0 | S29: ='fnd enro'!S29 -> 0 | T29: ='fnd enro'!T29 -> 1 | U29: ='fnd enro'!W29 -> 2 | V29: 1.034 | W29: ='fnd enro'!V29 -> 10 | Y29: =(($D29*'fnd base rates'!C$48) +($E29*'fnd base rates'!C$49) +($F29*'fnd base rates'!C$50) +($G29*'fnd base rates'!C$51) +($H29*'fnd base rates'!C$52) +($I29*'fnd base rates'!C$53) +($J29*'fnd base rates'!C$54) +($K29*'fnd base rates'!C$55) +($M29*'fnd base rates'!C$56) +($N29*'fnd base rates'!C$57) +($O29*'fnd base rates'!C$58) +($P29*'fnd base rates'!C$59) +($Q29*'fnd base rates'!C$60) +($R29*'fnd base rates'!C$61) +($S29*'fnd base rates'!C$62) +($L29*'fnd base rates'!C$63) +($T29*VLOOKUP($W29+16,rate_basefnd,3))) *$V29 -> 983.3968155 | Z29: =(($D29*'fnd base rates'!D$48) +($E29*'fnd base rates'!D$49) +($F29*'fnd base rates'!D$50) +($G29*'fnd base rates'!D$51) +($H29*'fnd base rates'!D$52) +($I29*'fnd base rates'!D$53) +($J29*'fnd base rates'!D$54) +($K29*'fnd base rates'!D$55) +($M29*'fnd base rates'!D$56) +($N29*'fnd base rates'!D$57) +($O29*'fnd base rates'!D$58) +($P29*'fnd base rates'!D$59) +($Q29*'fnd base rates'!D$60) +($R29*'fnd base rates'!D$61) +($S29*'fnd base rates'!D$62) +($L29*'fnd base rates'!D$63) +($T29*VLOOKUP($W29+16,rate_basefnd,4))) *$V29 -> 1410.93436 | AA29: =(($D29*'fnd base rates'!E$48) +($E29*'fnd base rates'!E$49) +($F29*'fnd base rates'!E$50) +($G29*'fnd base rates'!E$51) +($H29*'fnd base rates'!E$52) +($I29*'fnd base rates'!E$53) +($J29*'fnd base rates'!E$54) +($K29*'fnd base rates'!E$55) +($M29*'fnd base rates'!E$56) +($N29*'fnd base rates'!E$57) +($O29*'fnd base rates'!E$58) +($P29*'fnd base rates'!E$59) +($Q29*'fnd base rates'!E$60) +($R29*'fnd base rates'!E$61) +($S29*'fnd base rates'!E$62) +($L29*'fnd base rates'!E$63) +($T29*VLOOKUP($W29+16,rate_basefnd,5))) *$V29 -> 9570.000208 | AB29: =(($D29*'fnd base rates'!F$48) +($E29*'fnd base rates'!F$49) +($F29*'fnd base rates'!F$50) +($G29*'fnd base rates'!F$51) +($H29*'fnd base rates'!F$52) +($I29*'fnd base rates'!F$53) +($J29*'fnd base rates'!F$54) +($K29*'fnd base rates'!F$55) +($M29*'fnd base rates'!F$56) +($N29*'fnd base rates'!F$57) +($O29*'fnd base rates'!F$58) +($P29*'fnd base rates'!F$59) +($Q29*'fnd base rates'!F$60) +($R29*'fnd base rates'!F$61) +($S29*'fnd base rates'!F$62) +($L29*'fnd base rates'!F$63) +($T29*VLOOKUP($W29+16,rate_basefnd,6))) *$V29 -> 1817.386577 | AC29: =(($D29*'fnd base rates'!G$48) +($E29*'fnd base rates'!G$49) +($F29*'fnd base rates'!G$50) +($G29*'fnd base rates'!G$51) +($H29*'fnd base rates'!G$52) +($I29*'fnd base rates'!G$53) +($J29*'fnd base rates'!G$54) +($K29*'fnd base rates'!G$55) +($M29*'fnd base rates'!G$56) +($N29*'fnd base rates'!G$57) +($O29*'fnd base rates'!G$58) +($P29*'fnd base rates'!G$59) +($Q29*'fnd base rates'!G$60) +($R29*'fnd base rates'!G$61) +($S29*'fnd base rates'!G$62) +($L29*'fnd base rates'!G$63) +($T29*VLOOKUP($W29+16,rate_basefnd,7))) *$V29 -> 392.0278131 | AD29: =(($D29*'fnd base rates'!H$48) +($E29*'fnd base rates'!H$49) +($F29*'fnd base rates'!H$50) +($G29*'fnd base rates'!H$51) +($H29*'fnd base rates'!H$52) +($I29*'fnd base rates'!H$53) +($J29*'fnd base rates'!H$54) +($K29*'fnd base rates'!H$55) +($M29*'fnd base rates'!H$56) +($N29*'fnd base rates'!H$57) +($O29*'fnd base rates'!H$58) +($P29*'fnd base rates'!H$59) +($Q29*'fnd base rates'!H$60) +($R29*'fnd base rates'!H$61) +($S29*'fnd base rates'!H$62) +($L29*'fnd base rates'!H$63) +($T29*VLOOKUP($W29+16,rate_basefnd,8))) -> 932.768 | AE29: =(($D29*'fnd base rates'!I$48) +($E29*'fnd base rates'!I$49) +($F29*'fnd base rates'!I$50) +($G29*'fnd base rates'!I$51) +($H29*'fnd base rates'!I$52) +($I29*'fnd base rates'!I$53) +($J29*'fnd base rates'!I$54) +($K29*'fnd base rates'!I$55) +($M29*'fnd base rates'!I$56) +($N29*'fnd base rates'!I$57) +($O29*'fnd base rates'!I$58) +($P29*'fnd base rates'!I$59) +($Q29*'fnd base rates'!I$60) +($R29*'fnd base rates'!I$61) +($S29*'fnd base rates'!I$62) +($L29*'fnd base rates'!I$63) +($T29*VLOOKUP($W29+16,rate_basefnd,9))) *$V29 -> 626.64536 | AF29: =(($D29*'fnd base rates'!J$48) +($E29*'fnd base rates'!J$49) +($F29*'fnd base rates'!J$50) +($G29*'fnd base rates'!J$51) +($H29*'fnd base rates'!J$52) +($I29*'fnd base rates'!J$53) +($J29*'fnd base rates'!J$54) +($K29*'fnd base rates'!J$55) +($M29*'fnd base rates'!J$56) +($N29*'fnd base rates'!J$57) +($O29*'fnd base rates'!J$58) +($P29*'fnd base rates'!J$59) +($Q29*'fnd base rates'!J$60) +($R29*'fnd base rates'!J$61) +($S29*'fnd base rates'!J$62) +($L29*'fnd base rates'!J$63) +($T29*VLOOKUP($W29+16,rate_basefnd,10))) *$V29 -> 458.86852 | AG29: =(($D29*'fnd base rates'!K$48) +($E29*'fnd base rates'!K$49) +($F29*'fnd base rates'!K$50) +($G29*'fnd base rates'!K$51) +($H29*'fnd base rates'!K$52) +($I29*'fnd base rates'!K$53) +($J29*'fnd base rates'!K$54) +($K29*'fnd base rates'!K$55) +($M29*'fnd base rates'!K$56) +($N29*'fnd base rates'!K$57) +($O29*'fnd base rates'!K$58) +($P29*'fnd base rates'!K$59) +($Q29*'fnd base rates'!K$60) +($R29*'fnd base rates'!K$61) +($S29*'fnd base rates'!K$62) +($L29*'fnd base rates'!K$63) +($T29*VLOOKUP($W29+16,rate_basefnd,11))) *$V29 -> 2667.303195 | AH29: =(($D29*'fnd base rates'!L$48) +($E29*'fnd base rates'!L$49) +($F29*'fnd base rates'!L$50) +($G29*'fnd base rates'!L$51) +($H29*'fnd base rates'!L$52) +($I29*'fnd base rates'!L$53) +($J29*'fnd base rates'!L$54) +($K29*'fnd base rates'!L$55) +($M29*'fnd base rates'!L$56) +($N29*'fnd base rates'!L$57) +($O29*'fnd base rates'!L$58) +($P29*'fnd base rates'!L$59) +($Q29*'fnd base rates'!L$60) +($R29*'fnd base rates'!L$61) +($S29*'fnd base rates'!L$62) +($L29*'fnd base rates'!L$63) +($T29*VLOOKUP($W29+16,rate_basefnd,12))) -> 2530.51285 | AI29: =(($D29*'fnd base rates'!M$48) +($E29*'fnd base rates'!M$49) +($F29*'fnd base rates'!M$50) +($G29*'fnd base rates'!M$51) +($H29*'fnd base rates'!M$52) +($I29*'fnd base rates'!M$53) +($J29*'fnd base rates'!M$54) +($K29*'fnd base rates'!M$55) +($M29*'fnd base rates'!M$56) +($N29*'fnd base rates'!M$57) +($O29*'fnd base rates'!M$58) +($P29*'fnd base rates'!M$59) +($Q29*'fnd base rates'!M$60) +($R29*'fnd base rates'!M$61) +($S29*'fnd base rates'!M$62) +($L29*'fnd base rates'!M$63) +($T29*VLOOKUP($W29+16,rate_basefnd,13))) -> 0 | AJ29: 21389.8437 | AL29: 410057163 | AM29: 410 | AN29: 057 | AO29: 163 | AP29: 1 | AQ29: 2 | AR29: 21389.8437 | AS29: 10695
A30: 410 | B30: 410057176 | C30: EXCEL ACADEMY | D30: ='fnd enro'!D30 -> 0 | E30: ='fnd enro'!E30 -> 0 | F30: ='fnd enro'!F30 -> 0 | G30: ='fnd enro'!G30 -> 1 | H30: ='fnd enro'!H30 -> 1 | I30: ='fnd enro'!I30 -> 0 | J30: ='fnd enro'!J30 -> 0.075 | K30: ='fnd enro'!K30 -> 0 | L30: ='fnd enro'!L30 -> 0 | M30: ='fnd enro'!M30 -> 0 | N30: ='fnd enro'!N30 -> 0 | O30: ='fnd enro'!O30 -> 0 | P30: ='fnd enro'!P30 -> 0 | Q30: ='fnd enro'!Q30 -> 0 | R30: ='fnd enro'!R30 -> 0 | S30: ='fnd enro'!S30 -> 0 | T30: ='fnd enro'!T30 -> 2 | U30: ='fnd enro'!W30 -> 2 | V30: 1.034 | W30: ='fnd enro'!V30 -> 10 | Y30: =(($D30*'fnd base rates'!C$48) +($E30*'fnd base rates'!C$49) +($F30*'fnd base rates'!C$50) +($G30*'fnd base rates'!C$51) +($H30*'fnd base rates'!C$52) +($I30*'fnd base rates'!C$53) +($J30*'fnd base rates'!C$54) +($K30*'fnd base rates'!C$55) +($M30*'fnd base rates'!C$56) +($N30*'fnd base rates'!C$57) +($O30*'fnd base rates'!C$58) +($P30*'fnd base rates'!C$59) +($Q30*'fnd base rates'!C$60) +($R30*'fnd base rates'!C$61) +($S30*'fnd base rates'!C$62) +($L30*'fnd base rates'!C$63) +($T30*VLOOKUP($W30+16,rate_basefnd,3))) *$V30 -> 983.3968155 | Z30: =(($D30*'fnd base rates'!D$48) +($E30*'fnd base rates'!D$49) +($F30*'fnd base rates'!D$50) +($G30*'fnd base rates'!D$51) +($H30*'fnd base rates'!D$52) +($I30*'fnd base rates'!D$53) +($J30*'fnd base rates'!D$54) +($K30*'fnd base rates'!D$55) +($M30*'fnd base rates'!D$56) +($N30*'fnd base rates'!D$57) +($O30*'fnd base rates'!D$58) +($P30*'fnd base rates'!D$59) +($Q30*'fnd base rates'!D$60) +($R30*'fnd base rates'!D$61) +($S30*'fnd base rates'!D$62) +($L30*'fnd base rates'!D$63) +($T30*VLOOKUP($W30+16,rate_basefnd,4))) *$V30 -> 1410.93436 | AA30: =(($D30*'fnd base rates'!E$48) +($E30*'fnd base rates'!E$49) +($F30*'fnd base rates'!E$50) +($G30*'fnd base rates'!E$51) +($H30*'fnd base rates'!E$52) +($I30*'fnd base rates'!E$53) +($J30*'fnd base rates'!E$54) +($K30*'fnd base rates'!E$55) +($M30*'fnd base rates'!E$56) +($N30*'fnd base rates'!E$57) +($O30*'fnd base rates'!E$58) +($P30*'fnd base rates'!E$59) +($Q30*'fnd base rates'!E$60) +($R30*'fnd base rates'!E$61) +($S30*'fnd base rates'!E$62) +($L30*'fnd base rates'!E$63) +($T30*VLOOKUP($W30+16,rate_basefnd,5))) *$V30 -> 13167.75626 | AB30: =(($D30*'fnd base rates'!F$48) +($E30*'fnd base rates'!F$49) +($F30*'fnd base rates'!F$50) +($G30*'fnd base rates'!F$51) +($H30*'fnd base rates'!F$52) +($I30*'fnd base rates'!F$53) +($J30*'fnd base rates'!F$54) +($K30*'fnd base rates'!F$55) +($M30*'fnd base rates'!F$56) +($N30*'fnd base rates'!F$57) +($O30*'fnd base rates'!F$58) +($P30*'fnd base rates'!F$59) +($Q30*'fnd base rates'!F$60) +($R30*'fnd base rates'!F$61) +($S30*'fnd base rates'!F$62) +($L30*'fnd base rates'!F$63) +($T30*VLOOKUP($W30+16,rate_basefnd,6))) *$V30 -> 2049.819436 | AC30: =(($D30*'fnd base rates'!G$48) +($E30*'fnd base rates'!G$49) +($F30*'fnd base rates'!G$50) +($G30*'fnd base rates'!G$51) +($H30*'fnd base rates'!G$52) +($I30*'fnd base rates'!G$53) +($J30*'fnd base rates'!G$54) +($K30*'fnd base rates'!G$55) +($M30*'fnd base rates'!G$56) +($N30*'fnd base rates'!G$57) +($O30*'fnd base rates'!G$58) +($P30*'fnd base rates'!G$59) +($Q30*'fnd base rates'!G$60) +($R30*'fnd base rates'!G$61) +($S30*'fnd base rates'!G$62) +($L30*'fnd base rates'!G$63) +($T30*VLOOKUP($W30+16,rate_basefnd,7))) *$V30 -> 463.5613807 | AD30: =(($D30*'fnd base rates'!H$48) +($E30*'fnd base rates'!H$49) +($F30*'fnd base rates'!H$50) +($G30*'fnd base rates'!H$51) +($H30*'fnd base rates'!H$52) +($I30*'fnd base rates'!H$53) +($J30*'fnd base rates'!H$54) +($K30*'fnd base rates'!H$55) +($M30*'fnd base rates'!H$56) +($N30*'fnd base rates'!H$57) +($O30*'fnd base rates'!H$58) +($P30*'fnd base rates'!H$59) +($Q30*'fnd base rates'!H$60) +($R30*'fnd base rates'!H$61) +($S30*'fnd base rates'!H$62) +($L30*'fnd base rates'!H$63) +($T30*VLOOKUP($W30+16,rate_basefnd,8))) -> 932.768 | AE30: =(($D30*'fnd base rates'!I$48) +($E30*'fnd base rates'!I$49) +($F30*'fnd base rates'!I$50) +($G30*'fnd base rates'!I$51) +($H30*'fnd base rates'!I$52) +($I30*'fnd base rates'!I$53) +($J30*'fnd base rates'!I$54) +($K30*'fnd base rates'!I$55) +($M30*'fnd base rates'!I$56) +($N30*'fnd base rates'!I$57) +($O30*'fnd base rates'!I$58) +($P30*'fnd base rates'!I$59) +($Q30*'fnd base rates'!I$60) +($R30*'fnd base rates'!I$61) +($S30*'fnd base rates'!I$62) +($L30*'fnd base rates'!I$63) +($T30*VLOOKUP($W30+16,rate_basefnd,9))) *$V30 -> 548.71278 | AF30: =(($D30*'fnd base rates'!J$48) +($E30*'fnd base rates'!J$49) +($F30*'fnd base rates'!J$50) +($G30*'fnd base rates'!J$51) +($H30*'fnd base rates'!J$52) +($I30*'fnd base rates'!J$53) +($J30*'fnd base rates'!J$54) +($K30*'fnd base rates'!J$55) +($M30*'fnd base rates'!J$56) +($N30*'fnd base rates'!J$57) +($O30*'fnd base rates'!J$58) +($P30*'fnd base rates'!J$59) +($Q30*'fnd base rates'!J$60) +($R30*'fnd base rates'!J$61) +($S30*'fnd base rates'!J$62) +($L30*'fnd base rates'!J$63) +($T30*VLOOKUP($W30+16,rate_basefnd,10))) *$V30 -> 369.89282 | AG30: =(($D30*'fnd base rates'!K$48) +($E30*'fnd base rates'!K$49) +($F30*'fnd base rates'!K$50) +($G30*'fnd base rates'!K$51) +($H30*'fnd base rates'!K$52) +($I30*'fnd base rates'!K$53) +($J30*'fnd base rates'!K$54) +($K30*'fnd base rates'!K$55) +($M30*'fnd base rates'!K$56) +($N30*'fnd base rates'!K$57) +($O30*'fnd base rates'!K$58) +($P30*'fnd base rates'!K$59) +($Q30*'fnd base rates'!K$60) +($R30*'fnd base rates'!K$61) +($S30*'fnd base rates'!K$62) +($L30*'fnd base rates'!K$63) +($T30*VLOOKUP($W30+16,rate_basefnd,11))) *$V30 -> 3085.51318 | AH30: =(($D30*'fnd base rates'!L$48) +($E30*'fnd base rates'!L$49) +($F30*'fnd base rates'!L$50) +($G30*'fnd base rates'!L$51) +($H30*'fnd base rates'!L$52) +($I30*'fnd base rates'!L$53) +($J30*'fnd base rates'!L$54) +($K30*'fnd base rates'!L$55) +($M30*'fnd base rates'!L$56) +($N30*'fnd base rates'!L$57) +($O30*'fnd base rates'!L$58) +($P30*'fnd base rates'!L$59) +($Q30*'fnd base rates'!L$60) +($R30*'fnd base rates'!L$61) +($S30*'fnd base rates'!L$62) +($L30*'fnd base rates'!L$63) +($T30*VLOOKUP($W30+16,rate_basefnd,12))) -> 2832.64845 | AI30: =(($D30*'fnd base rates'!M$48) +($E30*'fnd base rates'!M$49) +($F30*'fnd base rates'!M$50) +($G30*'fnd base rates'!M$51) +($H30*'fnd base rates'!M$52) +($I30*'fnd base rates'!M$53) +($J30*'fnd base rates'!M$54) +($K30*'fnd base rates'!M$55) +($M30*'fnd base rates'!M$56) +($N30*'fnd base rates'!M$57) +($O30*'fnd base rates'!M$58) +($P30*'fnd base rates'!M$59) +($Q30*'fnd base rates'!M$60) +($R30*'fnd base rates'!M$61) +($S30*'fnd base rates'!M$62) +($L30*'fnd base rates'!M$63) +($T30*VLOOKUP($W30+16,rate_basefnd,13))) -> 0 | AJ30: 25845.00349 | AL30: 410057176 | AM30: 410 | AN30: 057 | AO30: 176 | AP30: 1 | AQ30: 2 | AR30: 25845.00349 | AS30: 12923
A31: 410 | B31: 410057248 | C31: EXCEL ACADEMY | D31: ='fnd enro'!D31 -> 0 | E31: ='fnd enro'!E31 -> 0 | F31: ='fnd enro'!F31 -> 0 | G31: ='fnd enro'!G31 -> 1 | H31: ='fnd enro'!H31 -> 7 | I31: ='fnd enro'!I31 -> 0 | J31: ='fnd enro'!J31 -> 0.3 | K31: ='fnd enro'!K31 -> 0 | L31: ='fnd enro'!L31 -> 0 | M31: ='fnd enro'!M31 -> 0 | N31: ='fnd enro'!N31 -> 0 | O31: ='fnd enro'!O31 -> 0 | P31: ='fnd enro'!P31 -> 1 | Q31: ='fnd enro'!Q31 -> 0 | R31: ='fnd enro'!R31 -> 0 | S31: ='fnd enro'!S31 -> 0 | T31: ='fnd enro'!T31 -> 0 | U31: ='fnd enro'!W31 -> 8 | V31: 1.034 | W31: ='fnd enro'!V31 -> 1 | Y31: =(($D31*'fnd base rates'!C$48) +($E31*'fnd base rates'!C$49) +($F31*'fnd base rates'!C$50) +($G31*'fnd base rates'!C$51) +($H31*'fnd base rates'!C$52) +($I31*'fnd base rates'!C$53) +($J31*'fnd base rates'!C$54) +($K31*'fnd base rates'!C$55) +($M31*'fnd base rates'!C$56) +($N31*'fnd base rates'!C$57) +($O31*'fnd base rates'!C$58) +($P31*'fnd base rates'!C$59) +($Q31*'fnd base rates'!C$60) +($R31*'fnd base rates'!C$61) +($S31*'fnd base rates'!C$62) +($L31*'fnd base rates'!C$63) +($T31*VLOOKUP($W31+16,rate_basefnd,3))) *$V31 -> 4025.003202 | Z31: =(($D31*'fnd base rates'!D$48) +($E31*'fnd base rates'!D$49) +($F31*'fnd base rates'!D$50) +($G31*'fnd base rates'!D$51) +($H31*'fnd base rates'!D$52) +($I31*'fnd base rates'!D$53) +($J31*'fnd base rates'!D$54) +($K31*'fnd base rates'!D$55) +($M31*'fnd base rates'!D$56) +($N31*'fnd base rates'!D$57) +($O31*'fnd base rates'!D$58) +($P31*'fnd base rates'!D$59) +($Q31*'fnd base rates'!D$60) +($R31*'fnd base rates'!D$61) +($S31*'fnd base rates'!D$62) +($L31*'fnd base rates'!D$63) +($T31*VLOOKUP($W31+16,rate_basefnd,4))) *$V31 -> 5803.70758 | AA31: =(($D31*'fnd base rates'!E$48) +($E31*'fnd base rates'!E$49) +($F31*'fnd base rates'!E$50) +($G31*'fnd base rates'!E$51) +($H31*'fnd base rates'!E$52) +($I31*'fnd base rates'!E$53) +($J31*'fnd base rates'!E$54) +($K31*'fnd base rates'!E$55) +($M31*'fnd base rates'!E$56) +($N31*'fnd base rates'!E$57) +($O31*'fnd base rates'!E$58) +($P31*'fnd base rates'!E$59) +($Q31*'fnd base rates'!E$60) +($R31*'fnd base rates'!E$61) +($S31*'fnd base rates'!E$62) +($L31*'fnd base rates'!E$63) +($T31*VLOOKUP($W31+16,rate_basefnd,5))) *$V31 -> 26949.52355 | AB31: =(($D31*'fnd base rates'!F$48) +($E31*'fnd base rates'!F$49) +($F31*'fnd base rates'!F$50) +($G31*'fnd base rates'!F$51) +($H31*'fnd base rates'!F$52) +($I31*'fnd base rates'!F$53) +($J31*'fnd base rates'!F$54) +($K31*'fnd base rates'!F$55) +($M31*'fnd base rates'!F$56) +($N31*'fnd base rates'!F$57) +($O31*'fnd base rates'!F$58) +($P31*'fnd base rates'!F$59) +($Q31*'fnd base rates'!F$60) +($R31*'fnd base rates'!F$61) +($S31*'fnd base rates'!F$62) +($L31*'fnd base rates'!F$63) +($T31*VLOOKUP($W31+16,rate_basefnd,6))) *$V31 -> 7661.949306 | AC31: =(($D31*'fnd base rates'!G$48) +($E31*'fnd base rates'!G$49) +($F31*'fnd base rates'!G$50) +($G31*'fnd base rates'!G$51) +($H31*'fnd base rates'!G$52) +($I31*'fnd base rates'!G$53) +($J31*'fnd base rates'!G$54) +($K31*'fnd base rates'!G$55) +($M31*'fnd base rates'!G$56) +($N31*'fnd base rates'!G$57) +($O31*'fnd base rates'!G$58) +($P31*'fnd base rates'!G$59) +($Q31*'fnd base rates'!G$60) +($R31*'fnd base rates'!G$61) +($S31*'fnd base rates'!G$62) +($L31*'fnd base rates'!G$63) +($T31*VLOOKUP($W31+16,rate_basefnd,7))) *$V31 -> 1273.860082 | AD31: =(($D31*'fnd base rates'!H$48) +($E31*'fnd base rates'!H$49) +($F31*'fnd base rates'!H$50) +($G31*'fnd base rates'!H$51) +($H31*'fnd base rates'!H$52) +($I31*'fnd base rates'!H$53) +($J31*'fnd base rates'!H$54) +($K31*'fnd base rates'!H$55) +($M31*'fnd base rates'!H$56) +($N31*'fnd base rates'!H$57) +($O31*'fnd base rates'!H$58) +($P31*'fnd base rates'!H$59) +($Q31*'fnd base rates'!H$60) +($R31*'fnd base rates'!H$61) +($S31*'fnd base rates'!H$62) +($L31*'fnd base rates'!H$63) +($T31*VLOOKUP($W31+16,rate_basefnd,8))) -> 3841.582 | AE31: =(($D31*'fnd base rates'!I$48) +($E31*'fnd base rates'!I$49) +($F31*'fnd base rates'!I$50) +($G31*'fnd base rates'!I$51) +($H31*'fnd base rates'!I$52) +($I31*'fnd base rates'!I$53) +($J31*'fnd base rates'!I$54) +($K31*'fnd base rates'!I$55) +($M31*'fnd base rates'!I$56) +($N31*'fnd base rates'!I$57) +($O31*'fnd base rates'!I$58) +($P31*'fnd base rates'!I$59) +($Q31*'fnd base rates'!I$60) +($R31*'fnd base rates'!I$61) +($S31*'fnd base rates'!I$62) +($L31*'fnd base rates'!I$63) +($T31*VLOOKUP($W31+16,rate_basefnd,9))) *$V31 -> 2497.20306 | AF31: =(($D31*'fnd base rates'!J$48) +($E31*'fnd base rates'!J$49) +($F31*'fnd base rates'!J$50) +($G31*'fnd base rates'!J$51) +($H31*'fnd base rates'!J$52) +($I31*'fnd base rates'!J$53) +($J31*'fnd base rates'!J$54) +($K31*'fnd base rates'!J$55) +($M31*'fnd base rates'!J$56) +($N31*'fnd base rates'!J$57) +($O31*'fnd base rates'!J$58) +($P31*'fnd base rates'!J$59) +($Q31*'fnd base rates'!J$60) +($R31*'fnd base rates'!J$61) +($S31*'fnd base rates'!J$62) +($L31*'fnd base rates'!J$63) +($T31*VLOOKUP($W31+16,rate_basefnd,10))) *$V31 -> 1769.34978 | AG31: =(($D31*'fnd base rates'!K$48) +($E31*'fnd base rates'!K$49) +($F31*'fnd base rates'!K$50) +($G31*'fnd base rates'!K$51) +($H31*'fnd base rates'!K$52) +($I31*'fnd base rates'!K$53) +($J31*'fnd base rates'!K$54) +($K31*'fnd base rates'!K$55) +($M31*'fnd base rates'!K$56) +($N31*'fnd base rates'!K$57) +($O31*'fnd base rates'!K$58) +($P31*'fnd base rates'!K$59) +($Q31*'fnd base rates'!K$60) +($R31*'fnd base rates'!K$61) +($S31*'fnd base rates'!K$62) +($L31*'fnd base rates'!K$63) +($T31*VLOOKUP($W31+16,rate_basefnd,11))) *$V31 -> 8892.735016 | AH31: =(($D31*'fnd base rates'!L$48) +($E31*'fnd base rates'!L$49) +($F31*'fnd base rates'!L$50) +($G31*'fnd base rates'!L$51) +($H31*'fnd base rates'!L$52) +($I31*'fnd base rates'!L$53) +($J31*'fnd base rates'!L$54) +($K31*'fnd base rates'!L$55) +($M31*'fnd base rates'!L$56) +($N31*'fnd base rates'!L$57) +($O31*'fnd base rates'!L$58) +($P31*'fnd base rates'!L$59) +($Q31*'fnd base rates'!L$60) +($R31*'fnd base rates'!L$61) +($S31*'fnd base rates'!L$62) +($L31*'fnd base rates'!L$63) +($T31*VLOOKUP($W31+16,rate_basefnd,12))) -> 9075.469 | AI31: =(($D31*'fnd base rates'!M$48) +($E31*'fnd base rates'!M$49) +($F31*'fnd base rates'!M$50) +($G31*'fnd base rates'!M$51) +($H31*'fnd base rates'!M$52) +($I31*'fnd base rates'!M$53) +($J31*'fnd base rates'!M$54) +($K31*'fnd base rates'!M$55) +($M31*'fnd base rates'!M$56) +($N31*'fnd base rates'!M$57) +($O31*'fnd base rates'!M$58) +($P31*'fnd base rates'!M$59) +($Q31*'fnd base rates'!M$60) +($R31*'fnd base rates'!M$61) +($S31*'fnd base rates'!M$62) +($L31*'fnd base rates'!M$63) +($T31*VLOOKUP($W31+16,rate_basefnd,13))) -> 0 | AJ31: 71790.38257 | AL31: 410057248 | AM31: 410 | AN31: 057 | AO31: 248 | AP31: 1 | AQ31: 8 | AR31: 71790.38257 | AS31: 8974
A32: 410 | B32: 410057262 | C32: EXCEL ACADEMY | D32: ='fnd enro'!D32 -> 0 | E32: ='fnd enro'!E32 -> 0 | F32: ='fnd enro'!F32 -> 0 | G32: ='fnd enro'!G32 -> 0 | H32: ='fnd enro'!H32 -> 1 | I32: ='fnd enro'!I32 -> 0 | J32: ='fnd enro'!J32 -> 0.0375 | K32: ='fnd enro'!K32 -> 0 | L32: ='fnd enro'!L32 -> 0 | M32: ='fnd enro'!M32 -> 0 | N32: ='fnd enro'!N32 -> 0 | O32: ='fnd enro'!O32 -> 0 | P32: ='fnd enro'!P32 -> 0 | Q32: ='fnd enro'!Q32 -> 0 | R32: ='fnd enro'!R32 -> 0 | S32: ='fnd enro'!S32 -> 0 | T32: ='fnd enro'!T32 -> 0 | U32: ='fnd enro'!W32 -> 1 | V32: 1.034 | W32: ='fnd enro'!V32 -> 1 | Y32: =(($D32*'fnd base rates'!C$48) +($E32*'fnd base rates'!C$49) +($F32*'fnd base rates'!C$50) +($G32*'fnd base rates'!C$51) +($H32*'fnd base rates'!C$52) +($I32*'fnd base rates'!C$53) +($J32*'fnd base rates'!C$54) +($K32*'fnd base rates'!C$55) +($M32*'fnd base rates'!C$56) +($N32*'fnd base rates'!C$57) +($O32*'fnd base rates'!C$58) +($P32*'fnd base rates'!C$59) +($Q32*'fnd base rates'!C$60) +($R32*'fnd base rates'!C$61) +($S32*'fnd base rates'!C$62) +($L32*'fnd base rates'!C$63) +($T32*VLOOKUP($W32+16,rate_basefnd,3))) *$V32 -> 491.6984078 | Z32: =(($D32*'fnd base rates'!D$48) +($E32*'fnd base rates'!D$49) +($F32*'fnd base rates'!D$50) +($G32*'fnd base rates'!D$51) +($H32*'fnd base rates'!D$52) +($I32*'fnd base rates'!D$53) +($J32*'fnd base rates'!D$54) +($K32*'fnd base rates'!D$55) +($M32*'fnd base rates'!D$56) +($N32*'fnd base rates'!D$57) +($O32*'fnd base rates'!D$58) +($P32*'fnd base rates'!D$59) +($Q32*'fnd base rates'!D$60) +($R32*'fnd base rates'!D$61) +($S32*'fnd base rates'!D$62) +($L32*'fnd base rates'!D$63) +($T32*VLOOKUP($W32+16,rate_basefnd,4))) *$V32 -> 705.46718 | AA32: =(($D32*'fnd base rates'!E$48) +($E32*'fnd base rates'!E$49) +($F32*'fnd base rates'!E$50) +($G32*'fnd base rates'!E$51) +($H32*'fnd base rates'!E$52) +($I32*'fnd base rates'!E$53) +($J32*'fnd base rates'!E$54) +($K32*'fnd base rates'!E$55) +($M32*'fnd base rates'!E$56) +($N32*'fnd base rates'!E$57) +($O32*'fnd base rates'!E$58) +($P32*'fnd base rates'!E$59) +($Q32*'fnd base rates'!E$60) +($R32*'fnd base rates'!E$61) +($S32*'fnd base rates'!E$62) +($L32*'fnd base rates'!E$63) +($T32*VLOOKUP($W32+16,rate_basefnd,5))) *$V32 -> 3180.198706 | AB32: =(($D32*'fnd base rates'!F$48) +($E32*'fnd base rates'!F$49) +($F32*'fnd base rates'!F$50) +($G32*'fnd base rates'!F$51) +($H32*'fnd base rates'!F$52) +($I32*'fnd base rates'!F$53) +($J32*'fnd base rates'!F$54) +($K32*'fnd base rates'!F$55) +($M32*'fnd base rates'!F$56) +($N32*'fnd base rates'!F$57) +($O32*'fnd base rates'!F$58) +($P32*'fnd base rates'!F$59) +($Q32*'fnd base rates'!F$60) +($R32*'fnd base rates'!F$61) +($S32*'fnd base rates'!F$62) +($L32*'fnd base rates'!F$63) +($T32*VLOOKUP($W32+16,rate_basefnd,6))) *$V32 -> 908.6932883 | AC32: =(($D32*'fnd base rates'!G$48) +($E32*'fnd base rates'!G$49) +($F32*'fnd base rates'!G$50) +($G32*'fnd base rates'!G$51) +($H32*'fnd base rates'!G$52) +($I32*'fnd base rates'!G$53) +($J32*'fnd base rates'!G$54) +($K32*'fnd base rates'!G$55) +($M32*'fnd base rates'!G$56) +($N32*'fnd base rates'!G$57) +($O32*'fnd base rates'!G$58) +($P32*'fnd base rates'!G$59) +($Q32*'fnd base rates'!G$60) +($R32*'fnd base rates'!G$61) +($S32*'fnd base rates'!G$62) +($L32*'fnd base rates'!G$63) +($T32*VLOOKUP($W32+16,rate_basefnd,7))) *$V32 -> 154.8651527 | AD32: =(($D32*'fnd base rates'!H$48) +($E32*'fnd base rates'!H$49) +($F32*'fnd base rates'!H$50) +($G32*'fnd base rates'!H$51) +($H32*'fnd base rates'!H$52) +($I32*'fnd base rates'!H$53) +($J32*'fnd base rates'!H$54) +($K32*'fnd base rates'!H$55) +($M32*'fnd base rates'!H$56) +($N32*'fnd base rates'!H$57) +($O32*'fnd base rates'!H$58) +($P32*'fnd base rates'!H$59) +($Q32*'fnd base rates'!H$60) +($R32*'fnd base rates'!H$61) +($S32*'fnd base rates'!H$62) +($L32*'fnd base rates'!H$63) +($T32*VLOOKUP($W32+16,rate_basefnd,8))) -> 466.384 | AE32: =(($D32*'fnd base rates'!I$48) +($E32*'fnd base rates'!I$49) +($F32*'fnd base rates'!I$50) +($G32*'fnd base rates'!I$51) +($H32*'fnd base rates'!I$52) +($I32*'fnd base rates'!I$53) +($J32*'fnd base rates'!I$54) +($K32*'fnd base rates'!I$55) +($M32*'fnd base rates'!I$56) +($N32*'fnd base rates'!I$57) +($O32*'fnd base rates'!I$58) +($P32*'fnd base rates'!I$59) +($Q32*'fnd base rates'!I$60) +($R32*'fnd base rates'!I$61) +($S32*'fnd base rates'!I$62) +($L32*'fnd base rates'!I$63) +($T32*VLOOKUP($W32+16,rate_basefnd,9))) *$V32 -> 313.32268 | AF32: =(($D32*'fnd base rates'!J$48) +($E32*'fnd base rates'!J$49) +($F32*'fnd base rates'!J$50) +($G32*'fnd base rates'!J$51) +($H32*'fnd base rates'!J$52) +($I32*'fnd base rates'!J$53) +($J32*'fnd base rates'!J$54) +($K32*'fnd base rates'!J$55) +($M32*'fnd base rates'!J$56) +($N32*'fnd base rates'!J$57) +($O32*'fnd base rates'!J$58) +($P32*'fnd base rates'!J$59) +($Q32*'fnd base rates'!J$60) +($R32*'fnd base rates'!J$61) +($S32*'fnd base rates'!J$62) +($L32*'fnd base rates'!J$63) +($T32*VLOOKUP($W32+16,rate_basefnd,10))) *$V32 -> 229.43426 | AG32: =(($D32*'fnd base rates'!K$48) +($E32*'fnd base rates'!K$49) +($F32*'fnd base rates'!K$50) +($G32*'fnd base rates'!K$51) +($H32*'fnd base rates'!K$52) +($I32*'fnd base rates'!K$53) +($J32*'fnd base rates'!K$54) +($K32*'fnd base rates'!K$55) +($M32*'fnd base rates'!K$56) +($N32*'fnd base rates'!K$57) +($O32*'fnd base rates'!K$58) +($P32*'fnd base rates'!K$59) +($Q32*'fnd base rates'!K$60) +($R32*'fnd base rates'!K$61) +($S32*'fnd base rates'!K$62) +($L32*'fnd base rates'!K$63) +($T32*VLOOKUP($W32+16,rate_basefnd,11))) *$V32 -> 1086.759074 | AH32: =(($D32*'fnd base rates'!L$48) +($E32*'fnd base rates'!L$49) +($F32*'fnd base rates'!L$50) +($G32*'fnd base rates'!L$51) +($H32*'fnd base rates'!L$52) +($I32*'fnd base rates'!L$53) +($J32*'fnd base rates'!L$54) +($K32*'fnd base rates'!L$55) +($M32*'fnd base rates'!L$56) +($N32*'fnd base rates'!L$57) +($O32*'fnd base rates'!L$58) +($P32*'fnd base rates'!L$59) +($Q32*'fnd base rates'!L$60) +($R32*'fnd base rates'!L$61) +($S32*'fnd base rates'!L$62) +($L32*'fnd base rates'!L$63) +($T32*VLOOKUP($W32+16,rate_basefnd,12))) -> 1106.073625 | AI32: =(($D32*'fnd base rates'!M$48) +($E32*'fnd base rates'!M$49) +($F32*'fnd base rates'!M$50) +($G32*'fnd base rates'!M$51) +($H32*'fnd base rates'!M$52) +($I32*'fnd base rates'!M$53) +($J32*'fnd base rates'!M$54) +($K32*'fnd base rates'!M$55) +($M32*'fnd base rates'!M$56) +($N32*'fnd base rates'!M$57) +($O32*'fnd base rates'!M$58) +($P32*'fnd base rates'!M$59) +($Q32*'fnd base rates'!M$60) +($R32*'fnd base rates'!M$61) +($S32*'fnd base rates'!M$62) +($L32*'fnd base rates'!M$63) +($T32*VLOOKUP($W32+16,rate_basefnd,13))) -> 0 | AJ32: 8642.896374 | AL32: 410057262 | AM32: 410 | AN32: 057 | AO32: 262 | AP32: 1 | AQ32: 1 | AR32: 8642.896374 | AS32: 8643
A33: 410 | B33: 410057308 | C33: EXCEL ACADEMY | D33: ='fnd enro'!D33 -> 0 | E33: ='fnd enro'!E33 -> 0 | F33: ='fnd enro'!F33 -> 0 | G33: ='fnd enro'!G33 -> 0 | H33: ='fnd enro'!H33 -> 1 | I33: ='fnd enro'!I33 -> 0 | J33: ='fnd enro'!J33 -> 0.0375 | K33: ='fnd enro'!K33 -> 0 | L33: ='fnd enro'!L33 -> 0 | M33: ='fnd enro'!M33 -> 0 | N33: ='fnd enro'!N33 -> 0 | O33: ='fnd enro'!O33 -> 0 | P33: ='fnd enro'!P33 -> 0 | Q33: ='fnd enro'!Q33 -> 0 | R33: ='fnd enro'!R33 -> 0 | S33: ='fnd enro'!S33 -> 0 | T33: ='fnd enro'!T33 -> 1 | U33: ='fnd enro'!W33 -> 1 | V33: 1.034 | W33: ='fnd enro'!V33 -> 10 | Y33: =(($D33*'fnd base rates'!C$48) +($E33*'fnd base rates'!C$49) +($F33*'fnd base rates'!C$50) +($G33*'fnd base rates'!C$51) +($H33*'fnd base rates'!C$52) +($I33*'fnd base rates'!C$53) +($J33*'fnd base rates'!C$54) +($K33*'fnd base rates'!C$55) +($M33*'fnd base rates'!C$56) +($N33*'fnd base rates'!C$57) +($O33*'fnd base rates'!C$58) +($P33*'fnd base rates'!C$59) +($Q33*'fnd base rates'!C$60) +($R33*'fnd base rates'!C$61) +($S33*'fnd base rates'!C$62) +($L33*'fnd base rates'!C$63) +($T33*VLOOKUP($W33+16,rate_basefnd,3))) *$V33 -> 491.6984078 | Z33: =(($D33*'fnd base rates'!D$48) +($E33*'fnd base rates'!D$49) +($F33*'fnd base rates'!D$50) +($G33*'fnd base rates'!D$51) +($H33*'fnd base rates'!D$52) +($I33*'fnd base rates'!D$53) +($J33*'fnd base rates'!D$54) +($K33*'fnd base rates'!D$55) +($M33*'fnd base rates'!D$56) +($N33*'fnd base rates'!D$57) +($O33*'fnd base rates'!D$58) +($P33*'fnd base rates'!D$59) +($Q33*'fnd base rates'!D$60) +($R33*'fnd base rates'!D$61) +($S33*'fnd base rates'!D$62) +($L33*'fnd base rates'!D$63) +($T33*VLOOKUP($W33+16,rate_basefnd,4))) *$V33 -> 705.46718 | AA33: =(($D33*'fnd base rates'!E$48) +($E33*'fnd base rates'!E$49) +($F33*'fnd base rates'!E$50) +($G33*'fnd base rates'!E$51) +($H33*'fnd base rates'!E$52) +($I33*'fnd base rates'!E$53) +($J33*'fnd base rates'!E$54) +($K33*'fnd base rates'!E$55) +($M33*'fnd base rates'!E$56) +($N33*'fnd base rates'!E$57) +($O33*'fnd base rates'!E$58) +($P33*'fnd base rates'!E$59) +($Q33*'fnd base rates'!E$60) +($R33*'fnd base rates'!E$61) +($S33*'fnd base rates'!E$62) +($L33*'fnd base rates'!E$63) +($T33*VLOOKUP($W33+16,rate_basefnd,5))) *$V33 -> 6389.801502 | AB33: =(($D33*'fnd base rates'!F$48) +($E33*'fnd base rates'!F$49) +($F33*'fnd base rates'!F$50) +($G33*'fnd base rates'!F$51) +($H33*'fnd base rates'!F$52) +($I33*'fnd base rates'!F$53) +($J33*'fnd base rates'!F$54) +($K33*'fnd base rates'!F$55) +($M33*'fnd base rates'!F$56) +($N33*'fnd base rates'!F$57) +($O33*'fnd base rates'!F$58) +($P33*'fnd base rates'!F$59) +($Q33*'fnd base rates'!F$60) +($R33*'fnd base rates'!F$61) +($S33*'fnd base rates'!F$62) +($L33*'fnd base rates'!F$63) +($T33*VLOOKUP($W33+16,rate_basefnd,6))) *$V33 -> 908.6932883 | AC33: =(($D33*'fnd base rates'!G$48) +($E33*'fnd base rates'!G$49) +($F33*'fnd base rates'!G$50) +($G33*'fnd base rates'!G$51) +($H33*'fnd base rates'!G$52) +($I33*'fnd base rates'!G$53) +($J33*'fnd base rates'!G$54) +($K33*'fnd base rates'!G$55) +($M33*'fnd base rates'!G$56) +($N33*'fnd base rates'!G$57) +($O33*'fnd base rates'!G$58) +($P33*'fnd base rates'!G$59) +($Q33*'fnd base rates'!G$60) +($R33*'fnd base rates'!G$61) +($S33*'fnd base rates'!G$62) +($L33*'fnd base rates'!G$63) +($T33*VLOOKUP($W33+16,rate_basefnd,7))) *$V33 -> 237.1626603 | AD33: =(($D33*'fnd base rates'!H$48) +($E33*'fnd base rates'!H$49) +($F33*'fnd base rates'!H$50) +($G33*'fnd base rates'!H$51) +($H33*'fnd base rates'!H$52) +($I33*'fnd base rates'!H$53) +($J33*'fnd base rates'!H$54) +($K33*'fnd base rates'!H$55) +($M33*'fnd base rates'!H$56) +($N33*'fnd base rates'!H$57) +($O33*'fnd base rates'!H$58) +($P33*'fnd base rates'!H$59) +($Q33*'fnd base rates'!H$60) +($R33*'fnd base rates'!H$61) +($S33*'fnd base rates'!H$62) +($L33*'fnd base rates'!H$63) +($T33*VLOOKUP($W33+16,rate_basefnd,8))) -> 466.384 | AE33: =(($D33*'fnd base rates'!I$48) +($E33*'fnd base rates'!I$49) +($F33*'fnd base rates'!I$50) +($G33*'fnd base rates'!I$51) +($H33*'fnd base rates'!I$52) +($I33*'fnd base rates'!I$53) +($J33*'fnd base rates'!I$54) +($K33*'fnd base rates'!I$55) +($M33*'fnd base rates'!I$56) +($N33*'fnd base rates'!I$57) +($O33*'fnd base rates'!I$58) +($P33*'fnd base rates'!I$59) +($Q33*'fnd base rates'!I$60) +($R33*'fnd base rates'!I$61) +($S33*'fnd base rates'!I$62) +($L33*'fnd base rates'!I$63) +($T33*VLOOKUP($W33+16,rate_basefnd,9))) *$V33 -> 313.32268 | AF33: =(($D33*'fnd base rates'!J$48) +($E33*'fnd base rates'!J$49) +($F33*'fnd base rates'!J$50) +($G33*'fnd base rates'!J$51) +($H33*'fnd base rates'!J$52) +($I33*'fnd base rates'!J$53) +($J33*'fnd base rates'!J$54) +($K33*'fnd base rates'!J$55) +($M33*'fnd base rates'!J$56) +($N33*'fnd base rates'!J$57) +($O33*'fnd base rates'!J$58) +($P33*'fnd base rates'!J$59) +($Q33*'fnd base rates'!J$60) +($R33*'fnd base rates'!J$61) +($S33*'fnd base rates'!J$62) +($L33*'fnd base rates'!J$63) +($T33*VLOOKUP($W33+16,rate_basefnd,10))) *$V33 -> 229.43426 | AG33: =(($D33*'fnd base rates'!K$48) +($E33*'fnd base rates'!K$49) +($F33*'fnd base rates'!K$50) +($G33*'fnd base rates'!K$51) +($H33*'fnd base rates'!K$52) +($I33*'fnd base rates'!K$53) +($J33*'fnd base rates'!K$54) +($K33*'fnd base rates'!K$55) +($M33*'fnd base rates'!K$56) +($N33*'fnd base rates'!K$57) +($O33*'fnd base rates'!K$58) +($P33*'fnd base rates'!K$59) +($Q33*'fnd base rates'!K$60) +($R33*'fnd base rates'!K$61) +($S33*'fnd base rates'!K$62) +($L33*'fnd base rates'!K$63) +($T33*VLOOKUP($W33+16,rate_basefnd,11))) *$V33 -> 1580.54412 | AH33: =(($D33*'fnd base rates'!L$48) +($E33*'fnd base rates'!L$49) +($F33*'fnd base rates'!L$50) +($G33*'fnd base rates'!L$51) +($H33*'fnd base rates'!L$52) +($I33*'fnd base rates'!L$53) +($J33*'fnd base rates'!L$54) +($K33*'fnd base rates'!L$55) +($M33*'fnd base rates'!L$56) +($N33*'fnd base rates'!L$57) +($O33*'fnd base rates'!L$58) +($P33*'fnd base rates'!L$59) +($Q33*'fnd base rates'!L$60) +($R33*'fnd base rates'!L$61) +($S33*'fnd base rates'!L$62) +($L33*'fnd base rates'!L$63) +($T33*VLOOKUP($W33+16,rate_basefnd,12))) -> 1424.439225 | AI33: =(($D33*'fnd base rates'!M$48) +($E33*'fnd base rates'!M$49) +($F33*'fnd base rates'!M$50) +($G33*'fnd base rates'!M$51) +($H33*'fnd base rates'!M$52) +($I33*'fnd base rates'!M$53) +($J33*'fnd base rates'!M$54) +($K33*'fnd base rates'!M$55) +($M33*'fnd base rates'!M$56) +($N33*'fnd base rates'!M$57) +($O33*'fnd base rates'!M$58) +($P33*'fnd base rates'!M$59) +($Q33*'fnd base rates'!M$60) +($R33*'fnd base rates'!M$61) +($S33*'fnd base rates'!M$62) +($L33*'fnd base rates'!M$63) +($T33*VLOOKUP($W33+16,rate_basefnd,13))) -> 0 | AJ33: 12746.94732 | AL33: 410057308 | AM33: 410 | AN33: 057 | AO33: 308 | AP33: 1 | AQ33: 1 | AR33: 12746.94732 | AS33: 12747
A34: 412 | B34: 412035035 | C34: ACADEMY OF THE PACIFIC RIM | D34: ='fnd enro'!D34 -> 0 | E34: ='fnd enro'!E34 -> 0 | F34: ='fnd enro'!F34 -> 0 | G34: ='fnd enro'!G34 -> 77 | H34: ='fnd enro'!H34 -> 216 | I34: ='fnd enro'!I34 -> 188 | J34: ='fnd enro'!J34 -> 18.0375 | K34: ='fnd enro'!K34 -> 0 | L34: ='fnd enro'!L34 -> 0 | M34: ='fnd enro'!M34 -> 0 | N34: ='fnd enro'!N34 -> 0 | O34: ='fnd enro'!O34 -> 0 | P34: ='fnd enro'!P34 -> 17 | Q34: ='fnd enro'!Q34 -> 29 | R34: ='fnd enro'!R34 -> 14 | S34: ='fnd enro'!S34 -> 0 | T34: ='fnd enro'!T34 -> 239 | U34: ='fnd enro'!W34 -> 481 | V34: 1.078 | W34: ='fnd enro'!V34 -> 9 | Y34: =(($D34*'fnd base rates'!C$48) +($E34*'fnd base rates'!C$49) +($F34*'fnd base rates'!C$50) +($G34*'fnd base rates'!C$51) +($H34*'fnd base rates'!C$52) +($I34*'fnd base rates'!C$53) +($J34*'fnd base rates'!C$54) +($K34*'fnd base rates'!C$55) +($M34*'fnd base rates'!C$56) +($N34*'fnd base rates'!C$57) +($O34*'fnd base rates'!C$58) +($P34*'fnd base rates'!C$59) +($Q34*'fnd base rates'!C$60) +($R34*'fnd base rates'!C$61) +($S34*'fnd base rates'!C$62) +($L34*'fnd base rates'!C$63) +($T34*VLOOKUP($W34+16,rate_basefnd,3))) *$V34 -> 252149.1376 | Z34: =(($D34*'fnd base rates'!D$48) +($E34*'fnd base rates'!D$49) +($F34*'fnd base rates'!D$50) +($G34*'fnd base rates'!D$51) +($H34*'fnd base rates'!D$52) +($I34*'fnd base rates'!D$53) +($J34*'fnd base rates'!D$54) +($K34*'fnd base rates'!D$55) +($M34*'fnd base rates'!D$56) +($N34*'fnd base rates'!D$57) +($O34*'fnd base rates'!D$58) +($P34*'fnd base rates'!D$59) +($Q34*'fnd base rates'!D$60) +($R34*'fnd base rates'!D$61) +($S34*'fnd base rates'!D$62) +($L34*'fnd base rates'!D$63) +($T34*VLOOKUP($W34+16,rate_basefnd,4))) *$V34 -> 363530.7383 | AA34: =(($D34*'fnd base rates'!E$48) +($E34*'fnd base rates'!E$49) +($F34*'fnd base rates'!E$50) +($G34*'fnd base rates'!E$51) +($H34*'fnd base rates'!E$52) +($I34*'fnd base rates'!E$53) +($J34*'fnd base rates'!E$54) +($K34*'fnd base rates'!E$55) +($M34*'fnd base rates'!E$56) +($N34*'fnd base rates'!E$57) +($O34*'fnd base rates'!E$58) +($P34*'fnd base rates'!E$59) +($Q34*'fnd base rates'!E$60) +($R34*'fnd base rates'!E$61) +($S34*'fnd base rates'!E$62) +($L34*'fnd base rates'!E$63) +($T34*VLOOKUP($W34+16,rate_basefnd,5))) *$V34 -> 2748510.537 | AB34: =(($D34*'fnd base rates'!F$48) +($E34*'fnd base rates'!F$49) +($F34*'fnd base rates'!F$50) +($G34*'fnd base rates'!F$51) +($H34*'fnd base rates'!F$52) +($I34*'fnd base rates'!F$53) +($J34*'fnd base rates'!F$54) +($K34*'fnd base rates'!F$55) +($M34*'fnd base rates'!F$56) +($N34*'fnd base rates'!F$57) +($O34*'fnd base rates'!F$58) +($P34*'fnd base rates'!F$59) +($Q34*'fnd base rates'!F$60) +($R34*'fnd base rates'!F$61) +($S34*'fnd base rates'!F$62) +($L34*'fnd base rates'!F$63) +($T34*VLOOKUP($W34+16,rate_basefnd,6))) *$V34 -> 464495.3491 | AC34: =(($D34*'fnd base rates'!G$48) +($E34*'fnd base rates'!G$49) +($F34*'fnd base rates'!G$50) +($G34*'fnd base rates'!G$51) +($H34*'fnd base rates'!G$52) +($I34*'fnd base rates'!G$53) +($J34*'fnd base rates'!G$54) +($K34*'fnd base rates'!G$55) +($M34*'fnd base rates'!G$56) +($N34*'fnd base rates'!G$57) +($O34*'fnd base rates'!G$58) +($P34*'fnd base rates'!G$59) +($Q34*'fnd base rates'!G$60) +($R34*'fnd base rates'!G$61) +($S34*'fnd base rates'!G$62) +($L34*'fnd base rates'!G$63) +($T34*VLOOKUP($W34+16,rate_basefnd,7))) *$V34 -> 99057.81614 | AD34: =(($D34*'fnd base rates'!H$48) +($E34*'fnd base rates'!H$49) +($F34*'fnd base rates'!H$50) +($G34*'fnd base rates'!H$51) +($H34*'fnd base rates'!H$52) +($I34*'fnd base rates'!H$53) +($J34*'fnd base rates'!H$54) +($K34*'fnd base rates'!H$55) +($M34*'fnd base rates'!H$56) +($N34*'fnd base rates'!H$57) +($O34*'fnd base rates'!H$58) +($P34*'fnd base rates'!H$59) +($Q34*'fnd base rates'!H$60) +($R34*'fnd base rates'!H$61) +($S34*'fnd base rates'!H$62) +($L34*'fnd base rates'!H$63) +($T34*VLOOKUP($W34+16,rate_basefnd,8))) -> 281874.484 | AE34: =(($D34*'fnd base rates'!I$48) +($E34*'fnd base rates'!I$49) +($F34*'fnd base rates'!I$50) +($G34*'fnd base rates'!I$51) +($H34*'fnd base rates'!I$52) +($I34*'fnd base rates'!I$53) +($J34*'fnd base rates'!I$54) +($K34*'fnd base rates'!I$55) +($M34*'fnd base rates'!I$56) +($N34*'fnd base rates'!I$57) +($O34*'fnd base rates'!I$58) +($P34*'fnd base rates'!I$59) +($Q34*'fnd base rates'!I$60) +($R34*'fnd base rates'!I$61) +($S34*'fnd base rates'!I$62) +($L34*'fnd base rates'!I$63) +($T34*VLOOKUP($W34+16,rate_basefnd,9))) *$V34 -> 170619.2211 | AF34: =(($D34*'fnd base rates'!J$48) +($E34*'fnd base rates'!J$49) +($F34*'fnd base rates'!J$50) +($G34*'fnd base rates'!J$51) +($H34*'fnd base rates'!J$52) +($I34*'fnd base rates'!J$53) +($J34*'fnd base rates'!J$54) +($K34*'fnd base rates'!J$55) +($M34*'fnd base rates'!J$56) +($N34*'fnd base rates'!J$57) +($O34*'fnd base rates'!J$58) +($P34*'fnd base rates'!J$59) +($Q34*'fnd base rates'!J$60) +($R34*'fnd base rates'!J$61) +($S34*'fnd base rates'!J$62) +($L34*'fnd base rates'!J$63) +($T34*VLOOKUP($W34+16,rate_basefnd,10))) *$V34 -> 168031.7516 | AG34: =(($D34*'fnd base rates'!K$48) +($E34*'fnd base rates'!K$49) +($F34*'fnd base rates'!K$50) +($G34*'fnd base rates'!K$51) +($H34*'fnd base rates'!K$52) +($I34*'fnd base rates'!K$53) +($J34*'fnd base rates'!K$54) +($K34*'fnd base rates'!K$55) +($M34*'fnd base rates'!K$56) +($N34*'fnd base rates'!K$57) +($O34*'fnd base rates'!K$58) +($P34*'fnd base rates'!K$59) +($Q34*'fnd base rates'!K$60) +($R34*'fnd base rates'!K$61) +($S34*'fnd base rates'!K$62) +($L34*'fnd base rates'!K$63) +($T34*VLOOKUP($W34+16,rate_basefnd,11))) *$V34 -> 671641.8975 | AH34: =(($D34*'fnd base rates'!L$48) +($E34*'fnd base rates'!L$49) +($F34*'fnd base rates'!L$50) +($G34*'fnd base rates'!L$51) +($H34*'fnd base rates'!L$52) +($I34*'fnd base rates'!L$53) +($J34*'fnd base rates'!L$54) +($K34*'fnd base rates'!L$55) +($M34*'fnd base rates'!L$56) +($N34*'fnd base rates'!L$57) +($O34*'fnd base rates'!L$58) +($P34*'fnd base rates'!L$59) +($Q34*'fnd base rates'!L$60) +($R34*'fnd base rates'!L$61) +($S34*'fnd base rates'!L$62) +($L34*'fnd base rates'!L$63) +($T34*VLOOKUP($W34+16,rate_basefnd,12))) -> 603881.532 | AI34: =(($D34*'fnd base rates'!M$48) +($E34*'fnd base rates'!M$49) +($F34*'fnd base rates'!M$50) +($G34*'fnd base rates'!M$51) +($H34*'fnd base rates'!M$52) +($I34*'fnd base rates'!M$53) +($J34*'fnd base rates'!M$54) +($K34*'fnd base rates'!M$55) +($M34*'fnd base rates'!M$56) +($N34*'fnd base rates'!M$57) +($O34*'fnd base rates'!M$58) +($P34*'fnd base rates'!M$59) +($Q34*'fnd base rates'!M$60) +($R34*'fnd base rates'!M$61) +($S34*'fnd base rates'!M$62) +($L34*'fnd base rates'!M$63) +($T34*VLOOKUP($W34+16,rate_basefnd,13))) -> 0 | AJ34: 5823792.464 | AL34: 412035035 | AM34: 412 | AN34: 035 | AO34: 035 | AP34: 1 | AQ34: 481 | AR34: 5823792.464 | AS34: 12108
A35: 412 | B35: 412035044 | C35: ACADEMY OF THE PACIFIC RIM | D35: ='fnd enro'!D35 -> 0 | E35: ='fnd enro'!E35 -> 0 | F35: ='fnd enro'!F35 -> 0 | G35: ='fnd enro'!G35 -> 0 | H35: ='fnd enro'!H35 -> 6 | I35: ='fnd enro'!I35 -> 1 | J35: ='fnd enro'!J35 -> 0.2625 | K35: ='fnd enro'!K35 -> 0 | L35: ='fnd enro'!L35 -> 0 | M35: ='fnd enro'!M35 -> 0 | N35: ='fnd enro'!N35 -> 0 | O35: ='fnd enro'!O35 -> 0 | P35: ='fnd enro'!P35 -> 0 | Q35: ='fnd enro'!Q35 -> 0 | R35: ='fnd enro'!R35 -> 0 | S35: ='fnd enro'!S35 -> 0 | T35: ='fnd enro'!T35 -> 1 | U35: ='fnd enro'!W35 -> 7 | V35: 1.078 | W35: ='fnd enro'!V35 -> 3 | Y35: =(($D35*'fnd base rates'!C$48) +($E35*'fnd base rates'!C$49) +($F35*'fnd base rates'!C$50) +($G35*'fnd base rates'!C$51) +($H35*'fnd base rates'!C$52) +($I35*'fnd base rates'!C$53) +($J35*'fnd base rates'!C$54) +($K35*'fnd base rates'!C$55) +($M35*'fnd base rates'!C$56) +($N35*'fnd base rates'!C$57) +($O35*'fnd base rates'!C$58) +($P35*'fnd base rates'!C$59) +($Q35*'fnd base rates'!C$60) +($R35*'fnd base rates'!C$61) +($S35*'fnd base rates'!C$62) +($L35*'fnd base rates'!C$63) +($T35*VLOOKUP($W35+16,rate_basefnd,3))) *$V35 -> 3588.35221 | Z35: =(($D35*'fnd base rates'!D$48) +($E35*'fnd base rates'!D$49) +($F35*'fnd base rates'!D$50) +($G35*'fnd base rates'!D$51) +($H35*'fnd base rates'!D$52) +($I35*'fnd base rates'!D$53) +($J35*'fnd base rates'!D$54) +($K35*'fnd base rates'!D$55) +($M35*'fnd base rates'!D$56) +($N35*'fnd base rates'!D$57) +($O35*'fnd base rates'!D$58) +($P35*'fnd base rates'!D$59) +($Q35*'fnd base rates'!D$60) +($R35*'fnd base rates'!D$61) +($S35*'fnd base rates'!D$62) +($L35*'fnd base rates'!D$63) +($T35*VLOOKUP($W35+16,rate_basefnd,4))) *$V35 -> 5148.40942 | AA35: =(($D35*'fnd base rates'!E$48) +($E35*'fnd base rates'!E$49) +($F35*'fnd base rates'!E$50) +($G35*'fnd base rates'!E$51) +($H35*'fnd base rates'!E$52) +($I35*'fnd base rates'!E$53) +($J35*'fnd base rates'!E$54) +($K35*'fnd base rates'!E$55) +($M35*'fnd base rates'!E$56) +($N35*'fnd base rates'!E$57) +($O35*'fnd base rates'!E$58) +($P35*'fnd base rates'!E$59) +($Q35*'fnd base rates'!E$60) +($R35*'fnd base rates'!E$61) +($S35*'fnd base rates'!E$62) +($L35*'fnd base rates'!E$63) +($T35*VLOOKUP($W35+16,rate_basefnd,5))) *$V35 -> 27715.99039 | AB35: =(($D35*'fnd base rates'!F$48) +($E35*'fnd base rates'!F$49) +($F35*'fnd base rates'!F$50) +($G35*'fnd base rates'!F$51) +($H35*'fnd base rates'!F$52) +($I35*'fnd base rates'!F$53) +($J35*'fnd base rates'!F$54) +($K35*'fnd base rates'!F$55) +($M35*'fnd base rates'!F$56) +($N35*'fnd base rates'!F$57) +($O35*'fnd base rates'!F$58) +($P35*'fnd base rates'!F$59) +($Q35*'fnd base rates'!F$60) +($R35*'fnd base rates'!F$61) +($S35*'fnd base rates'!F$62) +($L35*'fnd base rates'!F$63) +($T35*VLOOKUP($W35+16,rate_basefnd,6))) *$V35 -> 6527.241894 | AC35: =(($D35*'fnd base rates'!G$48) +($E35*'fnd base rates'!G$49) +($F35*'fnd base rates'!G$50) +($G35*'fnd base rates'!G$51) +($H35*'fnd base rates'!G$52) +($I35*'fnd base rates'!G$53) +($J35*'fnd base rates'!G$54) +($K35*'fnd base rates'!G$55) +($M35*'fnd base rates'!G$56) +($N35*'fnd base rates'!G$57) +($O35*'fnd base rates'!G$58) +($P35*'fnd base rates'!G$59) +($Q35*'fnd base rates'!G$60) +($R35*'fnd base rates'!G$61) +($S35*'fnd base rates'!G$62) +($L35*'fnd base rates'!G$63) +($T35*VLOOKUP($W35+16,rate_basefnd,7))) *$V35 -> 1205.550604 | AD35: =(($D35*'fnd base rates'!H$48) +($E35*'fnd base rates'!H$49) +($F35*'fnd base rates'!H$50) +($G35*'fnd base rates'!H$51) +($H35*'fnd base rates'!H$52) +($I35*'fnd base rates'!H$53) +($J35*'fnd base rates'!H$54) +($K35*'fnd base rates'!H$55) +($M35*'fnd base rates'!H$56) +($N35*'fnd base rates'!H$57) +($O35*'fnd base rates'!H$58) +($P35*'fnd base rates'!H$59) +($Q35*'fnd base rates'!H$60) +($R35*'fnd base rates'!H$61) +($S35*'fnd base rates'!H$62) +($L35*'fnd base rates'!H$63) +($T35*VLOOKUP($W35+16,rate_basefnd,8))) -> 3536.368 | AE35: =(($D35*'fnd base rates'!I$48) +($E35*'fnd base rates'!I$49) +($F35*'fnd base rates'!I$50) +($G35*'fnd base rates'!I$51) +($H35*'fnd base rates'!I$52) +($I35*'fnd base rates'!I$53) +($J35*'fnd base rates'!I$54) +($K35*'fnd base rates'!I$55) +($M35*'fnd base rates'!I$56) +($N35*'fnd base rates'!I$57) +($O35*'fnd base rates'!I$58) +($P35*'fnd base rates'!I$59) +($Q35*'fnd base rates'!I$60) +($R35*'fnd base rates'!I$61) +($S35*'fnd base rates'!I$62) +($L35*'fnd base rates'!I$63) +($T35*VLOOKUP($W35+16,rate_basefnd,9))) *$V35 -> 2369.41166 | AF35: =(($D35*'fnd base rates'!J$48) +($E35*'fnd base rates'!J$49) +($F35*'fnd base rates'!J$50) +($G35*'fnd base rates'!J$51) +($H35*'fnd base rates'!J$52) +($I35*'fnd base rates'!J$53) +($J35*'fnd base rates'!J$54) +($K35*'fnd base rates'!J$55) +($M35*'fnd base rates'!J$56) +($N35*'fnd base rates'!J$57) +($O35*'fnd base rates'!J$58) +($P35*'fnd base rates'!J$59) +($Q35*'fnd base rates'!J$60) +($R35*'fnd base rates'!J$61) +($S35*'fnd base rates'!J$62) +($L35*'fnd base rates'!J$63) +($T35*VLOOKUP($W35+16,rate_basefnd,10))) *$V35 -> 1986.754 | AG35: =(($D35*'fnd base rates'!K$48) +($E35*'fnd base rates'!K$49) +($F35*'fnd base rates'!K$50) +($G35*'fnd base rates'!K$51) +($H35*'fnd base rates'!K$52) +($I35*'fnd base rates'!K$53) +($J35*'fnd base rates'!K$54) +($K35*'fnd base rates'!K$55) +($M35*'fnd base rates'!K$56) +($N35*'fnd base rates'!K$57) +($O35*'fnd base rates'!K$58) +($P35*'fnd base rates'!K$59) +($Q35*'fnd base rates'!K$60) +($R35*'fnd base rates'!K$61) +($S35*'fnd base rates'!K$62) +($L35*'fnd base rates'!K$63) +($T35*VLOOKUP($W35+16,rate_basefnd,11))) *$V35 -> 8378.753006 | AH35: =(($D35*'fnd base rates'!L$48) +($E35*'fnd base rates'!L$49) +($F35*'fnd base rates'!L$50) +($G35*'fnd base rates'!L$51) +($H35*'fnd base rates'!L$52) +($I35*'fnd base rates'!L$53) +($J35*'fnd base rates'!L$54) +($K35*'fnd base rates'!L$55) +($M35*'fnd base rates'!L$56) +($N35*'fnd base rates'!L$57) +($O35*'fnd base rates'!L$58) +($P35*'fnd base rates'!L$59) +($Q35*'fnd base rates'!L$60) +($R35*'fnd base rates'!L$61) +($S35*'fnd base rates'!L$62) +($L35*'fnd base rates'!L$63) +($T35*VLOOKUP($W35+16,rate_basefnd,12))) -> 7951.010975 | AI35: =(($D35*'fnd base rates'!M$48) +($E35*'fnd base rates'!M$49) +($F35*'fnd base rates'!M$50) +($G35*'fnd base rates'!M$51) +($H35*'fnd base rates'!M$52) +($I35*'fnd base rates'!M$53) +($J35*'fnd base rates'!M$54) +($K35*'fnd base rates'!M$55) +($M35*'fnd base rates'!M$56) +($N35*'fnd base rates'!M$57) +($O35*'fnd base rates'!M$58) +($P35*'fnd base rates'!M$59) +($Q35*'fnd base rates'!M$60) +($R35*'fnd base rates'!M$61) +($S35*'fnd base rates'!M$62) +($L35*'fnd base rates'!M$63) +($T35*VLOOKUP($W35+16,rate_basefnd,13))) -> 0 | AJ35: 68407.84216 | AL35: 412035044 | AM35: 412 | AN35: 035 | AO35: 044 | AP35: 1 | AQ35: 7 | AR35: 68407.84216 | AS35: 9773
A36: 412 | B36: 412035046 | C36: ACADEMY OF THE PACIFIC RIM | D36: ='fnd enro'!D36 -> 0 | E36: ='fnd enro'!E36 -> 0 | F36: ='fnd enro'!F36 -> 0 | G36: ='fnd enro'!G36 -> 0 | H36: ='fnd enro'!H36 -> 0 | I36: ='fnd enro'!I36 -> 1 | J36: ='fnd enro'!J36 -> 0.0375 | K36: ='fnd enro'!K36 -> 0 | L36: ='fnd enro'!L36 -> 0 | M36: ='fnd enro'!M36 -> 0 | N36: ='fnd enro'!N36 -> 0 | O36: ='fnd enro'!O36 -> 0 | P36: ='fnd enro'!P36 -> 0 | Q36: ='fnd enro'!Q36 -> 0 | R36: ='fnd enro'!R36 -> 1 | S36: ='fnd enro'!S36 -> 0 | T36: ='fnd enro'!T36 -> 0 | U36: ='fnd enro'!W36 -> 1 | V36: 1.078 | W36: ='fnd enro'!V36 -> 1 | Y36: =(($D36*'fnd base rates'!C$48) +($E36*'fnd base rates'!C$49) +($F36*'fnd base rates'!C$50) +($G36*'fnd base rates'!C$51) +($H36*'fnd base rates'!C$52) +($I36*'fnd base rates'!C$53) +($J36*'fnd base rates'!C$54) +($K36*'fnd base rates'!C$55) +($M36*'fnd base rates'!C$56) +($N36*'fnd base rates'!C$57) +($O36*'fnd base rates'!C$58) +($P36*'fnd base rates'!C$59) +($Q36*'fnd base rates'!C$60) +($R36*'fnd base rates'!C$61) +($S36*'fnd base rates'!C$62) +($L36*'fnd base rates'!C$63) +($T36*VLOOKUP($W36+16,rate_basefnd,3))) *$V36 -> 587.1223243 | Z36: =(($D36*'fnd base rates'!D$48) +($E36*'fnd base rates'!D$49) +($F36*'fnd base rates'!D$50) +($G36*'fnd base rates'!D$51) +($H36*'fnd base rates'!D$52) +($I36*'fnd base rates'!D$53) +($J36*'fnd base rates'!D$54) +($K36*'fnd base rates'!D$55) +($M36*'fnd base rates'!D$56) +($N36*'fnd base rates'!D$57) +($O36*'fnd base rates'!D$58) +($P36*'fnd base rates'!D$59) +($Q36*'fnd base rates'!D$60) +($R36*'fnd base rates'!D$61) +($S36*'fnd base rates'!D$62) +($L36*'fnd base rates'!D$63) +($T36*VLOOKUP($W36+16,rate_basefnd,4))) *$V36 -> 865.86038 | AA36: =(($D36*'fnd base rates'!E$48) +($E36*'fnd base rates'!E$49) +($F36*'fnd base rates'!E$50) +($G36*'fnd base rates'!E$51) +($H36*'fnd base rates'!E$52) +($I36*'fnd base rates'!E$53) +($J36*'fnd base rates'!E$54) +($K36*'fnd base rates'!E$55) +($M36*'fnd base rates'!E$56) +($N36*'fnd base rates'!E$57) +($O36*'fnd base rates'!E$58) +($P36*'fnd base rates'!E$59) +($Q36*'fnd base rates'!E$60) +($R36*'fnd base rates'!E$61) +($S36*'fnd base rates'!E$62) +($L36*'fnd base rates'!E$63) +($T36*VLOOKUP($W36+16,rate_basefnd,5))) *$V36 -> 5624.66699 | AB36: =(($D36*'fnd base rates'!F$48) +($E36*'fnd base rates'!F$49) +($F36*'fnd base rates'!F$50) +($G36*'fnd base rates'!F$51) +($H36*'fnd base rates'!F$52) +($I36*'fnd base rates'!F$53) +($J36*'fnd base rates'!F$54) +($K36*'fnd base rates'!F$55) +($M36*'fnd base rates'!F$56) +($N36*'fnd base rates'!F$57) +($O36*'fnd base rates'!F$58) +($P36*'fnd base rates'!F$59) +($Q36*'fnd base rates'!F$60) +($R36*'fnd base rates'!F$61) +($S36*'fnd base rates'!F$62) +($L36*'fnd base rates'!F$63) +($T36*VLOOKUP($W36+16,rate_basefnd,6))) *$V36 -> 973.4486878 | AC36: =(($D36*'fnd base rates'!G$48) +($E36*'fnd base rates'!G$49) +($F36*'fnd base rates'!G$50) +($G36*'fnd base rates'!G$51) +($H36*'fnd base rates'!G$52) +($I36*'fnd base rates'!G$53) +($J36*'fnd base rates'!G$54) +($K36*'fnd base rates'!G$55) +($M36*'fnd base rates'!G$56) +($N36*'fnd base rates'!G$57) +($O36*'fnd base rates'!G$58) +($P36*'fnd base rates'!G$59) +($Q36*'fnd base rates'!G$60) +($R36*'fnd base rates'!G$61) +($S36*'fnd base rates'!G$62) +($L36*'fnd base rates'!G$63) +($T36*VLOOKUP($W36+16,rate_basefnd,7))) *$V36 -> 194.3018192 | AD36: =(($D36*'fnd base rates'!H$48) +($E36*'fnd base rates'!H$49) +($F36*'fnd base rates'!H$50) +($G36*'fnd base rates'!H$51) +($H36*'fnd base rates'!H$52) +($I36*'fnd base rates'!H$53) +($J36*'fnd base rates'!H$54) +($K36*'fnd base rates'!H$55) +($M36*'fnd base rates'!H$56) +($N36*'fnd base rates'!H$57) +($O36*'fnd base rates'!H$58) +($P36*'fnd base rates'!H$59) +($Q36*'fnd base rates'!H$60) +($R36*'fnd base rates'!H$61) +($S36*'fnd base rates'!H$62) +($L36*'fnd base rates'!H$63) +($T36*VLOOKUP($W36+16,rate_basefnd,8))) -> 824.444 | AE36: =(($D36*'fnd base rates'!I$48) +($E36*'fnd base rates'!I$49) +($F36*'fnd base rates'!I$50) +($G36*'fnd base rates'!I$51) +($H36*'fnd base rates'!I$52) +($I36*'fnd base rates'!I$53) +($J36*'fnd base rates'!I$54) +($K36*'fnd base rates'!I$55) +($M36*'fnd base rates'!I$56) +($N36*'fnd base rates'!I$57) +($O36*'fnd base rates'!I$58) +($P36*'fnd base rates'!I$59) +($Q36*'fnd base rates'!I$60) +($R36*'fnd base rates'!I$61) +($S36*'fnd base rates'!I$62) +($L36*'fnd base rates'!I$63) +($T36*VLOOKUP($W36+16,rate_basefnd,9))) *$V36 -> 465.35104 | AF36: =(($D36*'fnd base rates'!J$48) +($E36*'fnd base rates'!J$49) +($F36*'fnd base rates'!J$50) +($G36*'fnd base rates'!J$51) +($H36*'fnd base rates'!J$52) +($I36*'fnd base rates'!J$53) +($J36*'fnd base rates'!J$54) +($K36*'fnd base rates'!J$55) +($M36*'fnd base rates'!J$56) +($N36*'fnd base rates'!J$57) +($O36*'fnd base rates'!J$58) +($P36*'fnd base rates'!J$59) +($Q36*'fnd base rates'!J$60) +($R36*'fnd base rates'!J$61) +($S36*'fnd base rates'!J$62) +($L36*'fnd base rates'!J$63) +($T36*VLOOKUP($W36+16,rate_basefnd,10))) *$V36 -> 570.19732 | AG36: =(($D36*'fnd base rates'!K$48) +($E36*'fnd base rates'!K$49) +($F36*'fnd base rates'!K$50) +($G36*'fnd base rates'!K$51) +($H36*'fnd base rates'!K$52) +($I36*'fnd base rates'!K$53) +($J36*'fnd base rates'!K$54) +($K36*'fnd base rates'!K$55) +($M36*'fnd base rates'!K$56) +($N36*'fnd base rates'!K$57) +($O36*'fnd base rates'!K$58) +($P36*'fnd base rates'!K$59) +($Q36*'fnd base rates'!K$60) +($R36*'fnd base rates'!K$61) +($S36*'fnd base rates'!K$62) +($L36*'fnd base rates'!K$63) +($T36*VLOOKUP($W36+16,rate_basefnd,11))) *$V36 -> 1325.642742 | AH36: =(($D36*'fnd base rates'!L$48) +($E36*'fnd base rates'!L$49) +($F36*'fnd base rates'!L$50) +($G36*'fnd base rates'!L$51) +($H36*'fnd base rates'!L$52) +($I36*'fnd base rates'!L$53) +($J36*'fnd base rates'!L$54) +($K36*'fnd base rates'!L$55) +($M36*'fnd base rates'!L$56) +($N36*'fnd base rates'!L$57) +($O36*'fnd base rates'!L$58) +($P36*'fnd base rates'!L$59) +($Q36*'fnd base rates'!L$60) +($R36*'fnd base rates'!L$61) +($S36*'fnd base rates'!L$62) +($L36*'fnd base rates'!L$63) +($T36*VLOOKUP($W36+16,rate_basefnd,12))) -> 1208.643625 | AI36: =(($D36*'fnd base rates'!M$48) +($E36*'fnd base rates'!M$49) +($F36*'fnd base rates'!M$50) +($G36*'fnd base rates'!M$51) +($H36*'fnd base rates'!M$52) +($I36*'fnd base rates'!M$53) +($J36*'fnd base rates'!M$54) +($K36*'fnd base rates'!M$55) +($M36*'fnd base rates'!M$56) +($N36*'fnd base rates'!M$57) +($O36*'fnd base rates'!M$58) +($P36*'fnd base rates'!M$59) +($Q36*'fnd base rates'!M$60) +($R36*'fnd base rates'!M$61) +($S36*'fnd base rates'!M$62) +($L36*'fnd base rates'!M$63) +($T36*VLOOKUP($W36+16,rate_basefnd,13))) -> 0 | AJ36: 12639.67893 | AL36: 412035046 | AM36: 412 | AN36: 035 | AO36: 046 | AP36: 1 | AQ36: 1 | AR36: 12639.67893 | AS36: 12640
A37: 412 | B37: 412035057 | C37: ACADEMY OF THE PACIFIC RIM | D37: ='fnd enro'!D37 -> 0 | E37: ='fnd enro'!E37 -> 0 | F37: ='fnd enro'!F37 -> 0 | G37: ='fnd enro'!G37 -> 0 | H37: ='fnd enro'!H37 -> 0 | I37: ='fnd enro'!I37 -> 1 | J37: ='fnd enro'!J37 -> 0.0375 | K37: ='fnd enro'!K37 -> 0 | L37: ='fnd enro'!L37 -> 0 | M37: ='fnd enro'!M37 -> 0 | N37: ='fnd enro'!N37 -> 0 | O37: ='fnd enro'!O37 -> 0 | P37: ='fnd enro'!P37 -> 0 | Q37: ='fnd enro'!Q37 -> 0 | R37: ='fnd enro'!R37 -> 0 | S37: ='fnd enro'!S37 -> 0 | T37: ='fnd enro'!T37 -> 1 | U37: ='fnd enro'!W37 -> 1 | V37: 1.078 | W37: ='fnd enro'!V37 -> 10 | Y37: =(($D37*'fnd base rates'!C$48) +($E37*'fnd base rates'!C$49) +($F37*'fnd base rates'!C$50) +($G37*'fnd base rates'!C$51) +($H37*'fnd base rates'!C$52) +($I37*'fnd base rates'!C$53) +($J37*'fnd base rates'!C$54) +($K37*'fnd base rates'!C$55) +($M37*'fnd base rates'!C$56) +($N37*'fnd base rates'!C$57) +($O37*'fnd base rates'!C$58) +($P37*'fnd base rates'!C$59) +($Q37*'fnd base rates'!C$60) +($R37*'fnd base rates'!C$61) +($S37*'fnd base rates'!C$62) +($L37*'fnd base rates'!C$63) +($T37*VLOOKUP($W37+16,rate_basefnd,3))) *$V37 -> 512.6217443 | Z37: =(($D37*'fnd base rates'!D$48) +($E37*'fnd base rates'!D$49) +($F37*'fnd base rates'!D$50) +($G37*'fnd base rates'!D$51) +($H37*'fnd base rates'!D$52) +($I37*'fnd base rates'!D$53) +($J37*'fnd base rates'!D$54) +($K37*'fnd base rates'!D$55) +($M37*'fnd base rates'!D$56) +($N37*'fnd base rates'!D$57) +($O37*'fnd base rates'!D$58) +($P37*'fnd base rates'!D$59) +($Q37*'fnd base rates'!D$60) +($R37*'fnd base rates'!D$61) +($S37*'fnd base rates'!D$62) +($L37*'fnd base rates'!D$63) +($T37*VLOOKUP($W37+16,rate_basefnd,4))) *$V37 -> 735.48706 | AA37: =(($D37*'fnd base rates'!E$48) +($E37*'fnd base rates'!E$49) +($F37*'fnd base rates'!E$50) +($G37*'fnd base rates'!E$51) +($H37*'fnd base rates'!E$52) +($I37*'fnd base rates'!E$53) +($J37*'fnd base rates'!E$54) +($K37*'fnd base rates'!E$55) +($M37*'fnd base rates'!E$56) +($N37*'fnd base rates'!E$57) +($O37*'fnd base rates'!E$58) +($P37*'fnd base rates'!E$59) +($Q37*'fnd base rates'!E$60) +($R37*'fnd base rates'!E$61) +($S37*'fnd base rates'!E$62) +($L37*'fnd base rates'!E$63) +($T37*VLOOKUP($W37+16,rate_basefnd,5))) *$V37 -> 8058.267729 | AB37: =(($D37*'fnd base rates'!F$48) +($E37*'fnd base rates'!F$49) +($F37*'fnd base rates'!F$50) +($G37*'fnd base rates'!F$51) +($H37*'fnd base rates'!F$52) +($I37*'fnd base rates'!F$53) +($J37*'fnd base rates'!F$54) +($K37*'fnd base rates'!F$55) +($M37*'fnd base rates'!F$56) +($N37*'fnd base rates'!F$57) +($O37*'fnd base rates'!F$58) +($P37*'fnd base rates'!F$59) +($Q37*'fnd base rates'!F$60) +($R37*'fnd base rates'!F$61) +($S37*'fnd base rates'!F$62) +($L37*'fnd base rates'!F$63) +($T37*VLOOKUP($W37+16,rate_basefnd,6))) *$V37 -> 843.0753678 | AC37: =(($D37*'fnd base rates'!G$48) +($E37*'fnd base rates'!G$49) +($F37*'fnd base rates'!G$50) +($G37*'fnd base rates'!G$51) +($H37*'fnd base rates'!G$52) +($I37*'fnd base rates'!G$53) +($J37*'fnd base rates'!G$54) +($K37*'fnd base rates'!G$55) +($M37*'fnd base rates'!G$56) +($N37*'fnd base rates'!G$57) +($O37*'fnd base rates'!G$58) +($P37*'fnd base rates'!G$59) +($Q37*'fnd base rates'!G$60) +($R37*'fnd base rates'!G$61) +($S37*'fnd base rates'!G$62) +($L37*'fnd base rates'!G$63) +($T37*VLOOKUP($W37+16,rate_basefnd,7))) *$V37 -> 242.8564484 | AD37: =(($D37*'fnd base rates'!H$48) +($E37*'fnd base rates'!H$49) +($F37*'fnd base rates'!H$50) +($G37*'fnd base rates'!H$51) +($H37*'fnd base rates'!H$52) +($I37*'fnd base rates'!H$53) +($J37*'fnd base rates'!H$54) +($K37*'fnd base rates'!H$55) +($M37*'fnd base rates'!H$56) +($N37*'fnd base rates'!H$57) +($O37*'fnd base rates'!H$58) +($P37*'fnd base rates'!H$59) +($Q37*'fnd base rates'!H$60) +($R37*'fnd base rates'!H$61) +($S37*'fnd base rates'!H$62) +($L37*'fnd base rates'!H$63) +($T37*VLOOKUP($W37+16,rate_basefnd,8))) -> 738.064 | AE37: =(($D37*'fnd base rates'!I$48) +($E37*'fnd base rates'!I$49) +($F37*'fnd base rates'!I$50) +($G37*'fnd base rates'!I$51) +($H37*'fnd base rates'!I$52) +($I37*'fnd base rates'!I$53) +($J37*'fnd base rates'!I$54) +($K37*'fnd base rates'!I$55) +($M37*'fnd base rates'!I$56) +($N37*'fnd base rates'!I$57) +($O37*'fnd base rates'!I$58) +($P37*'fnd base rates'!I$59) +($Q37*'fnd base rates'!I$60) +($R37*'fnd base rates'!I$61) +($S37*'fnd base rates'!I$62) +($L37*'fnd base rates'!I$63) +($T37*VLOOKUP($W37+16,rate_basefnd,9))) *$V37 -> 409.4783 | AF37: =(($D37*'fnd base rates'!J$48) +($E37*'fnd base rates'!J$49) +($F37*'fnd base rates'!J$50) +($G37*'fnd base rates'!J$51) +($H37*'fnd base rates'!J$52) +($I37*'fnd base rates'!J$53) +($J37*'fnd base rates'!J$54) +($K37*'fnd base rates'!J$55) +($M37*'fnd base rates'!J$56) +($N37*'fnd base rates'!J$57) +($O37*'fnd base rates'!J$58) +($P37*'fnd base rates'!J$59) +($Q37*'fnd base rates'!J$60) +($R37*'fnd base rates'!J$61) +($S37*'fnd base rates'!J$62) +($L37*'fnd base rates'!J$63) +($T37*VLOOKUP($W37+16,rate_basefnd,10))) *$V37 -> 551.56948 | AG37: =(($D37*'fnd base rates'!K$48) +($E37*'fnd base rates'!K$49) +($F37*'fnd base rates'!K$50) +($G37*'fnd base rates'!K$51) +($H37*'fnd base rates'!K$52) +($I37*'fnd base rates'!K$53) +($J37*'fnd base rates'!K$54) +($K37*'fnd base rates'!K$55) +($M37*'fnd base rates'!K$56) +($N37*'fnd base rates'!K$57) +($O37*'fnd base rates'!K$58) +($P37*'fnd base rates'!K$59) +($Q37*'fnd base rates'!K$60) +($R37*'fnd base rates'!K$61) +($S37*'fnd base rates'!K$62) +($L37*'fnd base rates'!K$63) +($T37*VLOOKUP($W37+16,rate_basefnd,11))) *$V37 -> 1616.948957 | AH37: =(($D37*'fnd base rates'!L$48) +($E37*'fnd base rates'!L$49) +($F37*'fnd base rates'!L$50) +($G37*'fnd base rates'!L$51) +($H37*'fnd base rates'!L$52) +($I37*'fnd base rates'!L$53) +($J37*'fnd base rates'!L$54) +($K37*'fnd base rates'!L$55) +($M37*'fnd base rates'!L$56) +($N37*'fnd base rates'!L$57) +($O37*'fnd base rates'!L$58) +($P37*'fnd base rates'!L$59) +($Q37*'fnd base rates'!L$60) +($R37*'fnd base rates'!L$61) +($S37*'fnd base rates'!L$62) +($L37*'fnd base rates'!L$63) +($T37*VLOOKUP($W37+16,rate_basefnd,12))) -> 1336.969225 | AI37: =(($D37*'fnd base rates'!M$48) +($E37*'fnd base rates'!M$49) +($F37*'fnd base rates'!M$50) +($G37*'fnd base rates'!M$51) +($H37*'fnd base rates'!M$52) +($I37*'fnd base rates'!M$53) +($J37*'fnd base rates'!M$54) +($K37*'fnd base rates'!M$55) +($M37*'fnd base rates'!M$56) +($N37*'fnd base rates'!M$57) +($O37*'fnd base rates'!M$58) +($P37*'fnd base rates'!M$59) +($Q37*'fnd base rates'!M$60) +($R37*'fnd base rates'!M$61) +($S37*'fnd base rates'!M$62) +($L37*'fnd base rates'!M$63) +($T37*VLOOKUP($W37+16,rate_basefnd,13))) -> 0 | AJ37: 15045.33831 | AL37: 412035057 | AM37: 412 | AN37: 035 | AO37: 057 | AP37: 1 | AQ37: 1 | AR37: 15045.33831 | AS37: 15045
A38: 412 | B38: 412035073 | C38: ACADEMY OF THE PACIFIC RIM | D38: ='fnd enro'!D38 -> 0 | E38: ='fnd enro'!E38 -> 0 | F38: ='fnd enro'!F38 -> 0 | G38: ='fnd enro'!G38 -> 0 | H38: ='fnd enro'!H38 -> 0 | I38: ='fnd enro'!I38 -> 2 | J38: ='fnd enro'!J38 -> 0.075 | K38: ='fnd enro'!K38 -> 0 | L38: ='fnd enro'!L38 -> 0 | M38: ='fnd enro'!M38 -> 0 | N38: ='fnd enro'!N38 -> 0 | O38: ='fnd enro'!O38 -> 0 | P38: ='fnd enro'!P38 -> 0 | Q38: ='fnd enro'!Q38 -> 0 | R38: ='fnd enro'!R38 -> 0 | S38: ='fnd enro'!S38 -> 0 | T38: ='fnd enro'!T38 -> 2 | U38: ='fnd enro'!W38 -> 2 | V38: 1.078 | W38: ='fnd enro'!V38 -> 10 | Y38: =(($D38*'fnd base rates'!C$48) +($E38*'fnd base rates'!C$49) +($F38*'fnd base rates'!C$50) +($G38*'fnd base rates'!C$51) +($H38*'fnd base rates'!C$52) +($I38*'fnd base rates'!C$53) +($J38*'fnd base rates'!C$54) +($K38*'fnd base rates'!C$55) +($M38*'fnd base rates'!C$56) +($N38*'fnd base rates'!C$57) +($O38*'fnd base rates'!C$58) +($P38*'fnd base rates'!C$59) +($Q38*'fnd base rates'!C$60) +($R38*'fnd base rates'!C$61) +($S38*'fnd base rates'!C$62) +($L38*'fnd base rates'!C$63) +($T38*VLOOKUP($W38+16,rate_basefnd,3))) *$V38 -> 1025.243489 | Z38: =(($D38*'fnd base rates'!D$48) +($E38*'fnd base rates'!D$49) +($F38*'fnd base rates'!D$50) +($G38*'fnd base rates'!D$51) +($H38*'fnd base rates'!D$52) +($I38*'fnd base rates'!D$53) +($J38*'fnd base rates'!D$54) +($K38*'fnd base rates'!D$55) +($M38*'fnd base rates'!D$56) +($N38*'fnd base rates'!D$57) +($O38*'fnd base rates'!D$58) +($P38*'fnd base rates'!D$59) +($Q38*'fnd base rates'!D$60) +($R38*'fnd base rates'!D$61) +($S38*'fnd base rates'!D$62) +($L38*'fnd base rates'!D$63) +($T38*VLOOKUP($W38+16,rate_basefnd,4))) *$V38 -> 1470.97412 | AA38: =(($D38*'fnd base rates'!E$48) +($E38*'fnd base rates'!E$49) +($F38*'fnd base rates'!E$50) +($G38*'fnd base rates'!E$51) +($H38*'fnd base rates'!E$52) +($I38*'fnd base rates'!E$53) +($J38*'fnd base rates'!E$54) +($K38*'fnd base rates'!E$55) +($M38*'fnd base rates'!E$56) +($N38*'fnd base rates'!E$57) +($O38*'fnd base rates'!E$58) +($P38*'fnd base rates'!E$59) +($Q38*'fnd base rates'!E$60) +($R38*'fnd base rates'!E$61) +($S38*'fnd base rates'!E$62) +($L38*'fnd base rates'!E$63) +($T38*VLOOKUP($W38+16,rate_basefnd,5))) *$V38 -> 16116.53546 | AB38: =(($D38*'fnd base rates'!F$48) +($E38*'fnd base rates'!F$49) +($F38*'fnd base rates'!F$50) +($G38*'fnd base rates'!F$51) +($H38*'fnd base rates'!F$52) +($I38*'fnd base rates'!F$53) +($J38*'fnd base rates'!F$54) +($K38*'fnd base rates'!F$55) +($M38*'fnd base rates'!F$56) +($N38*'fnd base rates'!F$57) +($O38*'fnd base rates'!F$58) +($P38*'fnd base rates'!F$59) +($Q38*'fnd base rates'!F$60) +($R38*'fnd base rates'!F$61) +($S38*'fnd base rates'!F$62) +($L38*'fnd base rates'!F$63) +($T38*VLOOKUP($W38+16,rate_basefnd,6))) *$V38 -> 1686.150736 | AC38: =(($D38*'fnd base rates'!G$48) +($E38*'fnd base rates'!G$49) +($F38*'fnd base rates'!G$50) +($G38*'fnd base rates'!G$51) +($H38*'fnd base rates'!G$52) +($I38*'fnd base rates'!G$53) +($J38*'fnd base rates'!G$54) +($K38*'fnd base rates'!G$55) +($M38*'fnd base rates'!G$56) +($N38*'fnd base rates'!G$57) +($O38*'fnd base rates'!G$58) +($P38*'fnd base rates'!G$59) +($Q38*'fnd base rates'!G$60) +($R38*'fnd base rates'!G$61) +($S38*'fnd base rates'!G$62) +($L38*'fnd base rates'!G$63) +($T38*VLOOKUP($W38+16,rate_basefnd,7))) *$V38 -> 485.7128969 | AD38: =(($D38*'fnd base rates'!H$48) +($E38*'fnd base rates'!H$49) +($F38*'fnd base rates'!H$50) +($G38*'fnd base rates'!H$51) +($H38*'fnd base rates'!H$52) +($I38*'fnd base rates'!H$53) +($J38*'fnd base rates'!H$54) +($K38*'fnd base rates'!H$55) +($M38*'fnd base rates'!H$56) +($N38*'fnd base rates'!H$57) +($O38*'fnd base rates'!H$58) +($P38*'fnd base rates'!H$59) +($Q38*'fnd base rates'!H$60) +($R38*'fnd base rates'!H$61) +($S38*'fnd base rates'!H$62) +($L38*'fnd base rates'!H$63) +($T38*VLOOKUP($W38+16,rate_basefnd,8))) -> 1476.128 | AE38: =(($D38*'fnd base rates'!I$48) +($E38*'fnd base rates'!I$49) +($F38*'fnd base rates'!I$50) +($G38*'fnd base rates'!I$51) +($H38*'fnd base rates'!I$52) +($I38*'fnd base rates'!I$53) +($J38*'fnd base rates'!I$54) +($K38*'fnd base rates'!I$55) +($M38*'fnd base rates'!I$56) +($N38*'fnd base rates'!I$57) +($O38*'fnd base rates'!I$58) +($P38*'fnd base rates'!I$59) +($Q38*'fnd base rates'!I$60) +($R38*'fnd base rates'!I$61) +($S38*'fnd base rates'!I$62) +($L38*'fnd base rates'!I$63) +($T38*VLOOKUP($W38+16,rate_basefnd,9))) *$V38 -> 818.9566 | AF38: =(($D38*'fnd base rates'!J$48) +($E38*'fnd base rates'!J$49) +($F38*'fnd base rates'!J$50) +($G38*'fnd base rates'!J$51) +($H38*'fnd base rates'!J$52) +($I38*'fnd base rates'!J$53) +($J38*'fnd base rates'!J$54) +($K38*'fnd base rates'!J$55) +($M38*'fnd base rates'!J$56) +($N38*'fnd base rates'!J$57) +($O38*'fnd base rates'!J$58) +($P38*'fnd base rates'!J$59) +($Q38*'fnd base rates'!J$60) +($R38*'fnd base rates'!J$61) +($S38*'fnd base rates'!J$62) +($L38*'fnd base rates'!J$63) +($T38*VLOOKUP($W38+16,rate_basefnd,10))) *$V38 -> 1103.13896 | AG38: =(($D38*'fnd base rates'!K$48) +($E38*'fnd base rates'!K$49) +($F38*'fnd base rates'!K$50) +($G38*'fnd base rates'!K$51) +($H38*'fnd base rates'!K$52) +($I38*'fnd base rates'!K$53) +($J38*'fnd base rates'!K$54) +($K38*'fnd base rates'!K$55) +($M38*'fnd base rates'!K$56) +($N38*'fnd base rates'!K$57) +($O38*'fnd base rates'!K$58) +($P38*'fnd base rates'!K$59) +($Q38*'fnd base rates'!K$60) +($R38*'fnd base rates'!K$61) +($S38*'fnd base rates'!K$62) +($L38*'fnd base rates'!K$63) +($T38*VLOOKUP($W38+16,rate_basefnd,11))) *$V38 -> 3233.897913 | AH38: =(($D38*'fnd base rates'!L$48) +($E38*'fnd base rates'!L$49) +($F38*'fnd base rates'!L$50) +($G38*'fnd base rates'!L$51) +($H38*'fnd base rates'!L$52) +($I38*'fnd base rates'!L$53) +($J38*'fnd base rates'!L$54) +($K38*'fnd base rates'!L$55) +($M38*'fnd base rates'!L$56) +($N38*'fnd base rates'!L$57) +($O38*'fnd base rates'!L$58) +($P38*'fnd base rates'!L$59) +($Q38*'fnd base rates'!L$60) +($R38*'fnd base rates'!L$61) +($S38*'fnd base rates'!L$62) +($L38*'fnd base rates'!L$63) +($T38*VLOOKUP($W38+16,rate_basefnd,12))) -> 2673.93845 | AI38: =(($D38*'fnd base rates'!M$48) +($E38*'fnd base rates'!M$49) +($F38*'fnd base rates'!M$50) +($G38*'fnd base rates'!M$51) +($H38*'fnd base rates'!M$52) +($I38*'fnd base rates'!M$53) +($J38*'fnd base rates'!M$54) +($K38*'fnd base rates'!M$55) +($M38*'fnd base rates'!M$56) +($N38*'fnd base rates'!M$57) +($O38*'fnd base rates'!M$58) +($P38*'fnd base rates'!M$59) +($Q38*'fnd base rates'!M$60) +($R38*'fnd base rates'!M$61) +($S38*'fnd base rates'!M$62) +($L38*'fnd base rates'!M$63) +($T38*VLOOKUP($W38+16,rate_basefnd,13))) -> 0 | AJ38: 30090.67662 | AL38: 412035073 | AM38: 412 | AN38: 035 | AO38: 073 | AP38: 1 | AQ38: 2 | AR38: 30090.67662 | AS38: 15045
A39: 412 | B39: 412035165 | C39: ACADEMY OF THE PACIFIC RIM | D39: ='fnd enro'!D39 -> 0 | E39: ='fnd enro'!E39 -> 0 | F39: ='fnd enro'!F39 -> 0 | G39: ='fnd enro'!G39 -> 0 | H39: ='fnd enro'!H39 -> 0 | I39: ='fnd enro'!I39 -> 1 | J39: ='fnd enro'!J39 -> 0.0375 | K39: ='fnd enro'!K39 -> 0 | L39: ='fnd enro'!L39 -> 0 | M39: ='fnd enro'!M39 -> 0 | N39: ='fnd enro'!N39 -> 0 | O39: ='fnd enro'!O39 -> 0 | P39: ='fnd enro'!P39 -> 0 | Q39: ='fnd enro'!Q39 -> 0 | R39: ='fnd enro'!R39 -> 0 | S39: ='fnd enro'!S39 -> 0 | T39: ='fnd enro'!T39 -> 1 | U39: ='fnd enro'!W39 -> 1 | V39: 1.078 | W39: ='fnd enro'!V39 -> 10 | Y39: =(($D39*'fnd base rates'!C$48) +($E39*'fnd base rates'!C$49) +($F39*'fnd base rates'!C$50) +($G39*'fnd base rates'!C$51) +($H39*'fnd base rates'!C$52) +($I39*'fnd base rates'!C$53) +($J39*'fnd base rates'!C$54) +($K39*'fnd base rates'!C$55) +($M39*'fnd base rates'!C$56) +($N39*'fnd base rates'!C$57) +($O39*'fnd base rates'!C$58) +($P39*'fnd base rates'!C$59) +($Q39*'fnd base rates'!C$60) +($R39*'fnd base rates'!C$61) +($S39*'fnd base rates'!C$62) +($L39*'fnd base rates'!C$63) +($T39*VLOOKUP($W39+16,rate_basefnd,3))) *$V39 -> 512.6217443 | Z39: =(($D39*'fnd base rates'!D$48) +($E39*'fnd base rates'!D$49) +($F39*'fnd base rates'!D$50) +($G39*'fnd base rates'!D$51) +($H39*'fnd base rates'!D$52) +($I39*'fnd base rates'!D$53) +($J39*'fnd base rates'!D$54) +($K39*'fnd base rates'!D$55) +($M39*'fnd base rates'!D$56) +($N39*'fnd base rates'!D$57) +($O39*'fnd base rates'!D$58) +($P39*'fnd base rates'!D$59) +($Q39*'fnd base rates'!D$60) +($R39*'fnd base rates'!D$61) +($S39*'fnd base rates'!D$62) +($L39*'fnd base rates'!D$63) +($T39*VLOOKUP($W39+16,rate_basefnd,4))) *$V39 -> 735.48706 | AA39: =(($D39*'fnd base rates'!E$48) +($E39*'fnd base rates'!E$49) +($F39*'fnd base rates'!E$50) +($G39*'fnd base rates'!E$51) +($H39*'fnd base rates'!E$52) +($I39*'fnd base rates'!E$53) +($J39*'fnd base rates'!E$54) +($K39*'fnd base rates'!E$55) +($M39*'fnd base rates'!E$56) +($N39*'fnd base rates'!E$57) +($O39*'fnd base rates'!E$58) +($P39*'fnd base rates'!E$59) +($Q39*'fnd base rates'!E$60) +($R39*'fnd base rates'!E$61) +($S39*'fnd base rates'!E$62) +($L39*'fnd base rates'!E$63) +($T39*VLOOKUP($W39+16,rate_basefnd,5))) *$V39 -> 8058.267729 | AB39: =(($D39*'fnd base rates'!F$48) +($E39*'fnd base rates'!F$49) +($F39*'fnd base rates'!F$50) +($G39*'fnd base rates'!F$51) +($H39*'fnd base rates'!F$52) +($I39*'fnd base rates'!F$53) +($J39*'fnd base rates'!F$54) +($K39*'fnd base rates'!F$55) +($M39*'fnd base rates'!F$56) +($N39*'fnd base rates'!F$57) +($O39*'fnd base rates'!F$58) +($P39*'fnd base rates'!F$59) +($Q39*'fnd base rates'!F$60) +($R39*'fnd base rates'!F$61) +($S39*'fnd base rates'!F$62) +($L39*'fnd base rates'!F$63) +($T39*VLOOKUP($W39+16,rate_basefnd,6))) *$V39 -> 843.0753678 | AC39: =(($D39*'fnd base rates'!G$48) +($E39*'fnd base rates'!G$49) +($F39*'fnd base rates'!G$50) +($G39*'fnd base rates'!G$51) +($H39*'fnd base rates'!G$52) +($I39*'fnd base rates'!G$53) +($J39*'fnd base rates'!G$54) +($K39*'fnd base rates'!G$55) +($M39*'fnd base rates'!G$56) +($N39*'fnd base rates'!G$57) +($O39*'fnd base rates'!G$58) +($P39*'fnd base rates'!G$59) +($Q39*'fnd base rates'!G$60) +($R39*'fnd base rates'!G$61) +($S39*'fnd base rates'!G$62) +($L39*'fnd base rates'!G$63) +($T39*VLOOKUP($W39+16,rate_basefnd,7))) *$V39 -> 242.8564484 | AD39: =(($D39*'fnd base rates'!H$48) +($E39*'fnd base rates'!H$49) +($F39*'fnd base rates'!H$50) +($G39*'fnd base rates'!H$51) +($H39*'fnd base rates'!H$52) +($I39*'fnd base rates'!H$53) +($J39*'fnd base rates'!H$54) +($K39*'fnd base rates'!H$55) +($M39*'fnd base rates'!H$56) +($N39*'fnd base rates'!H$57) +($O39*'fnd base rates'!H$58) +($P39*'fnd base rates'!H$59) +($Q39*'fnd base rates'!H$60) +($R39*'fnd base rates'!H$61) +($S39*'fnd base rates'!H$62) +($L39*'fnd base rates'!H$63) +($T39*VLOOKUP($W39+16,rate_basefnd,8))) -> 738.064 | AE39: =(($D39*'fnd base rates'!I$48) +($E39*'fnd base rates'!I$49) +($F39*'fnd base rates'!I$50) +($G39*'fnd base rates'!I$51) +($H39*'fnd base rates'!I$52) +($I39*'fnd base rates'!I$53) +($J39*'fnd base rates'!I$54) +($K39*'fnd base rates'!I$55) +($M39*'fnd base rates'!I$56) +($N39*'fnd base rates'!I$57) +($O39*'fnd base rates'!I$58) +($P39*'fnd base rates'!I$59) +($Q39*'fnd base rates'!I$60) +($R39*'fnd base rates'!I$61) +($S39*'fnd base rates'!I$62) +($L39*'fnd base rates'!I$63) +($T39*VLOOKUP($W39+16,rate_basefnd,9))) *$V39 -> 409.4783 | AF39: =(($D39*'fnd base rates'!J$48) +($E39*'fnd base rates'!J$49) +($F39*'fnd base rates'!J$50) +($G39*'fnd base rates'!J$51) +($H39*'fnd base rates'!J$52) +($I39*'fnd base rates'!J$53) +($J39*'fnd base rates'!J$54) +($K39*'fnd base rates'!J$55) +($M39*'fnd base rates'!J$56) +($N39*'fnd base rates'!J$57) +($O39*'fnd base rates'!J$58) +($P39*'fnd base rates'!J$59) +($Q39*'fnd base rates'!J$60) +($R39*'fnd base rates'!J$61) +($S39*'fnd base rates'!J$62) +($L39*'fnd base rates'!J$63) +($T39*VLOOKUP($W39+16,rate_basefnd,10))) *$V39 -> 551.56948 | AG39: =(($D39*'fnd base rates'!K$48) +($E39*'fnd base rates'!K$49) +($F39*'fnd base rates'!K$50) +($G39*'fnd base rates'!K$51) +($H39*'fnd base rates'!K$52) +($I39*'fnd base rates'!K$53) +($J39*'fnd base rates'!K$54) +($K39*'fnd base rates'!K$55) +($M39*'fnd base rates'!K$56) +($N39*'fnd base rates'!K$57) +($O39*'fnd base rates'!K$58) +($P39*'fnd base rates'!K$59) +($Q39*'fnd base rates'!K$60) +($R39*'fnd base rates'!K$61) +($S39*'fnd base rates'!K$62) +($L39*'fnd base rates'!K$63) +($T39*VLOOKUP($W39+16,rate_basefnd,11))) *$V39 -> 1616.948957 | AH39: =(($D39*'fnd base rates'!L$48) +($E39*'fnd base rates'!L$49) +($F39*'fnd base rates'!L$50) +($G39*'fnd base rates'!L$51) +($H39*'fnd base rates'!L$52) +($I39*'fnd base rates'!L$53) +($J39*'fnd base rates'!L$54) +($K39*'fnd base rates'!L$55) +($M39*'fnd base rates'!L$56) +($N39*'fnd base rates'!L$57) +($O39*'fnd base rates'!L$58) +($P39*'fnd base rates'!L$59) +($Q39*'fnd base rates'!L$60) +($R39*'fnd base rates'!L$61) +($S39*'fnd base rates'!L$62) +($L39*'fnd base rates'!L$63) +($T39*VLOOKUP($W39+16,rate_basefnd,12))) -> 1336.969225 | AI39: =(($D39*'fnd base rates'!M$48) +($E39*'fnd base rates'!M$49) +($F39*'fnd base rates'!M$50) +($G39*'fnd base rates'!M$51) +($H39*'fnd base rates'!M$52) +($I39*'fnd base rates'!M$53) +($J39*'fnd base rates'!M$54) +($K39*'fnd base rates'!M$55) +($M39*'fnd base rates'!M$56) +($N39*'fnd base rates'!M$57) +($O39*'fnd base rates'!M$58) +($P39*'fnd base rates'!M$59) +($Q39*'fnd base rates'!M$60) +($R39*'fnd base rates'!M$61) +($S39*'fnd base rates'!M$62) +($L39*'fnd base rates'!M$63) +($T39*VLOOKUP($W39+16,rate_basefnd,13))) -> 0 | AJ39: 15045.33831 | AL39: 412035165 | AM39: 412 | AN39: 035 | AO39: 165 | AP39: 1 | AQ39: 1 | AR39: 15045.33831 | AS39: 15045
A40: 412 | B40: 412035189 | C40: ACADEMY OF THE PACIFIC RIM | D40: ='fnd enro'!D40 -> 0 | E40: ='fnd enro'!E40 -> 0 | F40: ='fnd enro'!F40 -> 0 | G40: ='fnd enro'!G40 -> 0 | H40: ='fnd enro'!H40 -> 1 | I40: ='fnd enro'!I40 -> 1 | J40: ='fnd enro'!J40 -> 0.075 | K40: ='fnd enro'!K40 -> 0 | L40: ='fnd enro'!L40 -> 0 | M40: ='fnd enro'!M40 -> 0 | N40: ='fnd enro'!N40 -> 0 | O40: ='fnd enro'!O40 -> 0 | P40: ='fnd enro'!P40 -> 0 | Q40: ='fnd enro'!Q40 -> 0 | R40: ='fnd enro'!R40 -> 0 | S40: ='fnd enro'!S40 -> 0 | T40: ='fnd enro'!T40 -> 0 | U40: ='fnd enro'!W40 -> 2 | V40: 1.078 | W40: ='fnd enro'!V40 -> 1 | Y40: =(($D40*'fnd base rates'!C$48) +($E40*'fnd base rates'!C$49) +($F40*'fnd base rates'!C$50) +($G40*'fnd base rates'!C$51) +($H40*'fnd base rates'!C$52) +($I40*'fnd base rates'!C$53) +($J40*'fnd base rates'!C$54) +($K40*'fnd base rates'!C$55) +($M40*'fnd base rates'!C$56) +($N40*'fnd base rates'!C$57) +($O40*'fnd base rates'!C$58) +($P40*'fnd base rates'!C$59) +($Q40*'fnd base rates'!C$60) +($R40*'fnd base rates'!C$61) +($S40*'fnd base rates'!C$62) +($L40*'fnd base rates'!C$63) +($T40*VLOOKUP($W40+16,rate_basefnd,3))) *$V40 -> 1025.243489 | Z40: =(($D40*'fnd base rates'!D$48) +($E40*'fnd base rates'!D$49) +($F40*'fnd base rates'!D$50) +($G40*'fnd base rates'!D$51) +($H40*'fnd base rates'!D$52) +($I40*'fnd base rates'!D$53) +($J40*'fnd base rates'!D$54) +($K40*'fnd base rates'!D$55) +($M40*'fnd base rates'!D$56) +($N40*'fnd base rates'!D$57) +($O40*'fnd base rates'!D$58) +($P40*'fnd base rates'!D$59) +($Q40*'fnd base rates'!D$60) +($R40*'fnd base rates'!D$61) +($S40*'fnd base rates'!D$62) +($L40*'fnd base rates'!D$63) +($T40*VLOOKUP($W40+16,rate_basefnd,4))) *$V40 -> 1470.97412 | AA40: =(($D40*'fnd base rates'!E$48) +($E40*'fnd base rates'!E$49) +($F40*'fnd base rates'!E$50) +($G40*'fnd base rates'!E$51) +($H40*'fnd base rates'!E$52) +($I40*'fnd base rates'!E$53) +($J40*'fnd base rates'!E$54) +($K40*'fnd base rates'!E$55) +($M40*'fnd base rates'!E$56) +($N40*'fnd base rates'!E$57) +($O40*'fnd base rates'!E$58) +($P40*'fnd base rates'!E$59) +($Q40*'fnd base rates'!E$60) +($R40*'fnd base rates'!E$61) +($S40*'fnd base rates'!E$62) +($L40*'fnd base rates'!E$63) +($T40*VLOOKUP($W40+16,rate_basefnd,5))) *$V40 -> 8027.612401 | AB40: =(($D40*'fnd base rates'!F$48) +($E40*'fnd base rates'!F$49) +($F40*'fnd base rates'!F$50) +($G40*'fnd base rates'!F$51) +($H40*'fnd base rates'!F$52) +($I40*'fnd base rates'!F$53) +($J40*'fnd base rates'!F$54) +($K40*'fnd base rates'!F$55) +($M40*'fnd base rates'!F$56) +($N40*'fnd base rates'!F$57) +($O40*'fnd base rates'!F$58) +($P40*'fnd base rates'!F$59) +($Q40*'fnd base rates'!F$60) +($R40*'fnd base rates'!F$61) +($S40*'fnd base rates'!F$62) +($L40*'fnd base rates'!F$63) +($T40*VLOOKUP($W40+16,rate_basefnd,6))) *$V40 -> 1790.436456 | AC40: =(($D40*'fnd base rates'!G$48) +($E40*'fnd base rates'!G$49) +($F40*'fnd base rates'!G$50) +($G40*'fnd base rates'!G$51) +($H40*'fnd base rates'!G$52) +($I40*'fnd base rates'!G$53) +($J40*'fnd base rates'!G$54) +($K40*'fnd base rates'!G$55) +($M40*'fnd base rates'!G$56) +($N40*'fnd base rates'!G$57) +($O40*'fnd base rates'!G$58) +($P40*'fnd base rates'!G$59) +($Q40*'fnd base rates'!G$60) +($R40*'fnd base rates'!G$61) +($S40*'fnd base rates'!G$62) +($L40*'fnd base rates'!G$63) +($T40*VLOOKUP($W40+16,rate_basefnd,7))) *$V40 -> 318.5120785 | AD40: =(($D40*'fnd base rates'!H$48) +($E40*'fnd base rates'!H$49) +($F40*'fnd base rates'!H$50) +($G40*'fnd base rates'!H$51) +($H40*'fnd base rates'!H$52) +($I40*'fnd base rates'!H$53) +($J40*'fnd base rates'!H$54) +($K40*'fnd base rates'!H$55) +($M40*'fnd base rates'!H$56) +($N40*'fnd base rates'!H$57) +($O40*'fnd base rates'!H$58) +($P40*'fnd base rates'!H$59) +($Q40*'fnd base rates'!H$60) +($R40*'fnd base rates'!H$61) +($S40*'fnd base rates'!H$62) +($L40*'fnd base rates'!H$63) +($T40*VLOOKUP($W40+16,rate_basefnd,8))) -> 1204.448 | AE40: =(($D40*'fnd base rates'!I$48) +($E40*'fnd base rates'!I$49) +($F40*'fnd base rates'!I$50) +($G40*'fnd base rates'!I$51) +($H40*'fnd base rates'!I$52) +($I40*'fnd base rates'!I$53) +($J40*'fnd base rates'!I$54) +($K40*'fnd base rates'!I$55) +($M40*'fnd base rates'!I$56) +($N40*'fnd base rates'!I$57) +($O40*'fnd base rates'!I$58) +($P40*'fnd base rates'!I$59) +($Q40*'fnd base rates'!I$60) +($R40*'fnd base rates'!I$61) +($S40*'fnd base rates'!I$62) +($L40*'fnd base rates'!I$63) +($T40*VLOOKUP($W40+16,rate_basefnd,9))) *$V40 -> 736.13386 | AF40: =(($D40*'fnd base rates'!J$48) +($E40*'fnd base rates'!J$49) +($F40*'fnd base rates'!J$50) +($G40*'fnd base rates'!J$51) +($H40*'fnd base rates'!J$52) +($I40*'fnd base rates'!J$53) +($J40*'fnd base rates'!J$54) +($K40*'fnd base rates'!J$55) +($M40*'fnd base rates'!J$56) +($N40*'fnd base rates'!J$57) +($O40*'fnd base rates'!J$58) +($P40*'fnd base rates'!J$59) +($Q40*'fnd base rates'!J$60) +($R40*'fnd base rates'!J$61) +($S40*'fnd base rates'!J$62) +($L40*'fnd base rates'!J$63) +($T40*VLOOKUP($W40+16,rate_basefnd,10))) *$V40 -> 790.7669 | AG40: =(($D40*'fnd base rates'!K$48) +($E40*'fnd base rates'!K$49) +($F40*'fnd base rates'!K$50) +($G40*'fnd base rates'!K$51) +($H40*'fnd base rates'!K$52) +($I40*'fnd base rates'!K$53) +($J40*'fnd base rates'!K$54) +($K40*'fnd base rates'!K$55) +($M40*'fnd base rates'!K$56) +($N40*'fnd base rates'!K$57) +($O40*'fnd base rates'!K$58) +($P40*'fnd base rates'!K$59) +($Q40*'fnd base rates'!K$60) +($R40*'fnd base rates'!K$61) +($S40*'fnd base rates'!K$62) +($L40*'fnd base rates'!K$63) +($T40*VLOOKUP($W40+16,rate_basefnd,11))) *$V40 -> 2235.155923 | AH40: =(($D40*'fnd base rates'!L$48) +($E40*'fnd base rates'!L$49) +($F40*'fnd base rates'!L$50) +($G40*'fnd base rates'!L$51) +($H40*'fnd base rates'!L$52) +($I40*'fnd base rates'!L$53) +($J40*'fnd base rates'!L$54) +($K40*'fnd base rates'!L$55) +($M40*'fnd base rates'!L$56) +($N40*'fnd base rates'!L$57) +($O40*'fnd base rates'!L$58) +($P40*'fnd base rates'!L$59) +($Q40*'fnd base rates'!L$60) +($R40*'fnd base rates'!L$61) +($S40*'fnd base rates'!L$62) +($L40*'fnd base rates'!L$63) +($T40*VLOOKUP($W40+16,rate_basefnd,12))) -> 2124.67725 | AI40: =(($D40*'fnd base rates'!M$48) +($E40*'fnd base rates'!M$49) +($F40*'fnd base rates'!M$50) +($G40*'fnd base rates'!M$51) +($H40*'fnd base rates'!M$52) +($I40*'fnd base rates'!M$53) +($J40*'fnd base rates'!M$54) +($K40*'fnd base rates'!M$55) +($M40*'fnd base rates'!M$56) +($N40*'fnd base rates'!M$57) +($O40*'fnd base rates'!M$58) +($P40*'fnd base rates'!M$59) +($Q40*'fnd base rates'!M$60) +($R40*'fnd base rates'!M$61) +($S40*'fnd base rates'!M$62) +($L40*'fnd base rates'!M$63) +($T40*VLOOKUP($W40+16,rate_basefnd,13))) -> 0 | AJ40: 19723.96048 | AL40: 412035189 | AM40: 412 | AN40: 035 | AO40: 189 | AP40: 1 | AQ40: 2 | AR40: 19723.96048 | AS40: 9862
A41: 412 | B41: 412035198 | C41: ACADEMY OF THE PACIFIC RIM | D41: ='fnd enro'!D41 -> 0 | E41: ='fnd enro'!E41 -> 0 | F41: ='fnd enro'!F41 -> 0 | G41: ='fnd enro'!G41 -> 0 | H41: ='fnd enro'!H41 -> 1 | I41: ='fnd enro'!I41 -> 0 | J41: ='fnd enro'!J41 -> 0.0375 | K41: ='fnd enro'!K41 -> 0 | L41: ='fnd enro'!L41 -> 0 | M41: ='fnd enro'!M41 -> 0 | N41: ='fnd enro'!N41 -> 0 | O41: ='fnd enro'!O41 -> 0 | P41: ='fnd enro'!P41 -> 0 | Q41: ='fnd enro'!Q41 -> 0 | R41: ='fnd enro'!R41 -> 0 | S41: ='fnd enro'!S41 -> 0 | T41: ='fnd enro'!T41 -> 1 | U41: ='fnd enro'!W41 -> 1 | V41: 1.078 | W41: ='fnd enro'!V41 -> 10 | Y41: =(($D41*'fnd base rates'!C$48) +($E41*'fnd base rates'!C$49) +($F41*'fnd base rates'!C$50) +($G41*'fnd base rates'!C$51) +($H41*'fnd base rates'!C$52) +($I41*'fnd base rates'!C$53) +($J41*'fnd base rates'!C$54) +($K41*'fnd base rates'!C$55) +($M41*'fnd base rates'!C$56) +($N41*'fnd base rates'!C$57) +($O41*'fnd base rates'!C$58) +($P41*'fnd base rates'!C$59) +($Q41*'fnd base rates'!C$60) +($R41*'fnd base rates'!C$61) +($S41*'fnd base rates'!C$62) +($L41*'fnd base rates'!C$63) +($T41*VLOOKUP($W41+16,rate_basefnd,3))) *$V41 -> 512.6217443 | Z41: =(($D41*'fnd base rates'!D$48) +($E41*'fnd base rates'!D$49) +($F41*'fnd base rates'!D$50) +($G41*'fnd base rates'!D$51) +($H41*'fnd base rates'!D$52) +($I41*'fnd base rates'!D$53) +($J41*'fnd base rates'!D$54) +($K41*'fnd base rates'!D$55) +($M41*'fnd base rates'!D$56) +($N41*'fnd base rates'!D$57) +($O41*'fnd base rates'!D$58) +($P41*'fnd base rates'!D$59) +($Q41*'fnd base rates'!D$60) +($R41*'fnd base rates'!D$61) +($S41*'fnd base rates'!D$62) +($L41*'fnd base rates'!D$63) +($T41*VLOOKUP($W41+16,rate_basefnd,4))) *$V41 -> 735.48706 | AA41: =(($D41*'fnd base rates'!E$48) +($E41*'fnd base rates'!E$49) +($F41*'fnd base rates'!E$50) +($G41*'fnd base rates'!E$51) +($H41*'fnd base rates'!E$52) +($I41*'fnd base rates'!E$53) +($J41*'fnd base rates'!E$54) +($K41*'fnd base rates'!E$55) +($M41*'fnd base rates'!E$56) +($N41*'fnd base rates'!E$57) +($O41*'fnd base rates'!E$58) +($P41*'fnd base rates'!E$59) +($Q41*'fnd base rates'!E$60) +($R41*'fnd base rates'!E$61) +($S41*'fnd base rates'!E$62) +($L41*'fnd base rates'!E$63) +($T41*VLOOKUP($W41+16,rate_basefnd,5))) *$V41 -> 6661.707949 | AB41: =(($D41*'fnd base rates'!F$48) +($E41*'fnd base rates'!F$49) +($F41*'fnd base rates'!F$50) +($G41*'fnd base rates'!F$51) +($H41*'fnd base rates'!F$52) +($I41*'fnd base rates'!F$53) +($J41*'fnd base rates'!F$54) +($K41*'fnd base rates'!F$55) +($M41*'fnd base rates'!F$56) +($N41*'fnd base rates'!F$57) +($O41*'fnd base rates'!F$58) +($P41*'fnd base rates'!F$59) +($Q41*'fnd base rates'!F$60) +($R41*'fnd base rates'!F$61) +($S41*'fnd base rates'!F$62) +($L41*'fnd base rates'!F$63) +($T41*VLOOKUP($W41+16,rate_basefnd,6))) *$V41 -> 947.3610878 | AC41: =(($D41*'fnd base rates'!G$48) +($E41*'fnd base rates'!G$49) +($F41*'fnd base rates'!G$50) +($G41*'fnd base rates'!G$51) +($H41*'fnd base rates'!G$52) +($I41*'fnd base rates'!G$53) +($J41*'fnd base rates'!G$54) +($K41*'fnd base rates'!G$55) +($M41*'fnd base rates'!G$56) +($N41*'fnd base rates'!G$57) +($O41*'fnd base rates'!G$58) +($P41*'fnd base rates'!G$59) +($Q41*'fnd base rates'!G$60) +($R41*'fnd base rates'!G$61) +($S41*'fnd base rates'!G$62) +($L41*'fnd base rates'!G$63) +($T41*VLOOKUP($W41+16,rate_basefnd,7))) *$V41 -> 247.2546884 | AD41: =(($D41*'fnd base rates'!H$48) +($E41*'fnd base rates'!H$49) +($F41*'fnd base rates'!H$50) +($G41*'fnd base rates'!H$51) +($H41*'fnd base rates'!H$52) +($I41*'fnd base rates'!H$53) +($J41*'fnd base rates'!H$54) +($K41*'fnd base rates'!H$55) +($M41*'fnd base rates'!H$56) +($N41*'fnd base rates'!H$57) +($O41*'fnd base rates'!H$58) +($P41*'fnd base rates'!H$59) +($Q41*'fnd base rates'!H$60) +($R41*'fnd base rates'!H$61) +($S41*'fnd base rates'!H$62) +($L41*'fnd base rates'!H$63) +($T41*VLOOKUP($W41+16,rate_basefnd,8))) -> 466.384 | AE41: =(($D41*'fnd base rates'!I$48) +($E41*'fnd base rates'!I$49) +($F41*'fnd base rates'!I$50) +($G41*'fnd base rates'!I$51) +($H41*'fnd base rates'!I$52) +($I41*'fnd base rates'!I$53) +($J41*'fnd base rates'!I$54) +($K41*'fnd base rates'!I$55) +($M41*'fnd base rates'!I$56) +($N41*'fnd base rates'!I$57) +($O41*'fnd base rates'!I$58) +($P41*'fnd base rates'!I$59) +($Q41*'fnd base rates'!I$60) +($R41*'fnd base rates'!I$61) +($S41*'fnd base rates'!I$62) +($L41*'fnd base rates'!I$63) +($T41*VLOOKUP($W41+16,rate_basefnd,9))) *$V41 -> 326.65556 | AF41: =(($D41*'fnd base rates'!J$48) +($E41*'fnd base rates'!J$49) +($F41*'fnd base rates'!J$50) +($G41*'fnd base rates'!J$51) +($H41*'fnd base rates'!J$52) +($I41*'fnd base rates'!J$53) +($J41*'fnd base rates'!J$54) +($K41*'fnd base rates'!J$55) +($M41*'fnd base rates'!J$56) +($N41*'fnd base rates'!J$57) +($O41*'fnd base rates'!J$58) +($P41*'fnd base rates'!J$59) +($Q41*'fnd base rates'!J$60) +($R41*'fnd base rates'!J$61) +($S41*'fnd base rates'!J$62) +($L41*'fnd base rates'!J$63) +($T41*VLOOKUP($W41+16,rate_basefnd,10))) *$V41 -> 239.19742 | AG41: =(($D41*'fnd base rates'!K$48) +($E41*'fnd base rates'!K$49) +($F41*'fnd base rates'!K$50) +($G41*'fnd base rates'!K$51) +($H41*'fnd base rates'!K$52) +($I41*'fnd base rates'!K$53) +($J41*'fnd base rates'!K$54) +($K41*'fnd base rates'!K$55) +($M41*'fnd base rates'!K$56) +($N41*'fnd base rates'!K$57) +($O41*'fnd base rates'!K$58) +($P41*'fnd base rates'!K$59) +($Q41*'fnd base rates'!K$60) +($R41*'fnd base rates'!K$61) +($S41*'fnd base rates'!K$62) +($L41*'fnd base rates'!K$63) +($T41*VLOOKUP($W41+16,rate_basefnd,11))) *$V41 -> 1647.801317 | AH41: =(($D41*'fnd base rates'!L$48) +($E41*'fnd base rates'!L$49) +($F41*'fnd base rates'!L$50) +($G41*'fnd base rates'!L$51) +($H41*'fnd base rates'!L$52) +($I41*'fnd base rates'!L$53) +($J41*'fnd base rates'!L$54) +($K41*'fnd base rates'!L$55) +($M41*'fnd base rates'!L$56) +($N41*'fnd base rates'!L$57) +($O41*'fnd base rates'!L$58) +($P41*'fnd base rates'!L$59) +($Q41*'fnd base rates'!L$60) +($R41*'fnd base rates'!L$61) +($S41*'fnd base rates'!L$62) +($L41*'fnd base rates'!L$63) +($T41*VLOOKUP($W41+16,rate_basefnd,12))) -> 1424.439225 | AI41: =(($D41*'fnd base rates'!M$48) +($E41*'fnd base rates'!M$49) +($F41*'fnd base rates'!M$50) +($G41*'fnd base rates'!M$51) +($H41*'fnd base rates'!M$52) +($I41*'fnd base rates'!M$53) +($J41*'fnd base rates'!M$54) +($K41*'fnd base rates'!M$55) +($M41*'fnd base rates'!M$56) +($N41*'fnd base rates'!M$57) +($O41*'fnd base rates'!M$58) +($P41*'fnd base rates'!M$59) +($Q41*'fnd base rates'!M$60) +($R41*'fnd base rates'!M$61) +($S41*'fnd base rates'!M$62) +($L41*'fnd base rates'!M$63) +($T41*VLOOKUP($W41+16,rate_basefnd,13))) -> 0 | AJ41: 13208.91005 | AL41: 412035198 | AM41: 412 | AN41: 035 | AO41: 198 | AP41: 1 | AQ41: 1 | AR41: 13208.91005 | AS41: 13209
A42: 412 | B42: 412035207 | C42: ACADEMY OF THE PACIFIC RIM | D42: ='fnd enro'!D42 -> 0 | E42: ='fnd enro'!E42 -> 0 | F42: ='fnd enro'!F42 -> 0 | G42: ='fnd enro'!G42 -> 0 | H42: ='fnd enro'!H42 -> 1 | I42: ='fnd enro'!I42 -> 0 | J42: ='fnd enro'!J42 -> 0.0375 | K42: ='fnd enro'!K42 -> 0 | L42: ='fnd enro'!L42 -> 0 | M42: ='fnd enro'!M42 -> 0 | N42: ='fnd enro'!N42 -> 0 | O42: ='fnd enro'!O42 -> 0 | P42: ='fnd enro'!P42 -> 0 | Q42: ='fnd enro'!Q42 -> 1 | R42: ='fnd enro'!R42 -> 0 | S42: ='fnd enro'!S42 -> 0 | T42: ='fnd enro'!T42 -> 0 | U42: ='fnd enro'!W42 -> 1 | V42: 1.078 | W42: ='fnd enro'!V42 -> 1 | Y42: =(($D42*'fnd base rates'!C$48) +($E42*'fnd base rates'!C$49) +($F42*'fnd base rates'!C$50) +($G42*'fnd base rates'!C$51) +($H42*'fnd base rates'!C$52) +($I42*'fnd base rates'!C$53) +($J42*'fnd base rates'!C$54) +($K42*'fnd base rates'!C$55) +($M42*'fnd base rates'!C$56) +($N42*'fnd base rates'!C$57) +($O42*'fnd base rates'!C$58) +($P42*'fnd base rates'!C$59) +($Q42*'fnd base rates'!C$60) +($R42*'fnd base rates'!C$61) +($S42*'fnd base rates'!C$62) +($L42*'fnd base rates'!C$63) +($T42*VLOOKUP($W42+16,rate_basefnd,3))) *$V42 -> 613.1344642 | Z42: =(($D42*'fnd base rates'!D$48) +($E42*'fnd base rates'!D$49) +($F42*'fnd base rates'!D$50) +($G42*'fnd base rates'!D$51) +($H42*'fnd base rates'!D$52) +($I42*'fnd base rates'!D$53) +($J42*'fnd base rates'!D$54) +($K42*'fnd base rates'!D$55) +($M42*'fnd base rates'!D$56) +($N42*'fnd base rates'!D$57) +($O42*'fnd base rates'!D$58) +($P42*'fnd base rates'!D$59) +($Q42*'fnd base rates'!D$60) +($R42*'fnd base rates'!D$61) +($S42*'fnd base rates'!D$62) +($L42*'fnd base rates'!D$63) +($T42*VLOOKUP($W42+16,rate_basefnd,4))) *$V42 -> 911.38432 | AA42: =(($D42*'fnd base rates'!E$48) +($E42*'fnd base rates'!E$49) +($F42*'fnd base rates'!E$50) +($G42*'fnd base rates'!E$51) +($H42*'fnd base rates'!E$52) +($I42*'fnd base rates'!E$53) +($J42*'fnd base rates'!E$54) +($K42*'fnd base rates'!E$55) +($M42*'fnd base rates'!E$56) +($N42*'fnd base rates'!E$57) +($O42*'fnd base rates'!E$58) +($P42*'fnd base rates'!E$59) +($Q42*'fnd base rates'!E$60) +($R42*'fnd base rates'!E$61) +($S42*'fnd base rates'!E$62) +($L42*'fnd base rates'!E$63) +($T42*VLOOKUP($W42+16,rate_basefnd,5))) *$V42 -> 4546.83947 | AB42: =(($D42*'fnd base rates'!F$48) +($E42*'fnd base rates'!F$49) +($F42*'fnd base rates'!F$50) +($G42*'fnd base rates'!F$51) +($H42*'fnd base rates'!F$52) +($I42*'fnd base rates'!F$53) +($J42*'fnd base rates'!F$54) +($K42*'fnd base rates'!F$55) +($M42*'fnd base rates'!F$56) +($N42*'fnd base rates'!F$57) +($O42*'fnd base rates'!F$58) +($P42*'fnd base rates'!F$59) +($Q42*'fnd base rates'!F$60) +($R42*'fnd base rates'!F$61) +($S42*'fnd base rates'!F$62) +($L42*'fnd base rates'!F$63) +($T42*VLOOKUP($W42+16,rate_basefnd,6))) *$V42 -> 1123.258348 | AC42: =(($D42*'fnd base rates'!G$48) +($E42*'fnd base rates'!G$49) +($F42*'fnd base rates'!G$50) +($G42*'fnd base rates'!G$51) +($H42*'fnd base rates'!G$52) +($I42*'fnd base rates'!G$53) +($J42*'fnd base rates'!G$54) +($K42*'fnd base rates'!G$55) +($M42*'fnd base rates'!G$56) +($N42*'fnd base rates'!G$57) +($O42*'fnd base rates'!G$58) +($P42*'fnd base rates'!G$59) +($Q42*'fnd base rates'!G$60) +($R42*'fnd base rates'!G$61) +($S42*'fnd base rates'!G$62) +($L42*'fnd base rates'!G$63) +($T42*VLOOKUP($W42+16,rate_basefnd,7))) *$V42 -> 211.7115193 | AD42: =(($D42*'fnd base rates'!H$48) +($E42*'fnd base rates'!H$49) +($F42*'fnd base rates'!H$50) +($G42*'fnd base rates'!H$51) +($H42*'fnd base rates'!H$52) +($I42*'fnd base rates'!H$53) +($J42*'fnd base rates'!H$54) +($K42*'fnd base rates'!H$55) +($M42*'fnd base rates'!H$56) +($N42*'fnd base rates'!H$57) +($O42*'fnd base rates'!H$58) +($P42*'fnd base rates'!H$59) +($Q42*'fnd base rates'!H$60) +($R42*'fnd base rates'!H$61) +($S42*'fnd base rates'!H$62) +($L42*'fnd base rates'!H$63) +($T42*VLOOKUP($W42+16,rate_basefnd,8))) -> 582.934 | AE42: =(($D42*'fnd base rates'!I$48) +($E42*'fnd base rates'!I$49) +($F42*'fnd base rates'!I$50) +($G42*'fnd base rates'!I$51) +($H42*'fnd base rates'!I$52) +($I42*'fnd base rates'!I$53) +($J42*'fnd base rates'!I$54) +($K42*'fnd base rates'!I$55) +($M42*'fnd base rates'!I$56) +($N42*'fnd base rates'!I$57) +($O42*'fnd base rates'!I$58) +($P42*'fnd base rates'!I$59) +($Q42*'fnd base rates'!I$60) +($R42*'fnd base rates'!I$61) +($S42*'fnd base rates'!I$62) +($L42*'fnd base rates'!I$63) +($T42*VLOOKUP($W42+16,rate_basefnd,9))) *$V42 -> 402.0401 | AF42: =(($D42*'fnd base rates'!J$48) +($E42*'fnd base rates'!J$49) +($F42*'fnd base rates'!J$50) +($G42*'fnd base rates'!J$51) +($H42*'fnd base rates'!J$52) +($I42*'fnd base rates'!J$53) +($J42*'fnd base rates'!J$54) +($K42*'fnd base rates'!J$55) +($M42*'fnd base rates'!J$56) +($N42*'fnd base rates'!J$57) +($O42*'fnd base rates'!J$58) +($P42*'fnd base rates'!J$59) +($Q42*'fnd base rates'!J$60) +($R42*'fnd base rates'!J$61) +($S42*'fnd base rates'!J$62) +($L42*'fnd base rates'!J$63) +($T42*VLOOKUP($W42+16,rate_basefnd,10))) *$V42 -> 264.3256 | AG42: =(($D42*'fnd base rates'!K$48) +($E42*'fnd base rates'!K$49) +($F42*'fnd base rates'!K$50) +($G42*'fnd base rates'!K$51) +($H42*'fnd base rates'!K$52) +($I42*'fnd base rates'!K$53) +($J42*'fnd base rates'!K$54) +($K42*'fnd base rates'!K$55) +($M42*'fnd base rates'!K$56) +($N42*'fnd base rates'!K$57) +($O42*'fnd base rates'!K$58) +($P42*'fnd base rates'!K$59) +($Q42*'fnd base rates'!K$60) +($R42*'fnd base rates'!K$61) +($S42*'fnd base rates'!K$62) +($L42*'fnd base rates'!K$63) +($T42*VLOOKUP($W42+16,rate_basefnd,11))) *$V42 -> 1434.553081 | AH42: =(($D42*'fnd base rates'!L$48) +($E42*'fnd base rates'!L$49) +($F42*'fnd base rates'!L$50) +($G42*'fnd base rates'!L$51) +($H42*'fnd base rates'!L$52) +($I42*'fnd base rates'!L$53) +($J42*'fnd base rates'!L$54) +($K42*'fnd base rates'!L$55) +($M42*'fnd base rates'!L$56) +($N42*'fnd base rates'!L$57) +($O42*'fnd base rates'!L$58) +($P42*'fnd base rates'!L$59) +($Q42*'fnd base rates'!L$60) +($R42*'fnd base rates'!L$61) +($S42*'fnd base rates'!L$62) +($L42*'fnd base rates'!L$63) +($T42*VLOOKUP($W42+16,rate_basefnd,12))) -> 1362.493625 | AI42: =(($D42*'fnd base rates'!M$48) +($E42*'fnd base rates'!M$49) +($F42*'fnd base rates'!M$50) +($G42*'fnd base rates'!M$51) +($H42*'fnd base rates'!M$52) +($I42*'fnd base rates'!M$53) +($J42*'fnd base rates'!M$54) +($K42*'fnd base rates'!M$55) +($M42*'fnd base rates'!M$56) +($N42*'fnd base rates'!M$57) +($O42*'fnd base rates'!M$58) +($P42*'fnd base rates'!M$59) +($Q42*'fnd base rates'!M$60) +($R42*'fnd base rates'!M$61) +($S42*'fnd base rates'!M$62) +($L42*'fnd base rates'!M$63) +($T42*VLOOKUP($W42+16,rate_basefnd,13))) -> 0 | AJ42: 11452.67453 | AL42: 412035207 | AM42: 412 | AN42: 035 | AO42: 207 | AP42: 1 | AQ42: 1 | AR42: 11452.67453 | AS42: 11453
A43: 412 | B43: 412035212 | C43: ACADEMY OF THE PACIFIC RIM | D43: ='fnd enro'!D43 -> 0 | E43: ='fnd enro'!E43 -> 0 | F43: ='fnd enro'!F43 -> 0 | G43: ='fnd enro'!G43 -> 0 | H43: ='fnd enro'!H43 -> 0 | I43: ='fnd enro'!I43 -> 1 | J43: ='fnd enro'!J43 -> 0.0375 | K43: ='fnd enro'!K43 -> 0 | L43: ='fnd enro'!L43 -> 0 | M43: ='fnd enro'!M43 -> 0 | N43: ='fnd enro'!N43 -> 0 | O43: ='fnd enro'!O43 -> 0 | P43: ='fnd enro'!P43 -> 0 | Q43: ='fnd enro'!Q43 -> 0 | R43: ='fnd enro'!R43 -> 0 | S43: ='fnd enro'!S43 -> 0 | T43: ='fnd enro'!T43 -> 1 | U43: ='fnd enro'!W43 -> 1 | V43: 1.078 | W43: ='fnd enro'!V43 -> 10 | Y43: =(($D43*'fnd base rates'!C$48) +($E43*'fnd base rates'!C$49) +($F43*'fnd base rates'!C$50) +($G43*'fnd base rates'!C$51) +($H43*'fnd base rates'!C$52) +($I43*'fnd base rates'!C$53) +($J43*'fnd base rates'!C$54) +($K43*'fnd base rates'!C$55) +($M43*'fnd base rates'!C$56) +($N43*'fnd base rates'!C$57) +($O43*'fnd base rates'!C$58) +($P43*'fnd base rates'!C$59) +($Q43*'fnd base rates'!C$60) +($R43*'fnd base rates'!C$61) +($S43*'fnd base rates'!C$62) +($L43*'fnd base rates'!C$63) +($T43*VLOOKUP($W43+16,rate_basefnd,3))) *$V43 -> 512.6217443 | Z43: =(($D43*'fnd base rates'!D$48) +($E43*'fnd base rates'!D$49) +($F43*'fnd base rates'!D$50) +($G43*'fnd base rates'!D$51) +($H43*'fnd base rates'!D$52) +($I43*'fnd base rates'!D$53) +($J43*'fnd base rates'!D$54) +($K43*'fnd base rates'!D$55) +($M43*'fnd base rates'!D$56) +($N43*'fnd base rates'!D$57) +($O43*'fnd base rates'!D$58) +($P43*'fnd base rates'!D$59) +($Q43*'fnd base rates'!D$60) +($R43*'fnd base rates'!D$61) +($S43*'fnd base rates'!D$62) +($L43*'fnd base rates'!D$63) +($T43*VLOOKUP($W43+16,rate_basefnd,4))) *$V43 -> 735.48706 | AA43: =(($D43*'fnd base rates'!E$48) +($E43*'fnd base rates'!E$49) +($F43*'fnd base rates'!E$50) +($G43*'fnd base rates'!E$51) +($H43*'fnd base rates'!E$52) +($I43*'fnd base rates'!E$53) +($J43*'fnd base rates'!E$54) +($K43*'fnd base rates'!E$55) +($M43*'fnd base rates'!E$56) +($N43*'fnd base rates'!E$57) +($O43*'fnd base rates'!E$58) +($P43*'fnd base rates'!E$59) +($Q43*'fnd base rates'!E$60) +($R43*'fnd base rates'!E$61) +($S43*'fnd base rates'!E$62) +($L43*'fnd base rates'!E$63) +($T43*VLOOKUP($W43+16,rate_basefnd,5))) *$V43 -> 8058.267729 | AB43: =(($D43*'fnd base rates'!F$48) +($E43*'fnd base rates'!F$49) +($F43*'fnd base rates'!F$50) +($G43*'fnd base rates'!F$51) +($H43*'fnd base rates'!F$52) +($I43*'fnd base rates'!F$53) +($J43*'fnd base rates'!F$54) +($K43*'fnd base rates'!F$55) +($M43*'fnd base rates'!F$56) +($N43*'fnd base rates'!F$57) +($O43*'fnd base rates'!F$58) +($P43*'fnd base rates'!F$59) +($Q43*'fnd base rates'!F$60) +($R43*'fnd base rates'!F$61) +($S43*'fnd base rates'!F$62) +($L43*'fnd base rates'!F$63) +($T43*VLOOKUP($W43+16,rate_basefnd,6))) *$V43 -> 843.0753678 | AC43: =(($D43*'fnd base rates'!G$48) +($E43*'fnd base rates'!G$49) +($F43*'fnd base rates'!G$50) +($G43*'fnd base rates'!G$51) +($H43*'fnd base rates'!G$52) +($I43*'fnd base rates'!G$53) +($J43*'fnd base rates'!G$54) +($K43*'fnd base rates'!G$55) +($M43*'fnd base rates'!G$56) +($N43*'fnd base rates'!G$57) +($O43*'fnd base rates'!G$58) +($P43*'fnd base rates'!G$59) +($Q43*'fnd base rates'!G$60) +($R43*'fnd base rates'!G$61) +($S43*'fnd base rates'!G$62) +($L43*'fnd base rates'!G$63) +($T43*VLOOKUP($W43+16,rate_basefnd,7))) *$V43 -> 242.8564484 | AD43: =(($D43*'fnd base rates'!H$48) +($E43*'fnd base rates'!H$49) +($F43*'fnd base rates'!H$50) +($G43*'fnd base rates'!H$51) +($H43*'fnd base rates'!H$52) +($I43*'fnd base rates'!H$53) +($J43*'fnd base rates'!H$54) +($K43*'fnd base rates'!H$55) +($M43*'fnd base rates'!H$56) +($N43*'fnd base rates'!H$57) +($O43*'fnd base rates'!H$58) +($P43*'fnd base rates'!H$59) +($Q43*'fnd base rates'!H$60) +($R43*'fnd base rates'!H$61) +($S43*'fnd base rates'!H$62) +($L43*'fnd base rates'!H$63) +($T43*VLOOKUP($W43+16,rate_basefnd,8))) -> 738.064 | AE43: =(($D43*'fnd base rates'!I$48) +($E43*'fnd base rates'!I$49) +($F43*'fnd base rates'!I$50) +($G43*'fnd base rates'!I$51) +($H43*'fnd base rates'!I$52) +($I43*'fnd base rates'!I$53) +($J43*'fnd base rates'!I$54) +($K43*'fnd base rates'!I$55) +($M43*'fnd base rates'!I$56) +($N43*'fnd base rates'!I$57) +($O43*'fnd base rates'!I$58) +($P43*'fnd base rates'!I$59) +($Q43*'fnd base rates'!I$60) +($R43*'fnd base rates'!I$61) +($S43*'fnd base rates'!I$62) +($L43*'fnd base rates'!I$63) +($T43*VLOOKUP($W43+16,rate_basefnd,9))) *$V43 -> 409.4783 | AF43: =(($D43*'fnd base rates'!J$48) +($E43*'fnd base rates'!J$49) +($F43*'fnd base rates'!J$50) +($G43*'fnd base rates'!J$51) +($H43*'fnd base rates'!J$52) +($I43*'fnd base rates'!J$53) +($J43*'fnd base rates'!J$54) +($K43*'fnd base rates'!J$55) +($M43*'fnd base rates'!J$56) +($N43*'fnd base rates'!J$57) +($O43*'fnd base rates'!J$58) +($P43*'fnd base rates'!J$59) +($Q43*'fnd base rates'!J$60) +($R43*'fnd base rates'!J$61) +($S43*'fnd base rates'!J$62) +($L43*'fnd base rates'!J$63) +($T43*VLOOKUP($W43+16,rate_basefnd,10))) *$V43 -> 551.56948 | AG43: =(($D43*'fnd base rates'!K$48) +($E43*'fnd base rates'!K$49) +($F43*'fnd base rates'!K$50) +($G43*'fnd base rates'!K$51) +($H43*'fnd base rates'!K$52) +($I43*'fnd base rates'!K$53) +($J43*'fnd base rates'!K$54) +($K43*'fnd base rates'!K$55) +($M43*'fnd base rates'!K$56) +($N43*'fnd base rates'!K$57) +($O43*'fnd base rates'!K$58) +($P43*'fnd base rates'!K$59) +($Q43*'fnd base rates'!K$60) +($R43*'fnd base rates'!K$61) +($S43*'fnd base rates'!K$62) +($L43*'fnd base rates'!K$63) +($T43*VLOOKUP($W43+16,rate_basefnd,11))) *$V43 -> 1616.948957 | AH43: =(($D43*'fnd base rates'!L$48) +($E43*'fnd base rates'!L$49) +($F43*'fnd base rates'!L$50) +($G43*'fnd base rates'!L$51) +($H43*'fnd base rates'!L$52) +($I43*'fnd base rates'!L$53) +($J43*'fnd base rates'!L$54) +($K43*'fnd base rates'!L$55) +($M43*'fnd base rates'!L$56) +($N43*'fnd base rates'!L$57) +($O43*'fnd base rates'!L$58) +($P43*'fnd base rates'!L$59) +($Q43*'fnd base rates'!L$60) +($R43*'fnd base rates'!L$61) +($S43*'fnd base rates'!L$62) +($L43*'fnd base rates'!L$63) +($T43*VLOOKUP($W43+16,rate_basefnd,12))) -> 1336.969225 | AI43: =(($D43*'fnd base rates'!M$48) +($E43*'fnd base rates'!M$49) +($F43*'fnd base rates'!M$50) +($G43*'fnd base rates'!M$51) +($H43*'fnd base rates'!M$52) +($I43*'fnd base rates'!M$53) +($J43*'fnd base rates'!M$54) +($K43*'fnd base rates'!M$55) +($M43*'fnd base rates'!M$56) +($N43*'fnd base rates'!M$57) +($O43*'fnd base rates'!M$58) +($P43*'fnd base rates'!M$59) +($Q43*'fnd base rates'!M$60) +($R43*'fnd base rates'!M$61) +($S43*'fnd base rates'!M$62) +($L43*'fnd base rates'!M$63) +($T43*VLOOKUP($W43+16,rate_basefnd,13))) -> 0 | AJ43: 15045.33831 | AL43: 412035212 | AM43: 412 | AN43: 035 | AO43: 212 | AP43: 1 | AQ43: 1 | AR43: 15045.33831 | AS43: 15045
A44: 412 | B44: 412035220 | C44: ACADEMY OF THE PACIFIC RIM | D44: ='fnd enro'!D44 -> 0 | E44: ='fnd enro'!E44 -> 0 | F44: ='fnd enro'!F44 -> 0 | G44: ='fnd enro'!G44 -> 0 | H44: ='fnd enro'!H44 -> 0 | I44: ='fnd enro'!I44 -> 6 | J44: ='fnd enro'!J44 -> 0.225 | K44: ='fnd enro'!K44 -> 0 | L44: ='fnd enro'!L44 -> 0 | M44: ='fnd enro'!M44 -> 0 | N44: ='fnd enro'!N44 -> 0 | O44: ='fnd enro'!O44 -> 0 | P44: ='fnd enro'!P44 -> 0 | Q44: ='fnd enro'!Q44 -> 0 | R44: ='fnd enro'!R44 -> 0 | S44: ='fnd enro'!S44 -> 0 | T44: ='fnd enro'!T44 -> 3 | U44: ='fnd enro'!W44 -> 6 | V44: 1.078 | W44: ='fnd enro'!V44 -> 10 | Y44: =(($D44*'fnd base rates'!C$48) +($E44*'fnd base rates'!C$49) +($F44*'fnd base rates'!C$50) +($G44*'fnd base rates'!C$51) +($H44*'fnd base rates'!C$52) +($I44*'fnd base rates'!C$53) +($J44*'fnd base rates'!C$54) +($K44*'fnd base rates'!C$55) +($M44*'fnd base rates'!C$56) +($N44*'fnd base rates'!C$57) +($O44*'fnd base rates'!C$58) +($P44*'fnd base rates'!C$59) +($Q44*'fnd base rates'!C$60) +($R44*'fnd base rates'!C$61) +($S44*'fnd base rates'!C$62) +($L44*'fnd base rates'!C$63) +($T44*VLOOKUP($W44+16,rate_basefnd,3))) *$V44 -> 3075.730465 | Z44: =(($D44*'fnd base rates'!D$48) +($E44*'fnd base rates'!D$49) +($F44*'fnd base rates'!D$50) +($G44*'fnd base rates'!D$51) +($H44*'fnd base rates'!D$52) +($I44*'fnd base rates'!D$53) +($J44*'fnd base rates'!D$54) +($K44*'fnd base rates'!D$55) +($M44*'fnd base rates'!D$56) +($N44*'fnd base rates'!D$57) +($O44*'fnd base rates'!D$58) +($P44*'fnd base rates'!D$59) +($Q44*'fnd base rates'!D$60) +($R44*'fnd base rates'!D$61) +($S44*'fnd base rates'!D$62) +($L44*'fnd base rates'!D$63) +($T44*VLOOKUP($W44+16,rate_basefnd,4))) *$V44 -> 4412.92236 | AA44: =(($D44*'fnd base rates'!E$48) +($E44*'fnd base rates'!E$49) +($F44*'fnd base rates'!E$50) +($G44*'fnd base rates'!E$51) +($H44*'fnd base rates'!E$52) +($I44*'fnd base rates'!E$53) +($J44*'fnd base rates'!E$54) +($K44*'fnd base rates'!E$55) +($M44*'fnd base rates'!E$56) +($N44*'fnd base rates'!E$57) +($O44*'fnd base rates'!E$58) +($P44*'fnd base rates'!E$59) +($Q44*'fnd base rates'!E$60) +($R44*'fnd base rates'!E$61) +($S44*'fnd base rates'!E$62) +($L44*'fnd base rates'!E$63) +($T44*VLOOKUP($W44+16,rate_basefnd,5))) *$V44 -> 38311.06146 | AB44: =(($D44*'fnd base rates'!F$48) +($E44*'fnd base rates'!F$49) +($F44*'fnd base rates'!F$50) +($G44*'fnd base rates'!F$51) +($H44*'fnd base rates'!F$52) +($I44*'fnd base rates'!F$53) +($J44*'fnd base rates'!F$54) +($K44*'fnd base rates'!F$55) +($M44*'fnd base rates'!F$56) +($N44*'fnd base rates'!F$57) +($O44*'fnd base rates'!F$58) +($P44*'fnd base rates'!F$59) +($Q44*'fnd base rates'!F$60) +($R44*'fnd base rates'!F$61) +($S44*'fnd base rates'!F$62) +($L44*'fnd base rates'!F$63) +($T44*VLOOKUP($W44+16,rate_basefnd,6))) *$V44 -> 5058.452207 | AC44: =(($D44*'fnd base rates'!G$48) +($E44*'fnd base rates'!G$49) +($F44*'fnd base rates'!G$50) +($G44*'fnd base rates'!G$51) +($H44*'fnd base rates'!G$52) +($I44*'fnd base rates'!G$53) +($J44*'fnd base rates'!G$54) +($K44*'fnd base rates'!G$55) +($M44*'fnd base rates'!G$56) +($N44*'fnd base rates'!G$57) +($O44*'fnd base rates'!G$58) +($P44*'fnd base rates'!G$59) +($Q44*'fnd base rates'!G$60) +($R44*'fnd base rates'!G$61) +($S44*'fnd base rates'!G$62) +($L44*'fnd base rates'!G$63) +($T44*VLOOKUP($W44+16,rate_basefnd,7))) *$V44 -> 1199.740103 | AD44: =(($D44*'fnd base rates'!H$48) +($E44*'fnd base rates'!H$49) +($F44*'fnd base rates'!H$50) +($G44*'fnd base rates'!H$51) +($H44*'fnd base rates'!H$52) +($I44*'fnd base rates'!H$53) +($J44*'fnd base rates'!H$54) +($K44*'fnd base rates'!H$55) +($M44*'fnd base rates'!H$56) +($N44*'fnd base rates'!H$57) +($O44*'fnd base rates'!H$58) +($P44*'fnd base rates'!H$59) +($Q44*'fnd base rates'!H$60) +($R44*'fnd base rates'!H$61) +($S44*'fnd base rates'!H$62) +($L44*'fnd base rates'!H$63) +($T44*VLOOKUP($W44+16,rate_basefnd,8))) -> 4428.384 | AE44: =(($D44*'fnd base rates'!I$48) +($E44*'fnd base rates'!I$49) +($F44*'fnd base rates'!I$50) +($G44*'fnd base rates'!I$51) +($H44*'fnd base rates'!I$52) +($I44*'fnd base rates'!I$53) +($J44*'fnd base rates'!I$54) +($K44*'fnd base rates'!I$55) +($M44*'fnd base rates'!I$56) +($N44*'fnd base rates'!I$57) +($O44*'fnd base rates'!I$58) +($P44*'fnd base rates'!I$59) +($Q44*'fnd base rates'!I$60) +($R44*'fnd base rates'!I$61) +($S44*'fnd base rates'!I$62) +($L44*'fnd base rates'!I$63) +($T44*VLOOKUP($W44+16,rate_basefnd,9))) *$V44 -> 2456.8698 | AF44: =(($D44*'fnd base rates'!J$48) +($E44*'fnd base rates'!J$49) +($F44*'fnd base rates'!J$50) +($G44*'fnd base rates'!J$51) +($H44*'fnd base rates'!J$52) +($I44*'fnd base rates'!J$53) +($J44*'fnd base rates'!J$54) +($K44*'fnd base rates'!J$55) +($M44*'fnd base rates'!J$56) +($N44*'fnd base rates'!J$57) +($O44*'fnd base rates'!J$58) +($P44*'fnd base rates'!J$59) +($Q44*'fnd base rates'!J$60) +($R44*'fnd base rates'!J$61) +($S44*'fnd base rates'!J$62) +($L44*'fnd base rates'!J$63) +($T44*VLOOKUP($W44+16,rate_basefnd,10))) *$V44 -> 3309.41688 | AG44: =(($D44*'fnd base rates'!K$48) +($E44*'fnd base rates'!K$49) +($F44*'fnd base rates'!K$50) +($G44*'fnd base rates'!K$51) +($H44*'fnd base rates'!K$52) +($I44*'fnd base rates'!K$53) +($J44*'fnd base rates'!K$54) +($K44*'fnd base rates'!K$55) +($M44*'fnd base rates'!K$56) +($N44*'fnd base rates'!K$57) +($O44*'fnd base rates'!K$58) +($P44*'fnd base rates'!K$59) +($Q44*'fnd base rates'!K$60) +($R44*'fnd base rates'!K$61) +($S44*'fnd base rates'!K$62) +($L44*'fnd base rates'!K$63) +($T44*VLOOKUP($W44+16,rate_basefnd,11))) *$V44 -> 8157.302215 | AH44: =(($D44*'fnd base rates'!L$48) +($E44*'fnd base rates'!L$49) +($F44*'fnd base rates'!L$50) +($G44*'fnd base rates'!L$51) +($H44*'fnd base rates'!L$52) +($I44*'fnd base rates'!L$53) +($J44*'fnd base rates'!L$54) +($K44*'fnd base rates'!L$55) +($M44*'fnd base rates'!L$56) +($N44*'fnd base rates'!L$57) +($O44*'fnd base rates'!L$58) +($P44*'fnd base rates'!L$59) +($Q44*'fnd base rates'!L$60) +($R44*'fnd base rates'!L$61) +($S44*'fnd base rates'!L$62) +($L44*'fnd base rates'!L$63) +($T44*VLOOKUP($W44+16,rate_basefnd,12))) -> 7066.71855 | AI44: =(($D44*'fnd base rates'!M$48) +($E44*'fnd base rates'!M$49) +($F44*'fnd base rates'!M$50) +($G44*'fnd base rates'!M$51) +($H44*'fnd base rates'!M$52) +($I44*'fnd base rates'!M$53) +($J44*'fnd base rates'!M$54) +($K44*'fnd base rates'!M$55) +($M44*'fnd base rates'!M$56) +($N44*'fnd base rates'!M$57) +($O44*'fnd base rates'!M$58) +($P44*'fnd base rates'!M$59) +($Q44*'fnd base rates'!M$60) +($R44*'fnd base rates'!M$61) +($S44*'fnd base rates'!M$62) +($L44*'fnd base rates'!M$63) +($T44*VLOOKUP($W44+16,rate_basefnd,13))) -> 0 | AJ44: 77476.59804 | AL44: 412035220 | AM44: 412 | AN44: 035 | AO44: 220 | AP44: 1 | AQ44: 6 | AR44: 77476.59804 | AS44: 12913
A45: 412 | B45: 412035244 | C45: ACADEMY OF THE PACIFIC RIM | D45: ='fnd enro'!D45 -> 0 | E45: ='fnd enro'!E45 -> 0 | F45: ='fnd enro'!F45 -> 0 | G45: ='fnd enro'!G45 -> 2 | H45: ='fnd enro'!H45 -> 4 | I45: ='fnd enro'!I45 -> 2 | J45: ='fnd enro'!J45 -> 0.3 | K45: ='fnd enro'!K45 -> 0 | L45: ='fnd enro'!L45 -> 0 | M45: ='fnd enro'!M45 -> 0 | N45: ='fnd enro'!N45 -> 0 | O45: ='fnd enro'!O45 -> 0 | P45: ='fnd enro'!P45 -> 0 | Q45: ='fnd enro'!Q45 -> 1 | R45: ='fnd enro'!R45 -> 0 | S45: ='fnd enro'!S45 -> 0 | T45: ='fnd enro'!T45 -> 4 | U45: ='fnd enro'!W45 -> 8 | V45: 1.078 | W45: ='fnd enro'!V45 -> 10 | Y45: =(($D45*'fnd base rates'!C$48) +($E45*'fnd base rates'!C$49) +($F45*'fnd base rates'!C$50) +($G45*'fnd base rates'!C$51) +($H45*'fnd base rates'!C$52) +($I45*'fnd base rates'!C$53) +($J45*'fnd base rates'!C$54) +($K45*'fnd base rates'!C$55) +($M45*'fnd base rates'!C$56) +($N45*'fnd base rates'!C$57) +($O45*'fnd base rates'!C$58) +($P45*'fnd base rates'!C$59) +($Q45*'fnd base rates'!C$60) +($R45*'fnd base rates'!C$61) +($S45*'fnd base rates'!C$62) +($L45*'fnd base rates'!C$63) +($T45*VLOOKUP($W45+16,rate_basefnd,3))) *$V45 -> 4201.486674 | Z45: =(($D45*'fnd base rates'!D$48) +($E45*'fnd base rates'!D$49) +($F45*'fnd base rates'!D$50) +($G45*'fnd base rates'!D$51) +($H45*'fnd base rates'!D$52) +($I45*'fnd base rates'!D$53) +($J45*'fnd base rates'!D$54) +($K45*'fnd base rates'!D$55) +($M45*'fnd base rates'!D$56) +($N45*'fnd base rates'!D$57) +($O45*'fnd base rates'!D$58) +($P45*'fnd base rates'!D$59) +($Q45*'fnd base rates'!D$60) +($R45*'fnd base rates'!D$61) +($S45*'fnd base rates'!D$62) +($L45*'fnd base rates'!D$63) +($T45*VLOOKUP($W45+16,rate_basefnd,4))) *$V45 -> 6059.79374 | AA45: =(($D45*'fnd base rates'!E$48) +($E45*'fnd base rates'!E$49) +($F45*'fnd base rates'!E$50) +($G45*'fnd base rates'!E$51) +($H45*'fnd base rates'!E$52) +($I45*'fnd base rates'!E$53) +($J45*'fnd base rates'!E$54) +($K45*'fnd base rates'!E$55) +($M45*'fnd base rates'!E$56) +($N45*'fnd base rates'!E$57) +($O45*'fnd base rates'!E$58) +($P45*'fnd base rates'!E$59) +($Q45*'fnd base rates'!E$60) +($R45*'fnd base rates'!E$61) +($S45*'fnd base rates'!E$62) +($L45*'fnd base rates'!E$63) +($T45*VLOOKUP($W45+16,rate_basefnd,5))) *$V45 -> 44742.7106 | AB45: =(($D45*'fnd base rates'!F$48) +($E45*'fnd base rates'!F$49) +($F45*'fnd base rates'!F$50) +($G45*'fnd base rates'!F$51) +($H45*'fnd base rates'!F$52) +($I45*'fnd base rates'!F$53) +($J45*'fnd base rates'!F$54) +($K45*'fnd base rates'!F$55) +($M45*'fnd base rates'!F$56) +($N45*'fnd base rates'!F$57) +($O45*'fnd base rates'!F$58) +($P45*'fnd base rates'!F$59) +($Q45*'fnd base rates'!F$60) +($R45*'fnd base rates'!F$61) +($S45*'fnd base rates'!F$62) +($L45*'fnd base rates'!F$63) +($T45*VLOOKUP($W45+16,rate_basefnd,6))) *$V45 -> 8030.861762 | AC45: =(($D45*'fnd base rates'!G$48) +($E45*'fnd base rates'!G$49) +($F45*'fnd base rates'!G$50) +($G45*'fnd base rates'!G$51) +($H45*'fnd base rates'!G$52) +($I45*'fnd base rates'!G$53) +($J45*'fnd base rates'!G$54) +($K45*'fnd base rates'!G$55) +($M45*'fnd base rates'!G$56) +($N45*'fnd base rates'!G$57) +($O45*'fnd base rates'!G$58) +($P45*'fnd base rates'!G$59) +($Q45*'fnd base rates'!G$60) +($R45*'fnd base rates'!G$61) +($S45*'fnd base rates'!G$62) +($L45*'fnd base rates'!G$63) +($T45*VLOOKUP($W45+16,rate_basefnd,7))) *$V45 -> 1653.855311 | AD45: =(($D45*'fnd base rates'!H$48) +($E45*'fnd base rates'!H$49) +($F45*'fnd base rates'!H$50) +($G45*'fnd base rates'!H$51) +($H45*'fnd base rates'!H$52) +($I45*'fnd base rates'!H$53) +($J45*'fnd base rates'!H$54) +($K45*'fnd base rates'!H$55) +($M45*'fnd base rates'!H$56) +($N45*'fnd base rates'!H$57) +($O45*'fnd base rates'!H$58) +($P45*'fnd base rates'!H$59) +($Q45*'fnd base rates'!H$60) +($R45*'fnd base rates'!H$61) +($S45*'fnd base rates'!H$62) +($L45*'fnd base rates'!H$63) +($T45*VLOOKUP($W45+16,rate_basefnd,8))) -> 4390.982 | AE45: =(($D45*'fnd base rates'!I$48) +($E45*'fnd base rates'!I$49) +($F45*'fnd base rates'!I$50) +($G45*'fnd base rates'!I$51) +($H45*'fnd base rates'!I$52) +($I45*'fnd base rates'!I$53) +($J45*'fnd base rates'!I$54) +($K45*'fnd base rates'!I$55) +($M45*'fnd base rates'!I$56) +($N45*'fnd base rates'!I$57) +($O45*'fnd base rates'!I$58) +($P45*'fnd base rates'!I$59) +($Q45*'fnd base rates'!I$60) +($R45*'fnd base rates'!I$61) +($S45*'fnd base rates'!I$62) +($L45*'fnd base rates'!I$63) +($T45*VLOOKUP($W45+16,rate_basefnd,9))) *$V45 -> 2691.77678 | AF45: =(($D45*'fnd base rates'!J$48) +($E45*'fnd base rates'!J$49) +($F45*'fnd base rates'!J$50) +($G45*'fnd base rates'!J$51) +($H45*'fnd base rates'!J$52) +($I45*'fnd base rates'!J$53) +($J45*'fnd base rates'!J$54) +($K45*'fnd base rates'!J$55) +($M45*'fnd base rates'!J$56) +($N45*'fnd base rates'!J$57) +($O45*'fnd base rates'!J$58) +($P45*'fnd base rates'!J$59) +($Q45*'fnd base rates'!J$60) +($R45*'fnd base rates'!J$61) +($S45*'fnd base rates'!J$62) +($L45*'fnd base rates'!J$63) +($T45*VLOOKUP($W45+16,rate_basefnd,10))) *$V45 -> 2377.92786 | AG45: =(($D45*'fnd base rates'!K$48) +($E45*'fnd base rates'!K$49) +($F45*'fnd base rates'!K$50) +($G45*'fnd base rates'!K$51) +($H45*'fnd base rates'!K$52) +($I45*'fnd base rates'!K$53) +($J45*'fnd base rates'!K$54) +($K45*'fnd base rates'!K$55) +($M45*'fnd base rates'!K$56) +($N45*'fnd base rates'!K$57) +($O45*'fnd base rates'!K$58) +($P45*'fnd base rates'!K$59) +($Q45*'fnd base rates'!K$60) +($R45*'fnd base rates'!K$61) +($S45*'fnd base rates'!K$62) +($L45*'fnd base rates'!K$63) +($T45*VLOOKUP($W45+16,rate_basefnd,11))) *$V45 -> 11205.48401 | AH45: =(($D45*'fnd base rates'!L$48) +($E45*'fnd base rates'!L$49) +($F45*'fnd base rates'!L$50) +($G45*'fnd base rates'!L$51) +($H45*'fnd base rates'!L$52) +($I45*'fnd base rates'!L$53) +($J45*'fnd base rates'!L$54) +($K45*'fnd base rates'!L$55) +($M45*'fnd base rates'!L$56) +($N45*'fnd base rates'!L$57) +($O45*'fnd base rates'!L$58) +($P45*'fnd base rates'!L$59) +($Q45*'fnd base rates'!L$60) +($R45*'fnd base rates'!L$61) +($S45*'fnd base rates'!L$62) +($L45*'fnd base rates'!L$63) +($T45*VLOOKUP($W45+16,rate_basefnd,12))) -> 10171.0714 | AI45: =(($D45*'fnd base rates'!M$48) +($E45*'fnd base rates'!M$49) +($F45*'fnd base rates'!M$50) +($G45*'fnd base rates'!M$51) +($H45*'fnd base rates'!M$52) +($I45*'fnd base rates'!M$53) +($J45*'fnd base rates'!M$54) +($K45*'fnd base rates'!M$55) +($M45*'fnd base rates'!M$56) +($N45*'fnd base rates'!M$57) +($O45*'fnd base rates'!M$58) +($P45*'fnd base rates'!M$59) +($Q45*'fnd base rates'!M$60) +($R45*'fnd base rates'!M$61) +($S45*'fnd base rates'!M$62) +($L45*'fnd base rates'!M$63) +($T45*VLOOKUP($W45+16,rate_basefnd,13))) -> 0 | AJ45: 95525.95014 | AL45: 412035244 | AM45: 412 | AN45: 035 | AO45: 244 | AP45: 1 | AQ45: 8 | AR45: 95525.95014 | AS45: 11941
A46: 412 | B46: 412035285 | C46: ACADEMY OF THE PACIFIC RIM | D46: ='fnd enro'!D46 -> 0 | E46: ='fnd enro'!E46 -> 0 | F46: ='fnd enro'!F46 -> 0 | G46: ='fnd enro'!G46 -> 1 | H46: ='fnd enro'!H46 -> 3 | I46: ='fnd enro'!I46 -> 3 | J46: ='fnd enro'!J46 -> 0.2625 | K46: ='fnd enro'!K46 -> 0 | L46: ='fnd enro'!L46 -> 0 | M46: ='fnd enro'!M46 -> 0 | N46: ='fnd enro'!N46 -> 0 | O46: ='fnd enro'!O46 -> 0 | P46: ='fnd enro'!P46 -> 0 | Q46: ='fnd enro'!Q46 -> 0 | R46: ='fnd enro'!R46 -> 0 | S46: ='fnd enro'!S46 -> 0 | T46: ='fnd enro'!T46 -> 0 | U46: ='fnd enro'!W46 -> 7 | V46: 1.078 | W46: ='fnd enro'!V46 -> 1 | Y46: =(($D46*'fnd base rates'!C$48) +($E46*'fnd base rates'!C$49) +($F46*'fnd base rates'!C$50) +($G46*'fnd base rates'!C$51) +($H46*'fnd base rates'!C$52) +($I46*'fnd base rates'!C$53) +($J46*'fnd base rates'!C$54) +($K46*'fnd base rates'!C$55) +($M46*'fnd base rates'!C$56) +($N46*'fnd base rates'!C$57) +($O46*'fnd base rates'!C$58) +($P46*'fnd base rates'!C$59) +($Q46*'fnd base rates'!C$60) +($R46*'fnd base rates'!C$61) +($S46*'fnd base rates'!C$62) +($L46*'fnd base rates'!C$63) +($T46*VLOOKUP($W46+16,rate_basefnd,3))) *$V46 -> 3588.35221 | Z46: =(($D46*'fnd base rates'!D$48) +($E46*'fnd base rates'!D$49) +($F46*'fnd base rates'!D$50) +($G46*'fnd base rates'!D$51) +($H46*'fnd base rates'!D$52) +($I46*'fnd base rates'!D$53) +($J46*'fnd base rates'!D$54) +($K46*'fnd base rates'!D$55) +($M46*'fnd base rates'!D$56) +($N46*'fnd base rates'!D$57) +($O46*'fnd base rates'!D$58) +($P46*'fnd base rates'!D$59) +($Q46*'fnd base rates'!D$60) +($R46*'fnd base rates'!D$61) +($S46*'fnd base rates'!D$62) +($L46*'fnd base rates'!D$63) +($T46*VLOOKUP($W46+16,rate_basefnd,4))) *$V46 -> 5148.40942 | AA46: =(($D46*'fnd base rates'!E$48) +($E46*'fnd base rates'!E$49) +($F46*'fnd base rates'!E$50) +($G46*'fnd base rates'!E$51) +($H46*'fnd base rates'!E$52) +($I46*'fnd base rates'!E$53) +($J46*'fnd base rates'!E$54) +($K46*'fnd base rates'!E$55) +($M46*'fnd base rates'!E$56) +($N46*'fnd base rates'!E$57) +($O46*'fnd base rates'!E$58) +($P46*'fnd base rates'!E$59) +($Q46*'fnd base rates'!E$60) +($R46*'fnd base rates'!E$61) +($S46*'fnd base rates'!E$62) +($L46*'fnd base rates'!E$63) +($T46*VLOOKUP($W46+16,rate_basefnd,5))) *$V46 -> 27803.03393 | AB46: =(($D46*'fnd base rates'!F$48) +($E46*'fnd base rates'!F$49) +($F46*'fnd base rates'!F$50) +($G46*'fnd base rates'!F$51) +($H46*'fnd base rates'!F$52) +($I46*'fnd base rates'!F$53) +($J46*'fnd base rates'!F$54) +($K46*'fnd base rates'!F$55) +($M46*'fnd base rates'!F$56) +($N46*'fnd base rates'!F$57) +($O46*'fnd base rates'!F$58) +($P46*'fnd base rates'!F$59) +($Q46*'fnd base rates'!F$60) +($R46*'fnd base rates'!F$61) +($S46*'fnd base rates'!F$62) +($L46*'fnd base rates'!F$63) +($T46*VLOOKUP($W46+16,rate_basefnd,6))) *$V46 -> 6560.994074 | AC46: =(($D46*'fnd base rates'!G$48) +($E46*'fnd base rates'!G$49) +($F46*'fnd base rates'!G$50) +($G46*'fnd base rates'!G$51) +($H46*'fnd base rates'!G$52) +($I46*'fnd base rates'!G$53) +($J46*'fnd base rates'!G$54) +($K46*'fnd base rates'!G$55) +($M46*'fnd base rates'!G$56) +($N46*'fnd base rates'!G$57) +($O46*'fnd base rates'!G$58) +($P46*'fnd base rates'!G$59) +($Q46*'fnd base rates'!G$60) +($R46*'fnd base rates'!G$61) +($S46*'fnd base rates'!G$62) +($L46*'fnd base rates'!G$63) +($T46*VLOOKUP($W46+16,rate_basefnd,7))) *$V46 -> 1105.769415 | AD46: =(($D46*'fnd base rates'!H$48) +($E46*'fnd base rates'!H$49) +($F46*'fnd base rates'!H$50) +($G46*'fnd base rates'!H$51) +($H46*'fnd base rates'!H$52) +($I46*'fnd base rates'!H$53) +($J46*'fnd base rates'!H$54) +($K46*'fnd base rates'!H$55) +($M46*'fnd base rates'!H$56) +($N46*'fnd base rates'!H$57) +($O46*'fnd base rates'!H$58) +($P46*'fnd base rates'!H$59) +($Q46*'fnd base rates'!H$60) +($R46*'fnd base rates'!H$61) +($S46*'fnd base rates'!H$62) +($L46*'fnd base rates'!H$63) +($T46*VLOOKUP($W46+16,rate_basefnd,8))) -> 4079.728 | AE46: =(($D46*'fnd base rates'!I$48) +($E46*'fnd base rates'!I$49) +($F46*'fnd base rates'!I$50) +($G46*'fnd base rates'!I$51) +($H46*'fnd base rates'!I$52) +($I46*'fnd base rates'!I$53) +($J46*'fnd base rates'!I$54) +($K46*'fnd base rates'!I$55) +($M46*'fnd base rates'!I$56) +($N46*'fnd base rates'!I$57) +($O46*'fnd base rates'!I$58) +($P46*'fnd base rates'!I$59) +($Q46*'fnd base rates'!I$60) +($R46*'fnd base rates'!I$61) +($S46*'fnd base rates'!I$62) +($L46*'fnd base rates'!I$63) +($T46*VLOOKUP($W46+16,rate_basefnd,9))) *$V46 -> 2453.80828 | AF46: =(($D46*'fnd base rates'!J$48) +($E46*'fnd base rates'!J$49) +($F46*'fnd base rates'!J$50) +($G46*'fnd base rates'!J$51) +($H46*'fnd base rates'!J$52) +($I46*'fnd base rates'!J$53) +($J46*'fnd base rates'!J$54) +($K46*'fnd base rates'!J$55) +($M46*'fnd base rates'!J$56) +($N46*'fnd base rates'!J$57) +($O46*'fnd base rates'!J$58) +($P46*'fnd base rates'!J$59) +($Q46*'fnd base rates'!J$60) +($R46*'fnd base rates'!J$61) +($S46*'fnd base rates'!J$62) +($L46*'fnd base rates'!J$63) +($T46*VLOOKUP($W46+16,rate_basefnd,10))) *$V46 -> 2518.73622 | AG46: =(($D46*'fnd base rates'!K$48) +($E46*'fnd base rates'!K$49) +($F46*'fnd base rates'!K$50) +($G46*'fnd base rates'!K$51) +($H46*'fnd base rates'!K$52) +($I46*'fnd base rates'!K$53) +($J46*'fnd base rates'!K$54) +($K46*'fnd base rates'!K$55) +($M46*'fnd base rates'!K$56) +($N46*'fnd base rates'!K$57) +($O46*'fnd base rates'!K$58) +($P46*'fnd base rates'!K$59) +($Q46*'fnd base rates'!K$60) +($R46*'fnd base rates'!K$61) +($S46*'fnd base rates'!K$62) +($L46*'fnd base rates'!K$63) +($T46*VLOOKUP($W46+16,rate_basefnd,11))) *$V46 -> 7759.68089 | AH46: =(($D46*'fnd base rates'!L$48) +($E46*'fnd base rates'!L$49) +($F46*'fnd base rates'!L$50) +($G46*'fnd base rates'!L$51) +($H46*'fnd base rates'!L$52) +($I46*'fnd base rates'!L$53) +($J46*'fnd base rates'!L$54) +($K46*'fnd base rates'!L$55) +($M46*'fnd base rates'!L$56) +($N46*'fnd base rates'!L$57) +($O46*'fnd base rates'!L$58) +($P46*'fnd base rates'!L$59) +($Q46*'fnd base rates'!L$60) +($R46*'fnd base rates'!L$61) +($S46*'fnd base rates'!L$62) +($L46*'fnd base rates'!L$63) +($T46*VLOOKUP($W46+16,rate_basefnd,12))) -> 7463.875375 | AI46: =(($D46*'fnd base rates'!M$48) +($E46*'fnd base rates'!M$49) +($F46*'fnd base rates'!M$50) +($G46*'fnd base rates'!M$51) +($H46*'fnd base rates'!M$52) +($I46*'fnd base rates'!M$53) +($J46*'fnd base rates'!M$54) +($K46*'fnd base rates'!M$55) +($M46*'fnd base rates'!M$56) +($N46*'fnd base rates'!M$57) +($O46*'fnd base rates'!M$58) +($P46*'fnd base rates'!M$59) +($Q46*'fnd base rates'!M$60) +($R46*'fnd base rates'!M$61) +($S46*'fnd base rates'!M$62) +($L46*'fnd base rates'!M$63) +($T46*VLOOKUP($W46+16,rate_basefnd,13))) -> 0 | AJ46: 68482.38782 | AL46: 412035285 | AM46: 412 | AN46: 035 | AO46: 285 | AP46: 1 | AQ46: 7 | AR46: 68482.38782 | AS46: 9783
A47: 412 | B47: 412035293 | C47: ACADEMY OF THE PACIFIC RIM | D47: ='fnd enro'!D47 -> 0 | E47: ='fnd enro'!E47 -> 0 | F47: ='fnd enro'!F47 -> 0 | G47: ='fnd enro'!G47 -> 0 | H47: ='fnd enro'!H47 -> 1 | I47: ='fnd enro'!I47 -> 0 | J47: ='fnd enro'!J47 -> 0.0375 | K47: ='fnd enro'!K47 -> 0 | L47: ='fnd enro'!L47 -> 0 | M47: ='fnd enro'!M47 -> 0 | N47: ='fnd enro'!N47 -> 0 | O47: ='fnd enro'!O47 -> 0 | P47: ='fnd enro'!P47 -> 0 | Q47: ='fnd enro'!Q47 -> 0 | R47: ='fnd enro'!R47 -> 0 | S47: ='fnd enro'!S47 -> 0 | T47: ='fnd enro'!T47 -> 0 | U47: ='fnd enro'!W47 -> 1 | V47: 1.078 | W47: ='fnd enro'!V47 -> 1 | Y47: =(($D47*'fnd base rates'!C$48) +($E47*'fnd base rates'!C$49) +($F47*'fnd base rates'!C$50) +($G47*'fnd base rates'!C$51) +($H47*'fnd base rates'!C$52) +($I47*'fnd base rates'!C$53) +($J47*'fnd base rates'!C$54) +($K47*'fnd base rates'!C$55) +($M47*'fnd base rates'!C$56) +($N47*'fnd base rates'!C$57) +($O47*'fnd base rates'!C$58) +($P47*'fnd base rates'!C$59) +($Q47*'fnd base rates'!C$60) +($R47*'fnd base rates'!C$61) +($S47*'fnd base rates'!C$62) +($L47*'fnd base rates'!C$63) +($T47*VLOOKUP($W47+16,rate_basefnd,3))) *$V47 -> 512.6217443 | Z47: =(($D47*'fnd base rates'!D$48) +($E47*'fnd base rates'!D$49) +($F47*'fnd base rates'!D$50) +($G47*'fnd base rates'!D$51) +($H47*'fnd base rates'!D$52) +($I47*'fnd base rates'!D$53) +($J47*'fnd base rates'!D$54) +($K47*'fnd base rates'!D$55) +($M47*'fnd base rates'!D$56) +($N47*'fnd base rates'!D$57) +($O47*'fnd base rates'!D$58) +($P47*'fnd base rates'!D$59) +($Q47*'fnd base rates'!D$60) +($R47*'fnd base rates'!D$61) +($S47*'fnd base rates'!D$62) +($L47*'fnd base rates'!D$63) +($T47*VLOOKUP($W47+16,rate_basefnd,4))) *$V47 -> 735.48706 | AA47: =(($D47*'fnd base rates'!E$48) +($E47*'fnd base rates'!E$49) +($F47*'fnd base rates'!E$50) +($G47*'fnd base rates'!E$51) +($H47*'fnd base rates'!E$52) +($I47*'fnd base rates'!E$53) +($J47*'fnd base rates'!E$54) +($K47*'fnd base rates'!E$55) +($M47*'fnd base rates'!E$56) +($N47*'fnd base rates'!E$57) +($O47*'fnd base rates'!E$58) +($P47*'fnd base rates'!E$59) +($Q47*'fnd base rates'!E$60) +($R47*'fnd base rates'!E$61) +($S47*'fnd base rates'!E$62) +($L47*'fnd base rates'!E$63) +($T47*VLOOKUP($W47+16,rate_basefnd,5))) *$V47 -> 3315.52631 | AB47: =(($D47*'fnd base rates'!F$48) +($E47*'fnd base rates'!F$49) +($F47*'fnd base rates'!F$50) +($G47*'fnd base rates'!F$51) +($H47*'fnd base rates'!F$52) +($I47*'fnd base rates'!F$53) +($J47*'fnd base rates'!F$54) +($K47*'fnd base rates'!F$55) +($M47*'fnd base rates'!F$56) +($N47*'fnd base rates'!F$57) +($O47*'fnd base rates'!F$58) +($P47*'fnd base rates'!F$59) +($Q47*'fnd base rates'!F$60) +($R47*'fnd base rates'!F$61) +($S47*'fnd base rates'!F$62) +($L47*'fnd base rates'!F$63) +($T47*VLOOKUP($W47+16,rate_basefnd,6))) *$V47 -> 947.3610878 | AC47: =(($D47*'fnd base rates'!G$48) +($E47*'fnd base rates'!G$49) +($F47*'fnd base rates'!G$50) +($G47*'fnd base rates'!G$51) +($H47*'fnd base rates'!G$52) +($I47*'fnd base rates'!G$53) +($J47*'fnd base rates'!G$54) +($K47*'fnd base rates'!G$55) +($M47*'fnd base rates'!G$56) +($N47*'fnd base rates'!G$57) +($O47*'fnd base rates'!G$58) +($P47*'fnd base rates'!G$59) +($Q47*'fnd base rates'!G$60) +($R47*'fnd base rates'!G$61) +($S47*'fnd base rates'!G$62) +($L47*'fnd base rates'!G$63) +($T47*VLOOKUP($W47+16,rate_basefnd,7))) *$V47 -> 161.4551593 | AD47: =(($D47*'fnd base rates'!H$48) +($E47*'fnd base rates'!H$49) +($F47*'fnd base rates'!H$50) +($G47*'fnd base rates'!H$51) +($H47*'fnd base rates'!H$52) +($I47*'fnd base rates'!H$53) +($J47*'fnd base rates'!H$54) +($K47*'fnd base rates'!H$55) +($M47*'fnd base rates'!H$56) +($N47*'fnd base rates'!H$57) +($O47*'fnd base rates'!H$58) +($P47*'fnd base rates'!H$59) +($Q47*'fnd base rates'!H$60) +($R47*'fnd base rates'!H$61) +($S47*'fnd base rates'!H$62) +($L47*'fnd base rates'!H$63) +($T47*VLOOKUP($W47+16,rate_basefnd,8))) -> 466.384 | AE47: =(($D47*'fnd base rates'!I$48) +($E47*'fnd base rates'!I$49) +($F47*'fnd base rates'!I$50) +($G47*'fnd base rates'!I$51) +($H47*'fnd base rates'!I$52) +($I47*'fnd base rates'!I$53) +($J47*'fnd base rates'!I$54) +($K47*'fnd base rates'!I$55) +($M47*'fnd base rates'!I$56) +($N47*'fnd base rates'!I$57) +($O47*'fnd base rates'!I$58) +($P47*'fnd base rates'!I$59) +($Q47*'fnd base rates'!I$60) +($R47*'fnd base rates'!I$61) +($S47*'fnd base rates'!I$62) +($L47*'fnd base rates'!I$63) +($T47*VLOOKUP($W47+16,rate_basefnd,9))) *$V47 -> 326.65556 | AF47: =(($D47*'fnd base rates'!J$48) +($E47*'fnd base rates'!J$49) +($F47*'fnd base rates'!J$50) +($G47*'fnd base rates'!J$51) +($H47*'fnd base rates'!J$52) +($I47*'fnd base rates'!J$53) +($J47*'fnd base rates'!J$54) +($K47*'fnd base rates'!J$55) +($M47*'fnd base rates'!J$56) +($N47*'fnd base rates'!J$57) +($O47*'fnd base rates'!J$58) +($P47*'fnd base rates'!J$59) +($Q47*'fnd base rates'!J$60) +($R47*'fnd base rates'!J$61) +($S47*'fnd base rates'!J$62) +($L47*'fnd base rates'!J$63) +($T47*VLOOKUP($W47+16,rate_basefnd,10))) *$V47 -> 239.19742 | AG47: =(($D47*'fnd base rates'!K$48) +($E47*'fnd base rates'!K$49) +($F47*'fnd base rates'!K$50) +($G47*'fnd base rates'!K$51) +($H47*'fnd base rates'!K$52) +($I47*'fnd base rates'!K$53) +($J47*'fnd base rates'!K$54) +($K47*'fnd base rates'!K$55) +($M47*'fnd base rates'!K$56) +($N47*'fnd base rates'!K$57) +($O47*'fnd base rates'!K$58) +($P47*'fnd base rates'!K$59) +($Q47*'fnd base rates'!K$60) +($R47*'fnd base rates'!K$61) +($S47*'fnd base rates'!K$62) +($L47*'fnd base rates'!K$63) +($T47*VLOOKUP($W47+16,rate_basefnd,11))) *$V47 -> 1133.004142 | AH47: =(($D47*'fnd base rates'!L$48) +($E47*'fnd base rates'!L$49) +($F47*'fnd base rates'!L$50) +($G47*'fnd base rates'!L$51) +($H47*'fnd base rates'!L$52) +($I47*'fnd base rates'!L$53) +($J47*'fnd base rates'!L$54) +($K47*'fnd base rates'!L$55) +($M47*'fnd base rates'!L$56) +($N47*'fnd base rates'!L$57) +($O47*'fnd base rates'!L$58) +($P47*'fnd base rates'!L$59) +($Q47*'fnd base rates'!L$60) +($R47*'fnd base rates'!L$61) +($S47*'fnd base rates'!L$62) +($L47*'fnd base rates'!L$63) +($T47*VLOOKUP($W47+16,rate_basefnd,12))) -> 1106.073625 | AI47: =(($D47*'fnd base rates'!M$48) +($E47*'fnd base rates'!M$49) +($F47*'fnd base rates'!M$50) +($G47*'fnd base rates'!M$51) +($H47*'fnd base rates'!M$52) +($I47*'fnd base rates'!M$53) +($J47*'fnd base rates'!M$54) +($K47*'fnd base rates'!M$55) +($M47*'fnd base rates'!M$56) +($N47*'fnd base rates'!M$57) +($O47*'fnd base rates'!M$58) +($P47*'fnd base rates'!M$59) +($Q47*'fnd base rates'!M$60) +($R47*'fnd base rates'!M$61) +($S47*'fnd base rates'!M$62) +($L47*'fnd base rates'!M$63) +($T47*VLOOKUP($W47+16,rate_basefnd,13))) -> 0 | AJ47: 8943.766108 | AL47: 412035293 | AM47: 412 | AN47: 035 | AO47: 293 | AP47: 1 | AQ47: 1 | AR47: 8943.766108 | AS47: 8944
A48: 412 | B48: 412035314 | C48: ACADEMY OF THE PACIFIC RIM | D48: ='fnd enro'!D48 -> 0 | E48: ='fnd enro'!E48 -> 0 | F48: ='fnd enro'!F48 -> 0 | G48: ='fnd enro'!G48 -> 0 | H48: ='fnd enro'!H48 -> 0 | I48: ='fnd enro'!I48 -> 1 | J48: ='fnd enro'!J48 -> 0.0375 | K48: ='fnd enro'!K48 -> 0 | L48: ='fnd enro'!L48 -> 0 | M48: ='fnd enro'!M48 -> 0 | N48: ='fnd enro'!N48 -> 0 | O48: ='fnd enro'!O48 -> 0 | P48: ='fnd enro'!P48 -> 0 | Q48: ='fnd enro'!Q48 -> 0 | R48: ='fnd enro'!R48 -> 0 | S48: ='fnd enro'!S48 -> 0 | T48: ='fnd enro'!T48 -> 0 | U48: ='fnd enro'!W48 -> 1 | V48: 1.078 | W48: ='fnd enro'!V48 -> 1 | Y48: =(($D48*'fnd base rates'!C$48) +($E48*'fnd base rates'!C$49) +($F48*'fnd base rates'!C$50) +($G48*'fnd base rates'!C$51) +($H48*'fnd base rates'!C$52) +($I48*'fnd base rates'!C$53) +($J48*'fnd base rates'!C$54) +($K48*'fnd base rates'!C$55) +($M48*'fnd base rates'!C$56) +($N48*'fnd base rates'!C$57) +($O48*'fnd base rates'!C$58) +($P48*'fnd base rates'!C$59) +($Q48*'fnd base rates'!C$60) +($R48*'fnd base rates'!C$61) +($S48*'fnd base rates'!C$62) +($L48*'fnd base rates'!C$63) +($T48*VLOOKUP($W48+16,rate_basefnd,3))) *$V48 -> 512.6217443 | Z48: =(($D48*'fnd base rates'!D$48) +($E48*'fnd base rates'!D$49) +($F48*'fnd base rates'!D$50) +($G48*'fnd base rates'!D$51) +($H48*'fnd base rates'!D$52) +($I48*'fnd base rates'!D$53) +($J48*'fnd base rates'!D$54) +($K48*'fnd base rates'!D$55) +($M48*'fnd base rates'!D$56) +($N48*'fnd base rates'!D$57) +($O48*'fnd base rates'!D$58) +($P48*'fnd base rates'!D$59) +($Q48*'fnd base rates'!D$60) +($R48*'fnd base rates'!D$61) +($S48*'fnd base rates'!D$62) +($L48*'fnd base rates'!D$63) +($T48*VLOOKUP($W48+16,rate_basefnd,4))) *$V48 -> 735.48706 | AA48: =(($D48*'fnd base rates'!E$48) +($E48*'fnd base rates'!E$49) +($F48*'fnd base rates'!E$50) +($G48*'fnd base rates'!E$51) +($H48*'fnd base rates'!E$52) +($I48*'fnd base rates'!E$53) +($J48*'fnd base rates'!E$54) +($K48*'fnd base rates'!E$55) +($M48*'fnd base rates'!E$56) +($N48*'fnd base rates'!E$57) +($O48*'fnd base rates'!E$58) +($P48*'fnd base rates'!E$59) +($Q48*'fnd base rates'!E$60) +($R48*'fnd base rates'!E$61) +($S48*'fnd base rates'!E$62) +($L48*'fnd base rates'!E$63) +($T48*VLOOKUP($W48+16,rate_basefnd,5))) *$V48 -> 4712.08609 | AB48: =(($D48*'fnd base rates'!F$48) +($E48*'fnd base rates'!F$49) +($F48*'fnd base rates'!F$50) +($G48*'fnd base rates'!F$51) +($H48*'fnd base rates'!F$52) +($I48*'fnd base rates'!F$53) +($J48*'fnd base rates'!F$54) +($K48*'fnd base rates'!F$55) +($M48*'fnd base rates'!F$56) +($N48*'fnd base rates'!F$57) +($O48*'fnd base rates'!F$58) +($P48*'fnd base rates'!F$59) +($Q48*'fnd base rates'!F$60) +($R48*'fnd base rates'!F$61) +($S48*'fnd base rates'!F$62) +($L48*'fnd base rates'!F$63) +($T48*VLOOKUP($W48+16,rate_basefnd,6))) *$V48 -> 843.0753678 | AC48: =(($D48*'fnd base rates'!G$48) +($E48*'fnd base rates'!G$49) +($F48*'fnd base rates'!G$50) +($G48*'fnd base rates'!G$51) +($H48*'fnd base rates'!G$52) +($I48*'fnd base rates'!G$53) +($J48*'fnd base rates'!G$54) +($K48*'fnd base rates'!G$55) +($M48*'fnd base rates'!G$56) +($N48*'fnd base rates'!G$57) +($O48*'fnd base rates'!G$58) +($P48*'fnd base rates'!G$59) +($Q48*'fnd base rates'!G$60) +($R48*'fnd base rates'!G$61) +($S48*'fnd base rates'!G$62) +($L48*'fnd base rates'!G$63) +($T48*VLOOKUP($W48+16,rate_basefnd,7))) *$V48 -> 157.0569192 | AD48: =(($D48*'fnd base rates'!H$48) +($E48*'fnd base rates'!H$49) +($F48*'fnd base rates'!H$50) +($G48*'fnd base rates'!H$51) +($H48*'fnd base rates'!H$52) +($I48*'fnd base rates'!H$53) +($J48*'fnd base rates'!H$54) +($K48*'fnd base rates'!H$55) +($M48*'fnd base rates'!H$56) +($N48*'fnd base rates'!H$57) +($O48*'fnd base rates'!H$58) +($P48*'fnd base rates'!H$59) +($Q48*'fnd base rates'!H$60) +($R48*'fnd base rates'!H$61) +($S48*'fnd base rates'!H$62) +($L48*'fnd base rates'!H$63) +($T48*VLOOKUP($W48+16,rate_basefnd,8))) -> 738.064 | AE48: =(($D48*'fnd base rates'!I$48) +($E48*'fnd base rates'!I$49) +($F48*'fnd base rates'!I$50) +($G48*'fnd base rates'!I$51) +($H48*'fnd base rates'!I$52) +($I48*'fnd base rates'!I$53) +($J48*'fnd base rates'!I$54) +($K48*'fnd base rates'!I$55) +($M48*'fnd base rates'!I$56) +($N48*'fnd base rates'!I$57) +($O48*'fnd base rates'!I$58) +($P48*'fnd base rates'!I$59) +($Q48*'fnd base rates'!I$60) +($R48*'fnd base rates'!I$61) +($S48*'fnd base rates'!I$62) +($L48*'fnd base rates'!I$63) +($T48*VLOOKUP($W48+16,rate_basefnd,9))) *$V48 -> 409.4783 | AF48: =(($D48*'fnd base rates'!J$48) +($E48*'fnd base rates'!J$49) +($F48*'fnd base rates'!J$50) +($G48*'fnd base rates'!J$51) +($H48*'fnd base rates'!J$52) +($I48*'fnd base rates'!J$53) +($J48*'fnd base rates'!J$54) +($K48*'fnd base rates'!J$55) +($M48*'fnd base rates'!J$56) +($N48*'fnd base rates'!J$57) +($O48*'fnd base rates'!J$58) +($P48*'fnd base rates'!J$59) +($Q48*'fnd base rates'!J$60) +($R48*'fnd base rates'!J$61) +($S48*'fnd base rates'!J$62) +($L48*'fnd base rates'!J$63) +($T48*VLOOKUP($W48+16,rate_basefnd,10))) *$V48 -> 551.56948 | AG48: =(($D48*'fnd base rates'!K$48) +($E48*'fnd base rates'!K$49) +($F48*'fnd base rates'!K$50) +($G48*'fnd base rates'!K$51) +($H48*'fnd base rates'!K$52) +($I48*'fnd base rates'!K$53) +($J48*'fnd base rates'!K$54) +($K48*'fnd base rates'!K$55) +($M48*'fnd base rates'!K$56) +($N48*'fnd base rates'!K$57) +($O48*'fnd base rates'!K$58) +($P48*'fnd base rates'!K$59) +($Q48*'fnd base rates'!K$60) +($R48*'fnd base rates'!K$61) +($S48*'fnd base rates'!K$62) +($L48*'fnd base rates'!K$63) +($T48*VLOOKUP($W48+16,rate_basefnd,11))) *$V48 -> 1102.151782 | AH48: =(($D48*'fnd base rates'!L$48) +($E48*'fnd base rates'!L$49) +($F48*'fnd base rates'!L$50) +($G48*'fnd base rates'!L$51) +($H48*'fnd base rates'!L$52) +($I48*'fnd base rates'!L$53) +($J48*'fnd base rates'!L$54) +($K48*'fnd base rates'!L$55) +($M48*'fnd base rates'!L$56) +($N48*'fnd base rates'!L$57) +($O48*'fnd base rates'!L$58) +($P48*'fnd base rates'!L$59) +($Q48*'fnd base rates'!L$60) +($R48*'fnd base rates'!L$61) +($S48*'fnd base rates'!L$62) +($L48*'fnd base rates'!L$63) +($T48*VLOOKUP($W48+16,rate_basefnd,12))) -> 1018.603625 | AI48: =(($D48*'fnd base rates'!M$48) +($E48*'fnd base rates'!M$49) +($F48*'fnd base rates'!M$50) +($G48*'fnd base rates'!M$51) +($H48*'fnd base rates'!M$52) +($I48*'fnd base rates'!M$53) +($J48*'fnd base rates'!M$54) +($K48*'fnd base rates'!M$55) +($M48*'fnd base rates'!M$56) +($N48*'fnd base rates'!M$57) +($O48*'fnd base rates'!M$58) +($P48*'fnd base rates'!M$59) +($Q48*'fnd base rates'!M$60) +($R48*'fnd base rates'!M$61) +($S48*'fnd base rates'!M$62) +($L48*'fnd base rates'!M$63) +($T48*VLOOKUP($W48+16,rate_basefnd,13))) -> 0 | AJ48: 10780.19437 | AL48: 412035314 | AM48: 412 | AN48: 035 | AO48: 314 | AP48: 1 | AQ48: 1 | AR48: 10780.19437 | AS48: 10780
A49: 412 | B49: 412035335 | C49: ACADEMY OF THE PACIFIC RIM | D49: ='fnd enro'!D49 -> 0 | E49: ='fnd enro'!E49 -> 0 | F49: ='fnd enro'!F49 -> 0 | G49: ='fnd enro'!G49 -> 0 | H49: ='fnd enro'!H49 -> 0 | I49: ='fnd enro'!I49 -> 1 | J49: ='fnd enro'!J49 -> 0.0375 | K49: ='fnd enro'!K49 -> 0 | L49: ='fnd enro'!L49 -> 0 | M49: ='fnd enro'!M49 -> 0 | N49: ='fnd enro'!N49 -> 0 | O49: ='fnd enro'!O49 -> 0 | P49: ='fnd enro'!P49 -> 0 | Q49: ='fnd enro'!Q49 -> 0 | R49: ='fnd enro'!R49 -> 0 | S49: ='fnd enro'!S49 -> 0 | T49: ='fnd enro'!T49 -> 0 | U49: ='fnd enro'!W49 -> 1 | V49: 1.078 | W49: ='fnd enro'!V49 -> 1 | Y49: =(($D49*'fnd base rates'!C$48) +($E49*'fnd base rates'!C$49) +($F49*'fnd base rates'!C$50) +($G49*'fnd base rates'!C$51) +($H49*'fnd base rates'!C$52) +($I49*'fnd base rates'!C$53) +($J49*'fnd base rates'!C$54) +($K49*'fnd base rates'!C$55) +($M49*'fnd base rates'!C$56) +($N49*'fnd base rates'!C$57) +($O49*'fnd base rates'!C$58) +($P49*'fnd base rates'!C$59) +($Q49*'fnd base rates'!C$60) +($R49*'fnd base rates'!C$61) +($S49*'fnd base rates'!C$62) +($L49*'fnd base rates'!C$63) +($T49*VLOOKUP($W49+16,rate_basefnd,3))) *$V49 -> 512.6217443 | Z49: =(($D49*'fnd base rates'!D$48) +($E49*'fnd base rates'!D$49) +($F49*'fnd base rates'!D$50) +($G49*'fnd base rates'!D$51) +($H49*'fnd base rates'!D$52) +($I49*'fnd base rates'!D$53) +($J49*'fnd base rates'!D$54) +($K49*'fnd base rates'!D$55) +($M49*'fnd base rates'!D$56) +($N49*'fnd base rates'!D$57) +($O49*'fnd base rates'!D$58) +($P49*'fnd base rates'!D$59) +($Q49*'fnd base rates'!D$60) +($R49*'fnd base rates'!D$61) +($S49*'fnd base rates'!D$62) +($L49*'fnd base rates'!D$63) +($T49*VLOOKUP($W49+16,rate_basefnd,4))) *$V49 -> 735.48706 | AA49: =(($D49*'fnd base rates'!E$48) +($E49*'fnd base rates'!E$49) +($F49*'fnd base rates'!E$50) +($G49*'fnd base rates'!E$51) +($H49*'fnd base rates'!E$52) +($I49*'fnd base rates'!E$53) +($J49*'fnd base rates'!E$54) +($K49*'fnd base rates'!E$55) +($M49*'fnd base rates'!E$56) +($N49*'fnd base rates'!E$57) +($O49*'fnd base rates'!E$58) +($P49*'fnd base rates'!E$59) +($Q49*'fnd base rates'!E$60) +($R49*'fnd base rates'!E$61) +($S49*'fnd base rates'!E$62) +($L49*'fnd base rates'!E$63) +($T49*VLOOKUP($W49+16,rate_basefnd,5))) *$V49 -> 4712.08609 | AB49: =(($D49*'fnd base rates'!F$48) +($E49*'fnd base rates'!F$49) +($F49*'fnd base rates'!F$50) +($G49*'fnd base rates'!F$51) +($H49*'fnd base rates'!F$52) +($I49*'fnd base rates'!F$53) +($J49*'fnd base rates'!F$54) +($K49*'fnd base rates'!F$55) +($M49*'fnd base rates'!F$56) +($N49*'fnd base rates'!F$57) +($O49*'fnd base rates'!F$58) +($P49*'fnd base rates'!F$59) +($Q49*'fnd base rates'!F$60) +($R49*'fnd base rates'!F$61) +($S49*'fnd base rates'!F$62) +($L49*'fnd base rates'!F$63) +($T49*VLOOKUP($W49+16,rate_basefnd,6))) *$V49 -> 843.0753678 | AC49: =(($D49*'fnd base rates'!G$48) +($E49*'fnd base rates'!G$49) +($F49*'fnd base rates'!G$50) +($G49*'fnd base rates'!G$51) +($H49*'fnd base rates'!G$52) +($I49*'fnd base rates'!G$53) +($J49*'fnd base rates'!G$54) +($K49*'fnd base rates'!G$55) +($M49*'fnd base rates'!G$56) +($N49*'fnd base rates'!G$57) +($O49*'fnd base rates'!G$58) +($P49*'fnd base rates'!G$59) +($Q49*'fnd base rates'!G$60) +($R49*'fnd base rates'!G$61) +($S49*'fnd base rates'!G$62) +($L49*'fnd base rates'!G$63) +($T49*VLOOKUP($W49+16,rate_basefnd,7))) *$V49 -> 157.0569192 | AD49: =(($D49*'fnd base rates'!H$48) +($E49*'fnd base rates'!H$49) +($F49*'fnd base rates'!H$50) +($G49*'fnd base rates'!H$51) +($H49*'fnd base rates'!H$52) +($I49*'fnd base rates'!H$53) +($J49*'fnd base rates'!H$54) +($K49*'fnd base rates'!H$55) +($M49*'fnd base rates'!H$56) +($N49*'fnd base rates'!H$57) +($O49*'fnd base rates'!H$58) +($P49*'fnd base rates'!H$59) +($Q49*'fnd base rates'!H$60) +($R49*'fnd base rates'!H$61) +($S49*'fnd base rates'!H$62) +($L49*'fnd base rates'!H$63) +($T49*VLOOKUP($W49+16,rate_basefnd,8))) -> 738.064 | AE49: =(($D49*'fnd base rates'!I$48) +($E49*'fnd base rates'!I$49) +($F49*'fnd base rates'!I$50) +($G49*'fnd base rates'!I$51) +($H49*'fnd base rates'!I$52) +($I49*'fnd base rates'!I$53) +($J49*'fnd base rates'!I$54) +($K49*'fnd base rates'!I$55) +($M49*'fnd base rates'!I$56) +($N49*'fnd base rates'!I$57) +($O49*'fnd base rates'!I$58) +($P49*'fnd base rates'!I$59) +($Q49*'fnd base rates'!I$60) +($R49*'fnd base rates'!I$61) +($S49*'fnd base rates'!I$62) +($L49*'fnd base rates'!I$63) +($T49*VLOOKUP($W49+16,rate_basefnd,9))) *$V49 -> 409.4783 | AF49: =(($D49*'fnd base rates'!J$48) +($E49*'fnd base rates'!J$49) +($F49*'fnd base rates'!J$50) +($G49*'fnd base rates'!J$51) +($H49*'fnd base rates'!J$52) +($I49*'fnd base rates'!J$53) +($J49*'fnd base rates'!J$54) +($K49*'fnd base rates'!J$55) +($M49*'fnd base rates'!J$56) +($N49*'fnd base rates'!J$57) +($O49*'fnd base rates'!J$58) +($P49*'fnd base rates'!J$59) +($Q49*'fnd base rates'!J$60) +($R49*'fnd base rates'!J$61) +($S49*'fnd base rates'!J$62) +($L49*'fnd base rates'!J$63) +($T49*VLOOKUP($W49+16,rate_basefnd,10))) *$V49 -> 551.56948 | AG49: =(($D49*'fnd base rates'!K$48) +($E49*'fnd base rates'!K$49) +($F49*'fnd base rates'!K$50) +($G49*'fnd base rates'!K$51) +($H49*'fnd base rates'!K$52) +($I49*'fnd base rates'!K$53) +($J49*'fnd base rates'!K$54) +($K49*'fnd base rates'!K$55) +($M49*'fnd base rates'!K$56) +($N49*'fnd base rates'!K$57) +($O49*'fnd base rates'!K$58) +($P49*'fnd base rates'!K$59) +($Q49*'fnd base rates'!K$60) +($R49*'fnd base rates'!K$61) +($S49*'fnd base rates'!K$62) +($L49*'fnd base rates'!K$63) +($T49*VLOOKUP($W49+16,rate_basefnd,11))) *$V49 -> 1102.151782 | AH49: =(($D49*'fnd base rates'!L$48) +($E49*'fnd base rates'!L$49) +($F49*'fnd base rates'!L$50) +($G49*'fnd base rates'!L$51) +($H49*'fnd base rates'!L$52) +($I49*'fnd base rates'!L$53) +($J49*'fnd base rates'!L$54) +($K49*'fnd base rates'!L$55) +($M49*'fnd base rates'!L$56) +($N49*'fnd base rates'!L$57) +($O49*'fnd base rates'!L$58) +($P49*'fnd base rates'!L$59) +($Q49*'fnd base rates'!L$60) +($R49*'fnd base rates'!L$61) +($S49*'fnd base rates'!L$62) +($L49*'fnd base rates'!L$63) +($T49*VLOOKUP($W49+16,rate_basefnd,12))) -> 1018.603625 | AI49: =(($D49*'fnd base rates'!M$48) +($E49*'fnd base rates'!M$49) +($F49*'fnd base rates'!M$50) +($G49*'fnd base rates'!M$51) +($H49*'fnd base rates'!M$52) +($I49*'fnd base rates'!M$53) +($J49*'fnd base rates'!M$54) +($K49*'fnd base rates'!M$55) +($M49*'fnd base rates'!M$56) +($N49*'fnd base rates'!M$57) +($O49*'fnd base rates'!M$58) +($P49*'fnd base rates'!M$59) +($Q49*'fnd base rates'!M$60) +($R49*'fnd base rates'!M$61) +($S49*'fnd base rates'!M$62) +($L49*'fnd base rates'!M$63) +($T49*VLOOKUP($W49+16,rate_basefnd,13))) -> 0 | AJ49: 10780.19437 | AL49: 412035335 | AM49: 412 | AN49: 035 | AO49: 335 | AP49: 1 | AQ49: 1 | AR49: 10780.19437 | AS49: 10780
